Workbook

Sheet Model Cover
B3: Educational model
B4: Solar Infastructure Model (PPA utility scale)
B6: Case Study: Brisbane
B8: 28th February 2019
C11: Modelled by: | E11: Kaiden Gilbert
C12: Modelled for: | E12: Oceanside Independent Research
C13: Email: | E13: kaiden.gilbert95@gmail.com

Sheet Case Overview

Sheet Inputs
A1: Inputs & Assumptions
A3: Timing and General
B5: Key Dates
C6: Key project stages | H6: Model start | I6: Construction | J6: Operations | K6: Decomission
C7: Start Date | F7: Date | I7: =H9 -> 2018-11-01 | J7: =I9+1 -> 2019-08-01 | K7: =$J$9 -> 2044-07-31
C8: Duration | F8: Qrtrs / Months | I8: 3 | J8: 25 | K8: 3
C9: End Date | F9: Date | H9: 2018-11-01 | I9: =EOMONTH(I7,I8*Months_Qtr-1) -> 2019-07-31 | J9: =EOMONTH(J7,J8*Months_Yr-1) -> 2044-07-31 | K9: =EOMONTH(K7,K8*Months_Qtr-1) -> 2045-03-31
C11: Panel Installations | H11: Date | I11: Panels (Num#) | J11: Percentage | K11: Capacity
C12: First installation batch | F12: Date / % | H12: =J7-52 -> 2019-06-10 | I12: =ROUND($E$68*J12,0) -> 416 | J12: 0.25 | K12: =$E$69*J12 -> 124.8
C13: Second installation batch | F13: Date / % | H13: =H12+15 -> 2019-06-25 | I13: =ROUND($E$68*J13,0) -> 416 | J13: 0.25 | K13: =$E$69*J13 -> 124.8
C14: Third installation batch | F14: Date / % | H14: =H13+17 -> 2019-07-12 | I14: =ROUND($E$68*J14,0) -> 416 | J14: 0.25 | K14: =$E$69*J14 -> 124.8
C15: Fourth installation batch | F15: Date / % | H15: =H14+16 -> 2019-07-28 | I15: =ROUND($E$68*J15,0) -> 416 | J15: 0.25 | K15: =$E$69*J15 -> 124.8
H16: Check | I16: =IF(I12+I13+I14+I15= $E$68,"OK", "FAIL") -> OK | J16: =IF(J12+J13+J14+J15= 1,"OK", "FAIL") -> OK
C17: Hours/yr | E17: 8760
A20: Contruction
B22: Capital expenditure
B23: Categories | E23: www.irena.org (for AU) | H23: Costs per kW | I23: Applied | J23: Total | K23: 1 | L23: =K23+1 -> 2 | M23: =L23+1 -> 3 | N23: =M23+1 -> 4 | O23: Check
B24: 1 | C24: Module/ panel | D24: USD/kW | E24: 500 | F24: AUD/MW | H24: =((E24/$H$363)*$E$128)/1000 -> 688.8549264 | I24: =H24*($E$67*$E$68/Inputs!Million) -> 343.8763793 | J24: =SUM(K24:M24) -> 1 | K24: 0.6 | L24: 0.4 | O24: =IF(J24=ROUND(100%,2),"OK", "FAIL") -> OK
B25: 1 | C25: Inverter | D25: USD/kW | E25: 111 | F25: AUD/MW | H25: =((E25/$H$363)*$E$128)/1000 -> 152.9257937 | I25: =H25*($E$67*$E$68/Inputs!Million) -> 76.3405562 | J25: 1 | K25: 0.6 | L25: 0.4 | O25: =IF(J25=ROUND(100%,2),"OK", "FAIL") -> OK
B26: 1 | C26: Cabling/ wiring | D26: USD/kW | E26: 44 | F26: AUD/MW | H26: =((E26/$H$363)*$E$128)/1000 -> 60.61923352 | I26: =H26*($E$67*$E$68/Inputs!Million) -> 30.26112137 | J26: 1 | K26: 0.4 | L26: 0.3 | M26: 0.3 | O26: OK
B27: 1 | C27: Grid connection | D27: USD/kW | E27: 61 | F27: AUD/MW | H27: =((E27/$H$363)*$E$128)/1000 -> 84.04030102 | I27: =H27*($E$67*$E$68/Inputs!Million) -> 41.95291827 | J27: 1 | K27: 0.4 | L27: 0.3 | M27: 0.3 | O27: OK
B28: 1 | C28: Monitoring & control | D28: USD/kW | E28: 33 | F28: AUD/MW | H28: =((E28/$H$363)*$E$128)/1000 -> 45.46442514 | I28: =H28*($E$67*$E$68/Inputs!Million) -> 22.69584103 | J28: 1 | K28: 0.4 | L28: 0.3 | M28: 0.3 | O28: OK
B29: 1 | C29: Racking and mounting | D29: USD/kW | E29: 111 | F29: AUD/MW | H29: =((E29/$H$363)*$E$128)/1000 -> 152.9257937 | I29: =H29*($E$67*$E$68/Inputs!Million) -> 76.3405562 | J29: 1 | K29: 0.6 | L29: 0.4 | O29: OK
B30: 1 | C30: Safety, security & logistics | D30: USD/kW | E30: 44 | F30: AUD/MW | H30: =((E30/$H$363)*$E$128)/1000 -> 60.61923352 | I30: =H30*($E$67*$E$68/Inputs!Million) -> 30.26112137 | J30: 1 | K30: 0.4 | L30: 0.3 | M30: 0.3 | O30: OK
B31: 1 | C31: Eletrical Installation | D31: USD/kW | E31: 78 | F31: AUD/MW | H31: =((E31/$H$363)*$E$128)/1000 -> 107.4613685 | I31: =H31*($E$67*$E$68/Inputs!Million) -> 53.64471516 | J31: 1 | L31: 0.6 | M31: 0.4 | O31: OK
B32: 1 | C32: Inspection | D32: USD/kW | E32: 6 | F32: AUD/MW | H32: =((E32/$H$363)*$E$128)/1000 -> 8.266259117 | I32: =H32*($E$67*$E$68/Inputs!Million) -> 4.126516551 | J32: 1 | L32: 0.6 | M32: 0.4 | O32: OK
B33: 1 | C33: Mechanical Installation | D33: USD/kW | E33: 162 | F33: AUD/MW | H33: =((E33/$H$363)*$E$128)/1000 -> 223.1889962 | I33: =H33*($E$67*$E$68/Inputs!Million) -> 111.4159469 | J33: 1 | L33: 0.6 | M33: 0.4 | O33: OK
C34: Capital Investment/KW of Capacity | D34: USD/kW | E34: =SUM(E24:E33) -> 1150 | F34: AUD/MW | H34: =SUM(H24:H33) -> 1584.366331 | I34: =SUM(I24:I33) -> 790.9156723 | J34: =IF(SUM(H24:H33)=$H$34,"OK", " FAIL") -> OK
C37: System Cost
C38: EPC(per-watt) | D38: AUD/W | E38: =H34/$E$128 -> 1.61971831
C39: EPC (per-kW) | D39: AUD/kW | E39: =E38*1000 -> 1619.71831
C40: Total EPC (w/o subsidy) | D40: AUD/M | E40: =E38*$E$128 -> 1584.366331
C41: Investment subsidy | D41: AUD/M | E41: 0
C42: Total EPC (with subsidy) | D42: AUD/M | E42: =E40-E41 -> 1584.366331
C45: Contingency | D45: Case selected | E45: =Scenario!$E$10 -> Base Case
C46: Contingency factor | D46: % | E46: =IF($E$45=Scenario!$C$36,0,IF($E$45=Scenario!$C$37,Scenario!$G$10,-Scenario!$G$10)) -> 0
C49: Module / Cell Area
C50: Module Area | D50: m2 | E50: 2714 | H50: Case Overview (Simulation Parameters)
C51: Cell Area | D51: m2 | E51: 2375 | H51: Case Overview (Simulation Parameters)
C54: Inverter
C55: Nominal power per inverter | D55: kW | E55: 20 | H55: Case Overview (Simulation Parameters)
C56: Number of inverter units | D56: Num# | E56: 23 | H56: Case Overview (Simulation Parameters)
C57: Implied power delivered from inverters | D57: kW | E57: =E55*E56 -> 460
C59: Closure / decommission | H59: Total | I59: Quaterly
C60: Decommission expese | D60: AUD M | E60: 10 | H60: =E60 -> 10 | I60: =H60/$I$62 -> 10
C61: Decommission timing | D61: Date | E61: =$J$9 -> 2044-07-31 | H61: Start | I61: Duration | J61: End
C62: Decomission reserve timing | D62: Qtrs | E62: 4 | H62: =EOMONTH(J62,-I62*Inputs!Months_Yr-1) -> 2043-06-30 | I62: 1 | J62: =$K$7 -> 2044-07-31
A64: Generation
B66: Panel Capacity
C67: Tested capacity per panel | D67: Wp | E67: 300 | H67: Case Overview (Simulation Parameters)
C68: Total number of panels | D68: Num# | E68: 1664 | H68: Case Overview (Simulation Parameters) | K68: =E67*E68/Inputs!Million -> 0.4992
C69: Total capacity at standard temp conditions | D69: kWp | E69: =E67*E68/1000 -> 499.2
C71: Capacity power at operating conditions | E71: 451 | H71: Case Overview (Simulation Parameters)
C72: Percentage reduction from temprature | D72: % | E72: =E71/E69 -> 0.9034455128
C74: Standard Deviation of Performance Ratio | D74: % | E74: 0.02
B77: Irradiation / Power Generation | I77: Total (p.a) | J77: January | K77: February | L77: March | M77: April | N77: May | O77: June | P77: July | Q77: August | R77: September | S77: October | T77: November | U77: December | V77: Average
C78: Horizontal Global Radiation | D78: k/Wh/m2 p.a | E78: =I78 -> 2205.8 | H78: Power generation | I78: =SUM(J78:U78) -> 2205.8 | J78: 233.4 | K78: 194 | L78: 198.8 | M78: 165.6 | N78: 138.9 | O78: 122.7 | P78: 138.9 | Q78: 164.5 | R78: 187.1 | S78: 213.9 | T78: 218.7 | U78: 229.3 | V78: =AVERAGE(J78:U78) -> 183.8166667
H79: Percent of total generation | I79: =SUM(J79:U79) -> 1 | J79: =J78/$I$78 -> 0.1058119503 | K79: 0.08794995013 | L79: 0.09012603137 | M79: 0.07507480279 | N79: 0.06297035089 | O79: 0.05562607671 | P79: 0.06297035089 | Q79: 0.07457611751 | R79: 0.08482183335 | S79: 0.09697162027 | T79: 0.09914770151 | U79: 0.1039532143 | V79: =AVERAGE(J79:U79) -> 0.08333333333
H80: Percentage of average | J80: =J78/$V$78 -> 1.269743404 | K80: 1.055399402 | L80: 1.081512376 | M80: 0.9008976335 | N80: 0.7556442107 | O80: 0.6675129205 | P80: 0.7556442107 | Q80: 0.8949134101 | R80: 1.017862 | S80: 1.163659443 | T80: 1.189772418 | U80: 1.247438571 | V80: =AVERAGE(J80:U80) -> 1
U81: Check | V81: =IF(AVERAGE(J80:U80)=100%,"OK","FAIL") -> OK
C82: Global Incident in coll plane | D82: % | E82: 0.091 | H82: Case Overview (Loss Diagram)
C83: Incidence Angle Modifier (IAM) Factor | D83: % | E83: -0.028 | H83: Case Overview (Loss Diagram)
C85: Adjustment factor | D85: x | E85: =(1+E82)*(1+E83) -> 1.060452
C87: Effective yield | D87: k/Wh/m2 p.a | E87: =E78*E85 -> 2339.145022
C89: Panel Efficiency at STC | D89: % | E89: 0.1845 | H89: Case Overview (Loss Diagram)
C90: Nominal Yield | D90: k/Wh/m2 p.a | E90: =E87*E89 -> 431.5722565
C92: Energy loss before inverter
C93: PV loss due to irradiance level | E93: 0.0124
C94: PV loss due to temprature | E94: 0.1044 | H94: Case Overview (Loss Diagram)
C95: Module Quality Loss | E95: 0.015 | H95: Case Overview (Loss Diagram)
C96: Module Mismatch Loss | E96: 0.01 | H96: Case Overview (Loss Diagram)
C97: Wiring Loss | E97: 0.013 | H97: Case Overview (Loss Diagram)
C99: Total energy loss before inverter adjustment | E99: =(1-E93)*(1-E94)*(1-E95)*(1-E96)*(1-E97)-1 -> -0.1486978231
C101: Array virtual energy at MPP | E101: =E90*(1+E99) -> 367.3984014
C103: Energy loss after inverter
C104: Inverter Loss (efficiency) | E104: 0.019
C105: Loss over nominal inv. Power | E105: 0
C106: Loss to power threshold | E106: 0
C107: Loss over nominl inv. Volatage | E107: 0
C108: Loss to volatage threshold | E108: 0
C110: Total energy loss after inverter adjustment | E110: =(1-E104)*(1-E105)*(1-E106)*(1-E107)*(1-E108)-1 -> -0.019
C112: Net yield injected into grid (m2) | D112: k/Wh/m2 | E112: =E101*(1+E110) -> 360.4178318
C113: Net yield injected into grid (kWh) | D113: kWh | E113: =E112*$E$50 -> 978173.9955
C114: Net yield injected into grid (MkW) | D114: MkW | E114: =E113/1000 -> 978.1739955
C116: Implied Performance Ratio @ P50 | D116: % | E116: =E112/E90 -> 0.8351274355
C118: Standard Deviation of Performance Ratio | D118: % | E118: 0.02 | H118: Analyst input
F120: =Scenario!$E$20 -> 50
F121: Flex | H121: 99 | I121: 95 | J121: 90 | K121: 75 | L121: 50 | M121: 25
C122: Performance Ratio | D122: % | F122: =INDEX($H$122:$M$122,1,MATCH($F$120,H121:M121,0)) -> 0.8351274355 | H122: =_xlfn.NORM.INV((H$121/100),$L$122,$E$118) -> 0.881654393 | I122: =_xlfn.NORM.INV((I$121/100),$L$122,$E$118) -> 0.8680245081 | J122: =_xlfn.NORM.INV((J$121/100),$L$122,$E$118) -> 0.8607584668 | K122: =_xlfn.NORM.INV((K$121/100),$L$122,$E$118) -> 0.8486172305 | L122: =E116 -> 0.8351274355 | M122: =_xlfn.NORM.INV((M$121/100),$L$122,$E$118) -> 0.8216376405
C125: Net yeild injected into grid (with flex)
C126: Net yield injected into grid (m2) | D126: k/Wh/m2 | E126: =$E$90*$F$122 -> 360.4178318
C127: Net yield injected into grid (kWh) | D127: kWh | E127: =E126*$E$50 -> 978173.9955
C128: Net yield injected into grid (MkW) | D128: MkW | E128: =E127/1000 -> 978.1739955
C131: Yield from nominal capacity | D131: kWh/kWp | E131: =E127/E69 -> 1959.483164
C132: Yield from effective capacity | D132: kWh/kWp | E132: =E127/E71 -> 2168.900212
C134: Capacity factor from nominal capacity | D134: % | E134: =E131/8760 -> 0.2236852927 | I134: Check | J134: January | K134: February | L134: March | M134: April | N134: May | O134: June | P134: July | Q134: August | R134: September | S134: October | T134: November | U134: December
C135: Capacity factor from effective capacity | D135: % | E135: =E132/8760 -> 0.2475913484 | H135: Implied nominal capacity factor (p.m) | I135: =IF(AVERAGE(J135:U135)=$E$134,"OK","FAIL") -> OK | J135: =$E$134*J80 -> 0.2840229249 | K135: 0.2360773241 | L135: 0.2419184125 | M135: 0.2015175508 | N135: 0.1690264965 | O135: 0.149312823 | P135: 0.1690264965 | Q135: 0.2001789681 | R135: 0.2276807594 | S135: 0.2602935032 | T135: 0.2661345916 | U135: 0.2790336619
H136: Implied power generation (p.m) | I136: =IF(ROUND(SUM(J136:U136),2)=ROUND($E$127,2),"OK","FAIL") -> OK | J136: =J135*$E$69*(1/12)*$E$17 -> 103502.4982 | K136: 86030.35412 | L136: 88158.94021 | M136: 73436.21981 | N136: 61595.95973 | O136: 54411.98171 | P136: 61595.95973 | Q136: 72948.41883 | R136: 82970.51163 | S136: 94855.11725 | T136: 96983.70333 | U136: 101684.3309
C138: Total Production before degradation | D138: kWh/kWp p.a | E138: =SUM(J136:U136) -> 978173.9955
C140: Annual degradation | D140: % | E140: 0.004 | H140: Lazard (2017): https://www.lazard.com/media/450337/lazard-levelized-cost-of-energy-version-110.pdf
A144: Operations
B145: This section sets out the key operating expentidure for the project
B146: O&M | F146: =Scenario!$E$12 -> Base Case
C147: Fixed Operating Costs
C148: Fixed operation costs (inc. insurance) | D148: % | E148: 0.008 | F148: Flex | H148: Based on the average ratio of O&M costs to CAPEX costs, 0.8%, as reported in Lazard (2017): https://www.lazard.com/media/450337/lazard-levelized-cost-of-energy-version-110.pdf
C149: Fixed operation costs (with flex) | D149: % | E149: =IF(F149="",$E$148,$E$148*(1+$F$149)) -> 0.008 | F149: =IF($F$146=Scenario!$C$36,"",IF($F$146=Scenario!$C$37,Scenario!$G$12,-Scenario!$G$12)) -> 
C150: Fixed operation costs (inc. insurance) | D150: AUD/mWh | E150: =($E$149*$I$34) -> 6.327325378
C153: Esculation of O&M | D153: % | E153: 0.0225 | H153: Lazard (2017): https://www.lazard.com/media/450337/lazard-levelized-cost-of-energy-version-110.pdf
C155: Variable Operating Costs
C156: Land lease/ acre | D156: AUD/acre | E156: 3000
C157: Conversion factor | D157: m2/acre | E157: 0.00024711
C158: Land lease/ m2 | D158: AUD/m2 | E158: =E156*E157 -> 0.74133
C159: Total land lease | D159: AUD kWh | E159: =E158*$E$50 -> 2011.96962
C160: Total land lease | D160: AUD mm | E160: =E159/1000 -> 2.01196962
C162: Inverter Replacement
C163: Cost in real currency | D163: USD | E163: =E25 -> 111 | H163: Replacement date | I163: Cost/kW | J163: Period | K163: Inflation index | L163: Total cost USD/k
C164: years to replacement | D164: Num# | E164: 40 | H164: =EDATE($J$7,$E$164*12) -> 2059-08-01
C165: Investment subsidy | D165: AUD/M | E165: 0
B168: Working capital
C169: Days turnover
C170: Debtors | D170: Days
C171: Creditors | D171: Days
B174: Tax
C175: Corporate Tax
C176: Tax rate | D176: % | E176: 0.3
C177: Tax life - Modules | D177: Yrs | E177: 25 | H177: Based on the average ratio of O&M costs to CAPEX costs, 0.8%, as reported in Lazard (2017): https://www.lazard.com/media/450337/lazard-levelized-cost-of-energy-version-110.pdf
C178: Tax life - Inverters | D178: Yrs | E178: 25
C179: Amortisation Period | D179: Yrs | E179: 25
C180: Tax loss at start date | D180: AUD/M | E180: 0
B182: Depreciation
C183: Depreciation Method | H183: Use of VDB to provide flexible depreciation rate
C185: Depreciation method selection | D185: Choice
C187: Module / panels
C188: Start Date | D188: Date | E188: =$J$7 -> 2019-08-01 | H188: 0 | I188: =IF(H188<=$E$190,H188+1,"") -> 1 | J188: =IF(I188<=$E$188,I188+1,"") -> 2 | K188: 3 | L188: 4 | M188: 5 | N188: 6 | O188: 7 | P188: 8 | Q188: 9 | R188: 10 | S188: 11 | T188: 12 | U188: 13 | V188: =IF(U188<=$E$188,U188+1,"") -> 14 | W188: 15 | X188: 16 | Y188: 17 | Z188: 18 | AA188: =IF(Z188<=$E$188,Z188+1,"") -> 19 | AB188: 20 | AC188: 21 | AD188: 22 | AE188: 23 | AF188: 24 | AG188: 25
C189: End Date | D189: Date | E189: =EDATE(E188,E190*Inputs!Months_Yr) -> 2044-08-01 | I189: =VDB(1,0,$E$190,H188,I188) -> 0.08 | J189: =VDB(1,0,$E$190,I188,J188) -> 0.0736 | K189: 0.067712 | L189: 0.06229504 | M189: 0.0573114368 | N189: 0.05272652186 | O189: 0.04850840011 | P189: 0.0446277281 | Q189: 0.04105750985 | R189: 0.03777290906 | S189: 0.03475107634 | T189: 0.03197099023 | U189: 0.02941331101 | V189: 0.02818775639 | W189: 0.02818775639 | X189: 0.02818775639 | Y189: 0.02818775639 | Z189: 0.02818775639 | AA189: 0.02818775639 | AB189: 0.02818775639 | AC189: 0.02818775639 | AD189: 0.02818775639 | AE189: 0.02818775639 | AF189: 0.02818775639 | AG189: 0.02818775639
C190: Tax life | D190: Years | E190: =$J$8 -> 25
C192: First batch of inverters
C193: Start Date | D193: Date | E193: =$J$7 -> 2019-08-01 | H193: 0 | I193: =IF(H193<=$E$195,H193+1,"") -> 1 | J193: =IF(I193<=$E$195,I193+1,"") -> 2 | K193: 3 | L193: 4 | M193: 5 | N193: 6 | O193: 7 | P193: 8 | Q193: 9 | R193: 10 | S193: 11 | T193: 12 | U193: 13 | V193: 14 | W193: 15
C194: End Date | D194: Date | E194: =EDATE(E193,E195*Inputs!Months_Yr) -> 2044-08-01 | I194: =VDB(1,0,$E$195,H193,I193) -> 0.08 | J194: =VDB(1,0,$E$195,I193,J193) -> 0.0736 | K194: 0.067712 | L194: 0.06229504 | M194: 0.0573114368 | N194: 0.05272652186 | O194: 0.04850840011 | P194: 0.0446277281 | Q194: 0.04105750985 | R194: 0.03777290906 | S194: 0.03475107634 | T194: 0.03197099023 | U194: 0.02941331101 | V194: 0.02818775639 | W194: 0.02818775639
C195: Tax life | D195: Years | E195: 25
C197: Second batch of inverters | H197: 0 | I197: =H197+1 -> 1 | J197: =I197+1 -> 2 | K197: 3 | L197: 4 | M197: 5 | N197: 6 | O197: 7 | P197: 8 | Q197: 9 | R197: 10
C198: Start Date | D198: Date | E198: =E194 -> 2044-08-01 | H198: =W193 -> 15 | I198: =H198+1 -> 16 | J198: =IF(I198<=$E$198,I198+1,"") -> 17 | K198: 18 | L198: 19 | M198: 20 | N198: 21 | O198: 22 | P198: 23 | Q198: 24 | R198: 25
C199: End Date | D199: Date | E199: =EDATE(E198,E200*Inputs!Months_Yr) -> 2044-08-01 | I199: =IFERROR(VDB(1,0,$E$200,H197,I197),"") ->  | J199: =IFERROR(VDB(1,0,$E$200,I197,J197),"") -> 
C200: Tax life | D200: Years | E200: 0
C202: Financing expenses
C203: Straight line useful life for financing expenses | D203: Years | E203: 25
C204: Implied SL depreciation rate | D204: % p.a | E204: =1/E203 -> 0.04
B206: Revenue Model
C207: PV Business Model Selection
C208: Feed-in Tariff | D208: % | E208: 0.2
C209: Self-consumption | D209: % | H209: I have set self-consumption to zero, the case-overview states electricity costs are "0.00 AU$/kWh"
C210: Net-metering | D210: % | E210: 0
C211: Power Purchase Agreement | D211: % | E211: 0.3
C214: Spot Pricing Assumptions | H214: Prices based on the average quarterly wholesale energy prices quoted by the Australian Energy Regulator
C215: Selection | F215: =Scenario!$E$18 -> Base Case | H215: =YEAR($H$9) -> 2018 | I215: =H215+1 -> 2019 | J215: =I215+1 -> 2020 | K215: =J215+1 -> 2021 | L215: =K215+1 -> 2022 | M215: =L215+1 -> 2023
C216: Base Case | D216: % p.a | H216: 80 | I216: 76.15 | J216: 64.025 | K216: 55.3 | L216: 63.15 | M216: 63.15
C217: High Case | D217: % p.a | F217: Flex (Y + %) | H217: =H216*(1+0.1) -> 88 | I217: 83.765 | J217: 70.4275 | K217: 60.83 | L217: 69.465 | M217: 69.465
C218: Low Case | D218: % p.a | F218: =Scenario!$G$18 -> 0.1 | H218: =H216*(1-0.1) -> 72 | I218: 68.535 | J218: 57.6225 | K218: 49.77 | L218: 56.835 | M218: 56.835
C219: =$F$215 -> Base Case | D219: % p.a | H219: =INDEX(H216:H218,MATCH($F$215,$C$216:$C$218,0),1) -> 80 | I219: 76.15 | J219: 64.025 | K219: 55.3 | L219: 63.15 | M219: 63.15
C221: Total Specific Fees | D221: =Names!$G$38 -> AUD/kWh | E221: 0
B224: Power Purchase Agreement
C225: Monash University | E225: Case selected | F225: =Scenario!$E$19 -> Base Case
C226: PPA term
C227: PPA term structure | D227: Choice | E227: Behind the Meter
C228: PPA term tenor | D228: Yrs | E228: 10 | F228: Flex | H228: These are hypotheticals. In reality, Monash University was sourcing 55GWh p.a.
C229: PPA supply price | D229: AU$/MWh | E229: 60 | F229: =IF($F$225=Scenario!$C$36,"",IF($F$225=Scenario!$C$37,Scenario!$G$19,-Scenario!$G$19)) ->  | H229: Based off of Origin, who secured a PPA with Goldwind for the Stockyard Hill wind project in Victoria for between $55 - $60
C230: PPA supply price with flex | E230: =IF($F$229="",E229,E229*(1+F229)) -> 60
C231: PPA term energy purchase | D231: kWh p.a. | E231: 350000 | H231: `
C232: Percentage of total net electricity generation | D232: % | E232: =E231/$E$127 -> 0.3578095529
C233: PPA term start-date | D233: Date | E233: =$J$7 -> 2019-08-01
C234: PPA term end-date | D234: Date | E234: =EOMONTH($E$233,$E$228*Months_Yr-1) -> 2029-07-31
C236: University of Brisbane
C237: PPA term
C238: PPA term structure | D238: Choice | E238: Behind the Meter
C239: PPA term tenor | D239: Yrs | E239: 15 | F239: Flex
C240: PPA supply price | D240: AU$/MWh | E240: 65 | F240: =IF($F$225=Scenario!$C$36,"",IF($F$225=Scenario!$C$37,Scenario!$G$19,-Scenario!$G$19)) ->  | H240: Increase by $5/MWh due to lower net energy purchase - hypothetical
C241: PPA supply price with flex | E241: =IF($F$229="",E240,E240*(1+F240)) -> 65
C242: PPA term energy purchase | D242: kWh p.a. | E242: 250000
C243: Percentage of total net electricity generation | D243: % | E243: =E242/$E$127 -> 0.2555782521
C244: PPA term start-date | D244: Date | E244: =$E$234 -> 2029-07-31
C245: PPA term end-date | D245: Date | E245: =EOMONTH($E$244,$E$239*Months_Yr-1) -> 2044-06-30
C247: Kleenheat Brisbane
C248: PPA term
C249: PPA term structure | D249: Choice | E249: Behind the Meter
C250: PPA term tenor | D250: Yrs | E250: 25 | F250: Flex | H250: These are hypotheticals. In reality, Kleenheat was sourcing 30MW p.a
C251: PPA supply price | D251: AU$/MWh | E251: 60 | F251: =IF($F$225=Scenario!$C$36,"",IF($F$225=Scenario!$C$37,Scenario!$G$19,-Scenario!$G$19)) -> 
C252: PPA supply price with flex | E252: =IF($F$229="",E251,E251*(1+F251)) -> 60
C253: PPA term energy purchase | D253: kWh p.a. | E253: 500000
C254: Percentage of total net electricity generation | D254: % | E254: =E253/$E$127 -> 0.5111565042
C255: PPA term start-date | D255: Date | E255: =$J$7 -> 2019-08-01
C256: PPA term end-date | D256: Date | E256: =EOMONTH($E$255,$E$250*Months_Yr-1) -> 2044-07-31
A259: Funding
C261: Equity
C262: Initial equity | D262: AUD M | E262: 100
C264: WACC
C265: Discount Rate | D265: % | E265: 0.07
C266: Debt All-in Rate | D266: % | E266: =AVERAGE($H$300:$L$300)+AVERAGE($H$339:$M$339) -> 0.0405
C267: WACC nominal* | D267: % | E267: =(E291/(E291+E262))*E266+(E262/(E291+E262))*E265 -> 0.0449301249 | H267: * WACC = (D/D+E)) x Cost of Debt + (E/D+E) x Cost of Equity
C269: Debt
C270: Sizing ratios
... 76 more rows

Sheet Scenario
A1: Scenario Manager
C2: =$E$4 -> Base Case
E3: Live Case | G3: Select Case | I3: 1 | J3: =I3+1 -> 2 | K3: =J3+1 -> 3 | L3: 4 | M3: =L3+1 -> 5 | N3: =M3+1 -> 6 | O3: 7 | P3: 8 | Q3: 9 | R3: 10 | S3: 11 | T3: 12 | U3: 13 | V3: 14
E4: =INDEX($I6:$V6,1,$G$4) -> Base Case | G4: 1 | I4: =IF(I3=$G$4,"q","¬") -> q | J4: =IF(J3=$G$4,"q","¬") -> ¬ | K4: ¬ | L4: ¬ | M4: ¬ | N4: ¬ | O4: ¬ | P4: ¬ | Q4: ¬ | R4: ¬ | S4: ¬ | T4: ¬ | U4: ¬ | V4: ¬
I6: Base Case | J6: Capex Up | K6: Opex Up | L6: Gen low | M6: Gen high | N6: Inflation up | O6: Interest up | P6: Forex up | Q6: PPA up | R6: PPA down | S6: Spot Price up | T6: Spot Price down | U6: Debt up | V6: Capex Down
G8: Sensitivity Flex
C9: Capex /Opex
C10: Capex Contingency | D10: Y * (1 + %) | E10: =IF(INDEX($I10:$V10,1,$G$4)="",I10,INDEX($I10:$V10,1,$G$4)) -> Base Case | G10: 0.1 | I10: Base Case | J10: High Case | V10: Low Case
C11: Variable | D11: Y * (1 + %) | E11: =IF(INDEX($I11:$V11,1,$G$4)="",I11,INDEX($I11:$V11,1,$G$4)) -> Base Case | G11: 0.1 | I11: Base Case | K11: High Case
C12: Fixed | D12: Y * (1 + %) | E12: =IF(INDEX($I12:$V12,1,$G$4)="",I12,INDEX($I12:$V12,1,$G$4)) -> Base Case | G12: 0.1 | I12: Base Case | K12: High Case
C14: Delay
C15: Project Delay | D15: Choice | E15: =IF(INDEX($I15:$V15,1,$G$4)="",I15,INDEX($I15:$V15,1,$G$4)) -> 1 | I15: 1
C17: Pricing Path
C18: Spot Price Path | D18: Choice | E18: =IF(INDEX($I18:$V18,1,$G$4)="",I18,INDEX($I18:$V18,1,$G$4)) -> Base Case | G18: 0.1 | I18: Base Case | S18: High Case | T18: Low Case
C19: PPA Price Path | D19: Choice | E19: =IF(INDEX($I19:$V19,1,$G$4)="",I19,INDEX($I19:$V19,1,$G$4)) -> Base Case | G19: 0.1 | I19: Base Case | Q19: High Case | R19: Low Case
C20: Solar Probability | D20: Choice | E20: =IF(INDEX($I20:$V20,1,$G$4)="",I20,INDEX($I20:$V20,1,$G$4)) -> 50 | I20: 50 | L20: 25 | M20: 90
C21: Energy Yield | D21: Y * (1 + %) | E21: =IF(INDEX($I21:$V21,1,$G$4)="",I21,INDEX($I21:$V21,1,$G$4)) -> 0 | G21: 0.1
C22: Loss Factor | D22: Y * (1 + %) | E22: =IF(INDEX($I22:$V22,1,$G$4)="",I22,INDEX($I22:$V22,1,$G$4)) -> 0 | G22: 0.1 | L22: Base Case
C24: Debt Repayment
C25: Debt Gearing | D25: x | E25: =IF(INDEX($I25:$V25,1,$G$4)="",I25,INDEX($I25:$V25,1,$G$4)) -> 0.7 | I25: 0.7 | U25: 0.8
C28: Macroeconomics
C29: Interest rate curve | D29: Choice | E29: =IF(INDEX($I29:$V29,1,$G$4)="",I29,INDEX($I29:$V29,1,$G$4)) -> Base Case | G29: 0.0025 | I29: Base Case | O29: High Case
C30: CPI | D30: Choice | E30: =IF(INDEX($I30:$V30,1,$G$4)="",I30,INDEX($I30:$V30,1,$G$4)) -> Base Case | G30: 0.025 | I30: Base Case | N30: High Case
C31: Forex | D31: Choice | E31: =IF(INDEX($I31:$V31,1,$G$4)="",I31,INDEX($I31:$V31,1,$G$4)) -> Base Case | G31: 0.025 | I31: Base Case | P31: High Case
C35: Case Assumptions
C36: Base Case | D36: Base Case Scenario (no sensitivity flex)
C37: High Case | D37: High Case Scenario (+ve sensitivity flex) | I37: Case | J37: EBITDA | K37: Opex | L37: NPAT | M37: Equity IRR | N37: Capex | O37: Project IRR | P37: Pre-tax IRR | Q37: LCOE
C38: Low Case | D38: Low Case Scenario (-ve sensitivity flex) | I38: =$E$4 -> Base Case | J38: =IFS!$I$76 -> 1598.443752 | K38: =IFS!$I$31 -> -282.0125765 | L38: =IFS!$I$88 -> 369.8650882 | M38: =Valuation!$E$48 -> 0.08467930053 | N38: =IFS!$I$43 -> -803.7317227 | O38: =IFS!$I$130 -> 0.04957893296 | P38: =Valuation!$E$28 -> 0.04714691953 | Q38: =IFS!$I$144 -> 69.23456927
H39: 1 | I39: Base Case | J39: 1598.443752 | K39: -282.0125765 | L39: 369.8650882 | M39: 0.08467930053 | N39: -803.7317227 | O39: 0.04957893296 | P39: 0.04714691953 | Q39: 69.23456927
H40: =H39+1 -> 2 | I40: Capex Up | J40: 1598.443752 | K40: -282.0125765 | L40: 328.7655329 | M40: 0.08651633524 | N40: -883.1202841 | O40: 0.04776167967 | P40: 0.04387498469 | Q40: 74.94276459
H41: =H40+1 -> 3 | I41: Opex Up | J41: 1577.046436 | K41: -303.4098929 | L41: 356.1190152 | M41: 0.08383811845 | N41: -803.7317227 | O41: 0.04957893296 | P41: 0.04668102245 | Q41: 70.10291721
H42: 4 | I42: Gen low | J42: 1578.320976 | K42: -278.5562727 | L42: 364.7827647 | M42: 0.08348627386 | N42: -790.9081059 | O42: 0.04963674523 | P42: 0.04723804989 | Q42: 69.29152618
H43: 5 | I43: Gen high | J43: 1636.677653 | K43: -288.5796615 | L43: 379.5216612 | M43: 0.08684634158 | N43: -828.0969946 | O43: 0.04947363943 | P43: 0.04698092907 | Q43: 69.13126787
H44: 6 | I44: Inflation up | J44: 1612.407362 | K44: -282.0125765 | L44: 379.437721 | M44: 0.08512927828 | N44: -803.7317227 | O44: 0.04969651419 | P44: 0.04739945741 | Q44: 69.23456927
H45: 7 | I45: Interest up | J45: 1598.443752 | K45: -282.0125765 | L45: 355.8012279 | M45: 0.08376258109 | N45: -803.7317227 | O45: 0.04957893296 | P45: 0.04714691953 | Q45: 69.23456927
H46: 8 | I46: Forex up | J46: 1603.66261 | K46: -276.7937189 | L46: 384.4886205 | M46: 0.08435515836 | N46: -784.3686589 | O46: 0.05005025413 | P46: 0.04810831023 | Q46: 67.63053433
H47: 9 | I47: PPA up | J47: 1764.644185 | K47: -282.0125765 | L47: 476.8963276 | M47: 0.09052525881 | N47: -803.7317227 | O47: 0.05119566768 | P47: 0.0505992093 | Q47: 69.23456927
H48: 10 | I48: PPA down | J48: 1432.243319 | K48: -282.0125765 | L48: 264.9615433 | M48: 0.07737915194 | N48: -803.7317227 | O48: 0.04781541155 | P48: 0.04332929089 | Q48: 69.23456927
H49: 11 | I49: Spot Price up | J49: 1620.288951 | K49: -282.0125765 | L49: 383.879489 | M49: 0.0855209831 | N49: -803.7317227 | O49: 0.04980015315 | P49: 0.04762185361 | Q49: 69.23456927
H50: 12 | I50: Spot Price down | J50: 1576.598552 | K50: -282.0125765 | L50: 355.8506873 | M50: 0.08380947387 | N50: -803.7317227 | O50: 0.04935516591 | P50: 0.04666565529 | Q50: 69.23456927
H51: 13 | I51: Debt up | J51: 1598.443752 | K51: -282.0125765 | L51: 369.8650882 | M51: 0.08467930053 | N51: -803.7317227 | O51: 0.04957893296 | P51: 0.04714691953 | Q51: 69.23456927
H52: 14 | I52: Capex Down | J52: 1598.443752 | K52: -282.0125765 | L52: 411.8854823 | M52: 0.08260818579 | N52: -723.9792736 | O52: 0.05159148142 | P52: 0.05078662758 | Q52: 63.50020971

Sheet Timing
A1: Timing
C3: Period Start | J3: =IF(I4>=$E$7,"",I4+1) -> 2018-11-02 | K3: =IF(J4>=$E$7,"",J4+1) -> 2019-02-01 | L3: 2019-05-01 | M3: 2019-08-01 | N3: 2020-08-01 | O3: 2021-08-01 | P3: 2022-08-01 | Q3: 2023-08-01 | R3: 2024-08-01 | S3: 2025-08-01 | T3: 2026-08-01 | U3: 2027-08-01 | V3: 2028-08-01 | W3: 2029-08-01 | X3: 2030-08-01 | Y3: 2031-08-01 | Z3: 2032-08-01 | AA3: 2033-08-01 | AB3: 2034-08-01 | AC3: 2035-08-01 | AD3: 2036-08-01 | AE3: 2037-08-01 | AF3: 2038-08-01 | AG3: 2039-08-01 | AH3: 2040-08-01 | AI3: 2041-08-01 | AJ3: 2042-08-01 | AK3: 2043-08-01 | AL3: 2044-08-01 | AM3: 2044-11-01 | AN3: 2045-02-01
C4: Period End | I4: =Inputs!$H$9 -> 2018-11-01 | J4: =IF(J3="","",IF(AND(J3>=$D$6,J3<=$D$7),EOMONTH(J3,Months_Yr-1),EOMONTH(J3,Months_Qtr-1))) -> 2019-01-31 | K4: 2019-04-30 | L4: 2019-07-31 | M4: 2020-07-31 | N4: 2021-07-31 | O4: 2022-07-31 | P4: 2023-07-31 | Q4: 2024-07-31 | R4: 2025-07-31 | S4: 2026-07-31 | T4: 2027-07-31 | U4: 2028-07-31 | V4: 2029-07-31 | W4: 2030-07-31 | X4: 2031-07-31 | Y4: 2032-07-31 | Z4: 2033-07-31 | AA4: 2034-07-31 | AB4: 2035-07-31 | AC4: 2036-07-31 | AD4: 2037-07-31 | AE4: 2038-07-31 | AF4: 2039-07-31 | AG4: 2040-07-31 | AH4: 2041-07-31 | AI4: 2042-07-31 | AJ4: 2043-07-31 | AK4: 2044-07-31 | AL4: 2044-10-31 | AM4: 2045-01-31 | AN4: 2045-04-30
C5: =[1]Inputs!$I$6 -> Construction | D5: =Inputs!$I$7 -> 2018-11-01 | E5: =Inputs!$I$9 -> 2019-07-31 | J5: =IF(AND(J$3>=$D5,J$4<=$E5),1,0) -> 1 | K5: 1 | L5: 1 | M5: 0 | N5: 0 | O5: 0 | P5: 0 | Q5: 0 | R5: 0 | S5: 0 | T5: 0 | U5: 0 | V5: 0 | W5: 0 | X5: 0 | Y5: 0 | Z5: 0 | AA5: 0 | AB5: 0 | AC5: 0 | AD5: 0 | AE5: 0 | AF5: 0 | AG5: 0 | AH5: 0 | AI5: 0 | AJ5: 0 | AK5: 0 | AL5: 0 | AM5: =IF(AND(AM$3>=$D5,AM$4<=$E5),1,0) -> 0 | AN5: 0 | AR5: 0
C6: =[1]Inputs!$J$6 -> Operations | D6: =Inputs!$J$7 -> 2019-08-01 | E6: =Inputs!$J$9 -> 2044-07-31 | J6: =IF(AND(J$3>=$D6,J$4<=$E6),1,0) -> 0 | K6: =IF(AND(K$3>=$D6,K$4<=$E6),1,0) -> 0 | L6: 0 | M6: 1 | N6: 1 | O6: 1 | P6: 1 | Q6: 1 | R6: 1 | S6: =IF(AND(S$3>=$D6,S$4<=$E6),1,0) -> 1 | T6: 1 | U6: 1 | V6: 1 | W6: 1 | X6: 1 | Y6: 1 | Z6: 1 | AA6: 1 | AB6: 1 | AC6: 1 | AD6: 1 | AE6: 1 | AF6: 1 | AG6: 1 | AH6: 1 | AI6: 1 | AJ6: 1 | AK6: 1 | AL6: 0 | AM6: 0 | AN6: 0 | AR6: 0
C7: Decomissioning | D7: =Inputs!$K$7 -> 2044-07-31 | E7: =Inputs!$K$9 -> 2045-03-31 | J7: =IF(AND(J$3>=$D7,J$4<=$E7),1,0) -> 0 | K7: 0 | L7: 0 | M7: 0 | N7: 0 | O7: 0 | P7: 0 | Q7: 0 | R7: 0 | S7: 0 | T7: 0 | U7: 0 | V7: 0 | W7: 0 | X7: 0 | Y7: 0 | Z7: 0 | AA7: 0 | AB7: 0 | AC7: 0 | AD7: 0 | AE7: 0 | AF7: 0 | AG7: 0 | AH7: 0 | AI7: 0 | AJ7: 0 | AK7: 0 | AL7: =IF(AND(AL$3>=$D7),1,0) -> 1 | AM7: =IF(AND(AM$3>=$D7),1,0) -> 1 | AN7: 1 | AR7: 1
C9: Counters
C11: Construction Quarter | D11: Num# | J11: =SUM($J5:J5)*J5 -> 1 | K11: =SUM($J5:K5)*K5 -> 2 | L11: =SUM($J5:L5)*L5 -> 3 | M11: =SUM($J5:M5)*M5 -> 0 | N11: =SUM($J5:N5)*N5 -> 0 | O11: =SUM($J5:O5)*O5 -> 0 | P11: =SUM($J5:P5)*P5 -> 0 | Q11: =SUM($J5:Q5)*Q5 -> 0 | R11: =SUM($J5:R5)*R5 -> 0 | S11: =SUM($J5:S5)*S5 -> 0 | T11: =SUM($J5:T5)*T5 -> 0 | U11: =SUM($J5:U5)*U5 -> 0 | V11: =SUM($J5:V5)*V5 -> 0 | W11: =SUM($J5:W5)*W5 -> 0 | X11: =SUM($J5:X5)*X5 -> 0 | Y11: =SUM($J5:Y5)*Y5 -> 0 | Z11: =SUM($J5:Z5)*Z5 -> 0 | AA11: =SUM($J5:AA5)*AA5 -> 0 | AB11: =SUM($J5:AB5)*AB5 -> 0 | AC11: =SUM($J5:AC5)*AC5 -> 0 | AD11: =SUM($J5:AD5)*AD5 -> 0 | AE11: =SUM($J5:AE5)*AE5 -> 0 | AF11: =SUM($J5:AF5)*AF5 -> 0 | AG11: =SUM($J5:AG5)*AG5 -> 0 | AH11: =SUM($J5:AH5)*AH5 -> 0 | AI11: =SUM($J5:AI5)*AI5 -> 0 | AJ11: =SUM($J5:AJ5)*AJ5 -> 0 | AK11: =SUM($J5:AK5)*AK5 -> 0 | AL11: =SUM($J5:AL5)*AL5 -> 0 | AM11: =SUM($J5:AM5)*AM5 -> 0 | AN11: =SUM($J5:AN5)*AN5 -> 0
C12: Construction Year | D12: Num# | J12: =ROUNDUP(J11/Qtrs_Yr,0) -> 1 | K12: 1 | L12: 1 | M12: 0 | N12: 0 | O12: 0 | P12: 0 | Q12: 0 | R12: 0 | S12: 0 | T12: 0 | U12: 0 | V12: 0 | W12: 0 | X12: 0 | Y12: 0 | Z12: 0 | AA12: 0 | AB12: 0 | AC12: 0 | AD12: 0 | AE12: 0 | AF12: 0 | AG12: 0 | AH12: 0 | AI12: 0 | AJ12: 0 | AK12: 0 | AL12: 0 | AM12: 0 | AN12: 0
C13: Operations Period | D13: Num# | J13: =SUM($J6:J6)*J6 -> 0 | K13: =SUM($J6:K6)*K6 -> 0 | L13: =SUM($J6:L6)*L6 -> 0 | M13: =SUM($J6:M6)*M6 -> 1 | N13: =SUM($J6:N6)*N6 -> 2 | O13: =SUM($J6:O6)*O6 -> 3 | P13: =SUM($J6:P6)*P6 -> 4 | Q13: =SUM($J6:Q6)*Q6 -> 5 | R13: =SUM($J6:R6)*R6 -> 6 | S13: =SUM($J6:S6)*S6 -> 7 | T13: =SUM($J6:T6)*T6 -> 8 | U13: =SUM($J6:U6)*U6 -> 9 | V13: =SUM($J6:V6)*V6 -> 10 | W13: =SUM($J6:W6)*W6 -> 11 | X13: =SUM($J6:X6)*X6 -> 12 | Y13: =SUM($J6:Y6)*Y6 -> 13 | Z13: =SUM($J6:Z6)*Z6 -> 14 | AA13: =SUM($J6:AA6)*AA6 -> 15 | AB13: =SUM($J6:AB6)*AB6 -> 16 | AC13: =SUM($J6:AC6)*AC6 -> 17 | AD13: =SUM($J6:AD6)*AD6 -> 18 | AE13: =SUM($J6:AE6)*AE6 -> 19 | AF13: =SUM($J6:AF6)*AF6 -> 20 | AG13: =SUM($J6:AG6)*AG6 -> 21 | AH13: =SUM($J6:AH6)*AH6 -> 22 | AI13: =SUM($J6:AI6)*AI6 -> 23 | AJ13: =SUM($J6:AJ6)*AJ6 -> 24 | AK13: =SUM($J6:AK6)*AK6 -> 25 | AL13: =SUM($J6:AL6)*AL6 -> 0 | AM13: =SUM($J6:AM6)*AM6 -> 0 | AN13: =SUM($J6:AN6)*AN6 -> 0
C14: Operations Year | D14: Num# | J14: =ROUNDUP(J13/Qtrs_Yr,0) -> 0 | K14: 0 | L14: 0 | M14: 1 | N14: 1 | O14: 1 | P14: 1 | Q14: 2 | R14: 2 | S14: 2 | T14: 2 | U14: 3 | V14: 3 | W14: 3 | X14: 3 | Y14: 4 | Z14: 4 | AA14: 4 | AB14: 4 | AC14: 5 | AD14: 5 | AE14: 5 | AF14: 5 | AG14: 6 | AH14: 6 | AI14: 6 | AJ14: 6 | AK14: 7 | AL14: 0 | AM14: 0 | AN14: 0
C15: Calendar Year | D15: Num# | J15: =YEAR(J4) -> 2019 | K15: =YEAR(K4) -> 2019 | L15: 2019 | M15: 2020 | N15: 2021 | O15: 2022 | P15: 2023 | Q15: 2024 | R15: 2025 | S15: 2026 | T15: 2027 | U15: 2028 | V15: 2029 | W15: 2030 | X15: 2031 | Y15: 2032 | Z15: 2033 | AA15: 2034 | AB15: 2035 | AC15: 2036 | AD15: 2037 | AE15: 2038 | AF15: 2039 | AG15: 2040 | AH15: 2041 | AI15: 2042 | AJ15: 2043 | AK15: 2044 | AL15: 2044 | AM15: 2045 | AN15: 2045
C16: Days in period | D16: Num# | J16: =J4-J3+1 -> 91 | K16: =K4-K3+1 -> 89 | L16: 92 | M16: 366 | N16: 365 | O16: 365 | P16: 365 | Q16: 366 | R16: 365 | S16: 365 | T16: 365 | U16: 366 | V16: 365 | W16: 365 | X16: 365 | Y16: 366 | Z16: 365 | AA16: 365 | AB16: 365 | AC16: 366 | AD16: 365 | AE16: 365 | AF16: 365 | AG16: 366 | AH16: 365 | AI16: 365 | AJ16: 365 | AK16: 366 | AL16: 92 | AM16: 92 | AN16: 89
C17: Period number | D17: Num# | J17: =COUNT($J4:J4) -> 1 | K17: =COUNT($J4:K4) -> 2 | L17: =COUNT($J4:L4) -> 3 | M17: =COUNT($J4:M4) -> 4 | N17: =COUNT($J4:N4) -> 5 | O17: =COUNT($J4:O4) -> 6 | P17: =COUNT($J4:P4) -> 7 | Q17: =COUNT($J4:Q4) -> 8 | R17: =COUNT($J4:R4) -> 9 | S17: =COUNT($J4:S4) -> 10 | T17: =COUNT($J4:T4) -> 11 | U17: =COUNT($J4:U4) -> 12 | V17: =COUNT($J4:V4) -> 13 | W17: =COUNT($J4:W4) -> 14 | X17: =COUNT($J4:X4) -> 15 | Y17: =COUNT($J4:Y4) -> 16 | Z17: =COUNT($J4:Z4) -> 17 | AA17: =COUNT($J4:AA4) -> 18 | AB17: =COUNT($J4:AB4) -> 19 | AC17: =COUNT($J4:AC4) -> 20 | AD17: =COUNT($J4:AD4) -> 21 | AE17: =COUNT($J4:AE4) -> 22 | AF17: =COUNT($J4:AF4) -> 23 | AG17: =COUNT($J4:AG4) -> 24 | AH17: =COUNT($J4:AH4) -> 25 | AI17: =COUNT($J4:AI4) -> 26 | AJ17: =COUNT($J4:AJ4) -> 27 | AK17: =COUNT($J4:AK4) -> 28 | AL17: =COUNT($J4:AL4) -> 29 | AM17: =COUNT($J4:AM4) -> 30 | AN17: =COUNT($J4:AN4) -> 31
C19: Index
C20: Escalation O&M
C21: Rate | D21: % p.a. | I21: =Inputs!$E$153 -> 0.0225 | J21: =I21 -> 0.0225 | K21: =J21 -> 0.0225 | L21: 0.0225 | M21: 0.0225 | N21: 0.0225 | O21: 0.0225 | P21: 0.0225 | Q21: 0.0225 | R21: 0.0225 | S21: 0.0225 | T21: 0.0225 | U21: 0.0225 | V21: 0.0225 | W21: 0.0225 | X21: 0.0225 | Y21: 0.0225 | Z21: 0.0225 | AA21: 0.0225 | AB21: 0.0225 | AC21: 0.0225 | AD21: 0.0225 | AE21: 0.0225 | AF21: 0.0225 | AG21: 0.0225 | AH21: 0.0225 | AI21: 0.0225 | AJ21: 0.0225 | AK21: 0.0225 | AL21: 0.0225 | AM21: 0.0225 | AN21: 0.0225
C22: Index | D22: Index | I22: 1 | J22: =I22*(1+J21*J6) -> 1 | K22: =J22*(1+K21*K6) -> 1 | L22: =K22*(1+L21*L6) -> 1 | M22: =L22*(1+M21*M6) -> 1.0225 | N22: =M22*(1+N21*N6) -> 1.04550625 | O22: =N22*(1+O21*O6) -> 1.069030141 | P22: =O22*(1+P21*P6) -> 1.093083319 | Q22: =P22*(1+Q21*Q6) -> 1.117677693 | R22: =Q22*(1+R21*R6) -> 1.142825442 | S22: =R22*(1+S21*S6) -> 1.168539014 | T22: =S22*(1+T21*T6) -> 1.194831142 | U22: =T22*(1+U21*U6) -> 1.221714843 | V22: =U22*(1+V21*V6) -> 1.249203426 | W22: =V22*(1+W21*W6) -> 1.277310504 | X22: =W22*(1+X21*X6) -> 1.30604999 | Y22: =X22*(1+Y21*Y6) -> 1.335436115 | Z22: =Y22*(1+Z21*Z6) -> 1.365483427 | AA22: =Z22*(1+AA21*AA6) -> 1.396206804 | AB22: =AA22*(1+AB21*AB6) -> 1.427621457 | AC22: =AB22*(1+AC21*AC6) -> 1.45974294 | AD22: =AC22*(1+AD21*AD6) -> 1.492587156 | AE22: =AD22*(1+AE21*AE6) -> 1.526170367 | AF22: =AE22*(1+AF21*AF6) -> 1.560509201 | AG22: =AF22*(1+AG21*AG6) -> 1.595620658 | AH22: =AG22*(1+AH21*AH6) -> 1.631522122 | AI22: =AH22*(1+AI21*AI6) -> 1.66823137 | AJ22: =AI22*(1+AJ21*AJ6) -> 1.705766576 | AK22: =AJ22*(1+AK21*AK6) -> 1.744146324 | AL22: =AK22*(1+AL21*AL6) -> 1.744146324 | AM22: =AL22*(1+AM21*AM6) -> 1.744146324 | AN22: =AM22*(1+AN21*AN6) -> 1.744146324
C24: Degradation
C25: Rate | D25: % p.a. | I25: =Inputs!$E$140 -> 0.004 | J25: =$I$25 -> 0.004 | K25: =$I$25 -> 0.004 | L25: 0.004 | M25: 0.004 | N25: 0.004 | O25: 0.004 | P25: 0.004 | Q25: 0.004 | R25: 0.004 | S25: 0.004 | T25: 0.004 | U25: 0.004 | V25: 0.004 | W25: 0.004 | X25: 0.004 | Y25: 0.004 | Z25: 0.004 | AA25: 0.004 | AB25: 0.004 | AC25: 0.004 | AD25: 0.004 | AE25: 0.004 | AF25: 0.004 | AG25: 0.004 | AH25: 0.004 | AI25: 0.004 | AJ25: 0.004 | AK25: 0.004 | AL25: 0.004 | AM25: 0.004 | AN25: 0.004
C26: Index | D26: Index | I26: 1 | J26: =I26*(1-J25*J6) -> 1 | K26: =J26*(1-K25*K6) -> 1 | L26: =K26*(1-L25*L6) -> 1 | M26: =L26*(1-M25*M6) -> 0.996 | N26: =M26*(1-N25*N6) -> 0.992016 | O26: =N26*(1-O25*O6) -> 0.988047936 | P26: =O26*(1-P25*P6) -> 0.9840957443 | Q26: =P26*(1-Q25*Q6) -> 0.9801593613 | R26: =Q26*(1-R25*R6) -> 0.9762387238 | S26: =R26*(1-S25*S6) -> 0.9723337689 | T26: =S26*(1-T25*T6) -> 0.9684444339 | U26: =T26*(1-U25*U6) -> 0.9645706561 | V26: =U26*(1-V25*V6) -> 0.9607123735 | W26: =V26*(1-W25*W6) -> 0.956869524 | X26: =W26*(1-X25*X6) -> 0.9530420459 | Y26: =X26*(1-Y25*Y6) -> 0.9492298777 | Z26: =Y26*(1-Z25*Z6) -> 0.9454329582 | AA26: =Z26*(1-AA25*AA6) -> 0.9416512264 | AB26: =AA26*(1-AB25*AB6) -> 0.9378846215 | AC26: =AB26*(1-AC25*AC6) -> 0.934133083 | AD26: =AC26*(1-AD25*AD6) -> 0.9303965507 | AE26: =AD26*(1-AE25*AE6) -> 0.9266749645 | AF26: =AE26*(1-AF25*AF6) -> 0.9229682646 | AG26: =AF26*(1-AG25*AG6) -> 0.9192763915 | AH26: =AG26*(1-AH25*AH6) -> 0.915599286 | AI26: =AH26*(1-AI25*AI6) -> 0.9119368888 | AJ26: =AI26*(1-AJ25*AJ6) -> 0.9082891413 | AK26: =AJ26*(1-AK25*AK6) -> 0.9046559847 | AL26: =AK26*(1-AL25*AL6) -> 0.9046559847 | AM26: =AL26*(1-AM25*AM6) -> 0.9046559847 | AN26: =AM26*(1-AN25*AN6) -> 0.9046559847
C28: WAAC Escalation
C29: Rate | D29: % p.a. | I29: =Inputs!$E$267 -> 0.0449301249 | J29: =$I$29 -> 0.0449301249 | K29: =$I$29 -> 0.0449301249 | L29: 0.0449301249 | M29: 0.0449301249 | N29: 0.0449301249 | O29: 0.0449301249 | P29: 0.0449301249 | Q29: 0.0449301249 | R29: 0.0449301249 | S29: 0.0449301249 | T29: 0.0449301249 | U29: 0.0449301249 | V29: 0.0449301249 | W29: 0.0449301249 | X29: 0.0449301249 | Y29: 0.0449301249 | Z29: 0.0449301249 | AA29: 0.0449301249 | AB29: 0.0449301249 | AC29: 0.0449301249 | AD29: 0.0449301249 | AE29: 0.0449301249 | AF29: 0.0449301249 | AG29: 0.0449301249 | AH29: 0.0449301249 | AI29: 0.0449301249 | AJ29: 0.0449301249 | AK29: 0.0449301249 | AL29: 0.0449301249 | AM29: 0.0449301249 | AN29: 0.0449301249
C30: Index | D30: Index | I30: 1 | J30: =I30*(1+J29*J6) -> 1 | K30: =J30*(1+K29*K6) -> 1 | L30: =K30*(1+L29*L6) -> 1 | M30: =L30*(1+M29*M6) -> 1.044930125 | N30: =M30*(1+N29*N6) -> 1.091878966 | O30: =N30*(1+O29*O6) -> 1.140937224 | P30: =O30*(1+P29*P6) -> 1.192199676 | Q30: =P30*(1+Q29*Q6) -> 1.245765357 | R30: =Q30*(1+R29*R6) -> 1.30173775 | S30: =R30*(1+S29*S6) -> 1.360224989 | T30: =S30*(1+T29*T6) -> 1.421340068 | U30: =T30*(1+U29*U6) -> 1.485201055 | V30: =U30*(1+V29*V6) -> 1.551931324 | W30: =V30*(1+W29*W6) -> 1.621659792 | X30: =W30*(1+X29*X6) -> 1.694521169 | Y30: =X30*(1+Y29*Y6) -> 1.770656217 | Z30: =Y30*(1+Z29*Z6) -> 1.850212022 | AA30: =Z30*(1+AA29*AA6) -> 1.933342279 | AB30: =AA30*(1+AB29*AB6) -> 2.020207589 | AC30: =AB30*(1+AC29*AC6) -> 2.110975768 | AD30: =AC30*(1+AD29*AD6) -> 2.205822173 | AE30: =AD30*(1+AE29*AE6) -> 2.304930039 | AF30: =AE30*(1+AF29*AF6) -> 2.408490833 | AG30: =AF30*(1+AG29*AG6) -> 2.516704627 | AH30: =AG30*(1+AH29*AH6) -> 2.629780481 | AI30: =AH30*(1+AI29*AI6) -> 2.747936846 | AJ30: =AI30*(1+AJ29*AJ6) -> 2.871401992 | AK30: =AJ30*(1+AK29*AK6) -> 3.000414442 | AL30: =AK30*(1+AL29*AL6) -> 3.000414442 | AM30: =AL30*(1+AM29*AM6) -> 3.000414442 | AN30: =AM30*(1+AN29*AN6) -> 3.000414442
C32: Discount Factor
C33: Rate | D33: % p.a. | I33: =Inputs!$E$265 -> 0.07 | J33: =$I$33 -> 0.07 | K33: =$I$33 -> 0.07 | L33: 0.07 | M33: 0.07 | N33: 0.07 | O33: 0.07 | P33: 0.07 | Q33: 0.07 | R33: 0.07 | S33: 0.07 | T33: 0.07 | U33: 0.07 | V33: 0.07 | W33: 0.07 | X33: 0.07 | Y33: 0.07 | Z33: 0.07 | AA33: 0.07 | AB33: 0.07 | AC33: 0.07 | AD33: 0.07 | AE33: 0.07 | AF33: 0.07 | AG33: 0.07 | AH33: 0.07 | AI33: 0.07 | AJ33: 0.07 | AK33: 0.07 | AL33: 0.07 | AM33: 0.07 | AN33: 0.07
C34: Index | D34: Index | I34: 1 | J34: =I34*(1+J33*J6) -> 1 | K34: =J34*(1+K33*K6) -> 1 | L34: =K34*(1+L33*L6) -> 1 | M34: =L34*(1+M33*M6) -> 1.07 | N34: =M34*(1+N33*N6) -> 1.1449 | O34: =N34*(1+O33*O6) -> 1.225043 | P34: =O34*(1+P33*P6) -> 1.31079601 | Q34: =P34*(1+Q33*Q6) -> 1.402551731 | R34: =Q34*(1+R33*R6) -> 1.500730352 | S34: =R34*(1+S33*S6) -> 1.605781476 | T34: =S34*(1+T33*T6) -> 1.71818618 | U34: =T34*(1+U33*U6) -> 1.838459212 | V34: =U34*(1+V33*V6) -> 1.967151357 | W34: =V34*(1+W33*W6) -> 2.104851952 | X34: =W34*(1+X33*X6) -> 2.252191589 | Y34: =X34*(1+Y33*Y6) -> 2.409845 | Z34: =Y34*(1+Z33*Z6) -> 2.57853415 | AA34: =Z34*(1+AA33*AA6) -> 2.759031541 | AB34: =AA34*(1+AB33*AB6) -> 2.952163749 | AC34: =AB34*(1+AC33*AC6) -> 3.158815211 | AD34: =AC34*(1+AD33*AD6) -> 3.379932276 | AE34: =AD34*(1+AE33*AE6) -> 3.616527535 | AF34: =AE34*(1+AF33*AF6) -> 3.869684462 | AG34: =AF34*(1+AG33*AG6) -> 4.140562375 | AH34: =AG34*(1+AH33*AH6) -> 4.430401741 | AI34: =AH34*(1+AI33*AI6) -> 4.740529863 | AJ34: =AI34*(1+AJ33*AJ6) -> 5.072366953 | AK34: =AJ34*(1+AK33*AK6) -> 5.42743264 | AL34: =AK34*(1+AL33*AL6) -> 5.42743264 | AM34: =AL34*(1+AM33*AM6) -> 5.42743264 | AN34: =AM34*(1+AN33*AN6) -> 5.42743264
C35: Rate | D35: %p.q | J35: =J33*J16/Days_Year -> 0.01745205479 | K35: =K33*(K16/Days_Year) -> 0.01706849315 | L35: 0.01764383562 | M35: 0.07019178082 | N35: 0.07 | O35: 0.07 | P35: 0.07 | Q35: 0.07019178082 | R35: 0.07 | S35: 0.07 | T35: 0.07 | U35: 0.07019178082 | V35: 0.07 | W35: 0.07 | X35: 0.07 | Y35: 0.07019178082 | Z35: 0.07 | AA35: 0.07 | AB35: 0.07 | AC35: 0.07019178082 | AD35: 0.07 | AE35: 0.07 | AF35: 0.07 | AG35: 0.07019178082 | AH35: 0.07 | AI35: 0.07 | AJ35: 0.07 | AK35: 0.07019178082 | AL35: 0.01764383562 | AM35: 0.01764383562 | AN35: 0.01706849315 | AO35: 0
C37: Inflation Index
C38: Rate | D38: % p.a. | J38: =LOOKUP(J15,Inputs!$H$350:$M$350,Inputs!$H$354:$M$354) -> 0.0175 | K38: =LOOKUP(K15,Inputs!$H$350:$M$350,Inputs!$H$354:$M$354) -> 0.0175 | L38: =LOOKUP(L15,Inputs!$H$350:$M$350,Inputs!$H$354:$M$354) -> 0.0175 | M38: =LOOKUP(M15,Inputs!$H$350:$M$350,Inputs!$H$354:$M$354) -> 0.0225 | N38: =LOOKUP(N15,Inputs!$H$350:$M$350,Inputs!$H$354:$M$354) -> 0.0225 | O38: =LOOKUP(O15,Inputs!$H$350:$M$350,Inputs!$H$354:$M$354) -> 0.0225 | P38: =LOOKUP(P15,Inputs!$H$350:$M$350,Inputs!$H$354:$M$354) -> 0.025 | Q38: =LOOKUP(Q15,Inputs!$H$350:$M$350,Inputs!$H$354:$M$354) -> 0.025 | R38: =LOOKUP(R15,Inputs!$H$350:$M$350,Inputs!$H$354:$M$354) -> 0.025 | S38: =LOOKUP(S15,Inputs!$H$350:$M$350,Inputs!$H$354:$M$354) -> 0.025 | T38: =LOOKUP(T15,Inputs!$H$350:$M$350,Inputs!$H$354:$M$354) -> 0.025 | U38: =LOOKUP(U15,Inputs!$H$350:$M$350,Inputs!$H$354:$M$354) -> 0.025 | V38: =LOOKUP(V15,Inputs!$H$350:$M$350,Inputs!$H$354:$M$354) -> 0.025 | W38: =LOOKUP(W15,Inputs!$H$350:$M$350,Inputs!$H$354:$M$354) -> 0.025 | X38: =LOOKUP(X15,Inputs!$H$350:$M$350,Inputs!$H$354:$M$354) -> 0.025 | Y38: =LOOKUP(Y15,Inputs!$H$350:$M$350,Inputs!$H$354:$M$354) -> 0.025 | Z38: =LOOKUP(Z15,Inputs!$H$350:$M$350,Inputs!$H$354:$M$354) -> 0.025 | AA38: =LOOKUP(AA15,Inputs!$H$350:$M$350,Inputs!$H$354:$M$354) -> 0.025 | AB38: =LOOKUP(AB15,Inputs!$H$350:$M$350,Inputs!$H$354:$M$354) -> 0.025 | AC38: =LOOKUP(AC15,Inputs!$H$350:$M$350,Inputs!$H$354:$M$354) -> 0.025 | AD38: =LOOKUP(AD15,Inputs!$H$350:$M$350,Inputs!$H$354:$M$354) -> 0.025 | AE38: =LOOKUP(AE15,Inputs!$H$350:$M$350,Inputs!$H$354:$M$354) -> 0.025 | AF38: =LOOKUP(AF15,Inputs!$H$350:$M$350,Inputs!$H$354:$M$354) -> 0.025 | AG38: =LOOKUP(AG15,Inputs!$H$350:$M$350,Inputs!$H$354:$M$354) -> 0.025 | AH38: =LOOKUP(AH15,Inputs!$H$350:$M$350,Inputs!$H$354:$M$354) -> 0.025 | AI38: =LOOKUP(AI15,Inputs!$H$350:$M$350,Inputs!$H$354:$M$354) -> 0.025 | AJ38: =LOOKUP(AJ15,Inputs!$H$350:$M$350,Inputs!$H$354:$M$354) -> 0.025 | AK38: =LOOKUP(AK15,Inputs!$H$350:$M$350,Inputs!$H$354:$M$354) -> 0.025 | AL38: =LOOKUP(AL15,Inputs!$H$350:$M$350,Inputs!$H$354:$M$354) -> 0.025 | AM38: =LOOKUP(AM15,Inputs!$H$350:$M$350,Inputs!$H$354:$M$354) -> 0.025 | AN38: =LOOKUP(AN15,Inputs!$H$350:$M$350,Inputs!$H$354:$M$354) -> 0.025
C39: Index | D39: Index | I39: 1 | J39: =I39*(1+J38*J6) -> 1 | K39: =J39*(1+K38*K6) -> 1 | L39: 1 | M39: 1.0225 | N39: 1.04550625 | O39: 1.069030141 | P39: 1.095755894 | Q39: 1.123149791 | R39: 1.151228536 | S39: 1.18000925 | T39: 1.209509481 | U39: 1.239747218 | V39: 1.270740898 | W39: 1.302509421 | X39: 1.335072156 | Y39: 1.36844896 | Z39: 1.402660184 | AA39: 1.437726689 | AB39: 1.473669856 | AC39: 1.510511603 | AD39: 1.548274393 | AE39: 1.586981252 | AF39: 1.626655784 | AG39: 1.667322178 | AH39: 1.709005233 | AI39: 1.751730364 | AJ39: 1.795523623 | AK39: 1.840411713 | AL39: 1.840411713 | AM39: 1.840411713 | AN39: 1.840411713
C41: Cost of Debt
C42: Base rate | D42: % p.a | J42: =LOOKUP(J15,Inputs!$H$338:$M$338,Inputs!$H$342:$M$342) -> 0.025 | K42: =LOOKUP(K15,Inputs!$H$338:$M$338,Inputs!$H$342:$M$342) -> 0.025 | L42: =LOOKUP(L15,Inputs!$H$338:$M$338,Inputs!$H$342:$M$342) -> 0.025 | M42: =LOOKUP(M15,Inputs!$H$338:$M$338,Inputs!$H$342:$M$342) -> 0.025 | N42: =LOOKUP(N15,Inputs!$H$338:$M$338,Inputs!$H$342:$M$342) -> 0.025 | O42: =LOOKUP(O15,Inputs!$H$338:$M$338,Inputs!$H$342:$M$342) -> 0.025 | P42: =LOOKUP(P15,Inputs!$H$338:$M$338,Inputs!$H$342:$M$342) -> 0.025 | Q42: =LOOKUP(Q15,Inputs!$H$338:$M$338,Inputs!$H$342:$M$342) -> 0.025 | R42: =LOOKUP(R15,Inputs!$H$338:$M$338,Inputs!$H$342:$M$342) -> 0.025 | S42: =LOOKUP(S15,Inputs!$H$338:$M$338,Inputs!$H$342:$M$342) -> 0.025 | T42: =LOOKUP(T15,Inputs!$H$338:$M$338,Inputs!$H$342:$M$342) -> 0.025 | U42: =LOOKUP(U15,Inputs!$H$338:$M$338,Inputs!$H$342:$M$342) -> 0.025 | V42: =LOOKUP(V15,Inputs!$H$338:$M$338,Inputs!$H$342:$M$342) -> 0.025 | W42: =LOOKUP(W15,Inputs!$H$338:$M$338,Inputs!$H$342:$M$342) -> 0.025 | X42: =LOOKUP(X15,Inputs!$H$338:$M$338,Inputs!$H$342:$M$342) -> 0.025 | Y42: =LOOKUP(Y15,Inputs!$H$338:$M$338,Inputs!$H$342:$M$342) -> 0.025 | Z42: =LOOKUP(Z15,Inputs!$H$338:$M$338,Inputs!$H$342:$M$342) -> 0.025 | AA42: =LOOKUP(AA15,Inputs!$H$338:$M$338,Inputs!$H$342:$M$342) -> 0.025 | AB42: =LOOKUP(AB15,Inputs!$H$338:$M$338,Inputs!$H$342:$M$342) -> 0.025 | AC42: =LOOKUP(AC15,Inputs!$H$338:$M$338,Inputs!$H$342:$M$342) -> 0.025 | AD42: =LOOKUP(AD15,Inputs!$H$338:$M$338,Inputs!$H$342:$M$342) -> 0.025 | AE42: =LOOKUP(AE15,Inputs!$H$338:$M$338,Inputs!$H$342:$M$342) -> 0.025 | AF42: =LOOKUP(AF15,Inputs!$H$338:$M$338,Inputs!$H$342:$M$342) -> 0.025 | AG42: =LOOKUP(AG15,Inputs!$H$338:$M$338,Inputs!$H$342:$M$342) -> 0.025 | AH42: =LOOKUP(AH15,Inputs!$H$338:$M$338,Inputs!$H$342:$M$342) -> 0.025 | AI42: =LOOKUP(AI15,Inputs!$H$338:$M$338,Inputs!$H$342:$M$342) -> 0.025 | AJ42: =LOOKUP(AJ15,Inputs!$H$338:$M$338,Inputs!$H$342:$M$342) -> 0.025 | AK42: =LOOKUP(AK15,Inputs!$H$338:$M$338,Inputs!$H$342:$M$342) -> 0.025 | AL42: =LOOKUP(AL15,Inputs!$H$338:$M$338,Inputs!$H$342:$M$342) -> 0.025 | AM42: =LOOKUP(AM15,Inputs!$H$338:$M$338,Inputs!$H$342:$M$342) -> 0.025 | AN42: =LOOKUP(AN15,Inputs!$H$338:$M$338,Inputs!$H$342:$M$342) -> 0.025 | AO42: =LOOKUP(AO15,Inputs!$H$338:$M$338,Inputs!$H$342:$M$342) ->  | AP42: =LOOKUP(AP15,Inputs!$H$338:$M$338,Inputs!$H$342:$M$342) ->  | AQ42: =LOOKUP(AQ15,Inputs!$H$338:$M$338,Inputs!$H$342:$M$342) ->  | AR42: =LOOKUP(AR30,[3]Inputs!$E$237:$J$237,[3]Inputs!$E$238:$J$238) ->  | AS42: =LOOKUP(AS30,[3]Inputs!$E$237:$J$237,[3]Inputs!$E$238:$J$238) ->  | AT42: =LOOKUP(AT30,[3]Inputs!$E$237:$J$237,[3]Inputs!$E$238:$J$238) ->  | AU42: =LOOKUP(AU30,[3]Inputs!$E$237:$J$237,[3]Inputs!$E$238:$J$238) ->  | AV42: =LOOKUP(AV30,[3]Inputs!$E$237:$J$237,[3]Inputs!$E$238:$J$238) ->  | AW42: =LOOKUP(AW30,[3]Inputs!$E$237:$J$237,[3]Inputs!$E$238:$J$238) ->  | AX42: =LOOKUP(AX30,[3]Inputs!$E$237:$J$237,[3]Inputs!$E$238:$J$238) ->  | AY42: =LOOKUP(AY30,[3]Inputs!$E$237:$J$237,[3]Inputs!$E$238:$J$238) ->  | AZ42: =LOOKUP(AZ30,[3]Inputs!$E$237:$J$237,[3]Inputs!$E$238:$J$238) ->  | BA42: =LOOKUP(BA30,[3]Inputs!$E$237:$J$237,[3]Inputs!$E$238:$J$238) ->  | BB42: =LOOKUP(BB30,[3]Inputs!$E$237:$J$237,[3]Inputs!$E$238:$J$238) ->  | BC42: =LOOKUP(BC30,[3]Inputs!$E$237:$J$237,[3]Inputs!$E$238:$J$238) ->  | BD42: =LOOKUP(BD30,[3]Inputs!$E$237:$J$237,[3]Inputs!$E$238:$J$238) ->  | BE42: =LOOKUP(BE30,[3]Inputs!$E$237:$J$237,[3]Inputs!$E$238:$J$238) ->  | BF42: =LOOKUP(BF30,[3]Inputs!$E$237:$J$237,[3]Inputs!$E$238:$J$238) ->  | BG42: =LOOKUP(BG30,[3]Inputs!$E$237:$J$237,[3]Inputs!$E$238:$J$238) ->  | BH42: =LOOKUP(BH30,[3]Inputs!$E$237:$J$237,[3]Inputs!$E$238:$J$238) ->  | BI42: =LOOKUP(BI30,[3]Inputs!$E$237:$J$237,[3]Inputs!$E$238:$J$238) ->  | BJ42: =LOOKUP(BJ30,[3]Inputs!$E$237:$J$237,[3]Inputs!$E$238:$J$238) ->  | BK42: =LOOKUP(BK30,[3]Inputs!$E$237:$J$237,[3]Inputs!$E$238:$J$238) ->  | BL42: =LOOKUP(BL30,[3]Inputs!$E$237:$J$237,[3]Inputs!$E$238:$J$238) ->  | BM42: =LOOKUP(BM30,[3]Inputs!$E$237:$J$237,[3]Inputs!$E$238:$J$238) -> 
C43: Base rate | D43: % p.p. | J43: =J42*J16/Days_Year -> 0.006232876712 | K43: 0.006095890411 | L43: 0.006301369863 | M43: 0.02506849315 | N43: 0.025 | O43: 0.025 | P43: 0.025 | Q43: 0.02506849315 | R43: 0.025 | S43: 0.025 | T43: 0.025 | U43: 0.02506849315 | V43: 0.025 | W43: 0.025 | X43: 0.025 | Y43: 0.02506849315 | Z43: 0.025 | AA43: 0.025 | AB43: 0.025 | AC43: 0.02506849315 | AD43: 0.025 | AE43: 0.025 | AF43: 0.025 | AG43: 0.02506849315 | AH43: 0.025 | AI43: 0.025 | AJ43: 0.025 | AK43: 0.02506849315 | AL43: 0.006301369863 | AM43: 0.006301369863 | AN43: 0.006095890411 | AR43: =AR42*AR31/Days_Year -> 
C44: Margin (operations) | D44: % p.a | J44: =IF(J$13=0,0,LOOKUP(J13,Inputs!$I$321:$L$321,Inputs!$I$322:$L$322)) -> 0 | K44: =IF(K$13=0,0,LOOKUP(K13,Inputs!$I$321:$L$321,Inputs!$I$322:$L$322)) -> 0 | L44: =IF(L$13=0,0,LOOKUP(L13,Inputs!$I$321:$L$321,Inputs!$I$322:$L$322)) -> 0 | M44: =IF(M$13=0,0,LOOKUP(M13,Inputs!$I$321:$L$321,Inputs!$I$322:$L$322)) -> 0.015 | N44: =IF(N$13=0,0,LOOKUP(N13,Inputs!$I$321:$L$321,Inputs!$I$322:$L$322)) -> 0.0125 | O44: =IF(O$13=0,0,LOOKUP(O13,Inputs!$I$321:$L$321,Inputs!$I$322:$L$322)) -> 0.0125 | P44: =IF(P$13=0,0,LOOKUP(P13,Inputs!$I$321:$L$321,Inputs!$I$322:$L$322)) -> 0.0125 | Q44: =IF(Q$13=0,0,LOOKUP(Q13,Inputs!$I$321:$L$321,Inputs!$I$322:$L$322)) -> 0.0125 | R44: =IF(R$13=0,0,LOOKUP(R13,Inputs!$I$321:$L$321,Inputs!$I$322:$L$322)) -> 0.0125 | S44: =IF(S$13=0,0,LOOKUP(S13,Inputs!$I$321:$L$321,Inputs!$I$322:$L$322)) -> 0.0125 | T44: =IF(T$13=0,0,LOOKUP(T13,Inputs!$I$321:$L$321,Inputs!$I$322:$L$322)) -> 0.0125 | U44: =IF(U$13=0,0,LOOKUP(U13,Inputs!$I$321:$L$321,Inputs!$I$322:$L$322)) -> 0.0125 | V44: =IF(V$13=0,0,LOOKUP(V13,Inputs!$I$321:$L$321,Inputs!$I$322:$L$322)) -> 0.0125 | W44: =IF(W$13=0,0,LOOKUP(W13,Inputs!$I$321:$L$321,Inputs!$I$322:$L$322)) -> 0.0125 | X44: =IF(X$13=0,0,LOOKUP(X13,Inputs!$I$321:$L$321,Inputs!$I$322:$L$322)) -> 0.0125 | Y44: =IF(Y$13=0,0,LOOKUP(Y13,Inputs!$I$321:$L$321,Inputs!$I$322:$L$322)) -> 0.0125 | Z44: =IF(Z$13=0,0,LOOKUP(Z13,Inputs!$I$321:$L$321,Inputs!$I$322:$L$322)) -> 0.0125 | AA44: =IF(AA$13=0,0,LOOKUP(AA13,Inputs!$I$321:$L$321,Inputs!$I$322:$L$322)) -> 0.0125 | AB44: =IF(AB$13=0,0,LOOKUP(AB13,Inputs!$I$321:$L$321,Inputs!$I$322:$L$322)) -> 0.0125 | AC44: =IF(AC$13=0,0,LOOKUP(AC13,Inputs!$I$321:$L$321,Inputs!$I$322:$L$322)) -> 0.0125 | AD44: =IF(AD$13=0,0,LOOKUP(AD13,Inputs!$I$321:$L$321,Inputs!$I$322:$L$322)) -> 0.0125 | AE44: =IF(AE$13=0,0,LOOKUP(AE13,Inputs!$I$321:$L$321,Inputs!$I$322:$L$322)) -> 0.0125 | AF44: =IF(AF$13=0,0,LOOKUP(AF13,Inputs!$I$321:$L$321,Inputs!$I$322:$L$322)) -> 0.0125 | AG44: =IF(AG$13=0,0,LOOKUP(AG13,Inputs!$I$321:$L$321,Inputs!$I$322:$L$322)) -> 0.0125 | AH44: =IF(AH$13=0,0,LOOKUP(AH13,Inputs!$I$321:$L$321,Inputs!$I$322:$L$322)) -> 0.0125 | AI44: =IF(AI$13=0,0,LOOKUP(AI13,Inputs!$I$321:$L$321,Inputs!$I$322:$L$322)) -> 0.0125 | AJ44: =IF(AJ$13=0,0,LOOKUP(AJ13,Inputs!$I$321:$L$321,Inputs!$I$322:$L$322)) -> 0.0125 | AK44: =IF(AK$13=0,0,LOOKUP(AK13,Inputs!$I$321:$L$321,Inputs!$I$322:$L$322)) -> 0.0125 | AL44: =IF(AL$13=0,0,LOOKUP(AL13,Inputs!$I$321:$L$321,Inputs!$I$322:$L$322)) -> 0 | AM44: =IF(AM$13=0,0,LOOKUP(AM13,Inputs!$I$321:$L$321,Inputs!$I$322:$L$322)) -> 0 | AN44: =IF(AN$13=0,0,LOOKUP(AN13,Inputs!$I$321:$L$321,Inputs!$I$322:$L$322)) -> 0 | AO44: =IF(AO$13=0,0,LOOKUP(AO13,Inputs!$I$321:$L$321,Inputs!$I$322:$L$322)) -> 0 | AP44: =IF(AP$13=0,0,LOOKUP(AP13,Inputs!$I$321:$L$321,Inputs!$I$322:$L$322)) -> 0 | AQ44: =IF(AQ$13=0,0,LOOKUP(AQ13,Inputs!$I$321:$L$321,Inputs!$I$322:$L$322)) -> 0 | AR44: =IF(AR29=0,0,LOOKUP(AR29,[3]Inputs!$F$149:$I$149,[3]Inputs!$F$150:$I$150)) -> 0 | AS44: =IF(AS29=0,0,LOOKUP(AS29,[3]Inputs!$F$149:$I$149,[3]Inputs!$F$150:$I$150)) -> 0 | AT44: =IF(AT29=0,0,LOOKUP(AT29,[3]Inputs!$F$149:$I$149,[3]Inputs!$F$150:$I$150)) -> 0 | AU44: =IF(AU29=0,0,LOOKUP(AU29,[3]Inputs!$F$149:$I$149,[3]Inputs!$F$150:$I$150)) -> 0 | AV44: =IF(AV29=0,0,LOOKUP(AV29,[3]Inputs!$F$149:$I$149,[3]Inputs!$F$150:$I$150)) -> 0 | AW44: =IF(AW29=0,0,LOOKUP(AW29,[3]Inputs!$F$149:$I$149,[3]Inputs!$F$150:$I$150)) -> 0 | AX44: =IF(AX29=0,0,LOOKUP(AX29,[3]Inputs!$F$149:$I$149,[3]Inputs!$F$150:$I$150)) -> 0 | AY44: =IF(AY29=0,0,LOOKUP(AY29,[3]Inputs!$F$149:$I$149,[3]Inputs!$F$150:$I$150)) -> 0 | AZ44: =IF(AZ29=0,0,LOOKUP(AZ29,[3]Inputs!$F$149:$I$149,[3]Inputs!$F$150:$I$150)) -> 0 | BA44: =IF(BA29=0,0,LOOKUP(BA29,[3]Inputs!$F$149:$I$149,[3]Inputs!$F$150:$I$150)) -> 0 | BB44: =IF(BB29=0,0,LOOKUP(BB29,[3]Inputs!$F$149:$I$149,[3]Inputs!$F$150:$I$150)) -> 0 | BC44: =IF(BC29=0,0,LOOKUP(BC29,[3]Inputs!$F$149:$I$149,[3]Inputs!$F$150:$I$150)) -> 0 | BD44: =IF(BD29=0,0,LOOKUP(BD29,[3]Inputs!$F$149:$I$149,[3]Inputs!$F$150:$I$150)) -> 0 | BE44: =IF(BE29=0,0,LOOKUP(BE29,[3]Inputs!$F$149:$I$149,[3]Inputs!$F$150:$I$150)) -> 0 | BF44: =IF(BF29=0,0,LOOKUP(BF29,[3]Inputs!$F$149:$I$149,[3]Inputs!$F$150:$I$150)) -> 0 | BG44: =IF(BG29=0,0,LOOKUP(BG29,[3]Inputs!$F$149:$I$149,[3]Inputs!$F$150:$I$150)) -> 0 | BH44: =IF(BH29=0,0,LOOKUP(BH29,[3]Inputs!$F$149:$I$149,[3]Inputs!$F$150:$I$150)) -> 0 | BI44: =IF(BI29=0,0,LOOKUP(BI29,[3]Inputs!$F$149:$I$149,[3]Inputs!$F$150:$I$150)) -> 0 | BJ44: =IF(BJ29=0,0,LOOKUP(BJ29,[3]Inputs!$F$149:$I$149,[3]Inputs!$F$150:$I$150)) -> 0 | BK44: =IF(BK29=0,0,LOOKUP(BK29,[3]Inputs!$F$149:$I$149,[3]Inputs!$F$150:$I$150)) -> 0 | BL44: =IF(BL29=0,0,LOOKUP(BL29,[3]Inputs!$F$149:$I$149,[3]Inputs!$F$150:$I$150)) -> 0 | BM44: =IF(BM29=0,0,LOOKUP(BM29,[3]Inputs!$F$149:$I$149,[3]Inputs!$F$150:$I$150)) -> 0
C45: Margin (operations) | D45: % p.p. | J45: =J44*J16/Days_Year -> 0 | K45: 0 | L45: 0 | M45: 0.01504109589 | N45: 0.0125 | O45: 0.0125 | P45: 0.0125 | Q45: 0.01253424658 | R45: 0.0125 | S45: 0.0125 | T45: 0.0125 | U45: 0.01253424658 | V45: 0.0125 | W45: 0.0125 | X45: 0.0125 | Y45: 0.01253424658 | Z45: 0.0125 | AA45: 0.0125 | AB45: 0.0125 | AC45: 0.01253424658 | AD45: 0.0125 | AE45: 0.0125 | AF45: 0.0125 | AG45: 0.01253424658 | AH45: 0.0125 | AI45: 0.0125 | AJ45: 0.0125 | AK45: 0.01253424658 | AL45: 0 | AM45: 0 | AN45: 0 | AO45: 0 | AP45: 0 | AQ45: 0 | AR45: =AR44*AR31/Days_Year -> 0 | AS45: 0 | AT45: 0 | AU45: 0 | AV45: 0 | AW45: 0 | AX45: 0 | AY45: 0 | AZ45: 0 | BA45: 0 | BB45: 0 | BC45: 0 | BD45: 0 | BE45: 0 | BF45: 0 | BG45: 0 | BH45: 0 | BI45: 0 | BJ45: 0 | BK45: 0 | BL45: 0 | BM45: 0

Sheet Operations
A1: Operations
C3: Period Start | J3: =IF(I4>=$E$7,"",I4+1) -> 2018-11-02 | K3: =IF(J4>=$E$7,"",J4+1) -> 2019-02-01 | L3: 2019-05-01 | M3: 2019-08-01 | N3: 2020-08-01 | O3: 2021-08-01 | P3: 2022-08-01 | Q3: 2023-08-01 | R3: 2024-08-01 | S3: 2025-08-01 | T3: 2026-08-01 | U3: 2027-08-01 | V3: 2028-08-01 | W3: 2029-08-01 | X3: 2030-08-01 | Y3: 2031-08-01 | Z3: 2032-08-01 | AA3: 2033-08-01 | AB3: 2034-08-01 | AC3: 2035-08-01 | AD3: 2036-08-01 | AE3: 2037-08-01 | AF3: 2038-08-01 | AG3: 2039-08-01 | AH3: 2040-08-01 | AI3: 2041-08-01 | AJ3: 2042-08-01 | AK3: 2043-08-01 | AL3: 2044-08-01 | AM3: 2044-11-01 | AN3: 2045-02-01 | AQ3: 1900-01-01 | AR3: 1900-04-01
C4: Period End | I4: =Inputs!$H$9 -> 2018-11-01 | J4: =IF(J3="","",IF(AND(J3>=$D$6,J3<=$D$7),EOMONTH(J3,Months_Yr-1),EOMONTH(J3,Months_Qtr-1))) -> 2019-01-31 | K4: 2019-04-30 | L4: 2019-07-31 | M4: 2020-07-31 | N4: 2021-07-31 | O4: 2022-07-31 | P4: 2023-07-31 | Q4: 2024-07-31 | R4: 2025-07-31 | S4: 2026-07-31 | T4: 2027-07-31 | U4: 2028-07-31 | V4: 2029-07-31 | W4: 2030-07-31 | X4: 2031-07-31 | Y4: 2032-07-31 | Z4: 2033-07-31 | AA4: 2034-07-31 | AB4: 2035-07-31 | AC4: 2036-07-31 | AD4: 2037-07-31 | AE4: 2038-07-31 | AF4: 2039-07-31 | AG4: 2040-07-31 | AH4: 2041-07-31 | AI4: 2042-07-31 | AJ4: 2043-07-31 | AK4: 2044-07-31 | AL4: 2044-10-31 | AM4: 2045-01-31 | AN4: 2045-04-30 | AQ4: =IF(AQ3="","",IF(AND(AQ3>=$D$6,AQ3<=$D$7),EOMONTH(AQ3,Months_Yr-1),EOMONTH(AQ3,Months_Qtr-1))) -> 1900-03-31 | AR4: =IF(AR3="","",IF(AND(AR3>=$D$6,AR3<=$D$7),EOMONTH(AR3,Months_Yr-1),EOMONTH(AR3,Months_Qtr-1))) -> 1900-06-30
C5: =[1]Inputs!$I$6 -> Construction | D5: =Inputs!$I$7 -> 2018-11-01 | E5: =Inputs!$I$9 -> 2019-07-31 | J5: =IF(AND(J$3>=$D5,J$4<=$E5),1,0) -> 1 | K5: 1 | L5: 1 | M5: 0 | N5: 0 | O5: 0 | P5: 0 | Q5: 0 | R5: 0 | S5: 0 | T5: 0 | U5: 0 | V5: 0 | W5: 0 | X5: 0 | Y5: 0 | Z5: 0 | AA5: 0 | AB5: 0 | AC5: 0 | AD5: 0 | AE5: 0 | AF5: 0 | AG5: 0 | AH5: 0 | AI5: 0 | AJ5: 0 | AK5: 0 | AL5: 0 | AM5: =IF(AND(AM$3>=$D5,AM$4<=$E5),1,0) -> 0 | AN5: 0 | AQ5: 0 | AR5: 0
C6: =[1]Inputs!$J$6 -> Operations | D6: =Inputs!$J$7 -> 2019-08-01 | E6: =Inputs!$J$9 -> 2044-07-31 | J6: =IF(AND(J$3>=$D6,J$4<=$E6),1,0) -> 0 | K6: 0 | L6: 0 | M6: 1 | N6: 1 | O6: 1 | P6: 1 | Q6: 1 | R6: 1 | S6: 1 | T6: 1 | U6: 1 | V6: 1 | W6: 1 | X6: 1 | Y6: 1 | Z6: 1 | AA6: 1 | AB6: 1 | AC6: 1 | AD6: 1 | AE6: 1 | AF6: 1 | AG6: 1 | AH6: 1 | AI6: 1 | AJ6: 1 | AK6: 1 | AL6: 0 | AM6: 0 | AN6: 0 | AQ6: 0 | AR6: 0
C7: Decomissioning | D7: =Inputs!$K$7 -> 2044-07-31 | E7: =Inputs!$K$9 -> 2045-03-31 | J7: =IF(AND(J$3>=$D7,J$4<=$E7),1,0) -> 0 | K7: 0 | L7: 0 | M7: 0 | N7: 0 | O7: 0 | P7: 0 | Q7: 0 | R7: 0 | S7: 0 | T7: 0 | U7: 0 | V7: 0 | W7: 0 | X7: 0 | Y7: 0 | Z7: 0 | AA7: 0 | AB7: 0 | AC7: 0 | AD7: 0 | AE7: 0 | AF7: 0 | AG7: 0 | AH7: 0 | AI7: 0 | AJ7: 0 | AK7: 0 | AL7: =IF(AND(AL$3>=$D7),1,0) -> 1 | AM7: =IF(AND(AM$3>=$D7),1,0) -> 1 | AN7: 1 | AQ7: 0 | AR7: 0
C9: Counters
C11: Construction Quarter | D11: Num# | J11: =SUM($J5:J5)*J5 -> 1 | K11: =SUM($J5:K5)*K5 -> 2 | L11: =SUM($J5:L5)*L5 -> 3 | M11: =SUM($J5:M5)*M5 -> 0 | N11: =SUM($J5:N5)*N5 -> 0 | O11: =SUM($J5:O5)*O5 -> 0 | P11: =SUM($J5:P5)*P5 -> 0 | Q11: =SUM($J5:Q5)*Q5 -> 0 | R11: =SUM($J5:R5)*R5 -> 0 | S11: =SUM($J5:S5)*S5 -> 0 | T11: =SUM($J5:T5)*T5 -> 0 | U11: =SUM($J5:U5)*U5 -> 0 | V11: =SUM($J5:V5)*V5 -> 0 | W11: =SUM($J5:W5)*W5 -> 0 | X11: =SUM($J5:X5)*X5 -> 0 | Y11: =SUM($J5:Y5)*Y5 -> 0 | Z11: =SUM($J5:Z5)*Z5 -> 0 | AA11: =SUM($J5:AA5)*AA5 -> 0 | AB11: =SUM($J5:AB5)*AB5 -> 0 | AC11: =SUM($J5:AC5)*AC5 -> 0 | AD11: =SUM($J5:AD5)*AD5 -> 0 | AE11: =SUM($J5:AE5)*AE5 -> 0 | AF11: =SUM($J5:AF5)*AF5 -> 0 | AG11: =SUM($J5:AG5)*AG5 -> 0 | AH11: =SUM($J5:AH5)*AH5 -> 0 | AI11: =SUM($J5:AI5)*AI5 -> 0 | AJ11: =SUM($J5:AJ5)*AJ5 -> 0 | AK11: =SUM($J5:AK5)*AK5 -> 0 | AL11: =SUM($J5:AL5)*AL5 -> 0 | AM11: =SUM($J5:AM5)*AM5 -> 0 | AN11: =SUM($J5:AN5)*AN5 -> 0
C12: Construction Year | D12: Num# | J12: =ROUNDUP(J11/Qtrs_Yr,0) -> 1 | K12: 1 | L12: 1 | M12: 0 | N12: 0 | O12: 0 | P12: 0 | Q12: 0 | R12: 0 | S12: 0 | T12: 0 | U12: 0 | V12: 0 | W12: 0 | X12: 0 | Y12: 0 | Z12: 0 | AA12: 0 | AB12: 0 | AC12: 0 | AD12: 0 | AE12: 0 | AF12: 0 | AG12: 0 | AH12: 0 | AI12: 0 | AJ12: 0 | AK12: 0 | AL12: 0 | AM12: 0 | AN12: 0
C13: Operations Quarter | D13: Num# | J13: =SUM($J6:J6)*J6 -> 0 | K13: =SUM($J6:K6)*K6 -> 0 | L13: =SUM($J6:L6)*L6 -> 0 | M13: =SUM($J6:M6)*M6 -> 1 | N13: =SUM($J6:N6)*N6 -> 2 | O13: =SUM($J6:O6)*O6 -> 3 | P13: =SUM($J6:P6)*P6 -> 4 | Q13: =SUM($J6:Q6)*Q6 -> 5 | R13: =SUM($J6:R6)*R6 -> 6 | S13: =SUM($J6:S6)*S6 -> 7 | T13: =SUM($J6:T6)*T6 -> 8 | U13: =SUM($J6:U6)*U6 -> 9 | V13: =SUM($J6:V6)*V6 -> 10 | W13: =SUM($J6:W6)*W6 -> 11 | X13: =SUM($J6:X6)*X6 -> 12 | Y13: =SUM($J6:Y6)*Y6 -> 13 | Z13: =SUM($J6:Z6)*Z6 -> 14 | AA13: =SUM($J6:AA6)*AA6 -> 15 | AB13: =SUM($J6:AB6)*AB6 -> 16 | AC13: =SUM($J6:AC6)*AC6 -> 17 | AD13: =SUM($J6:AD6)*AD6 -> 18 | AE13: =SUM($J6:AE6)*AE6 -> 19 | AF13: =SUM($J6:AF6)*AF6 -> 20 | AG13: =SUM($J6:AG6)*AG6 -> 21 | AH13: =SUM($J6:AH6)*AH6 -> 22 | AI13: =SUM($J6:AI6)*AI6 -> 23 | AJ13: =SUM($J6:AJ6)*AJ6 -> 24 | AK13: =SUM($J6:AK6)*AK6 -> 25 | AL13: =SUM($J6:AL6)*AL6 -> 0 | AM13: =SUM($J6:AM6)*AM6 -> 0 | AN13: =SUM($J6:AN6)*AN6 -> 0
C14: Operations Year | D14: Num# | J14: =ROUNDUP(J13/Qtrs_Yr,0) -> 0 | K14: 0 | L14: 0 | M14: 1 | N14: 1 | O14: 1 | P14: 1 | Q14: 2 | R14: 2 | S14: 2 | T14: 2 | U14: 3 | V14: 3 | W14: 3 | X14: 3 | Y14: 4 | Z14: 4 | AA14: 4 | AB14: 4 | AC14: 5 | AD14: 5 | AE14: 5 | AF14: 5 | AG14: 6 | AH14: 6 | AI14: 6 | AJ14: 6 | AK14: 7 | AL14: 0 | AM14: 0 | AN14: 0
C15: Calendar Year | D15: Num# | J15: =YEAR(J4) -> 2019 | K15: 2019 | L15: 2019 | M15: 2020 | N15: 2021 | O15: 2022 | P15: 2023 | Q15: 2024 | R15: 2025 | S15: 2026 | T15: 2027 | U15: 2028 | V15: 2029 | W15: 2030 | X15: 2031 | Y15: 2032 | Z15: 2033 | AA15: 2034 | AB15: 2035 | AC15: 2036 | AD15: 2037 | AE15: 2038 | AF15: 2039 | AG15: 2040 | AH15: 2041 | AI15: 2042 | AJ15: 2043 | AK15: 2044 | AL15: 2044 | AM15: 2045 | AN15: 2045
C16: Days in period | D16: Num# | J16: =J4-J3+1 -> 91 | K16: 89 | L16: 92 | M16: 366 | N16: 365 | O16: 365 | P16: 365 | Q16: 366 | R16: 365 | S16: 365 | T16: 365 | U16: 366 | V16: 365 | W16: 365 | X16: 365 | Y16: 366 | Z16: 365 | AA16: 365 | AB16: 365 | AC16: 366 | AD16: 365 | AE16: 365 | AF16: 365 | AG16: 366 | AH16: 365 | AI16: 365 | AJ16: 365 | AK16: 366 | AL16: 92 | AM16: 92 | AN16: 89
C17: Period number | D17: Num# | J17: =COUNT($J4:J4) -> 1 | K17: =COUNT($J4:K4) -> 2 | L17: =COUNT($J4:L4) -> 3 | M17: =COUNT($J4:M4) -> 4 | N17: =COUNT($J4:N4) -> 5 | O17: =COUNT($J4:O4) -> 6 | P17: =COUNT($J4:P4) -> 7 | Q17: =COUNT($J4:Q4) -> 8 | R17: =COUNT($J4:R4) -> 9 | S17: =COUNT($J4:S4) -> 10 | T17: =COUNT($J4:T4) -> 11 | U17: =COUNT($J4:U4) -> 12 | V17: =COUNT($J4:V4) -> 13 | W17: =COUNT($J4:W4) -> 14 | X17: =COUNT($J4:X4) -> 15 | Y17: =COUNT($J4:Y4) -> 16 | Z17: =COUNT($J4:Z4) -> 17 | AA17: =COUNT($J4:AA4) -> 18 | AB17: =COUNT($J4:AB4) -> 19 | AC17: =COUNT($J4:AC4) -> 20 | AD17: =COUNT($J4:AD4) -> 21 | AE17: =COUNT($J4:AE4) -> 22 | AF17: =COUNT($J4:AF4) -> 23 | AG17: =COUNT($J4:AG4) -> 24 | AH17: =COUNT($J4:AH4) -> 25 | AI17: =COUNT($J4:AI4) -> 26 | AJ17: =COUNT($J4:AJ4) -> 27 | AK17: =COUNT($J4:AK4) -> 28 | AL17: =COUNT($J4:AL4) -> 29 | AM17: =COUNT($J4:AM4) -> 30 | AN17: =COUNT($J4:AN4) -> 31
B20: Capacity & Generation
C21: Tested module capacity in standard temps | D21: kWp | J21: =IF(J$13=0,0,Inputs!$E$69) -> 0 | K21: =IF(K$13=0,0,Inputs!$E$69) -> 0 | L21: =IF(L$13=0,0,Inputs!$E$69) -> 0 | M21: =IF(M$13=0,0,Inputs!$E$69) -> 499.2 | N21: =IF(N$13=0,0,Inputs!$E$69) -> 499.2 | O21: =IF(O$13=0,0,Inputs!$E$69) -> 499.2 | P21: =IF(P$13=0,0,Inputs!$E$69) -> 499.2 | Q21: =IF(Q$13=0,0,Inputs!$E$69) -> 499.2 | R21: =IF(R$13=0,0,Inputs!$E$69) -> 499.2 | S21: =IF(S$13=0,0,Inputs!$E$69) -> 499.2 | T21: =IF(T$13=0,0,Inputs!$E$69) -> 499.2 | U21: =IF(U$13=0,0,Inputs!$E$69) -> 499.2 | V21: =IF(V$13=0,0,Inputs!$E$69) -> 499.2 | W21: =IF(W$13=0,0,Inputs!$E$69) -> 499.2 | X21: =IF(X$13=0,0,Inputs!$E$69) -> 499.2 | Y21: =IF(Y$13=0,0,Inputs!$E$69) -> 499.2 | Z21: =IF(Z$13=0,0,Inputs!$E$69) -> 499.2 | AA21: =IF(AA$13=0,0,Inputs!$E$69) -> 499.2 | AB21: =IF(AB$13=0,0,Inputs!$E$69) -> 499.2 | AC21: =IF(AC$13=0,0,Inputs!$E$69) -> 499.2 | AD21: =IF(AD$13=0,0,Inputs!$E$69) -> 499.2 | AE21: =IF(AE$13=0,0,Inputs!$E$69) -> 499.2 | AF21: =IF(AF$13=0,0,Inputs!$E$69) -> 499.2 | AG21: =IF(AG$13=0,0,Inputs!$E$69) -> 499.2 | AH21: =IF(AH$13=0,0,Inputs!$E$69) -> 499.2 | AI21: =IF(AI$13=0,0,Inputs!$E$69) -> 499.2 | AJ21: =IF(AJ$13=0,0,Inputs!$E$69) -> 499.2 | AK21: =IF(AK$13=0,0,Inputs!$E$69) -> 499.2 | AL21: =IF(AL$13=0,0,Inputs!$E$69) -> 0 | AM21: =IF(AM$13=0,0,Inputs!$E$69) -> 0 | AN21: =IF(AN$13=0,0,Inputs!$E$69) -> 0 | AQ21: =IF(AQ$12=0,0,Inputs!$E$69) -> 0 | AR21: =IF(AR$12=0,0,Inputs!$E$69) -> 0 | AS21: =IF(AS$12=0,0,Inputs!$E$69) -> 0 | AT21: =IF(AT$12=0,0,Inputs!$E$69) -> 0 | AU21: =IF(AU$12=0,0,Inputs!$E$69) -> 0 | AV21: =IF(AV$12=0,0,Inputs!$E$69) -> 0 | AW21: =IF(AW$12=0,0,Inputs!$E$69) -> 0 | AX21: =IF(AX$12=0,0,Inputs!$E$69) -> 0 | AY21: =IF(AY$12=0,0,Inputs!$E$69) -> 0 | AZ21: =IF(AZ$12=0,0,Inputs!$E$69) -> 0 | BA21: =IF(BA$12=0,0,Inputs!$E$69) -> 0 | BB21: =IF(BB$12=0,0,Inputs!$E$69) -> 0 | BC21: =IF(BC$12=0,0,Inputs!$E$69) -> 0 | BD21: =IF(BD$12=0,0,Inputs!$E$69) -> 0 | BE21: =IF(BE$12=0,0,Inputs!$E$69) -> 0 | BF21: =IF(BF$12=0,0,Inputs!$E$69) -> 0 | BG21: =IF(BG$12=0,0,Inputs!$E$69) -> 0 | BH21: =IF(BH$12=0,0,Inputs!$E$69) -> 0 | BI21: =IF(BI$12=0,0,Inputs!$E$69) -> 0 | BJ21: =IF(BJ$12=0,0,Inputs!$E$69) -> 0 | BK21: =IF(BK$12=0,0,Inputs!$E$69) -> 0 | BL21: =IF(BL$12=0,0,Inputs!$E$69) -> 0
C22: Adjustment for temprature | D22: % | E22: =Inputs!$E$72 -> 0.9034455128 | J22: =IF(J$13=0,0,$E$22) -> 0 | K22: =IF(K$13=0,0,$E$22) -> 0 | L22: 0 | M22: 0.9034455128 | N22: 0.9034455128 | O22: 0.9034455128 | P22: 0.9034455128 | Q22: 0.9034455128 | R22: 0.9034455128 | S22: 0.9034455128 | T22: 0.9034455128 | U22: 0.9034455128 | V22: 0.9034455128 | W22: 0.9034455128 | X22: 0.9034455128 | Y22: 0.9034455128 | Z22: 0.9034455128 | AA22: 0.9034455128 | AB22: 0.9034455128 | AC22: 0.9034455128 | AD22: 0.9034455128 | AE22: 0.9034455128 | AF22: 0.9034455128 | AG22: 0.9034455128 | AH22: 0.9034455128 | AI22: 0.9034455128 | AJ22: 0.9034455128 | AK22: 0.9034455128 | AL22: 0 | AM22: 0 | AN22: 0 | AQ22: =IF(AQ$12=0,0,$E$22) -> 0 | AR22: 0 | AS22: 0 | AT22: 0 | AU22: 0 | AV22: 0 | AW22: 0 | AX22: 0 | AY22: 0 | AZ22: 0 | BA22: 0 | BB22: 0 | BC22: 0 | BD22: 0 | BE22: 0 | BF22: 0 | BG22: 0 | BH22: 0 | BI22: 0 | BJ22: 0 | BK22: 0 | BL22: 0 | BM22: 0
C23: Capacity power in operating conditions | D23: kWp | J23: =J21*J22 -> 0 | K23: =K21*K22 -> 0 | L23: 0 | M23: 451 | N23: 451 | O23: 451 | P23: 451 | Q23: 451 | R23: 451 | S23: 451 | T23: 451 | U23: 451 | V23: 451 | W23: 451 | X23: 451 | Y23: 451 | Z23: 451 | AA23: 451 | AB23: 451 | AC23: 451 | AD23: 451 | AE23: 451 | AF23: 451 | AG23: 451 | AH23: 451 | AI23: 451 | AJ23: 451 | AK23: 451 | AL23: 0 | AM23: 0 | AN23: 0 | AQ23: 0 | AR23: 0 | AS23: 0 | AT23: 0 | AU23: 0 | AV23: 0 | AW23: 0 | AX23: 0 | AY23: 0 | AZ23: 0 | BA23: 0 | BB23: 0 | BC23: 0 | BD23: 0 | BE23: 0 | BF23: 0 | BG23: 0 | BH23: 0 | BI23: 0 | BJ23: 0 | BK23: 0 | BL23: 0 | BM23: 0
C25: Total energy production before degration | D25: kWh/kWp/a | J25: =IF(J$13=0,0,Inputs!$E$138) -> 0 | K25: =IF(K$13=0,0,Inputs!$E$138) -> 0 | L25: =IF(L$13=0,0,Inputs!$E$138) -> 0 | M25: =IF(M$13=0,0,Inputs!$E$138) -> 978173.9955 | N25: =IF(N$13=0,0,Inputs!$E$138) -> 978173.9955 | O25: =IF(O$13=0,0,Inputs!$E$138) -> 978173.9955 | P25: =IF(P$13=0,0,Inputs!$E$138) -> 978173.9955 | Q25: =IF(Q$13=0,0,Inputs!$E$138) -> 978173.9955 | R25: =IF(R$13=0,0,Inputs!$E$138) -> 978173.9955 | S25: =IF(S$13=0,0,Inputs!$E$138) -> 978173.9955 | T25: =IF(T$13=0,0,Inputs!$E$138) -> 978173.9955 | U25: =IF(U$13=0,0,Inputs!$E$138) -> 978173.9955 | V25: =IF(V$13=0,0,Inputs!$E$138) -> 978173.9955 | W25: =IF(W$13=0,0,Inputs!$E$138) -> 978173.9955 | X25: =IF(X$13=0,0,Inputs!$E$138) -> 978173.9955 | Y25: =IF(Y$13=0,0,Inputs!$E$138) -> 978173.9955 | Z25: =IF(Z$13=0,0,Inputs!$E$138) -> 978173.9955 | AA25: =IF(AA$13=0,0,Inputs!$E$138) -> 978173.9955 | AB25: =IF(AB$13=0,0,Inputs!$E$138) -> 978173.9955 | AC25: =IF(AC$13=0,0,Inputs!$E$138) -> 978173.9955 | AD25: =IF(AD$13=0,0,Inputs!$E$138) -> 978173.9955 | AE25: =IF(AE$13=0,0,Inputs!$E$138) -> 978173.9955 | AF25: =IF(AF$13=0,0,Inputs!$E$138) -> 978173.9955 | AG25: =IF(AG$13=0,0,Inputs!$E$138) -> 978173.9955 | AH25: =IF(AH$13=0,0,Inputs!$E$138) -> 978173.9955 | AI25: =IF(AI$13=0,0,Inputs!$E$138) -> 978173.9955 | AJ25: =IF(AJ$13=0,0,Inputs!$E$138) -> 978173.9955 | AK25: =IF(AK$13=0,0,Inputs!$E$138) -> 978173.9955 | AL25: =IF(AL$13=0,0,Inputs!$E$138) -> 0 | AM25: =IF(AM$13=0,0,Inputs!$E$138) -> 0 | AN25: =IF(AN$13=0,0,Inputs!$E$138) -> 0 | AQ25: =IF(AQ$12=0,0,Inputs!$E$138) -> 0 | AR25: =IF(AR$12=0,0,Inputs!$E$138) -> 0 | AS25: =IF(AS$12=0,0,Inputs!$E$138) -> 0 | AT25: =IF(AT$12=0,0,Inputs!$E$138) -> 0 | AU25: =IF(AU$12=0,0,Inputs!$E$138) -> 0 | AV25: =IF(AV$12=0,0,Inputs!$E$138) -> 0 | AW25: =IF(AW$12=0,0,Inputs!$E$138) -> 0 | AX25: =IF(AX$12=0,0,Inputs!$E$138) -> 0 | AY25: =IF(AY$12=0,0,Inputs!$E$138) -> 0 | AZ25: =IF(AZ$12=0,0,Inputs!$E$138) -> 0 | BA25: =IF(BA$12=0,0,Inputs!$E$138) -> 0 | BB25: =IF(BB$12=0,0,Inputs!$E$138) -> 0 | BC25: =IF(BC$12=0,0,Inputs!$E$138) -> 0 | BD25: =IF(BD$12=0,0,Inputs!$E$138) -> 0 | BE25: =IF(BE$12=0,0,Inputs!$E$138) -> 0 | BF25: =IF(BF$12=0,0,Inputs!$E$138) -> 0 | BG25: =IF(BG$12=0,0,Inputs!$E$138) -> 0 | BH25: =IF(BH$12=0,0,Inputs!$E$138) -> 0 | BI25: =IF(BI$12=0,0,Inputs!$E$138) -> 0 | BJ25: =IF(BJ$12=0,0,Inputs!$E$138) -> 0 | BK25: =IF(BK$12=0,0,Inputs!$E$138) -> 0 | BL25: =IF(BL$12=0,0,Inputs!$E$138) -> 0
C26: Degradation | D26: Index | I26: 1 | J26: =IF(J$13=0,0,Timing!J26) -> 0 | K26: =IF(K$13=0,0,Timing!K26) -> 0 | L26: =IF(L$13=0,0,Timing!L26) -> 0 | M26: =IF(M$13=0,0,Timing!M26) -> 0.996 | N26: =IF(N$13=0,0,Timing!N26) -> 0.992016 | O26: =IF(O$13=0,0,Timing!O26) -> 0.988047936 | P26: =IF(P$13=0,0,Timing!P26) -> 0.9840957443 | Q26: =IF(Q$13=0,0,Timing!Q26) -> 0.9801593613 | R26: =IF(R$13=0,0,Timing!R26) -> 0.9762387238 | S26: =IF(S$13=0,0,Timing!S26) -> 0.9723337689 | T26: =IF(T$13=0,0,Timing!T26) -> 0.9684444339 | U26: =IF(U$13=0,0,Timing!U26) -> 0.9645706561 | V26: =IF(V$13=0,0,Timing!V26) -> 0.9607123735 | W26: =IF(W$13=0,0,Timing!W26) -> 0.956869524 | X26: =IF(X$13=0,0,Timing!X26) -> 0.9530420459 | Y26: =IF(Y$13=0,0,Timing!Y26) -> 0.9492298777 | Z26: =IF(Z$13=0,0,Timing!Z26) -> 0.9454329582 | AA26: =IF(AA$13=0,0,Timing!AA26) -> 0.9416512264 | AB26: =IF(AB$13=0,0,Timing!AB26) -> 0.9378846215 | AC26: =IF(AC$13=0,0,Timing!AC26) -> 0.934133083 | AD26: =IF(AD$13=0,0,Timing!AD26) -> 0.9303965507 | AE26: =IF(AE$13=0,0,Timing!AE26) -> 0.9266749645 | AF26: =IF(AF$13=0,0,Timing!AF26) -> 0.9229682646 | AG26: =IF(AG$13=0,0,Timing!AG26) -> 0.9192763915 | AH26: =IF(AH$13=0,0,Timing!AH26) -> 0.915599286 | AI26: =IF(AI$13=0,0,Timing!AI26) -> 0.9119368888 | AJ26: =IF(AJ$13=0,0,Timing!AJ26) -> 0.9082891413 | AK26: =IF(AK$13=0,0,Timing!AK26) -> 0.9046559847 | AL26: =IF(AL$13=0,0,Timing!AL26) -> 0 | AM26: =IF(AM$13=0,0,Timing!AM26) -> 0 | AN26: =IF(AN$13=0,0,Timing!AN26) -> 0 | AQ26: =IF(AQ$12=0,0,Timing!AS26) -> 0 | AR26: =IF(AR$12=0,0,Timing!AT26) -> 0 | AS26: =IF(AS$12=0,0,Timing!AU26) -> 0 | AT26: =IF(AT$12=0,0,Timing!AV26) -> 0 | AU26: =IF(AU$12=0,0,Timing!AW26) -> 0 | AV26: =IF(AV$12=0,0,Timing!AX26) -> 0 | AW26: =IF(AW$12=0,0,Timing!AY26) -> 0 | AX26: =IF(AX$12=0,0,Timing!AZ26) -> 0 | AY26: =IF(AY$12=0,0,Timing!BA26) -> 0 | AZ26: =IF(AZ$12=0,0,Timing!BB26) -> 0 | BA26: =IF(BA$12=0,0,Timing!BC26) -> 0 | BB26: =IF(BB$12=0,0,Timing!BD26) -> 0 | BC26: =IF(BC$12=0,0,Timing!BE26) -> 0 | BD26: =IF(BD$12=0,0,Timing!BF26) -> 0 | BE26: =IF(BE$12=0,0,Timing!BG26) -> 0 | BF26: =IF(BF$12=0,0,Timing!BH26) -> 0 | BG26: =IF(BG$12=0,0,Timing!BI26) -> 0 | BH26: =IF(BH$12=0,0,Timing!BJ26) -> 0 | BI26: =IF(BI$12=0,0,Timing!BK26) -> 0 | BJ26: =IF(BJ$12=0,0,Timing!BL26) -> 0 | BK26: =IF(BK$12=0,0,Timing!BM26) -> 0 | BL26: =IF(BL$12=0,0,Timing!BN26) -> 0
C27: Net yield injected into grid | D27: kWh | I27: =SUM(J27:BL27) -> 23222496.06 | J27: =J25*J26 -> 0 | K27: =K25*K26 -> 0 | L27: 0 | M27: =M25*M26 -> 974261.2995 | N27: 970364.2543 | O27: 966482.7973 | P27: 962616.8661 | Q27: 958766.3986 | R27: 954931.333 | S27: 951111.6077 | T27: 947307.1613 | U27: 943517.9326 | V27: 939743.8609 | W27: 935984.8855 | X27: 932240.9459 | Y27: 928511.9821 | Z27: 924797.9342 | AA27: 921098.7425 | AB27: 917414.3475 | AC27: 913744.6901 | AD27: 910089.7114 | AE27: 906449.3525 | AF27: 902823.5551 | AG27: 899212.2609 | AH27: 895615.4118 | AI27: 892032.9502 | AJ27: 888464.8184 | AK27: 884910.9591 | AL27: 0 | AM27: 0 | AN27: 0 | AQ27: =AQ25*AQ26 -> 0 | AR27: 0 | AS27: 0 | AT27: 0 | AU27: 0 | AV27: 0 | AW27: 0 | AX27: 0 | AY27: 0 | AZ27: 0 | BA27: 0 | BB27: 0 | BC27: 0 | BD27: 0 | BE27: 0 | BF27: 0 | BG27: 0 | BH27: 0 | BI27: 0 | BJ27: 0 | BK27: 0 | BL27: 0
C29: Days in period | D29: Days | J29: =J4-J3 -> 90 | K29: =K4-K3 -> 88 | L29: 91 | M29: 365 | N29: 364 | O29: 364 | P29: 364 | Q29: 365 | R29: 364 | S29: 364 | T29: 364 | U29: 365 | V29: 364 | W29: 364 | X29: 364 | Y29: 365 | Z29: 364 | AA29: 364 | AB29: 364 | AC29: 365 | AD29: 364 | AE29: 364 | AF29: 364 | AG29: 365 | AH29: 364 | AI29: 364 | AJ29: 364 | AK29: 365 | AL29: 91 | AM29: 91 | AN29: 88 | AQ29: =AQ4-AQ3 -> 90 | AR29: 90 | AS29: 0 | AT29: 0 | AU29: 0 | AV29: 0 | AW29: 0 | AX29: 0 | AY29: 0 | AZ29: 0 | BA29: 0 | BB29: 0 | BC29: 0 | BD29: 0 | BE29: 0 | BF29: 0 | BG29: 0 | BH29: 0 | BI29: 0 | BJ29: 0 | BK29: 0 | BL29: 0 | BM29: 0
C30: Hours in period | D30: Hours | I30: 24 | J30: =J29*$I$30 -> 2160 | K30: =K29*$I$30 -> 2112 | L30: 2184 | M30: 8760 | N30: 8736 | O30: 8736 | P30: 8736 | Q30: 8760 | R30: 8736 | S30: 8736 | T30: 8736 | U30: 8760 | V30: 8736 | W30: 8736 | X30: 8736 | Y30: 8760 | Z30: 8736 | AA30: 8736 | AB30: 8736 | AC30: 8760 | AD30: 8736 | AE30: 8736 | AF30: 8736 | AG30: 8760 | AH30: 8736 | AI30: 8736 | AJ30: 8736 | AK30: 8760 | AL30: 2184 | AM30: 2184 | AN30: 2112 | AQ30: =AQ29*$I$30 -> 2160 | AR30: 2160 | AS30: 0 | AT30: 0 | AU30: 0 | AV30: 0 | AW30: 0 | AX30: 0 | AY30: 0 | AZ30: 0 | BA30: 0 | BB30: 0 | BC30: 0 | BD30: 0 | BE30: 0 | BF30: 0 | BG30: 0 | BH30: 0 | BI30: 0 | BJ30: 0 | BK30: 0 | BL30: 0 | BM30: 0
C31: Average hourly production | D31: kWh | J31: =IF(J$13=0,0,J27/J30) -> 0 | K31: =IF(K$13=0,0,K27/K30) -> 0 | L31: 0 | M31: 111.2170433 | N31: 111.0764943 | O31: 110.6321883 | P31: 110.1896596 | Q31: 109.448219 | R31: 109.3099053 | S31: 108.8726657 | T31: 108.4371751 | U31: 107.7075266 | V31: 107.5714127 | W31: 107.141127 | X31: 106.7125625 | Y31: 105.9945185 | Z31: 105.8605694 | AA31: 105.4371271 | AB31: 105.0153786 | AC31: 104.3087546 | AD31: 104.1769358 | AE31: 103.7602281 | AF31: 103.3451872 | AG31: 102.6498015 | AH31: 102.5200792 | AI31: 102.1099989 | AJ31: 101.7015589 | AK31: 101.0172328 | AL31: 0 | AM31: 0 | AN31: 0 | AQ31: =IF(AQ$12=0,0,AQ27/AQ30) -> 0 | AR31: 0 | AS31: 0 | AT31: 0 | AU31: 0 | AV31: 0 | AW31: 0 | AX31: 0 | AY31: 0 | AZ31: 0 | BA31: 0 | BB31: 0 | BC31: 0 | BD31: 0 | BE31: 0 | BF31: 0 | BG31: 0 | BH31: 0 | BI31: 0 | BJ31: 0 | BK31: 0 | BL31: 0 | BM31: 0
C32: Capacity factor | I32: =AVERAGEIF(J32:BM32,"<>0",J32:BM32) -> 0.2355843326 | J32: =IF(J$13=0,0,J31/J23) -> 0 | K32: =IF(K$13=0,0,K31/K23) -> 0 | L32: 0 | M32: =IF(M$13=0,0,M31/M23) -> 0.246600983 | N32: 0.2462893444 | O32: 0.245304187 | P32: 0.2443229702 | Q32: 0.2426789779 | R32: 0.2423722957 | S32: 0.2414028065 | T32: 0.2404371952 | U32: 0.2388193494 | V32: 0.2385175447 | W32: 0.2375634745 | X32: 0.2366132206 | Y32: 0.2350211053 | Z32: 0.2347241006 | AA32: 0.2337852042 | AB32: 0.2328500634 | AC32: 0.2312832696 | AD32: 0.2309909885 | AE32: 0.2300670246 | AF32: 0.2291467565 | AG32: 0.2276048813 | AH32: 0.2273172488 | AI32: 0.2264079798 | AJ32: 0.2255023479 | AK32: 0.2239849951 | AL32: 0 | AM32: 0 | AN32: 0 | AQ32: =IF(AQ$12=0,0,AQ31/AQ23) -> 0 | AR32: 0 | AS32: 0 | AT32: 0 | AU32: 0 | AV32: 0 | AW32: 0 | AX32: 0 | AY32: 0 | AZ32: 0 | BA32: 0 | BB32: 0 | BC32: 0 | BD32: 0 | BE32: 0 | BF32: 0 | BG32: 0 | BH32: 0 | BI32: 0 | BJ32: 0 | BK32: 0 | BL32: 0 | BM32: 0
B35: Power Purchase Agreements
C37: Monash University
C38: PPA term
C39: PPA term start-date | D39: Date | E39: =Inputs!$E$233 -> 2019-08-01 | I39: =COUNT(J39:BM39) -> 10 | J39: =IF(J40=0,"",YEAR(J4)) ->  | K39: =IF(K40=0,"",YEAR(K4)) ->  | L39: =IF(L40=0,"",YEAR(L4)) ->  | M39: =IF(M40=0,"",YEAR(M4)) -> 2020 | N39: =IF(N40=0,"",YEAR(N4)) -> 2021 | O39: =IF(O40=0,"",YEAR(O4)) -> 2022 | P39: =IF(P40=0,"",YEAR(P4)) -> 2023 | Q39: =IF(Q40=0,"",YEAR(Q4)) -> 2024 | R39: =IF(R40=0,"",YEAR(R4)) -> 2025 | S39: =IF(S40=0,"",YEAR(S4)) -> 2026 | T39: =IF(T40=0,"",YEAR(T4)) -> 2027 | U39: =IF(U40=0,"",YEAR(U4)) -> 2028 | V39: =IF(V40=0,"",YEAR(V4)) -> 2029 | W39: =IF(W40=0,"",YEAR(W4)) ->  | X39: =IF(X40=0,"",YEAR(X4)) ->  | Y39: =IF(Y40=0,"",YEAR(Y4)) ->  | Z39: =IF(Z40=0,"",YEAR(Z4)) ->  | AA39: =IF(AA40=0,"",YEAR(AA4)) ->  | AB39: =IF(AB40=0,"",YEAR(AB4)) ->  | AC39: =IF(AC40=0,"",YEAR(AC4)) ->  | AD39: =IF(AD40=0,"",YEAR(AD4)) ->  | AE39: =IF(AE40=0,"",YEAR(AE4)) ->  | AF39: =IF(AF40=0,"",YEAR(AF4)) ->  | AG39: =IF(AG40=0,"",YEAR(AG4)) ->  | AH39: =IF(AH40=0,"",YEAR(AH4)) ->  | AI39: =IF(AI40=0,"",YEAR(AI4)) ->  | AJ39: =IF(AJ40=0,"",YEAR(AJ4)) ->  | AK39: =IF(AK40=0,"",YEAR(AK4)) ->  | AL39: =IF(AL40=0,"",YEAR(AL4)) ->  | AM39: =IF(AM40=0,"",YEAR(AM4)) ->  | AN39: =IF(AN40=0,"",YEAR(AN4)) ->  | AQ39: =IF(AQ40=0,"",YEAR(AQ4)) ->  | AR39: =IF(AR40=0,"",YEAR(AR4)) ->  | AS39: =IF(AS40=0,"",YEAR(AS4)) ->  | AT39: =IF(AT40=0,"",YEAR(AT4)) ->  | AU39: =IF(AU40=0,"",YEAR(AU4)) ->  | AV39: =IF(AV40=0,"",YEAR(AV4)) ->  | AW39: =IF(AW40=0,"",YEAR(AW4)) ->  | AX39: =IF(AX40=0,"",YEAR(AX4)) ->  | AY39: =IF(AY40=0,"",YEAR(AY4)) ->  | AZ39: =IF(AZ40=0,"",YEAR(AZ4)) ->  | BA39: =IF(BA40=0,"",YEAR(BA4)) ->  | BB39: =IF(BB40=0,"",YEAR(BB4)) ->  | BC39: =IF(BC40=0,"",YEAR(BC4)) ->  | BD39: =IF(BD40=0,"",YEAR(BD4)) ->  | BE39: =IF(BE40=0,"",YEAR(BE4)) ->  | BF39: =IF(BF40=0,"",YEAR(BF4)) ->  | BG39: =IF(BG40=0,"",YEAR(BG4)) ->  | BH39: =IF(BH40=0,"",YEAR(BH4)) ->  | BI39: =IF(BI40=0,"",YEAR(BI4)) ->  | BJ39: =IF(BJ40=0,"",YEAR(BJ4)) ->  | BK39: =IF(BK40=0,"",YEAR(BK4)) ->  | BL39: =IF(BL40=0,"",YEAR(BL4)) ->  | BM39: =IF(BM40=0,"",YEAR(BM4)) -> 
C40: PPA term end-date | D40: Date | E40: =Inputs!$E$234 -> 2029-07-31 | J40: =IF(AND(J3>=$E$39,J3<=$E$40),1,0) -> 0 | K40: =IF(AND(K3>=$E$39,K3<=$E$40),1,0) -> 0 | L40: =IF(AND(L3>=$E$39,L3<=$E$40),1,0) -> 0 | M40: =IF(AND(M3>=$E$39,M3<=$E$40),1,0) -> 1 | N40: =IF(AND(N3>=$E$39,N3<=$E$40),1,0) -> 1 | O40: =IF(AND(O3>=$E$39,O3<=$E$40),1,0) -> 1 | P40: =IF(AND(P3>=$E$39,P3<=$E$40),1,0) -> 1 | Q40: =IF(AND(Q3>=$E$39,Q3<=$E$40),1,0) -> 1 | R40: =IF(AND(R3>=$E$39,R3<=$E$40),1,0) -> 1 | S40: =IF(AND(S3>=$E$39,S3<=$E$40),1,0) -> 1 | T40: =IF(AND(T3>=$E$39,T3<=$E$40),1,0) -> 1 | U40: =IF(AND(U3>=$E$39,U3<=$E$40),1,0) -> 1 | V40: =IF(AND(V3>=$E$39,V3<=$E$40),1,0) -> 1 | W40: =IF(AND(W3>=$E$39,W3<=$E$40),1,0) -> 0 | X40: =IF(AND(X3>=$E$39,X3<=$E$40),1,0) -> 0 | Y40: =IF(AND(Y3>=$E$39,Y3<=$E$40),1,0) -> 0 | Z40: =IF(AND(Z3>=$E$39,Z3<=$E$40),1,0) -> 0 | AA40: =IF(AND(AA3>=$E$39,AA3<=$E$40),1,0) -> 0 | AB40: =IF(AND(AB3>=$E$39,AB3<=$E$40),1,0) -> 0 | AC40: =IF(AND(AC3>=$E$39,AC3<=$E$40),1,0) -> 0 | AD40: =IF(AND(AD3>=$E$39,AD3<=$E$40),1,0) -> 0 | AE40: =IF(AND(AE3>=$E$39,AE3<=$E$40),1,0) -> 0 | AF40: =IF(AND(AF3>=$E$39,AF3<=$E$40),1,0) -> 0 | AG40: =IF(AND(AG3>=$E$39,AG3<=$E$40),1,0) -> 0 | AH40: =IF(AND(AH3>=$E$39,AH3<=$E$40),1,0) -> 0 | AI40: =IF(AND(AI3>=$E$39,AI3<=$E$40),1,0) -> 0 | AJ40: =IF(AND(AJ3>=$E$39,AJ3<=$E$40),1,0) -> 0 | AK40: =IF(AND(AK3>=$E$39,AK3<=$E$40),1,0) -> 0 | AL40: =IF(AND(AL3>=$E$39,AL3<=$E$40),1,0) -> 0 | AM40: =IF(AND(AM3>=$E$39,AM3<=$E$40),1,0) -> 0 | AN40: =IF(AND(AN3>=$E$39,AN3<=$E$40),1,0) -> 0
C41: PPA supply price | D41: AU$/kWh | E41: =Inputs!$E$230 -> 60 | J41: =IF(J$40=0,0,$E$41) -> 0 | K41: =IF(K$40=0,0,$E$41/1000) -> 0 | L41: 0 | M41: 0.06 | N41: 0.06 | O41: 0.06 | P41: 0.06 | Q41: 0.06 | R41: 0.06 | S41: 0.06 | T41: 0.06 | U41: 0.06 | V41: 0.06 | W41: 0 | X41: 0 | Y41: 0 | Z41: 0 | AA41: 0 | AB41: 0 | AC41: 0 | AD41: 0 | AE41: 0 | AF41: 0 | AG41: 0 | AH41: 0 | AI41: 0 | AJ41: 0 | AK41: 0 | AL41: 0 | AM41: 0 | AN41: 0 | AQ41: =IF(AQ$40=0,0,$E$41/1000) -> 0 | AR41: 0 | AS41: 0 | AT41: 0 | AU41: 0 | AV41: 0 | AW41: 0 | AX41: 0 | AY41: 0 | AZ41: 0 | BA41: 0 | BB41: 0 | BC41: 0 | BD41: 0 | BE41: 0 | BF41: 0 | BG41: 0 | BH41: 0 | BI41: 0 | BJ41: 0 | BK41: 0 | BL41: 0 | BM41: 0
C42: Inflation index factor | D42: x | J42: =IF(J40=0,0,Timing!J$39) -> 0 | K42: =IF(K40=0,0,Timing!K$39) -> 0 | L42: =IF(L40=0,0,Timing!L$39) -> 0 | M42: =IF(M40=0,0,Timing!M$39) -> 1.0225 | N42: =IF(N40=0,0,Timing!N$39) -> 1.04550625 | O42: =IF(O40=0,0,Timing!O$39) -> 1.069030141 | P42: =IF(P40=0,0,Timing!P$39) -> 1.095755894 | Q42: =IF(Q40=0,0,Timing!Q$39) -> 1.123149791 | R42: =IF(R40=0,0,Timing!R$39) -> 1.151228536 | S42: =IF(S40=0,0,Timing!S$39) -> 1.18000925 | T42: =IF(T40=0,0,Timing!T$39) -> 1.209509481 | U42: =IF(U40=0,0,Timing!U$39) -> 1.239747218 | V42: =IF(V40=0,0,Timing!V$39) -> 1.270740898 | W42: =IF(W40=0,0,Timing!W$39) -> 0 | X42: =IF(X40=0,0,Timing!X$39) -> 0 | Y42: =IF(Y40=0,0,Timing!Y$39) -> 0 | Z42: =IF(Z40=0,0,Timing!Z$39) -> 0 | AA42: =IF(AA40=0,0,Timing!AA$39) -> 0 | AB42: =IF(AB40=0,0,Timing!AB$39) -> 0 | AC42: =IF(AC40=0,0,Timing!AC$39) -> 0 | AD42: =IF(AD40=0,0,Timing!AD$39) -> 0 | AE42: =IF(AE40=0,0,Timing!AE$39) -> 0 | AF42: =IF(AF40=0,0,Timing!AF$39) -> 0 | AG42: =IF(AG40=0,0,Timing!AG$39) -> 0 | AH42: =IF(AH40=0,0,Timing!AH$39) -> 0 | AI42: =IF(AI40=0,0,Timing!AI$39) -> 0 | AJ42: =IF(AJ40=0,0,Timing!AJ$39) -> 0 | AK42: =IF(AK40=0,0,Timing!AK$39) -> 0 | AL42: =IF(AL40=0,0,Timing!AL$39) -> 0 | AM42: =IF(AM40=0,0,Timing!AM$39) -> 0 | AN42: =IF(AN40=0,0,Timing!AN$39) -> 0
C43: Nominal PPA supply price | D43: AU$/kWh | J43: =J41*J42 -> 0 | K43: =K41*K42 -> 0 | L43: =L41*L42 -> 0 | M43: =M41*M42 -> 0.06135 | N43: =N41*N42 -> 0.062730375 | O43: =O41*O42 -> 0.06414180844 | P43: =P41*P42 -> 0.06574535365 | Q43: =Q41*Q42 -> 0.06738898749 | R43: =R41*R42 -> 0.06907371218 | S43: =S41*S42 -> 0.07080055498 | T43: =T41*T42 -> 0.07257056886 | U43: =U41*U42 -> 0.07438483308 | V43: =V41*V42 -> 0.0762444539 | W43: =W41*W42 -> 0 | X43: =X41*X42 -> 0 | Y43: =Y41*Y42 -> 0 | Z43: =Z41*Z42 -> 0 | AA43: =AA41*AA42 -> 0 | AB43: =AB41*AB42 -> 0 | AC43: =AC41*AC42 -> 0 | AD43: =AD41*AD42 -> 0 | AE43: =AE41*AE42 -> 0 | AF43: =AF41*AF42 -> 0 | AG43: =AG41*AG42 -> 0 | AH43: =AH41*AH42 -> 0 | AI43: =AI41*AI42 -> 0 | AJ43: =AJ41*AJ42 -> 0 | AK43: =AK41*AK42 -> 0 | AL43: =AL41*AL42 -> 0 | AM43: =AM41*AM42 -> 0 | AN43: =AN41*AN42 -> 0
C44: PPA term energy purchase | D44: kWh p.a. | E44: =Inputs!$E$231 -> 350000 | I44: =SUM(J44:BM44) -> 3500000 | J44: =IF(J40=0,0,$E44) -> 0 | K44: =IF(K40=0,0,$E44) -> 0 | L44: 0 | M44: 350000 | N44: 350000 | O44: 350000 | P44: 350000 | Q44: 350000 | R44: 350000 | S44: 350000 | T44: 350000 | U44: 350000 | V44: 350000 | W44: 0 | X44: 0 | Y44: 0 | Z44: 0 | AA44: 0 | AB44: 0 | AC44: 0 | AD44: 0 | AE44: 0 | AF44: 0 | AG44: 0 | AH44: 0 | AI44: 0 | AJ44: 0 | AK44: 0 | AL44: 0 | AM44: 0 | AN44: 0 | AQ44: =IF(AQ$40=0,0,$E$44) -> 0 | AR44: 0 | AS44: 0 | AT44: 0 | AU44: 0 | AV44: 0 | AW44: 0 | AX44: 0 | AY44: 0 | AZ44: 0 | BA44: 0 | BB44: 0 | BC44: 0 | BD44: 0 | BE44: 0 | BF44: 0 | BG44: 0 | BH44: 0 | BI44: 0 | BJ44: 0 | BK44: 0 | BL44: 0 | BM44: 0
C45: Remuneration | I45: =SUM(J45:BM45) -> 239550.7266 | J45: =J43*J44 -> 0 | K45: =K43*K44 -> 0 | L45: 0 | M45: 21472.5 | N45: 21955.63125 | O45: 22449.63295 | P45: 23010.87378 | Q45: 23586.14562 | R45: 24175.79926 | S45: 24780.19424 | T45: 25399.6991 | U45: 26034.69158 | V45: 26685.55887 | W45: 0 | X45: 0 | Y45: 0 | Z45: 0 | AA45: 0 | AB45: 0 | AC45: 0 | AD45: 0 | AE45: 0 | AF45: 0 | AG45: 0 | AH45: 0 | AI45: 0 | AJ45: 0 | AK45: 0 | AL45: 0 | AM45: 0 | AN45: 0 | AQ45: =AQ41*AQ44 -> 0 | AR45: 0 | AS45: 0 | AT45: 0 | AU45: 0 | AV45: 0 | AW45: 0 | AX45: 0 | AY45: 0 | AZ45: 0 | BA45: 0 | BB45: 0 | BC45: 0 | BD45: 0 | BE45: 0 | BF45: 0 | BG45: 0 | BH45: 0 | BI45: 0 | BJ45: 0 | BK45: 0 | BL45: 0 | BM45: 0
C46: Percentage of total net electricity generation | D46: % | J46: =IF(J40=0,0,J44/J$27) -> 0 | K46: =IF(K40=0,0,K44/K$27) -> 0 | L46: 0 | M46: =IF(M40=0,0,M44/M$27) -> 0.3592465391 | N46: 0.3606892963 | O46: 0.3621378476 | P46: 0.3635922165 | Q46: 0.3650524262 | R46: 0.3665185002 | S46: 0.3679904621 | T46: 0.3694683354 | U46: 0.370952144 | V46: 0.3724419116 | W46: 0 | X46: 0 | Y46: 0 | Z46: 0 | AA46: 0 | AB46: 0 | AC46: 0 | AD46: 0 | AE46: 0 | AF46: 0 | AG46: 0 | AH46: 0 | AI46: 0 | AJ46: 0 | AK46: 0 | AL46: 0 | AM46: 0 | AN46: 0 | AQ46: =IF(AQ$40=0,0,AQ44/AQ27) -> 0 | AR46: =IF(AR$40=0,0,AR44/AR27) -> 0 | AS46: =IF(AS$40=0,0,AS44/AS27) -> 0 | AT46: =IF(AT$40=0,0,AT44/AT27) -> 0 | AU46: =IF(AU$40=0,0,AU44/AU27) -> 0 | AV46: =IF(AV$40=0,0,AV44/AV27) -> 0 | AW46: =IF(AW$40=0,0,AW44/AW27) -> 0 | AX46: =IF(AX$40=0,0,AX44/AX27) -> 0 | AY46: =IF(AY$40=0,0,AY44/AY27) -> 0 | AZ46: =IF(AZ$40=0,0,AZ44/AZ27) -> 0 | BA46: =IF(BA$40=0,0,BA44/BA27) -> 0 | BB46: =IF(BB$40=0,0,BB44/BB27) -> 0 | BC46: =IF(BC$40=0,0,BC44/BC27) -> 0 | BD46: =IF(BD$40=0,0,BD44/BD27) -> 0 | BE46: =IF(BE$40=0,0,BE44/BE27) -> 0 | BF46: =IF(BF$40=0,0,BF44/BF27) -> 0 | BG46: =IF(BG$40=0,0,BG44/BG27) -> 0 | BH46: =IF(BH$40=0,0,BH44/BH27) -> 0 | BI46: =IF(BI$40=0,0,BI44/BI27) -> 0 | BJ46: =IF(BJ$40=0,0,BJ44/BJ27) -> 0 | BK46: =IF(BK$40=0,0,BK44/BK27) -> 0 | BL46: =IF(BL$40=0,0,BL44/BL27) -> 0 | BM46: =IF(BM$40=0,0,BM44/BM27) -> 0
C48: University of Brisbane
C49: PPA term
C50: PPA term start-date | D50: Date | E50: =Inputs!$E$244 -> 2029-07-31 | I50: =COUNT(J50:BM50) -> 15 | J50: =IF(J51=0,"",YEAR(J$4)) ->  | K50: =IF(K51=0,"",YEAR(K$4)) ->  | W50: 2030 | X50: 2031 | Y50: 2032 | Z50: 2033 | AA50: 2034 | AB50: 2035 | AC50: 2036 | AD50: 2037 | AE50: 2038 | AF50: 2039 | AG50: 2040 | AH50: 2041 | AI50: 2042 | AJ50: 2043 | AK50: 2044 | AQ50: =IF(AQ51=0,"",YEAR(AQ$4)) -> 
C51: PPA term end-date | D51: Date | E51: =Inputs!$E$245 -> 2044-06-30 | J51: =IF(AND(J$3>=$E$50,J$3<=$E$51),1,0) -> 0 | K51: =IF(AND(K$3>=$E$50,K$3<=$E$51),1,0) -> 0 | L51: =IF(AND(L$3>=$E$50,L$3<=$E$51),1,0) -> 0 | M51: =IF(AND(M$3>=$E$50,M$3<=$E$51),1,0) -> 0 | N51: =IF(AND(N$3>=$E$50,N$3<=$E$51),1,0) -> 0 | O51: =IF(AND(O$3>=$E$50,O$3<=$E$51),1,0) -> 0 | P51: =IF(AND(P$3>=$E$50,P$3<=$E$51),1,0) -> 0 | Q51: =IF(AND(Q$3>=$E$50,Q$3<=$E$51),1,0) -> 0 | R51: =IF(AND(R$3>=$E$50,R$3<=$E$51),1,0) -> 0 | S51: =IF(AND(S$3>=$E$50,S$3<=$E$51),1,0) -> 0 | T51: =IF(AND(T$3>=$E$50,T$3<=$E$51),1,0) -> 0 | U51: =IF(AND(U$3>=$E$50,U$3<=$E$51),1,0) -> 0 | V51: =IF(AND(V$3>=$E$50,V$3<=$E$51),1,0) -> 0 | W51: =IF(AND(W$3>=$E$50,W$3<=$E$51),1,0) -> 1 | X51: =IF(AND(X$3>=$E$50,X$3<=$E$51),1,0) -> 1 | Y51: =IF(AND(Y$3>=$E$50,Y$3<=$E$51),1,0) -> 1 | Z51: =IF(AND(Z$3>=$E$50,Z$3<=$E$51),1,0) -> 1 | AA51: =IF(AND(AA$3>=$E$50,AA$3<=$E$51),1,0) -> 1 | AB51: =IF(AND(AB$3>=$E$50,AB$3<=$E$51),1,0) -> 1 | AC51: =IF(AND(AC$3>=$E$50,AC$3<=$E$51),1,0) -> 1 | AD51: =IF(AND(AD$3>=$E$50,AD$3<=$E$51),1,0) -> 1 | AE51: =IF(AND(AE$3>=$E$50,AE$3<=$E$51),1,0) -> 1 | AF51: =IF(AND(AF$3>=$E$50,AF$3<=$E$51),1,0) -> 1 | AG51: =IF(AND(AG$3>=$E$50,AG$3<=$E$51),1,0) -> 1 | AH51: =IF(AND(AH$3>=$E$50,AH$3<=$E$51),1,0) -> 1 | AI51: =IF(AND(AI$3>=$E$50,AI$3<=$E$51),1,0) -> 1 | AJ51: =IF(AND(AJ$3>=$E$50,AJ$3<=$E$51),1,0) -> 1 | AK51: =IF(AND(AK$3>=$E$50,AK$3<=$E$51),1,0) -> 1 | AL51: =IF(AND(AL$3>=$E$50,AL$3<=$E$51),1,0) -> 0 | AM51: =IF(AND(AM$3>=$E$50,AM$3<=$E$51),1,0) -> 0 | AN51: =IF(AND(AN$3>=$E$50,AN$3<=$E$51),1,0) -> 0
C52: Real PPA supply price | D52: AU$/kWh | E52: =Inputs!$E$241 -> 65 | J52: =IF(J51=0,0,$E52/1000) -> 0 | K52: =IF(K51=0,0,$E52/1000) -> 0 | L52: 0 | M52: 0 | N52: 0 | O52: 0 | P52: 0 | Q52: 0 | R52: 0 | S52: 0 | T52: 0 | U52: 0 | V52: 0 | W52: 0.065 | X52: 0.065 | Y52: 0.065 | Z52: 0.065 | AA52: 0.065 | AB52: 0.065 | AC52: 0.065 | AD52: 0.065 | AE52: 0.065 | AF52: 0.065 | AG52: 0.065 | AH52: 0.065 | AI52: 0.065 | AJ52: 0.065 | AK52: 0.065 | AL52: 0 | AM52: 0 | AN52: 0 | AQ52: =IF(AQ51=0,0,$E52/1000) -> 0 | AR52: 0 | AS52: 0 | AT52: 0 | AU52: 0 | AV52: 0 | AW52: 0 | AX52: 0 | AY52: 0 | AZ52: 0 | BA52: 0 | BB52: 0 | BC52: 0 | BD52: 0 | BE52: 0 | BF52: 0 | BG52: 0 | BH52: 0 | BI52: 0 | BJ52: 0 | BK52: 0 | BL52: 0 | BM52: 0
C53: Inflation index factor | D53: x | J53: =IF(J51=0,0,Timing!J$39) -> 0 | K53: =IF(K51=0,0,Timing!K$39) -> 0 | L53: =IF(L51=0,0,Timing!L$39) -> 0 | M53: =IF(M51=0,0,Timing!M$39) -> 0 | N53: =IF(N51=0,0,Timing!N$39) -> 0 | O53: =IF(O51=0,0,Timing!O$39) -> 0 | P53: =IF(P51=0,0,Timing!P$39) -> 0 | Q53: =IF(Q51=0,0,Timing!Q$39) -> 0 | R53: =IF(R51=0,0,Timing!R$39) -> 0 | S53: =IF(S51=0,0,Timing!S$39) -> 0 | T53: =IF(T51=0,0,Timing!T$39) -> 0 | U53: =IF(U51=0,0,Timing!U$39) -> 0 | V53: =IF(V51=0,0,Timing!V$39) -> 0 | W53: =IF(W51=0,0,Timing!W$39) -> 1.302509421 | X53: =IF(X51=0,0,Timing!X$39) -> 1.335072156 | Y53: =IF(Y51=0,0,Timing!Y$39) -> 1.36844896 | Z53: =IF(Z51=0,0,Timing!Z$39) -> 1.402660184 | AA53: =IF(AA51=0,0,Timing!AA$39) -> 1.437726689 | AB53: =IF(AB51=0,0,Timing!AB$39) -> 1.473669856 | AC53: =IF(AC51=0,0,Timing!AC$39) -> 1.510511603 | AD53: =IF(AD51=0,0,Timing!AD$39) -> 1.548274393 | AE53: =IF(AE51=0,0,Timing!AE$39) -> 1.586981252 | AF53: =IF(AF51=0,0,Timing!AF$39) -> 1.626655784 | AG53: =IF(AG51=0,0,Timing!AG$39) -> 1.667322178 | AH53: =IF(AH51=0,0,Timing!AH$39) -> 1.709005233 | AI53: =IF(AI51=0,0,Timing!AI$39) -> 1.751730364 | AJ53: =IF(AJ51=0,0,Timing!AJ$39) -> 1.795523623 | AK53: =IF(AK51=0,0,Timing!AK$39) -> 1.840411713 | AL53: =IF(AL51=0,0,Timing!AL$39) -> 0 | AM53: =IF(AM51=0,0,Timing!AM$39) -> 0 | AN53: =IF(AN51=0,0,Timing!AN$39) -> 0
C54: Nominal PPA supply price | D54: AU$/kWh | J54: =J52*J53 -> 0 | K54: =K52*K53 -> 0 | L54: 0 | M54: 0 | N54: 0 | O54: 0 | P54: 0 | Q54: 0 | R54: 0 | S54: 0 | T54: 0 | U54: 0 | V54: 0 | W54: 0.08466311236 | X54: 0.08677969016 | Y54: 0.08894918242 | Z54: 0.09117291198 | AA54: 0.09345223478 | AB54: 0.09578854065 | AC54: 0.09818325416 | AD54: 0.1006378355 | AE54: 0.1031537814 | AF54: 0.1057326259 | AG54: 0.1083759416 | AH54: 0.1110853401 | AI54: 0.1138624736 | AJ54: 0.1167090355 | AK54: 0.1196267614 | AL54: 0 | AM54: 0 | AN54: 0
C55: PPA term energy purchase | D55: kWh p.a. | E55: =Inputs!$E$242 -> 250000 | I55: =SUM(J55:BM55) -> 3750000 | J55: =IF(J51=0,0,$E55) -> 0 | K55: =IF(K51=0,0,$E55) -> 0 | L55: 0 | M55: 0 | N55: 0 | O55: 0 | P55: 0 | Q55: 0 | R55: 0 | S55: 0 | T55: 0 | U55: 0 | V55: 0 | W55: 250000 | X55: 250000 | Y55: 250000 | Z55: 250000 | AA55: 250000 | AB55: 250000 | AC55: 250000 | AD55: 250000 | AE55: 250000 | AF55: 250000 | AG55: 250000 | AH55: 250000 | AI55: 250000 | AJ55: 250000 | AK55: 250000 | AL55: 0 | AM55: 0 | AN55: 0 | AQ55: =IF(AQ51=0,0,$E55) -> 0 | AR55: 0 | AS55: 0 | AT55: 0 | AU55: 0 | AV55: 0 | AW55: 0 | AX55: 0 | AY55: 0 | AZ55: 0 | BA55: 0 | BB55: 0 | BC55: 0 | BD55: 0 | BE55: 0 | BF55: 0 | BG55: 0 | BH55: 0 | BI55: 0 | BJ55: 0 | BK55: 0 | BL55: 0 | BM55: 0
C56: Remuneration | I56: =SUM(J56:BM56) -> 379543.1804 | J56: =J54*J55 -> 0 | K56: =K54*K55 -> 0 | L56: 0 | M56: 0 | N56: 0 | O56: 0 | P56: 0 | Q56: 0 | R56: 0 | S56: 0 | T56: 0 | U56: 0 | V56: 0 | W56: 21165.77809 | X56: 21694.92254 | Y56: 22237.2956 | Z56: 22793.22799 | AA56: 23363.05869 | AB56: 23947.13516 | AC56: 24545.81354 | AD56: 25159.45888 | AE56: 25788.44535 | AF56: 26433.15649 | AG56: 27093.9854 | AH56: 27771.33503 | AI56: 28465.61841 | AJ56: 29177.25887 | AK56: 29906.69034 | AL56: 0 | AM56: 0 | AN56: 0 | AQ56: =AQ52*AQ55 -> 0 | AR56: =AR52*AR55 -> 0 | AS56: =AS52*AS55 -> 0 | AT56: =AT52*AT55 -> 0 | AU56: =AU52*AU55 -> 0 | AV56: =AV52*AV55 -> 0 | AW56: =AW52*AW55 -> 0 | AX56: =AX52*AX55 -> 0 | AY56: =AY52*AY55 -> 0 | AZ56: =AZ52*AZ55 -> 0 | BA56: =BA52*BA55 -> 0 | BB56: =BB52*BB55 -> 0 | BC56: =BC52*BC55 -> 0 | BD56: =BD52*BD55 -> 0 | BE56: =BE52*BE55 -> 0 | BF56: =BF52*BF55 -> 0 | BG56: =BG52*BG55 -> 0 | BH56: =BH52*BH55 -> 0 | BI56: =BI52*BI55 -> 0 | BJ56: =BJ52*BJ55 -> 0 | BK56: =BK52*BK55 -> 0 | BL56: =BL52*BL55 -> 0 | BM56: =BM52*BM55 -> 0
C57: Percentage of total net electricity generation | D57: % | J57: =IF(J51=0,0,J55/J$27) -> 0 | K57: =IF(K51=0,0,K55/K$27) -> 0 | L57: 0 | M57: 0 | N57: 0 | O57: 0 | P57: 0 | Q57: 0 | R57: 0 | S57: 0 | T57: 0 | U57: 0 | V57: 0 | W57: =IF(W51=0,0,W55/W$27) -> 0.2670983302 | X57: 0.2681710143 | Y57: 0.2692480063 | Z57: 0.2703293236 | AA57: 0.2714149835 | AB57: 0.2725050035 | AC57: 0.2735994011 | AD57: 0.2746981939 | AE57: 0.2758013995 | AF57: 0.2769090356 | AG57: 0.2780211201 | AH57: 0.2791376708 | AI57: 0.2802587056 | AJ57: 0.2813842426 | AK57: 0.2825142998 | AL57: 0 | AM57: 0 | AN57: 0 | AQ57: =IF(AQ51=0,0,AQ55/AQ$27) -> 0 | AR57: 0 | AS57: 0 | AT57: 0 | AU57: 0 | AV57: 0 | AW57: 0 | AX57: 0 | AY57: 0 | AZ57: 0 | BA57: 0 | BB57: 0 | BC57: 0 | BD57: 0 | BE57: 0 | BF57: 0 | BG57: 0 | BH57: 0 | BI57: 0 | BJ57: 0 | BK57: 0 | BL57: 0 | BM57: 0
C59: Kleenheat Brisbane
C60: PPA term
C61: PPA term start-date | D61: Date | E61: =Inputs!$E$255 -> 2019-08-01 | I61: =COUNT(J61:BM61) -> 25 | J61: =IF(J62=0,"",YEAR(J$4)) ->  | K61: =IF(K62=0,"",YEAR(K$4)) ->  | M61: 2020 | N61: 2021 | O61: 2022 | P61: 2023 | Q61: 2024 | R61: 2025 | S61: 2026 | T61: 2027 | U61: 2028 | V61: 2029 | W61: 2030 | X61: 2031 | Y61: 2032 | Z61: 2033 | AA61: 2034 | AB61: 2035 | AC61: 2036 | AD61: 2037 | AE61: 2038 | AF61: 2039 | AG61: 2040 | AH61: 2041 | AI61: 2042 | AJ61: 2043 | AK61: 2044 | AQ61: =IF(AQ62=0,"",YEAR(AQ$4)) -> 
C62: PPA term end-date | D62: Date | E62: =Inputs!$E$256 -> 2044-07-31 | J62: =IF(AND(J$3>=$E$61,J$3<=$E$62),1,0) -> 0 | K62: =IF(AND(K$3>=$E$61,K$3<=$E$62),1,0) -> 0 | L62: =IF(AND(L$3>=$E$61,L$3<=$E$62),1,0) -> 0 | M62: =IF(AND(M$3>=$E$61,M$3<=$E$62),1,0) -> 1 | N62: =IF(AND(N$3>=$E$61,N$3<=$E$62),1,0) -> 1 | O62: =IF(AND(O$3>=$E$61,O$3<=$E$62),1,0) -> 1 | P62: =IF(AND(P$3>=$E$61,P$3<=$E$62),1,0) -> 1 | Q62: =IF(AND(Q$3>=$E$61,Q$3<=$E$62),1,0) -> 1 | R62: =IF(AND(R$3>=$E$61,R$3<=$E$62),1,0) -> 1 | S62: =IF(AND(S$3>=$E$61,S$3<=$E$62),1,0) -> 1 | T62: =IF(AND(T$3>=$E$61,T$3<=$E$62),1,0) -> 1 | U62: =IF(AND(U$3>=$E$61,U$3<=$E$62),1,0) -> 1 | V62: =IF(AND(V$3>=$E$61,V$3<=$E$62),1,0) -> 1 | W62: =IF(AND(W$3>=$E$61,W$3<=$E$62),1,0) -> 1 | X62: =IF(AND(X$3>=$E$61,X$3<=$E$62),1,0) -> 1 | Y62: =IF(AND(Y$3>=$E$61,Y$3<=$E$62),1,0) -> 1 | Z62: =IF(AND(Z$3>=$E$61,Z$3<=$E$62),1,0) -> 1 | AA62: =IF(AND(AA$3>=$E$61,AA$3<=$E$62),1,0) -> 1 | AB62: =IF(AND(AB$3>=$E$61,AB$3<=$E$62),1,0) -> 1 | AC62: =IF(AND(AC$3>=$E$61,AC$3<=$E$62),1,0) -> 1 | AD62: =IF(AND(AD$3>=$E$61,AD$3<=$E$62),1,0) -> 1 | AE62: =IF(AND(AE$3>=$E$61,AE$3<=$E$62),1,0) -> 1 | AF62: =IF(AND(AF$3>=$E$61,AF$3<=$E$62),1,0) -> 1 | AG62: =IF(AND(AG$3>=$E$61,AG$3<=$E$62),1,0) -> 1 | AH62: =IF(AND(AH$3>=$E$61,AH$3<=$E$62),1,0) -> 1 | AI62: =IF(AND(AI$3>=$E$61,AI$3<=$E$62),1,0) -> 1 | AJ62: =IF(AND(AJ$3>=$E$61,AJ$3<=$E$62),1,0) -> 1 | AK62: =IF(AND(AK$3>=$E$61,AK$3<=$E$62),1,0) -> 1 | AL62: =IF(AND(AL$3>=$E$61,AL$3<=$E$62),1,0) -> 0 | AM62: =IF(AND(AM$3>=$E$61,AM$3<=$E$62),1,0) -> 0 | AN62: =IF(AND(AN$3>=$E$61,AN$3<=$E$62),1,0) -> 0
C63: PPA supply price | D63: AU$/kWh | E63: =Inputs!$E$252 -> 60 | J63: =IF(J62=0,0,$E63/1000) -> 0 | K63: =IF(K62=0,0,$E63/1000) -> 0 | L63: 0 | M63: 0.06 | N63: 0.06 | O63: 0.06 | P63: 0.06 | Q63: 0.06 | R63: 0.06 | S63: 0.06 | T63: 0.06 | U63: 0.06 | V63: 0.06 | W63: 0.06 | X63: 0.06 | Y63: 0.06 | Z63: 0.06 | AA63: 0.06 | AB63: 0.06 | AC63: 0.06 | AD63: 0.06 | AE63: 0.06 | AF63: 0.06 | AG63: 0.06 | AH63: 0.06 | AI63: 0.06 | AJ63: 0.06 | AK63: 0.06 | AL63: 0 | AM63: 0 | AN63: 0 | AQ63: =IF(AQ62=0,0,$E63/1000) -> 0 | AR63: =IF(AR62=0,0,$E63/1000) -> 0 | AS63: =IF(AS62=0,0,$E63/1000) -> 0 | AT63: =IF(AT62=0,0,$E63/1000) -> 0 | AU63: =IF(AU62=0,0,$E63/1000) -> 0 | AV63: =IF(AV62=0,0,$E63/1000) -> 0 | AW63: =IF(AW62=0,0,$E63/1000) -> 0 | AX63: =IF(AX62=0,0,$E63/1000) -> 0 | AY63: =IF(AY62=0,0,$E63/1000) -> 0 | AZ63: =IF(AZ62=0,0,$E63/1000) -> 0 | BA63: =IF(BA62=0,0,$E63/1000) -> 0 | BB63: =IF(BB62=0,0,$E63/1000) -> 0 | BC63: =IF(BC62=0,0,$E63/1000) -> 0 | BD63: =IF(BD62=0,0,$E63/1000) -> 0 | BE63: =IF(BE62=0,0,$E63/1000) -> 0 | BF63: =IF(BF62=0,0,$E63/1000) -> 0 | BG63: =IF(BG62=0,0,$E63/1000) -> 0 | BH63: =IF(BH62=0,0,$E63/1000) -> 0 | BI63: =IF(BI62=0,0,$E63/1000) -> 0 | BJ63: =IF(BJ62=0,0,$E63/1000) -> 0 | BK63: =IF(BK62=0,0,$E63/1000) -> 0 | BL63: =IF(BL62=0,0,$E63/1000) -> 0 | BM63: =IF(BM62=0,0,$E63/1000) -> 0
C64: Inflation index factor | D64: x | J64: =IF(J62=0,0,Timing!J$39) -> 0 | K64: =IF(K62=0,0,Timing!K$39) -> 0 | L64: =IF(L62=0,0,Timing!L$39) -> 0 | M64: =IF(M62=0,0,Timing!M$39) -> 1.0225 | N64: =IF(N62=0,0,Timing!N$39) -> 1.04550625 | O64: =IF(O62=0,0,Timing!O$39) -> 1.069030141 | P64: =IF(P62=0,0,Timing!P$39) -> 1.095755894 | Q64: =IF(Q62=0,0,Timing!Q$39) -> 1.123149791 | R64: =IF(R62=0,0,Timing!R$39) -> 1.151228536 | S64: =IF(S62=0,0,Timing!S$39) -> 1.18000925 | T64: =IF(T62=0,0,Timing!T$39) -> 1.209509481 | U64: =IF(U62=0,0,Timing!U$39) -> 1.239747218 | V64: =IF(V62=0,0,Timing!V$39) -> 1.270740898 | W64: =IF(W62=0,0,Timing!W$39) -> 1.302509421 | X64: =IF(X62=0,0,Timing!X$39) -> 1.335072156 | Y64: =IF(Y62=0,0,Timing!Y$39) -> 1.36844896 | Z64: =IF(Z62=0,0,Timing!Z$39) -> 1.402660184 | AA64: =IF(AA62=0,0,Timing!AA$39) -> 1.437726689 | AB64: =IF(AB62=0,0,Timing!AB$39) -> 1.473669856 | AC64: =IF(AC62=0,0,Timing!AC$39) -> 1.510511603 | AD64: =IF(AD62=0,0,Timing!AD$39) -> 1.548274393 | AE64: =IF(AE62=0,0,Timing!AE$39) -> 1.586981252 | AF64: =IF(AF62=0,0,Timing!AF$39) -> 1.626655784 | AG64: =IF(AG62=0,0,Timing!AG$39) -> 1.667322178 | AH64: =IF(AH62=0,0,Timing!AH$39) -> 1.709005233 | AI64: =IF(AI62=0,0,Timing!AI$39) -> 1.751730364 | AJ64: =IF(AJ62=0,0,Timing!AJ$39) -> 1.795523623 | AK64: =IF(AK62=0,0,Timing!AK$39) -> 1.840411713 | AL64: =IF(AL62=0,0,Timing!AL$39) -> 0 | AM64: =IF(AM62=0,0,Timing!AM$39) -> 0 | AN64: =IF(AN62=0,0,Timing!AN$39) -> 0
C65: Nominal PPA supply price | D65: AU$/kWh | J65: =J63*J64 -> 0 | K65: =K63*K64 -> 0 | L65: =L63*L64 -> 0 | M65: =M63*M64 -> 0.06135 | N65: =N63*N64 -> 0.062730375 | O65: =O63*O64 -> 0.06414180844 | P65: =P63*P64 -> 0.06574535365 | Q65: =Q63*Q64 -> 0.06738898749 | R65: =R63*R64 -> 0.06907371218 | S65: =S63*S64 -> 0.07080055498 | T65: =T63*T64 -> 0.07257056886 | U65: =U63*U64 -> 0.07438483308 | V65: =V63*V64 -> 0.0762444539 | W65: =W63*W64 -> 0.07815056525 | X65: =X63*X64 -> 0.08010432938 | Y65: =Y63*Y64 -> 0.08210693762 | Z65: =Z63*Z64 -> 0.08415961106 | AA65: =AA63*AA64 -> 0.08626360133 | AB65: =AB63*AB64 -> 0.08842019137 | AC65: =AC63*AC64 -> 0.09063069615 | AD65: =AD63*AD64 -> 0.09289646356 | AE65: =AE63*AE64 -> 0.09521887514 | AF65: =AF63*AF64 -> 0.09759934702 | AG65: =AG63*AG64 -> 0.1000393307 | AH65: =AH63*AH64 -> 0.102540314 | AI65: =AI63*AI64 -> 0.1051038218 | AJ65: =AJ63*AJ64 -> 0.1077314174 | AK65: =AK63*AK64 -> 0.1104247028 | AL65: =AL63*AL64 -> 0 | AM65: =AM63*AM64 -> 0 | AN65: =AN63*AN64 -> 0
C66: PPA term energy purchase | D66: kWh p.a. | E66: =Inputs!$E$253 -> 500000 | I66: =SUM(J66:BM66) -> 12500000 | J66: =IF(J62=0,0,$E66) -> 0 | K66: =IF(K62=0,0,$E66) -> 0 | L66: 0 | M66: 500000 | N66: 500000 | O66: 500000 | P66: 500000 | Q66: 500000 | R66: 500000 | S66: 500000 | T66: 500000 | U66: 500000 | V66: 500000 | W66: 500000 | X66: 500000 | Y66: 500000 | Z66: 500000 | AA66: 500000 | AB66: 500000 | AC66: 500000 | AD66: 500000 | AE66: 500000 | AF66: 500000 | AG66: 500000 | AH66: 500000 | AI66: 500000 | AJ66: 500000 | AK66: 500000 | AL66: 0 | AM66: 0 | AN66: 0 | AQ66: =IF(AQ62=0,0,$E66) -> 0 | AR66: 0 | AS66: 0 | AT66: 0 | AU66: 0 | AV66: 0 | AW66: 0 | AX66: 0 | AY66: 0 | AZ66: 0 | BA66: 0 | BB66: 0 | BC66: 0 | BD66: 0 | BE66: 0 | BF66: 0 | BG66: 0 | BH66: 0 | BI66: 0 | BJ66: 0 | BK66: 0 | BL66: 0 | BM66: 0
C67: Remuneration | I67: =SUM(J67:BM67) -> 1042910.426 | J67: =J65*J66 -> 0 | K67: =K65*K66 -> 0 | L67: 0 | M67: 30675 | N67: 31365.1875 | O67: 32070.90422 | P67: 32872.67682 | Q67: 33694.49374 | R67: 34536.85609 | S67: 35400.27749 | T67: 36285.28443 | U67: 37192.41654 | V67: 38122.22695 | W67: 39075.28263 | X67: 40052.16469 | Y67: 41053.46881 | Z67: 42079.80553 | AA67: 43131.80067 | AB67: 44210.09568 | AC67: 45315.34808 | AD67: 46448.23178 | AE67: 47609.43757 | AF67: 48799.67351 | AG67: 50019.66535 | AH67: 51270.15698 | AI67: 52551.91091 | AJ67: 53865.70868 | AK67: 55212.3514 | AL67: 0 | AM67: 0 | AN67: 0 | AQ67: =AQ63*AQ66 -> 0 | AR67: =AR63*AR66 -> 0 | AS67: =AS63*AS66 -> 0 | AT67: =AT63*AT66 -> 0 | AU67: =AU63*AU66 -> 0 | AV67: =AV63*AV66 -> 0 | AW67: =AW63*AW66 -> 0 | AX67: =AX63*AX66 -> 0 | AY67: =AY63*AY66 -> 0 | AZ67: =AZ63*AZ66 -> 0 | BA67: =BA63*BA66 -> 0 | BB67: =BB63*BB66 -> 0 | BC67: =BC63*BC66 -> 0 | BD67: =BD63*BD66 -> 0 | BE67: =BE63*BE66 -> 0 | BF67: =BF63*BF66 -> 0 | BG67: =BG63*BG66 -> 0 | BH67: =BH63*BH66 -> 0 | BI67: =BI63*BI66 -> 0 | BJ67: =BJ63*BJ66 -> 0 | BK67: =BK63*BK66 -> 0 | BL67: =BL63*BL66 -> 0 | BM67: =BM63*BM66 -> 0
C68: Percentage of total net electricity generation | D68: % | J68: =IF(J62=0,0,J66/J$27) -> 0 | K68: =IF(K62=0,0,K66/K$27) -> 0 | L68: 0 | M68: =IF(M62=0,0,M66/M$27) -> 0.5132093415 | N68: 0.5152704232 | O68: 0.5173397824 | P68: 0.5194174522 | Q68: 0.521503466 | R68: 0.5235978575 | S68: 0.5257006601 | T68: 0.5278119077 | U68: 0.5299316343 | V68: 0.5320598738 | W68: 0.5341966604 | X68: 0.5363420285 | Y68: 0.5384960126 | Z68: 0.5406586472 | AA68: 0.542829967 | AB68: 0.545010007 | AC68: 0.5471988023 | AD68: 0.5493963878 | AE68: 0.551602799 | AF68: 0.5538180713 | AG68: 0.5560422403 | AH68: 0.5582753416 | AI68: 0.5605174113 | AJ68: 0.5627684852 | AK68: 0.5650285996 | AL68: 0 | AM68: 0 | AN68: 0 | AQ68: =IF(AQ62=0,0,AQ66/AQ$27) -> 0 | AR68: 0 | AS68: 0 | AT68: 0 | AU68: 0 | AV68: 0 | AW68: 0 | AX68: 0 | AY68: 0 | AZ68: 0 | BA68: 0 | BB68: 0 | BC68: 0 | BD68: 0 | BE68: 0 | BF68: 0 | BG68: 0 | BH68: 0 | BI68: 0 | BJ68: 0 | BK68: 0 | BL68: 0 | BM68: 0
C70: Total PPA supply remuneration | D70: AU$/kWh | I70: =SUM(J70:BM70) -> 1662004.333 | J70: =J45+J56+J67 -> 0 | K70: =K45+K56+K67 -> 0 | L70: 0 | M70: 52147.5 | N70: 53320.81875 | O70: 54520.53717 | P70: 55883.5506 | Q70: 57280.63937 | R70: 58712.65535 | S70: 60180.47173 | T70: 61684.98353 | U70: 63227.10812 | V70: 64807.78582 | W70: 60241.06071 | X70: 61747.08723 | Y70: 63290.76441 | Z70: 64873.03352 | AA70: 66494.85936 | AB70: 68157.23085 | AC70: 69861.16162 | AD70: 71607.69066 | AE70: 73397.88292 | AF70: 75232.83 | AG70: 77113.65075 | AH70: 79041.49202 | AI70: 81017.52932 | AJ70: 83042.96755 | AK70: 85119.04174 | AL70: 0 | AM70: 0 | AN70: 0 | AQ70: =AQ45+AQ56+AQ67 -> 0 | AR70: 0 | AS70: 0 | AT70: 0 | AU70: 0 | AV70: 0 | AW70: 0 | AX70: 0 | AY70: 0 | AZ70: 0 | BA70: 0 | BB70: 0 | BC70: 0 | BD70: 0 | BE70: 0 | BF70: 0 | BG70: 0 | BH70: 0 | BI70: 0 | BJ70: 0 | BK70: 0 | BL70: 0 | BM70: 0
C72: Distribution of PV Generation
C73: PPA supply | D73: AU$/kWh | I73: =SUM(J73:BM73) -> 19750000 | J73: =J44+J55+J66 -> 0 | K73: =K44+K55+K66 -> 0 | L73: 0 | M73: 850000 | N73: 850000 | O73: 850000 | P73: 850000 | Q73: 850000 | R73: 850000 | S73: 850000 | T73: 850000 | U73: 850000 | V73: 850000 | W73: 750000 | X73: 750000 | Y73: 750000 | Z73: 750000 | AA73: 750000 | AB73: 750000 | AC73: 750000 | AD73: 750000 | AE73: 750000 | AF73: 750000 | AG73: 750000 | AH73: 750000 | AI73: 750000 | AJ73: 750000 | AK73: 750000 | AL73: 0 | AM73: 0 | AN73: 0 | AQ73: =AQ44+AQ55+AQ66 -> 0 | AR73: 0 | AS73: 0 | AT73: 0 | AU73: 0 | AV73: 0 | AW73: 0 | AX73: 0 | AY73: 0 | AZ73: 0 | BA73: 0 | BB73: 0 | BC73: 0 | BD73: 0 | BE73: 0 | BF73: 0 | BG73: 0 | BH73: 0 | BI73: 0 | BJ73: 0 | BK73: 0 | BL73: 0 | BM73: 0
C74: PPA supply | D74: % | I74: =AVERAGEIF(J74:BL74,"<>0",I74:BL74) -> 0.7846023604 | J74: =J46+J57+J68 -> 0 | K74: =K46+K57+K68 -> 0 | L74: 0 | M74: 0.8724558806 | N74: 0.8759597195 | O74: 0.87947763 | P74: 0.8830096687 | Q74: 0.8865558922 | R74: 0.8901163577 | S74: 0.8936911222 | T74: 0.8972802431 | U74: 0.9008837782 | V74: 0.9045017854 | W74: 0.8012949906 | X74: 0.8045130428 | Y74: 0.8077440188 | Z74: 0.8109879707 | AA74: 0.8142449505 | AB74: 0.8175150106 | AC74: 0.8207982034 | AD74: 0.8240945817 | AE74: 0.8274041985 | AF74: 0.8307271069 | AG74: 0.8340633604 | AH74: 0.8374130124 | AI74: 0.8407761169 | AJ74: 0.8441527278 | AK74: 0.8475428994 | AL74: 0 | AM74: 0 | AN74: 0 | AQ74: =AQ46+AQ57+AQ68 -> 0 | AR74: 0 | AS74: 0 | AT74: 0 | AU74: 0 | AV74: 0 | AW74: 0 | AX74: 0 | AY74: 0 | AZ74: 0 | BA74: 0 | BB74: 0 | BC74: 0 | BD74: 0 | BE74: 0 | BF74: 0 | BG74: 0 | BH74: 0 | BI74: 0 | BJ74: 0 | BK74: 0 | BL74: 0
C75: Excess Electricity | D75: % | I75: =AVERAGEIF(J75:BL75,"<>0",I75:BL75) -> 0.1384745627 | J75: =IF(J$6=0,0,100%-J74) -> 0 | K75: =IF(K$6=0,0,100%-K74) -> 0 | L75: 0 | M75: 0.1275441194 | N75: 0.1240402805 | O75: 0.12052237 | P75: 0.1169903313 | Q75: 0.1134441078 | R75: 0.1098836423 | S75: 0.1063088778 | T75: 0.1027197569 | U75: 0.09911622175 | V75: 0.09549821461 | W75: 0.1987050094 | X75: 0.1954869572 | Y75: 0.1922559812 | Z75: 0.1890120293 | AA75: 0.1857550495 | AB75: 0.1824849894 | AC75: 0.1792017966 | AD75: 0.1759054183 | AE75: 0.1725958015 | AF75: 0.1692728931 | AG75: 0.1659366396 | AH75: 0.1625869876 | AI75: 0.1592238831 | AJ75: 0.1558472722 | AK75: 0.1524571006 | AL75: 0 | AM75: 0 | AN75: 0 | AQ75: =IF(AQ$6=0,0,100%-AQ74) -> 0 | AR75: 0 | AS75: 0 | AT75: 0 | AU75: 0 | AV75: 0 | AW75: 0 | AX75: 0 | AY75: 0 | AZ75: 0 | BA75: 0 | BB75: 0 | BC75: 0 | BD75: 0 | BE75: 0 | BF75: 0 | BG75: 0 | BH75: 0 | BI75: 0 | BJ75: 0 | BK75: 0 | BL75: 0
C76: Undersupply | D76: % | J76: =IF(J$6=0,0,100%-(J74+J75)) -> 0 | K76: =IF(K$6=0,0,100%-(K74+K75)) -> 0 | L76: 0 | M76: 0 | N76: 0 | O76: 0 | P76: 0 | Q76: 0 | R76: 0 | S76: 0 | T76: 0 | U76: 0 | V76: 0 | W76: 0 | X76: 0 | Y76: 0 | Z76: 0 | AA76: 0 | AB76: 0 | AC76: 0 | AD76: 0 | AE76: 0 | AF76: 0 | AG76: 0 | AH76: 0 | AI76: 0 | AJ76: 0 | AK76: 0 | AL76: 0 | AM76: 0 | AN76: 0 | AQ76: =IF(AQ$6=0,0,100%-(AQ74+AQ75)) -> 0 | AR76: 0 | AS76: 0 | AT76: 0 | AU76: 0 | AV76: 0 | AW76: 0 | AX76: 0 | AY76: 0 | AZ76: 0 | BA76: 0 | BB76: 0 | BC76: 0 | BD76: 0 | BE76: 0 | BF76: 0 | BG76: 0 | BH76: 0 | BI76: 0 | BJ76: 0 | BK76: 0 | BL76: 0
C79: Excess Electricity
C80: Excess Electricity | D80: kWh | I80: =SUM(J80:BL80) -> 3472496.059 | J80: =J75*J27 -> 0 | K80: =K75*K27 -> 0 | L80: =L75*L27 -> 0 | M80: =M75*M27 -> 124261.2995 | N80: =N75*N27 -> 120364.2543 | O80: =O75*O27 -> 116482.7973 | P80: =P75*P27 -> 112616.8661 | Q80: =Q75*Q27 -> 108766.3986 | R80: =R75*R27 -> 104931.333 | S80: =S75*S27 -> 101111.6077 | T80: =T75*T27 -> 97307.16129 | U80: =U75*U27 -> 93517.93264 | V80: =V75*V27 -> 89743.86091 | W80: =W75*W27 -> 185984.8855 | X80: =X75*X27 -> 182240.9459 | Y80: =Y75*Y27 -> 178511.9821 | Z80: =Z75*Z27 -> 174797.9342 | AA80: =AA75*AA27 -> 171098.7425 | AB80: =AB75*AB27 -> 167414.3475 | AC80: =AC75*AC27 -> 163744.6901 | AD80: =AD75*AD27 -> 160089.7114 | AE80: =AE75*AE27 -> 156449.3525 | AF80: =AF75*AF27 -> 152823.5551 | AG80: =AG75*AG27 -> 149212.2609 | AH80: =AH75*AH27 -> 145615.4118 | AI80: =AI75*AI27 -> 142032.9502 | AJ80: =AJ75*AJ27 -> 138464.8184 | AK80: =AK75*AK27 -> 134910.9591 | AL80: =AL75*AL27 -> 0 | AM80: =AM75*AM27 -> 0 | AN80: =AN75*AN27 -> 0 | AQ80: =AQ75*AQ27 -> 0 | AR80: =AR75*AR27 -> 0 | AS80: =AS75*AS27 -> 0 | AT80: =AT75*AT27 -> 0 | AU80: =AU75*AU27 -> 0 | AV80: =AV75*AV27 -> 0 | AW80: =AW75*AW27 -> 0 | AX80: =AX75*AX27 -> 0 | AY80: =AY75*AY27 -> 0 | AZ80: =AZ75*AZ27 -> 0 | BA80: =BA75*BA27 -> 0 | BB80: =BB75*BB27 -> 0 | BC80: =BC75*BC27 -> 0 | BD80: =BD75*BD27 -> 0 | BE80: =BE75*BE27 -> 0 | BF80: =BF75*BF27 -> 0 | BG80: =BG75*BG27 -> 0 | BH80: =BH75*BH27 -> 0 | BI80: =BI75*BI27 -> 0 | BJ80: =BJ75*BJ27 -> 0 | BK80: =BK75*BK27 -> 0 | BL80: =BL75*BL27 -> 0
C81: Excess Electricity sold into spot market | I81: =AVERAGEIF(J81:BL81,"<>0",I81:BL81) -> 0.05802403846 | J81: =IF(J$6=0,0,LOOKUP(J$15,Inputs!$H$215:$M$215,Inputs!$H$219:$M$219))/1000 -> 0 | K81: =IF(K$6=0,0,LOOKUP(K$15,Inputs!$H$215:$M$215,Inputs!$H$219:$M$219))/1000 -> 0 | L81: =IF(L$6=0,0,LOOKUP(L$15,Inputs!$H$215:$M$215,Inputs!$H$219:$M$219))/1000 -> 0 | M81: =IF(M$6=0,0,LOOKUP(M$15,Inputs!$H$215:$M$215,Inputs!$H$219:$M$219))/1000 -> 0.064025 | N81: =IF(N$6=0,0,LOOKUP(N$15,Inputs!$H$215:$M$215,Inputs!$H$219:$M$219))/1000 -> 0.0553 | O81: =IF(O$6=0,0,LOOKUP(O$15,Inputs!$H$215:$M$215,Inputs!$H$219:$M$219))/1000 -> 0.06315 | P81: =IF(P$6=0,0,LOOKUP(P$15,Inputs!$H$215:$M$215,Inputs!$H$219:$M$219))/1000 -> 0.06315 | Q81: =IF(Q$6=0,0,LOOKUP(Q$15,Inputs!$H$215:$M$215,Inputs!$H$219:$M$219))/1000 -> 0.06315 | R81: =IF(R$6=0,0,LOOKUP(R$15,Inputs!$H$215:$M$215,Inputs!$H$219:$M$219))/1000 -> 0.06315 | S81: =IF(S$6=0,0,LOOKUP(S$15,Inputs!$H$215:$M$215,Inputs!$H$219:$M$219))/1000 -> 0.06315 | T81: =IF(T$6=0,0,LOOKUP(T$15,Inputs!$H$215:$M$215,Inputs!$H$219:$M$219))/1000 -> 0.06315 | U81: =IF(U$6=0,0,LOOKUP(U$15,Inputs!$H$215:$M$215,Inputs!$H$219:$M$219))/1000 -> 0.06315 | V81: =IF(V$6=0,0,LOOKUP(V$15,Inputs!$H$215:$M$215,Inputs!$H$219:$M$219))/1000 -> 0.06315 | W81: =IF(W$6=0,0,LOOKUP(W$15,Inputs!$H$215:$M$215,Inputs!$H$219:$M$219))/1000 -> 0.06315 | X81: =IF(X$6=0,0,LOOKUP(X$15,Inputs!$H$215:$M$215,Inputs!$H$219:$M$219))/1000 -> 0.06315 | Y81: =IF(Y$6=0,0,LOOKUP(Y$15,Inputs!$H$215:$M$215,Inputs!$H$219:$M$219))/1000 -> 0.06315 | Z81: =IF(Z$6=0,0,LOOKUP(Z$15,Inputs!$H$215:$M$215,Inputs!$H$219:$M$219))/1000 -> 0.06315 | AA81: =IF(AA$6=0,0,LOOKUP(AA$15,Inputs!$H$215:$M$215,Inputs!$H$219:$M$219))/1000 -> 0.06315 | AB81: =IF(AB$6=0,0,LOOKUP(AB$15,Inputs!$H$215:$M$215,Inputs!$H$219:$M$219))/1000 -> 0.06315 | AC81: =IF(AC$6=0,0,LOOKUP(AC$15,Inputs!$H$215:$M$215,Inputs!$H$219:$M$219))/1000 -> 0.06315 | AD81: =IF(AD$6=0,0,LOOKUP(AD$15,Inputs!$H$215:$M$215,Inputs!$H$219:$M$219))/1000 -> 0.06315 | AE81: =IF(AE$6=0,0,LOOKUP(AE$15,Inputs!$H$215:$M$215,Inputs!$H$219:$M$219))/1000 -> 0.06315 | AF81: =IF(AF$6=0,0,LOOKUP(AF$15,Inputs!$H$215:$M$215,Inputs!$H$219:$M$219))/1000 -> 0.06315 | AG81: =IF(AG$6=0,0,LOOKUP(AG$15,Inputs!$H$215:$M$215,Inputs!$H$219:$M$219))/1000 -> 0.06315 | AH81: =IF(AH$6=0,0,LOOKUP(AH$15,Inputs!$H$215:$M$215,Inputs!$H$219:$M$219))/1000 -> 0.06315 | AI81: =IF(AI$6=0,0,LOOKUP(AI$15,Inputs!$H$215:$M$215,Inputs!$H$219:$M$219))/1000 -> 0.06315 | AJ81: =IF(AJ$6=0,0,LOOKUP(AJ$15,Inputs!$H$215:$M$215,Inputs!$H$219:$M$219))/1000 -> 0.06315 | AK81: =IF(AK$6=0,0,LOOKUP(AK$15,Inputs!$H$215:$M$215,Inputs!$H$219:$M$219))/1000 -> 0.06315 | AL81: =IF(AL$6=0,0,LOOKUP(AL$15,Inputs!$H$215:$M$215,Inputs!$H$219:$M$219))/1000 -> 0 | AM81: =IF(AM$6=0,0,LOOKUP(AM$15,Inputs!$H$215:$M$215,Inputs!$H$219:$M$219))/1000 -> 0 | AN81: =IF(AN$6=0,0,LOOKUP(AN$15,Inputs!$H$215:$M$215,Inputs!$H$219:$M$219))/1000 -> 0 | AQ81: =IF(AQ$6=0,0,LOOKUP(AQ$13,Inputs!$H$215:$M$215,Inputs!$H$219:$M$219))/1000 -> 0 | AR81: =IF(AR$6=0,0,LOOKUP(AR$13,Inputs!$H$215:$M$215,Inputs!$H$219:$M$219))/1000 -> 0 | AS81: =IF(AS$6=0,0,LOOKUP(AS$13,Inputs!$H$215:$M$215,Inputs!$H$219:$M$219))/1000 -> 0 | AT81: =IF(AT$6=0,0,LOOKUP(AT$13,Inputs!$H$215:$M$215,Inputs!$H$219:$M$219))/1000 -> 0 | AU81: =IF(AU$6=0,0,LOOKUP(AU$13,Inputs!$H$215:$M$215,Inputs!$H$219:$M$219))/1000 -> 0 | AV81: =IF(AV$6=0,0,LOOKUP(AV$13,Inputs!$H$215:$M$215,Inputs!$H$219:$M$219))/1000 -> 0 | AW81: =IF(AW$6=0,0,LOOKUP(AW$13,Inputs!$H$215:$M$215,Inputs!$H$219:$M$219))/1000 -> 0 | AX81: =IF(AX$6=0,0,LOOKUP(AX$13,Inputs!$H$215:$M$215,Inputs!$H$219:$M$219))/1000 -> 0 | AY81: =IF(AY$6=0,0,LOOKUP(AY$13,Inputs!$H$215:$M$215,Inputs!$H$219:$M$219))/1000 -> 0 | AZ81: =IF(AZ$6=0,0,LOOKUP(AZ$13,Inputs!$H$215:$M$215,Inputs!$H$219:$M$219))/1000 -> 0 | BA81: =IF(BA$6=0,0,LOOKUP(BA$13,Inputs!$H$215:$M$215,Inputs!$H$219:$M$219))/1000 -> 0 | BB81: =IF(BB$6=0,0,LOOKUP(BB$13,Inputs!$H$215:$M$215,Inputs!$H$219:$M$219))/1000 -> 0 | BC81: =IF(BC$6=0,0,LOOKUP(BC$13,Inputs!$H$215:$M$215,Inputs!$H$219:$M$219))/1000 -> 0 | BD81: =IF(BD$6=0,0,LOOKUP(BD$13,Inputs!$H$215:$M$215,Inputs!$H$219:$M$219))/1000 -> 0 | BE81: =IF(BE$6=0,0,LOOKUP(BE$13,Inputs!$H$215:$M$215,Inputs!$H$219:$M$219))/1000 -> 0 | BF81: =IF(BF$6=0,0,LOOKUP(BF$13,Inputs!$H$215:$M$215,Inputs!$H$219:$M$219))/1000 -> 0 | BG81: =IF(BG$6=0,0,LOOKUP(BG$13,Inputs!$H$215:$M$215,Inputs!$H$219:$M$219))/1000 -> 0 | BH81: =IF(BH$6=0,0,LOOKUP(BH$13,Inputs!$H$215:$M$215,Inputs!$H$219:$M$219))/1000 -> 0 | BI81: =IF(BI$6=0,0,LOOKUP(BI$13,Inputs!$H$215:$M$215,Inputs!$H$219:$M$219))/1000 -> 0 | BJ81: =IF(BJ$6=0,0,LOOKUP(BJ$13,Inputs!$H$215:$M$215,Inputs!$H$219:$M$219))/1000 -> 0 | BK81: =IF(BK$6=0,0,LOOKUP(BK$13,Inputs!$H$215:$M$215,Inputs!$H$219:$M$219))/1000 -> 0 | BL81: =IF(BL$6=0,0,LOOKUP(BL$13,Inputs!$H$215:$M$215,Inputs!$H$219:$M$219))/1000 -> 0 | BM81: =IF(BM$6=0,0,LOOKUP(BM$13,Inputs!$H$215:$M$215,Inputs!$H$219:$M$219))/1000 -> 0
C82: Remuneration from spot market sales | I82: =SUM(J82:BM82) -> 218451.9953 | J82: =J80*J81 -> 0 | K82: =K80*K81 -> 0 | L82: 0 | M82: 7955.829701 | N82: 6656.143264 | O82: 7355.888649 | P82: 7111.755095 | Q82: 6868.598074 | R82: 6626.413682 | S82: 6385.198027 | T82: 6144.947235 | U82: 5905.657446 | V82: 5667.324817 | W82: 11744.94552 | X82: 11508.51574 | Y82: 11273.03167 | Z82: 11038.48955 | AA82: 10804.88559 | AB82: 10572.21605 | AC82: 10340.47718 | AD82: 10109.66527 | AE82: 9879.776611 | AF82: 9650.807505 | AG82: 9422.754275 | AH82: 9195.613257 | AI82: 8969.380804 | AJ82: 8744.053281 | AK82: 8519.627068 | AL82: 0 | AM82: 0 | AN82: 0 | AQ82: =AQ80*AQ81 -> 0 | AR82: 0 | AS82: 0 | AT82: 0 | AU82: 0 | AV82: 0 | AW82: 0 | AX82: 0 | AY82: 0 | AZ82: 0 | BA82: 0 | BB82: 0 | BC82: 0 | BD82: 0 | BE82: 0 | BF82: 0 | BG82: 0 | BH82: 0 | BI82: 0 | BJ82: 0 | BK82: 0 | BL82: 0 | BM82: 0
B85: Total Revenues
C86: PPA Remuneration | D86: AUD kWh | I86: =SUM(J86:BL86) -> 1662004.333 | J86: =J70 -> 0 | K86: =K70 -> 0 | L86: 0 | M86: 52147.5 | N86: 53320.81875 | O86: 54520.53717 | P86: 55883.5506 | Q86: 57280.63937 | R86: 58712.65535 | S86: 60180.47173 | T86: 61684.98353 | U86: 63227.10812 | V86: 64807.78582 | W86: 60241.06071 | X86: 61747.08723 | Y86: 63290.76441 | Z86: 64873.03352 | AA86: 66494.85936 | AB86: 68157.23085 | AC86: 69861.16162 | AD86: 71607.69066 | AE86: 73397.88292 | AF86: 75232.83 | AG86: 77113.65075 | AH86: 79041.49202 | AI86: 81017.52932 | AJ86: 83042.96755 | AK86: 85119.04174 | AL86: 0 | AM86: 0 | AN86: 0 | AQ86: =AQ70 -> 0 | AR86: 0 | AS86: 0 | AT86: 0 | AU86: 0 | AV86: 0 | AW86: 0 | AX86: 0 | AY86: 0 | AZ86: 0 | BA86: 0 | BB86: 0 | BC86: 0 | BD86: 0 | BE86: 0 | BF86: 0 | BG86: 0 | BH86: 0 | BI86: 0 | BJ86: 0 | BK86: 0 | BL86: 0
C87: Spot Market | D87: AUD kWh | I87: =SUM(J87:BM87) -> 218451.9953 | J87: =J82 -> 0 | K87: =K82 -> 0 | L87: 0 | M87: 7955.829701 | N87: 6656.143264 | O87: 7355.888649 | P87: 7111.755095 | Q87: 6868.598074 | R87: 6626.413682 | S87: 6385.198027 | T87: 6144.947235 | U87: 5905.657446 | V87: 5667.324817 | W87: 11744.94552 | X87: 11508.51574 | Y87: 11273.03167 | Z87: 11038.48955 | AA87: 10804.88559 | AB87: 10572.21605 | AC87: 10340.47718 | AD87: 10109.66527 | AE87: 9879.776611 | AF87: 9650.807505 | AG87: 9422.754275 | AH87: 9195.613257 | AI87: 8969.380804 | AJ87: 8744.053281 | AK87: 8519.627068 | AL87: 0 | AM87: 0 | AN87: 0 | AQ87: =AQ82 -> 0 | AR87: 0 | AS87: 0 | AT87: 0 | AU87: 0 | AV87: 0 | AW87: 0 | AX87: 0 | AY87: 0 | AZ87: 0 | BA87: 0 | BB87: 0 | BC87: 0 | BD87: 0 | BE87: 0 | BF87: 0 | BG87: 0 | BH87: 0 | BI87: 0 | BJ87: 0 | BK87: 0 | BL87: 0 | BM87: 0
C88: Total Savings | D88: AUD kWh | I88: =SUM(J88:BL88) -> 1880456.328 | J88: =SUM(J86:J87) -> 0 | K88: =SUM(K86:K87) -> 0 | L88: 0 | M88: 60103.3297 | N88: 59976.96201 | O88: 61876.42582 | P88: 62995.3057 | Q88: 64149.23744 | R88: 65339.06903 | S88: 66565.66976 | T88: 67829.93076 | U88: 69132.76556 | V88: 70475.11064 | W88: 71986.00623 | X88: 73255.60297 | Y88: 74563.79609 | Z88: 75911.52307 | AA88: 77299.74495 | AB88: 78729.44689 | AC88: 80201.6388 | AD88: 81717.35593 | AE88: 83277.65954 | AF88: 84883.6375 | AG88: 86536.40502 | AH88: 88237.10527 | AI88: 89986.91012 | AJ88: 91787.02083 | AK88: 93638.66881 | AL88: 0 | AM88: 0 | AN88: 0 | AQ88: =SUM(AQ86:AQ87) -> 0 | AR88: 0 | AS88: 0 | AT88: 0 | AU88: 0 | AV88: 0 | AW88: 0 | AX88: 0 | AY88: 0 | AZ88: 0 | BA88: 0 | BB88: 0 | BC88: 0 | BD88: 0 | BE88: 0 | BF88: 0 | BG88: 0 | BH88: 0 | BI88: 0 | BJ88: 0 | BK88: 0 | BL88: 0
C89: Total Savings | D89: AUD MWh | I89: =SUM(J89:BL89) -> 1880.456328 | J89: =J88/1000 -> 0 | K89: =K88/1000 -> 0 | L89: 0 | M89: 60.1033297 | N89: 59.97696201 | O89: 61.87642582 | P89: 62.9953057 | Q89: 64.14923744 | R89: 65.33906903 | S89: 66.56566976 | T89: 67.82993076 | U89: 69.13276556 | V89: 70.47511064 | W89: 71.98600623 | X89: 73.25560297 | Y89: 74.56379609 | Z89: 75.91152307 | AA89: 77.29974495 | AB89: 78.72944689 | AC89: 80.2016388 | AD89: 81.71735593 | AE89: 83.27765954 | AF89: 84.8836375 | AG89: 86.53640502 | AH89: 88.23710527 | AI89: 89.98691012 | AJ89: 91.78702083 | AK89: 93.63866881 | AL89: 0 | AM89: 0 | AN89: 0 | AQ89: =AQ88/1000 -> 0 | AR89: 0 | AS89: 0 | AT89: 0 | AU89: 0 | AV89: 0 | AW89: 0 | AX89: 0 | AY89: 0 | AZ89: 0 | BA89: 0 | BB89: 0 | BC89: 0 | BD89: 0 | BE89: 0 | BF89: 0 | BG89: 0 | BH89: 0 | BI89: 0 | BJ89: 0 | BK89: 0 | BL89: 0 | BM89: 0
B92: Operational Capex
C93: Fixed Costs
C94: Real
C95: Fixed O&M inc. insurance | D95: =Names!$F$38 -> AUD | E95: =Inputs!$E$150 -> 6.327325378 | I95: =SUM(J95:BL95) -> 158.1831345 | J95: =IF(J$6=0,0,$E$95) -> 0 | K95: =IF(K$6=0,0,$E$95) -> 0 | L95: =IF(L$6=0,0,$E$95) -> 0 | M95: =IF(M$6=0,0,$E$95) -> 6.327325378 | N95: =IF(N$6=0,0,$E$95) -> 6.327325378 | O95: =IF(O$6=0,0,$E$95) -> 6.327325378 | P95: =IF(P$6=0,0,$E$95) -> 6.327325378 | Q95: =IF(Q$6=0,0,$E$95) -> 6.327325378 | R95: =IF(R$6=0,0,$E$95) -> 6.327325378 | S95: =IF(S$6=0,0,$E$95) -> 6.327325378 | T95: =IF(T$6=0,0,$E$95) -> 6.327325378 | U95: =IF(U$6=0,0,$E$95) -> 6.327325378 | V95: =IF(V$6=0,0,$E$95) -> 6.327325378 | W95: =IF(W$6=0,0,$E$95) -> 6.327325378 | X95: =IF(X$6=0,0,$E$95) -> 6.327325378 | Y95: =IF(Y$6=0,0,$E$95) -> 6.327325378 | Z95: =IF(Z$6=0,0,$E$95) -> 6.327325378 | AA95: =IF(AA$6=0,0,$E$95) -> 6.327325378 | AB95: =IF(AB$6=0,0,$E$95) -> 6.327325378 | AC95: =IF(AC$6=0,0,$E$95) -> 6.327325378 | AD95: =IF(AD$6=0,0,$E$95) -> 6.327325378 | AE95: =IF(AE$6=0,0,$E$95) -> 6.327325378 | AF95: =IF(AF$6=0,0,$E$95) -> 6.327325378 | AG95: =IF(AG$6=0,0,$E$95) -> 6.327325378 | AH95: =IF(AH$6=0,0,$E$95) -> 6.327325378 | AI95: =IF(AI$6=0,0,$E$95) -> 6.327325378 | AJ95: =IF(AJ$6=0,0,$E$95) -> 6.327325378 | AK95: =IF(AK$6=0,0,$E$95) -> 6.327325378 | AL95: =IF(AL$6=0,0,$E$95) -> 0 | AM95: =IF(AM$6=0,0,$E$95) -> 0 | AN95: =IF(AN$6=0,0,$E$95) -> 0 | AQ95: =IF(AQ$6=0,0,$E$95) -> 0 | AR95: =IF(AR$6=0,0,$E$95) -> 0 | AS95: =IF(AS$6=0,0,$E$95) -> 0 | AT95: =IF(AT$6=0,0,$E$95) -> 0 | AU95: =IF(AU$6=0,0,$E$95) -> 0 | AV95: =IF(AV$6=0,0,$E$95) -> 0 | AW95: =IF(AW$6=0,0,$E$95) -> 0 | AX95: =IF(AX$6=0,0,$E$95) -> 0 | AY95: =IF(AY$6=0,0,$E$95) -> 0 | AZ95: =IF(AZ$6=0,0,$E$95) -> 0 | BA95: =IF(BA$6=0,0,$E$95) -> 0 | BB95: =IF(BB$6=0,0,$E$95) -> 0 | BC95: =IF(BC$6=0,0,$E$95) -> 0 | BD95: =IF(BD$6=0,0,$E$95) -> 0 | BE95: =IF(BE$6=0,0,$E$95) -> 0 | BF95: =IF(BF$6=0,0,$E$95) -> 0 | BG95: =IF(BG$6=0,0,$E$95) -> 0 | BH95: =IF(BH$6=0,0,$E$95) -> 0 | BI95: =IF(BI$6=0,0,$E$95) -> 0 | BJ95: =IF(BJ$6=0,0,$E$95) -> 0 | BK95: =IF(BK$6=0,0,$E$95) -> 0 | BL95: =IF(BL$6=0,0,$E$95) -> 0
C96: Total | D96: =Names!$F$38 -> AUD | I96: 158.1831345 | J96: =SUM(J95:J95) -> 0 | K96: =SUM(K95:K95) -> 0 | L96: =SUM(L95:L95) -> 0 | M96: =SUM(M95:M95) -> 6.327325378 | N96: =SUM(N95:N95) -> 6.327325378 | O96: =SUM(O95:O95) -> 6.327325378 | P96: =SUM(P95:P95) -> 6.327325378 | Q96: =SUM(Q95:Q95) -> 6.327325378 | R96: =SUM(R95:R95) -> 6.327325378 | S96: =SUM(S95:S95) -> 6.327325378 | T96: =SUM(T95:T95) -> 6.327325378 | U96: =SUM(U95:U95) -> 6.327325378 | V96: =SUM(V95:V95) -> 6.327325378 | W96: =SUM(W95:W95) -> 6.327325378 | X96: =SUM(X95:X95) -> 6.327325378 | Y96: =SUM(Y95:Y95) -> 6.327325378 | Z96: =SUM(Z95:Z95) -> 6.327325378 | AA96: =SUM(AA95:AA95) -> 6.327325378 | AB96: =SUM(AB95:AB95) -> 6.327325378 | AC96: =SUM(AC95:AC95) -> 6.327325378 | AD96: =SUM(AD95:AD95) -> 6.327325378 | AE96: =SUM(AE95:AE95) -> 6.327325378 | AF96: =SUM(AF95:AF95) -> 6.327325378 | AG96: =SUM(AG95:AG95) -> 6.327325378 | AH96: =SUM(AH95:AH95) -> 6.327325378 | AI96: =SUM(AI95:AI95) -> 6.327325378 | AJ96: =SUM(AJ95:AJ95) -> 6.327325378 | AK96: =SUM(AK95:AK95) -> 6.327325378 | AL96: =SUM(AL95:AL95) -> 0 | AM96: =SUM(AM95:AM95) -> 0 | AN96: =SUM(AN95:AN95) -> 0 | AQ96: =SUM(AQ95:AQ95) -> 0 | AR96: =SUM(AR95:AR95) -> 0 | AS96: =SUM(AS95:AS95) -> 0 | AT96: =SUM(AT95:AT95) -> 0 | AU96: =SUM(AU95:AU95) -> 0 | AV96: =SUM(AV95:AV95) -> 0 | AW96: =SUM(AW95:AW95) -> 0 | AX96: =SUM(AX95:AX95) -> 0 | AY96: =SUM(AY95:AY95) -> 0 | AZ96: =SUM(AZ95:AZ95) -> 0 | BA96: =SUM(BA95:BA95) -> 0 | BB96: =SUM(BB95:BB95) -> 0 | BC96: =SUM(BC95:BC95) -> 0 | BD96: =SUM(BD95:BD95) -> 0 | BE96: =SUM(BE95:BE95) -> 0 | BF96: =SUM(BF95:BF95) -> 0 | BG96: =SUM(BG95:BG95) -> 0 | BH96: =SUM(BH95:BH95) -> 0 | BI96: =SUM(BI95:BI95) -> 0 | BJ96: =SUM(BJ95:BJ95) -> 0 | BK96: =SUM(BK95:BK95) -> 0 | BL96: =SUM(BL95:BL95) -> 0
C98: Escalation | D98: Index | J98: =IF(J$6=0,0,Timing!J22) -> 0 | K98: =IF(K$6=0,0,Timing!K22) -> 0 | L98: =IF(L$6=0,0,Timing!L22) -> 0 | M98: =IF(M$6=0,0,Timing!M22) -> 1.0225 | N98: =IF(N$6=0,0,Timing!N22) -> 1.04550625 | O98: =IF(O$6=0,0,Timing!O22) -> 1.069030141 | P98: =IF(P$6=0,0,Timing!P22) -> 1.093083319 | Q98: =IF(Q$6=0,0,Timing!Q22) -> 1.117677693 | R98: =IF(R$6=0,0,Timing!R22) -> 1.142825442 | S98: =IF(S$6=0,0,Timing!S22) -> 1.168539014 | T98: =IF(T$6=0,0,Timing!T22) -> 1.194831142 | U98: =IF(U$6=0,0,Timing!U22) -> 1.221714843 | V98: =IF(V$6=0,0,Timing!V22) -> 1.249203426 | W98: =IF(W$6=0,0,Timing!W22) -> 1.277310504 | X98: =IF(X$6=0,0,Timing!X22) -> 1.30604999 | Y98: =IF(Y$6=0,0,Timing!Y22) -> 1.335436115 | Z98: =IF(Z$6=0,0,Timing!Z22) -> 1.365483427 | AA98: =IF(AA$6=0,0,Timing!AA22) -> 1.396206804 | AB98: =IF(AB$6=0,0,Timing!AB22) -> 1.427621457 | AC98: =IF(AC$6=0,0,Timing!AC22) -> 1.45974294 | AD98: =IF(AD$6=0,0,Timing!AD22) -> 1.492587156 | AE98: =IF(AE$6=0,0,Timing!AE22) -> 1.526170367 | AF98: =IF(AF$6=0,0,Timing!AF22) -> 1.560509201 | AG98: =IF(AG$6=0,0,Timing!AG22) -> 1.595620658 | AH98: =IF(AH$6=0,0,Timing!AH22) -> 1.631522122 | AI98: =IF(AI$6=0,0,Timing!AI22) -> 1.66823137 | AJ98: =IF(AJ$6=0,0,Timing!AJ22) -> 1.705766576 | AK98: =IF(AK$6=0,0,Timing!AK22) -> 1.744146324 | AL98: =IF(AL$6=0,0,Timing!AL22) -> 0 | AM98: =IF(AM$6=0,0,Timing!AM22) -> 0 | AN98: =IF(AN$6=0,0,Timing!AN22) -> 0 | AQ98: =IF(AQ$6=0,0,Timing!AS22) -> 0 | AR98: =IF(AR$6=0,0,Timing!AT22) -> 0 | AS98: =IF(AS$6=0,0,Timing!AU22) -> 0 | AT98: =IF(AT$6=0,0,Timing!AV22) -> 0 | AU98: =IF(AU$6=0,0,Timing!AW22) -> 0 | AV98: =IF(AV$6=0,0,Timing!AX22) -> 0 | AW98: =IF(AW$6=0,0,Timing!AY22) -> 0 | AX98: =IF(AX$6=0,0,Timing!AZ22) -> 0 | AY98: =IF(AY$6=0,0,Timing!BA22) -> 0 | AZ98: =IF(AZ$6=0,0,Timing!BB22) -> 0 | BA98: =IF(BA$6=0,0,Timing!BC22) -> 0 | BB98: =IF(BB$6=0,0,Timing!BD22) -> 0 | BC98: =IF(BC$6=0,0,Timing!BE22) -> 0 | BD98: =IF(BD$6=0,0,Timing!BF22) -> 0 | BE98: =IF(BE$6=0,0,Timing!BG22) -> 0 | BF98: =IF(BF$6=0,0,Timing!BH22) -> 0 | BG98: =IF(BG$6=0,0,Timing!BI22) -> 0 | BH98: =IF(BH$6=0,0,Timing!BJ22) -> 0 | BI98: =IF(BI$6=0,0,Timing!BK22) -> 0 | BJ98: =IF(BJ$6=0,0,Timing!BL22) -> 0 | BK98: =IF(BK$6=0,0,Timing!BM22) -> 0 | BL98: =IF(BL$6=0,0,Timing!BN22) -> 0
C100: Nominal
C101: =C95 -> Fixed O&M inc. insurance | D101: =Names!$F$38 -> AUD | I101: =SUM(J101:BL101) -> 213.9731635 | J101: =J95*J$98 -> 0 | K101: =K95*K$98 -> 0 | L101: =L95*L$98 -> 0 | M101: =M95*M$98 -> 6.469690199 | N101: =N95*N$98 -> 6.615258229 | O101: =O95*O$98 -> 6.764101539 | P101: =P95*P$98 -> 6.916293824 | Q101: =Q95*Q$98 -> 7.071910435 | R101: =R95*R$98 -> 7.23102842 | S101: =S95*S$98 -> 7.393726559 | T101: =T95*T$98 -> 7.560085407 | U101: =U95*U$98 -> 7.730187328 | V101: =V95*V$98 -> 7.904116543 | W101: =W95*W$98 -> 8.081959165 | X101: =X95*X$98 -> 8.263803246 | Y101: =Y95*Y$98 -> 8.44973882 | Z101: =Z95*Z$98 -> 8.639857943 | AA101: =AA95*AA$98 -> 8.834254747 | AB101: =AB95*AB$98 -> 9.033025478 | AC101: =AC95*AC$98 -> 9.236268552 | AD101: =AD95*AD$98 -> 9.444084594 | AE101: =AE95*AE$98 -> 9.656576498 | AF101: =AF95*AF$98 -> 9.873849469 | AG101: =AG95*AG$98 -> 10.09601108 | AH101: =AH95*AH$98 -> 10.32317133 | AI101: =AI95*AI$98 -> 10.55544269 | AJ101: =AJ95*AJ$98 -> 10.79294015 | AK101: =AK95*AK$98 -> 11.0357813 | AL101: =AL95*AL$98 -> 0 | AM101: =AM95*AM$98 -> 0 | AN101: =AN95*AN$98 -> 0 | AQ101: =AQ95*AQ$98 -> 0 | AR101: =AR95*AR$98 -> 0 | AS101: =AS95*AS$98 -> 0 | AT101: =AT95*AT$98 -> 0 | AU101: =AU95*AU$98 -> 0 | AV101: =AV95*AV$98 -> 0 | AW101: =AW95*AW$98 -> 0 | AX101: =AX95*AX$98 -> 0 | AY101: =AY95*AY$98 -> 0 | AZ101: =AZ95*AZ$98 -> 0 | BA101: =BA95*BA$98 -> 0 | BB101: =BB95*BB$98 -> 0 | BC101: =BC95*BC$98 -> 0 | BD101: =BD95*BD$98 -> 0 | BE101: =BE95*BE$98 -> 0 | BF101: =BF95*BF$98 -> 0 | BG101: =BG95*BG$98 -> 0 | BH101: =BH95*BH$98 -> 0 | BI101: =BI95*BI$98 -> 0 | BJ101: =BJ95*BJ$98 -> 0 | BK101: =BK95*BK$98 -> 0 | BL101: =BL95*BL$98 -> 0
C102: =C96 -> Total | D102: =Names!$F$38 -> AUD | I102: 213.9731635 | J102: =SUM(J101:J101) -> 0 | K102: =SUM(K101:K101) -> 0 | L102: =SUM(L101:L101) -> 0 | M102: =SUM(M101:M101) -> 6.469690199 | N102: =SUM(N101:N101) -> 6.615258229 | O102: =SUM(O101:O101) -> 6.764101539 | P102: =SUM(P101:P101) -> 6.916293824 | Q102: =SUM(Q101:Q101) -> 7.071910435 | R102: =SUM(R101:R101) -> 7.23102842 | S102: =SUM(S101:S101) -> 7.393726559 | T102: =SUM(T101:T101) -> 7.560085407 | U102: =SUM(U101:U101) -> 7.730187328 | V102: =SUM(V101:V101) -> 7.904116543 | W102: =SUM(W101:W101) -> 8.081959165 | X102: =SUM(X101:X101) -> 8.263803246 | Y102: =SUM(Y101:Y101) -> 8.44973882 | Z102: =SUM(Z101:Z101) -> 8.639857943 | AA102: =SUM(AA101:AA101) -> 8.834254747 | AB102: =SUM(AB101:AB101) -> 9.033025478 | AC102: =SUM(AC101:AC101) -> 9.236268552 | AD102: =SUM(AD101:AD101) -> 9.444084594 | AE102: =SUM(AE101:AE101) -> 9.656576498 | AF102: =SUM(AF101:AF101) -> 9.873849469 | AG102: =SUM(AG101:AG101) -> 10.09601108 | AH102: =SUM(AH101:AH101) -> 10.32317133 | AI102: =SUM(AI101:AI101) -> 10.55544269 | AJ102: =SUM(AJ101:AJ101) -> 10.79294015 | AK102: =SUM(AK101:AK101) -> 11.0357813 | AL102: =SUM(AL101:AL101) -> 0 | AM102: =SUM(AM101:AM101) -> 0 | AN102: =SUM(AN101:AN101) -> 0 | AQ102: =SUM(AQ101:AQ101) -> 0 | AR102: =SUM(AR101:AR101) -> 0 | AS102: =SUM(AS101:AS101) -> 0 | AT102: =SUM(AT101:AT101) -> 0 | AU102: =SUM(AU101:AU101) -> 0 | AV102: =SUM(AV101:AV101) -> 0 | AW102: =SUM(AW101:AW101) -> 0 | AX102: =SUM(AX101:AX101) -> 0 | AY102: =SUM(AY101:AY101) -> 0 | AZ102: =SUM(AZ101:AZ101) -> 0 | BA102: =SUM(BA101:BA101) -> 0 | BB102: =SUM(BB101:BB101) -> 0 | BC102: =SUM(BC101:BC101) -> 0 | BD102: =SUM(BD101:BD101) -> 0 | BE102: =SUM(BE101:BE101) -> 0 | BF102: =SUM(BF101:BF101) -> 0 | BG102: =SUM(BG101:BG101) -> 0 | BH102: =SUM(BH101:BH101) -> 0 | BI102: =SUM(BI101:BI101) -> 0 | BJ102: =SUM(BJ101:BJ101) -> 0 | BK102: =SUM(BK101:BK101) -> 0 | BL102: =SUM(BL101:BL101) -> 0
C104: Variable Costs
C105: Real
C106: Net Generation | D106: kWh | I106: =SUM(J106:BL106) -> 23222496.06 | J106: =J27 -> 0 | K106: =K27 -> 0 | L106: =L27 -> 0 | M106: =M27 -> 974261.2995 | N106: =N27 -> 970364.2543 | O106: =O27 -> 966482.7973 | P106: =P27 -> 962616.8661 | Q106: =Q27 -> 958766.3986 | R106: =R27 -> 954931.333 | S106: =S27 -> 951111.6077 | T106: =T27 -> 947307.1613 | U106: =U27 -> 943517.9326 | V106: =V27 -> 939743.8609 | W106: =W27 -> 935984.8855 | X106: =X27 -> 932240.9459 | Y106: =Y27 -> 928511.9821 | Z106: =Z27 -> 924797.9342 | AA106: =AA27 -> 921098.7425 | AB106: =AB27 -> 917414.3475 | AC106: =AC27 -> 913744.6901 | AD106: =AD27 -> 910089.7114 | AE106: =AE27 -> 906449.3525 | AF106: =AF27 -> 902823.5551 | AG106: =AG27 -> 899212.2609 | AH106: =AH27 -> 895615.4118 | AI106: =AI27 -> 892032.9502 | AJ106: =AJ27 -> 888464.8184 | AK106: =AK27 -> 884910.9591 | AL106: =AL27 -> 0 | AM106: =AM27 -> 0 | AN106: =AN27 -> 0 | AQ106: =AQ27 -> 0 | AR106: =AR27 -> 0 | AS106: =AS27 -> 0 | AT106: =AT27 -> 0 | AU106: =AU27 -> 0 | AV106: =AV27 -> 0 | AW106: =AW27 -> 0 | AX106: =AX27 -> 0 | AY106: =AY27 -> 0 | AZ106: =AZ27 -> 0 | BA106: =BA27 -> 0 | BB106: =BB27 -> 0 | BC106: =BC27 -> 0 | BD106: =BD27 -> 0 | BE106: =BE27 -> 0 | BF106: =BF27 -> 0 | BG106: =BG27 -> 0 | BH106: =BH27 -> 0 | BI106: =BI27 -> 0 | BJ106: =BJ27 -> 0 | BK106: =BK27 -> 0 | BL106: =BL27 -> 0
C108: Land Lease | D108: =Names!$F$38 -> AUD | E108: =Inputs!$E$160 -> 2.01196962 | I108: =SUM(J108:BL108) -> 50.2992405 | J108: =IF(J$6=0,0,$E$108) -> 0 | K108: =IF(K$6=0,0,$E$108) -> 0 | L108: =IF(L$6=0,0,$E$108) -> 0 | M108: =IF(M$6=0,0,$E$108) -> 2.01196962 | N108: =IF(N$6=0,0,$E$108) -> 2.01196962 | O108: =IF(O$6=0,0,$E$108) -> 2.01196962 | P108: =IF(P$6=0,0,$E$108) -> 2.01196962 | Q108: =IF(Q$6=0,0,$E$108) -> 2.01196962 | R108: =IF(R$6=0,0,$E$108) -> 2.01196962 | S108: =IF(S$6=0,0,$E$108) -> 2.01196962 | T108: =IF(T$6=0,0,$E$108) -> 2.01196962 | U108: =IF(U$6=0,0,$E$108) -> 2.01196962 | V108: =IF(V$6=0,0,$E$108) -> 2.01196962 | W108: =IF(W$6=0,0,$E$108) -> 2.01196962 | X108: =IF(X$6=0,0,$E$108) -> 2.01196962 | Y108: =IF(Y$6=0,0,$E$108) -> 2.01196962 | Z108: =IF(Z$6=0,0,$E$108) -> 2.01196962 | AA108: =IF(AA$6=0,0,$E$108) -> 2.01196962 | AB108: =IF(AB$6=0,0,$E$108) -> 2.01196962 | AC108: =IF(AC$6=0,0,$E$108) -> 2.01196962 | AD108: =IF(AD$6=0,0,$E$108) -> 2.01196962 | AE108: =IF(AE$6=0,0,$E$108) -> 2.01196962 | AF108: =IF(AF$6=0,0,$E$108) -> 2.01196962 | AG108: =IF(AG$6=0,0,$E$108) -> 2.01196962 | AH108: =IF(AH$6=0,0,$E$108) -> 2.01196962 | AI108: =IF(AI$6=0,0,$E$108) -> 2.01196962 | AJ108: =IF(AJ$6=0,0,$E$108) -> 2.01196962 | AK108: =IF(AK$6=0,0,$E$108) -> 2.01196962 | AL108: =IF(AL$6=0,0,$E$108) -> 0 | AM108: =IF(AM$6=0,0,$E$108) -> 0 | AN108: =IF(AN$6=0,0,$E$108) -> 0 | AQ108: =IF(AQ$6=0,0,$E$108) -> 0 | AR108: =IF(AR$6=0,0,$E$108) -> 0 | AS108: =IF(AS$6=0,0,$E$108) -> 0 | AT108: =IF(AT$6=0,0,$E$108) -> 0 | AU108: =IF(AU$6=0,0,$E$108) -> 0 | AV108: =IF(AV$6=0,0,$E$108) -> 0 | AW108: =IF(AW$6=0,0,$E$108) -> 0 | AX108: =IF(AX$6=0,0,$E$108) -> 0 | AY108: =IF(AY$6=0,0,$E$108) -> 0 | AZ108: =IF(AZ$6=0,0,$E$108) -> 0 | BA108: =IF(BA$6=0,0,$E$108) -> 0 | BB108: =IF(BB$6=0,0,$E$108) -> 0 | BC108: =IF(BC$6=0,0,$E$108) -> 0 | BD108: =IF(BD$6=0,0,$E$108) -> 0 | BE108: =IF(BE$6=0,0,$E$108) -> 0 | BF108: =IF(BF$6=0,0,$E$108) -> 0 | BG108: =IF(BG$6=0,0,$E$108) -> 0 | BH108: =IF(BH$6=0,0,$E$108) -> 0 | BI108: =IF(BI$6=0,0,$E$108) -> 0 | BJ108: =IF(BJ$6=0,0,$E$108) -> 0 | BK108: =IF(BK$6=0,0,$E$108) -> 0 | BL108: =IF(BL$6=0,0,$E$108) -> 0
C109: Total | D109: =Names!$F$38 -> AUD | I109: =SUM(J109:BL109) -> 50.2992405 | J109: =SUM(J108:J108) -> 0 | K109: =SUM(K108:K108) -> 0 | L109: =SUM(L108:L108) -> 0 | M109: =SUM(M108:M108) -> 2.01196962 | N109: =SUM(N108:N108) -> 2.01196962 | O109: =SUM(O108:O108) -> 2.01196962 | P109: =SUM(P108:P108) -> 2.01196962 | Q109: =SUM(Q108:Q108) -> 2.01196962 | R109: =SUM(R108:R108) -> 2.01196962 | S109: =SUM(S108:S108) -> 2.01196962 | T109: =SUM(T108:T108) -> 2.01196962 | U109: =SUM(U108:U108) -> 2.01196962 | V109: =SUM(V108:V108) -> 2.01196962 | W109: =SUM(W108:W108) -> 2.01196962 | X109: =SUM(X108:X108) -> 2.01196962 | Y109: =SUM(Y108:Y108) -> 2.01196962 | Z109: =SUM(Z108:Z108) -> 2.01196962 | AA109: =SUM(AA108:AA108) -> 2.01196962 | AB109: =SUM(AB108:AB108) -> 2.01196962 | AC109: =SUM(AC108:AC108) -> 2.01196962 | AD109: =SUM(AD108:AD108) -> 2.01196962 | AE109: =SUM(AE108:AE108) -> 2.01196962 | AF109: =SUM(AF108:AF108) -> 2.01196962 | AG109: =SUM(AG108:AG108) -> 2.01196962 | AH109: =SUM(AH108:AH108) -> 2.01196962 | AI109: =SUM(AI108:AI108) -> 2.01196962 | AJ109: =SUM(AJ108:AJ108) -> 2.01196962 | AK109: =SUM(AK108:AK108) -> 2.01196962 | AL109: =SUM(AL108:AL108) -> 0 | AM109: =SUM(AM108:AM108) -> 0 | AN109: =SUM(AN108:AN108) -> 0 | AQ109: =SUM(AQ108:AQ108) -> 0 | AR109: =SUM(AR108:AR108) -> 0 | AS109: =SUM(AS108:AS108) -> 0 | AT109: =SUM(AT108:AT108) -> 0 | AU109: =SUM(AU108:AU108) -> 0 | AV109: =SUM(AV108:AV108) -> 0 | AW109: =SUM(AW108:AW108) -> 0 | AX109: =SUM(AX108:AX108) -> 0 | AY109: =SUM(AY108:AY108) -> 0 | AZ109: =SUM(AZ108:AZ108) -> 0 | BA109: =SUM(BA108:BA108) -> 0 | BB109: =SUM(BB108:BB108) -> 0 | BC109: =SUM(BC108:BC108) -> 0 | BD109: =SUM(BD108:BD108) -> 0 | BE109: =SUM(BE108:BE108) -> 0 | BF109: =SUM(BF108:BF108) -> 0 | BG109: =SUM(BG108:BG108) -> 0 | BH109: =SUM(BH108:BH108) -> 0 | BI109: =SUM(BI108:BI108) -> 0 | BJ109: =SUM(BJ108:BJ108) -> 0 | BK109: =SUM(BK108:BK108) -> 0 | BL109: =SUM(BL108:BL108) -> 0
C111: Escalation | D111: =Names!$F$38 -> AUD | J111: =J98 -> 0 | K111: =K98 -> 0 | L111: =L98 -> 0 | M111: =M98 -> 1.0225 | N111: =N98 -> 1.04550625 | O111: =O98 -> 1.069030141 | P111: =P98 -> 1.093083319 | Q111: =Q98 -> 1.117677693 | R111: =R98 -> 1.142825442 | S111: =S98 -> 1.168539014 | T111: =T98 -> 1.194831142 | U111: =U98 -> 1.221714843 | V111: =V98 -> 1.249203426 | W111: =W98 -> 1.277310504 | X111: =X98 -> 1.30604999 | Y111: =Y98 -> 1.335436115 | Z111: =Z98 -> 1.365483427 | AA111: =AA98 -> 1.396206804 | AB111: =AB98 -> 1.427621457 | AC111: =AC98 -> 1.45974294 | AD111: =AD98 -> 1.492587156 | AE111: =AE98 -> 1.526170367 | AF111: =AF98 -> 1.560509201 | AG111: =AG98 -> 1.595620658 | AH111: =AH98 -> 1.631522122 | AI111: =AI98 -> 1.66823137 | AJ111: =AJ98 -> 1.705766576 | AK111: =AK98 -> 1.744146324 | AL111: =AL98 -> 0 | AM111: =AM98 -> 0 | AN111: =AN98 -> 0 | AQ111: =AQ98 -> 0 | AR111: =AR98 -> 0 | AS111: =AS98 -> 0 | AT111: =AT98 -> 0 | AU111: =AU98 -> 0 | AV111: =AV98 -> 0 | AW111: =AW98 -> 0 | AX111: =AX98 -> 0 | AY111: =AY98 -> 0 | AZ111: =AZ98 -> 0 | BA111: =BA98 -> 0 | BB111: =BB98 -> 0 | BC111: =BC98 -> 0 | BD111: =BD98 -> 0 | BE111: =BE98 -> 0 | BF111: =BF98 -> 0 | BG111: =BG98 -> 0 | BH111: =BH98 -> 0 | BI111: =BI98 -> 0 | BJ111: =BJ98 -> 0 | BK111: =BK98 -> 0 | BL111: =BL98 -> 0
C113: Nominal
C114: Land Lease | D114: =Names!$F$38 -> AUD | I114: =SUM(J114:BL114) -> 68.03941299 | J114: =J108*J$111 -> 0 | K114: =K108*K$111 -> 0 | L114: =L108*L$111 -> 0 | M114: =M108*M$111 -> 2.057238936 | N114: =N108*N$111 -> 2.103526813 | O114: =O108*O$111 -> 2.150856166 | P114: =P108*P$111 -> 2.19925043 | Q114: =Q108*Q$111 -> 2.248733564 | R114: =R108*R$111 -> 2.299330069 | S114: =S108*S$111 -> 2.351064996 | T114: =T108*T$111 -> 2.403963958 | U114: =U108*U$111 -> 2.458053147 | V114: =V108*V$111 -> 2.513359343 | W114: =W108*W$111 -> 2.569909928 | X114: =X108*X$111 -> 2.627732902 | Y114: =Y108*Y$111 -> 2.686856892 | Z114: =Z108*Z$111 -> 2.747311172 | AA114: =AA108*AA$111 -> 2.809125674 | AB114: =AB108*AB$111 -> 2.872331001 | AC114: =AC108*AC$111 -> 2.936958449 | AD114: =AD108*AD$111 -> 3.003040014 | AE114: =AE108*AE$111 -> 3.070608414 | AF114: =AF108*AF$111 -> 3.139697104 | AG114: =AG108*AG$111 -> 3.210340288 | AH114: =AH108*AH$111 -> 3.282572945 | AI114: =AI108*AI$111 -> 3.356430836 | AJ114: =AJ108*AJ$111 -> 3.43195053 | AK114: =AK108*AK$111 -> 3.509169417 | AL114: =AL108*AL$111 -> 0 | AM114: =AM108*AM$111 -> 0 | AN114: =AN108*AN$111 -> 0 | AQ114: =AQ108*AQ$111 -> 0 | AR114: =AR108*AR$111 -> 0 | AS114: =AS108*AS$111 -> 0 | AT114: =AT108*AT$111 -> 0 | AU114: =AU108*AU$111 -> 0 | AV114: =AV108*AV$111 -> 0 | AW114: =AW108*AW$111 -> 0 | AX114: =AX108*AX$111 -> 0 | AY114: =AY108*AY$111 -> 0 | AZ114: =AZ108*AZ$111 -> 0 | BA114: =BA108*BA$111 -> 0 | BB114: =BB108*BB$111 -> 0 | BC114: =BC108*BC$111 -> 0 | BD114: =BD108*BD$111 -> 0 | BE114: =BE108*BE$111 -> 0 | BF114: =BF108*BF$111 -> 0 | BG114: =BG108*BG$111 -> 0 | BH114: =BH108*BH$111 -> 0 | BI114: =BI108*BI$111 -> 0 | BJ114: =BJ108*BJ$111 -> 0 | BK114: =BK108*BK$111 -> 0 | BL114: =BL108*BL$111 -> 0
C115: Decommission | D115: =$E$6 -> 2044-07-31
C116: Total | D116: =Names!$F$38 -> AUD | I116: =SUM(J116:BL116) -> 68.03941299 | J116: =SUM(J114:J115) -> 0 | K116: =SUM(K114:K115) -> 0 | L116: =SUM(L114:L115) -> 0 | M116: =SUM(M114:M115) -> 2.057238936 | N116: =SUM(N114:N115) -> 2.103526813 | O116: =SUM(O114:O115) -> 2.150856166 | P116: =SUM(P114:P115) -> 2.19925043 | Q116: =SUM(Q114:Q115) -> 2.248733564 | R116: =SUM(R114:R115) -> 2.299330069 | S116: =SUM(S114:S115) -> 2.351064996 | T116: =SUM(T114:T115) -> 2.403963958 | U116: =SUM(U114:U115) -> 2.458053147 | V116: =SUM(V114:V115) -> 2.513359343 | W116: =SUM(W114:W115) -> 2.569909928 | X116: =SUM(X114:X115) -> 2.627732902 | Y116: =SUM(Y114:Y115) -> 2.686856892 | Z116: =SUM(Z114:Z115) -> 2.747311172 | AA116: =SUM(AA114:AA115) -> 2.809125674 | AB116: =SUM(AB114:AB115) -> 2.872331001 | AC116: =SUM(AC114:AC115) -> 2.936958449 | AD116: =SUM(AD114:AD115) -> 3.003040014 | AE116: =SUM(AE114:AE115) -> 3.070608414 | AF116: =SUM(AF114:AF115) -> 3.139697104 | AG116: =SUM(AG114:AG115) -> 3.210340288 | AH116: =SUM(AH114:AH115) -> 3.282572945 | AI116: =SUM(AI114:AI115) -> 3.356430836 | AJ116: =SUM(AJ114:AJ115) -> 3.43195053 | AK116: =SUM(AK114:AK115) -> 3.509169417 | AL116: =SUM(AL114:AL115) -> 0 | AM116: =SUM(AM114:AM115) -> 0 | AN116: =SUM(AN114:AN115) -> 0 | AQ116: =SUM(AQ114:AQ115) -> 0 | AR116: =SUM(AR114:AR115) -> 0 | AS116: =SUM(AS114:AS115) -> 0 | AT116: =SUM(AT114:AT115) -> 0 | AU116: =SUM(AU114:AU115) -> 0 | AV116: =SUM(AV114:AV115) -> 0 | AW116: =SUM(AW114:AW115) -> 0 | AX116: =SUM(AX114:AX115) -> 0 | AY116: =SUM(AY114:AY115) -> 0 | AZ116: =SUM(AZ114:AZ115) -> 0 | BA116: =SUM(BA114:BA115) -> 0 | BB116: =SUM(BB114:BB115) -> 0 | BC116: =SUM(BC114:BC115) -> 0 | BD116: =SUM(BD114:BD115) -> 0 | BE116: =SUM(BE114:BE115) -> 0 | BF116: =SUM(BF114:BF115) -> 0 | BG116: =SUM(BG114:BG115) -> 0 | BH116: =SUM(BH114:BH115) -> 0 | BI116: =SUM(BI114:BI115) -> 0 | BJ116: =SUM(BJ114:BJ115) -> 0 | BK116: =SUM(BK114:BK115) -> 0 | BL116: =SUM(BL114:BL115) -> 0
C118: Summary
C119: Fixed | D119: =Names!$F$38 -> AUD | I119: =SUM(J119:BL119) -> 213.9731635 | J119: =J102 -> 0 | K119: =K102 -> 0 | L119: =L102 -> 0 | M119: =M102 -> 6.469690199 | N119: =N102 -> 6.615258229 | O119: =O102 -> 6.764101539 | P119: =P102 -> 6.916293824 | Q119: =Q102 -> 7.071910435 | R119: =R102 -> 7.23102842 | S119: =S102 -> 7.393726559 | T119: =T102 -> 7.560085407 | U119: =U102 -> 7.730187328 | V119: =V102 -> 7.904116543 | W119: =W102 -> 8.081959165 | X119: =X102 -> 8.263803246 | Y119: =Y102 -> 8.44973882 | Z119: =Z102 -> 8.639857943 | AA119: =AA102 -> 8.834254747 | AB119: =AB102 -> 9.033025478 | AC119: =AC102 -> 9.236268552 | AD119: =AD102 -> 9.444084594 | AE119: =AE102 -> 9.656576498 | AF119: =AF102 -> 9.873849469 | AG119: =AG102 -> 10.09601108 | AH119: =AH102 -> 10.32317133 | AI119: =AI102 -> 10.55544269 | AJ119: =AJ102 -> 10.79294015 | AK119: =AK102 -> 11.0357813 | AL119: =AL102 -> 0 | AM119: =AM102 -> 0 | AN119: =AN102 -> 0 | AQ119: =AQ102 -> 0 | AR119: 0 | AS119: 0 | AT119: 0 | AU119: 0 | AV119: 0 | AW119: 0 | AX119: 0 | AY119: 0 | AZ119: 0 | BA119: 0 | BB119: 0 | BC119: 0 | BD119: 0 | BE119: 0 | BF119: 0 | BG119: 0 | BH119: 0 | BI119: 0 | BJ119: 0 | BK119: 0 | BL119: 0
C120: Variable | D120: =Names!$F$38 -> AUD | I120: =SUM(J120:BL120) -> 68.03941299 | J120: =J116 -> 0 | K120: =K116 -> 0 | L120: 0 | M120: 2.057238936 | N120: 2.103526813 | O120: 2.150856166 | P120: 2.19925043 | Q120: 2.248733564 | R120: 2.299330069 | S120: =S116 -> 2.351064996 | T120: 2.403963958 | U120: 2.458053147 | V120: 2.513359343 | W120: 2.569909928 | X120: 2.627732902 | Y120: 2.686856892 | Z120: 2.747311172 | AA120: 2.809125674 | AB120: 2.872331001 | AC120: 2.936958449 | AD120: 3.003040014 | AE120: 3.070608414 | AF120: 3.139697104 | AG120: 3.210340288 | AH120: 3.282572945 | AI120: 3.356430836 | AJ120: 3.43195053 | AK120: 3.509169417 | AL120: 0 | AM120: 0 | AN120: 0 | AQ120: =AQ116 -> 0 | AR120: 0 | AS120: 0 | AT120: 0 | AU120: 0 | AV120: 0 | AW120: 0 | AX120: 0 | AY120: 0 | AZ120: 0 | BA120: 0 | BB120: 0 | BC120: 0 | BD120: 0 | BE120: 0 | BF120: 0 | BG120: 0 | BH120: 0 | BI120: 0 | BJ120: 0 | BK120: 0 | BL120: 0
C121: Total | D121: =Names!$F$38 -> AUD | I121: =SUM(J121:BL121) -> 282.0125765 | J121: =SUM(J119:J120) -> 0 | K121: =SUM(K119:K120) -> 0 | L121: 0 | M121: 8.526929136 | N121: 8.718785041 | O121: 8.914957705 | P121: 9.115544253 | Q121: 9.320643999 | R121: 9.530358489 | S121: 9.744791555 | T121: 9.964049365 | U121: 10.18824048 | V121: 10.41747589 | W121: 10.65186909 | X121: 10.89153615 | Y121: 11.13659571 | Z121: 11.38716912 | AA121: 11.64338042 | AB121: 11.90535648 | AC121: 12.173227 | AD121: 12.44712461 | AE121: 12.72718491 | AF121: 13.01354657 | AG121: 13.30635137 | AH121: 13.60574428 | AI121: 13.91187352 | AJ121: 14.22489068 | AK121: 14.54495072 | AL121: 0 | AM121: 0 | AN121: 0 | AQ121: =SUM(AQ119:AQ120) -> 0 | AR121: 0 | AS121: 0 | AT121: 0 | AU121: 0 | AV121: 0 | AW121: 0 | AX121: 0 | AY121: 0 | AZ121: 0 | BA121: 0 | BB121: 0 | BC121: 0 | BD121: 0 | BE121: 0 | BF121: 0 | BG121: 0 | BH121: 0 | BI121: 0 | BJ121: 0 | BK121: 0 | BL121: 0
B124: Maintenance Capex
C125: Replacement of inverters | J125: =IF(J126=0,"",YEAR(J$4)) ->  | K125: =IF(K126=0,"",YEAR(K$4)) ->  | AB125: =IF(AB126=0,"",YEAR(AB$4)) ->  | AQ125: =IF(AQ126=0,"",YEAR(AQ$4)) -> 
C126: Replacement period for inverters | D126: =Names!$F$38 -> AUD | E126: =Inputs!$H$164 -> 2059-08-01 | I126: =SUM(J121:BL121) -> 282.0125765 | J126: =IF(AND(J4>=$E$126,J3<=$E$126),1,0) -> 0 | K126: =IF(AND(K4>=$E$126,K3<=$E$126),1,0) -> 0 | L126: =IF(AND(L4>=$E$126,L3<=$E$126),1,0) -> 0 | M126: =IF(AND(M4>=$E$126,M3<=$E$126),1,0) -> 0 | N126: =IF(AND(N4>=$E$126,N3<=$E$126),1,0) -> 0 | O126: =IF(AND(O4>=$E$126,O3<=$E$126),1,0) -> 0 | P126: =IF(AND(P4>=$E$126,P3<=$E$126),1,0) -> 0 | Q126: =IF(AND(Q4>=$E$126,Q3<=$E$126),1,0) -> 0 | R126: =IF(AND(R4>=$E$126,R3<=$E$126),1,0) -> 0 | S126: =IF(AND(S4>=$E$126,S3<=$E$126),1,0) -> 0 | T126: =IF(AND(T4>=$E$126,T3<=$E$126),1,0) -> 0 | U126: =IF(AND(U4>=$E$126,U3<=$E$126),1,0) -> 0 | V126: =IF(AND(V4>=$E$126,V3<=$E$126),1,0) -> 0 | W126: =IF(AND(W4>=$E$126,W3<=$E$126),1,0) -> 0 | X126: =IF(AND(X4>=$E$126,X3<=$E$126),1,0) -> 0 | Y126: =IF(AND(Y4>=$E$126,Y3<=$E$126),1,0) -> 0 | Z126: =IF(AND(Z4>=$E$126,Z3<=$E$126),1,0) -> 0 | AA126: =IF(AND(AA4>=$E$126,AA3<=$E$126),1,0) -> 0 | AB126: =IF(AND(AB4>=$E$126,AB3<=$E$126),1,0) -> 0 | AC126: =IF(AND(AC4>=$E$126,AC3<=$E$126),1,0) -> 0 | AD126: =IF(AND(AD4>=$E$126,AD3<=$E$126),1,0) -> 0 | AE126: =IF(AND(AE4>=$E$126,AE3<=$E$126),1,0) -> 0 | AF126: =IF(AND(AF4>=$E$126,AF3<=$E$126),1,0) -> 0 | AG126: =IF(AND(AG4>=$E$126,AG3<=$E$126),1,0) -> 0 | AH126: =IF(AND(AH4>=$E$126,AH3<=$E$126),1,0) -> 0 | AI126: =IF(AND(AI4>=$E$126,AI3<=$E$126),1,0) -> 0 | AJ126: =IF(AND(AJ4>=$E$126,AJ3<=$E$126),1,0) -> 0 | AK126: =IF(AND(AK4>=$E$126,AK3<=$E$126),1,0) -> 0 | AL126: =IF(AND(AL4>=$E$126,AL3<=$E$126),1,0) -> 0 | AM126: =IF(AND(AM4>=$E$126,AM3<=$E$126),1,0) -> 0 | AN126: =IF(AND(AN4>=$E$126,AN3<=$E$126),1,0) -> 0 | AQ126: =IF(AND(AQ4>=$E$126,AQ3<=$E$126),1,0) -> 0 | AR126: =IF(AND(AR4>=$E$126,AR3<=$E$126),1,0) -> 0 | AS126: =IF(AND(AS4>=$E$126,AS3<=$E$126),1,0) -> 0 | AT126: =IF(AND(AT4>=$E$126,AT3<=$E$126),1,0) -> 0 | AU126: =IF(AND(AU4>=$E$126,AU3<=$E$126),1,0) -> 0 | AV126: =IF(AND(AV4>=$E$126,AV3<=$E$126),1,0) -> 0 | AW126: =IF(AND(AW4>=$E$126,AW3<=$E$126),1,0) -> 0 | AX126: =IF(AND(AX4>=$E$126,AX3<=$E$126),1,0) -> 0 | AY126: =IF(AND(AY4>=$E$126,AY3<=$E$126),1,0) -> 0 | AZ126: =IF(AND(AZ4>=$E$126,AZ3<=$E$126),1,0) -> 0 | BA126: =IF(AND(BA4>=$E$126,BA3<=$E$126),1,0) -> 0 | BB126: =IF(AND(BB4>=$E$126,BB3<=$E$126),1,0) -> 0 | BC126: =IF(AND(BC4>=$E$126,BC3<=$E$126),1,0) -> 0 | BD126: =IF(AND(BD4>=$E$126,BD3<=$E$126),1,0) -> 0 | BE126: =IF(AND(BE4>=$E$126,BE3<=$E$126),1,0) -> 0 | BF126: =IF(AND(BF4>=$E$126,BF3<=$E$126),1,0) -> 0 | BG126: =IF(AND(BG4>=$E$126,BG3<=$E$126),1,0) -> 0 | BH126: =IF(AND(BH4>=$E$126,BH3<=$E$126),1,0) -> 0 | BI126: =IF(AND(BI4>=$E$126,BI3<=$E$126),1,0) -> 0 | BJ126: =IF(AND(BJ4>=$E$126,BJ3<=$E$126),1,0) -> 0 | BK126: =IF(AND(BK4>=$E$126,BK3<=$E$126),1,0) -> 0 | BL126: =IF(AND(BL4>=$E$126,BL3<=$E$126),1,0) -> 0
C127: Expentidure for inverters before inflation | D127: =Names!$F$38 -> AUD | I127: =SUM(J127:BL127) -> 0 | J127: =IF(J126=0,0,Inputs!#REF!) -> 0 | K127: =IF(K126=0,0,Inputs!#REF!) -> 0 | L127: =IF(L126=0,0,Inputs!#REF!) -> 0 | M127: =IF(M126=0,0,Inputs!#REF!) -> 0 | N127: =IF(N126=0,0,Inputs!#REF!) -> 0 | O127: =IF(O126=0,0,Inputs!#REF!) -> 0 | P127: =IF(P126=0,0,Inputs!#REF!) -> 0 | Q127: =IF(Q126=0,0,Inputs!#REF!) -> 0 | R127: =IF(R126=0,0,Inputs!#REF!) -> 0 | S127: =IF(S126=0,0,Inputs!#REF!) -> 0 | T127: =IF(T126=0,0,Inputs!#REF!) -> 0 | U127: =IF(U126=0,0,Inputs!#REF!) -> 0 | V127: =IF(V126=0,0,Inputs!#REF!) -> 0 | W127: =IF(W126=0,0,Inputs!#REF!) -> 0 | X127: =IF(X126=0,0,Inputs!#REF!) -> 0 | Y127: =IF(Y126=0,0,Inputs!#REF!) -> 0 | Z127: =IF(Z126=0,0,Inputs!#REF!) -> 0 | AA127: =IF(AA126=0,0,Inputs!#REF!) -> 0 | AB127: =IF(AB126=0,0,Inputs!$H$25) -> 0 | AC127: =IF(AC126=0,0,Inputs!#REF!) -> 0 | AD127: =IF(AD126=0,0,Inputs!#REF!) -> 0 | AE127: =IF(AE126=0,0,Inputs!#REF!) -> 0 | AF127: =IF(AF126=0,0,Inputs!#REF!) -> 0 | AG127: =IF(AG126=0,0,Inputs!#REF!) -> 0 | AH127: =IF(AH126=0,0,Inputs!#REF!) -> 0 | AI127: =IF(AI126=0,0,Inputs!#REF!) -> 0 | AJ127: =IF(AJ126=0,0,Inputs!#REF!) -> 0 | AK127: =IF(AK126=0,0,Inputs!#REF!) -> 0 | AL127: =IF(AL126=0,0,Inputs!#REF!) -> 0 | AM127: =IF(AM126=0,0,Inputs!#REF!) -> 0 | AN127: =IF(AN126=0,0,Inputs!#REF!) -> 0 | AQ127: =IF(AQ126=0,0,Inputs!#REF!) -> 0 | AR127: =IF(AR126=0,0,Inputs!#REF!) -> 0 | AS127: =IF(AS126=0,0,Inputs!#REF!) -> 0 | AT127: =IF(AT126=0,0,Inputs!#REF!) -> 0 | AU127: =IF(AU126=0,0,Inputs!#REF!) -> 0 | AV127: =IF(AV126=0,0,Inputs!#REF!) -> 0 | AW127: =IF(AW126=0,0,Inputs!#REF!) -> 0 | AX127: =IF(AX126=0,0,Inputs!#REF!) -> 0 | AY127: =IF(AY126=0,0,Inputs!#REF!) -> 0 | AZ127: =IF(AZ126=0,0,Inputs!#REF!) -> 0 | BA127: =IF(BA126=0,0,Inputs!#REF!) -> 0 | BB127: =IF(BB126=0,0,Inputs!#REF!) -> 0 | BC127: =IF(BC126=0,0,Inputs!#REF!) -> 0 | BD127: =IF(BD126=0,0,Inputs!#REF!) -> 0 | BE127: =IF(BE126=0,0,Inputs!#REF!) -> 0 | BF127: =IF(BF126=0,0,Inputs!#REF!) -> 0 | BG127: =IF(BG126=0,0,Inputs!#REF!) -> 0 | BH127: =IF(BH126=0,0,Inputs!#REF!) -> 0 | BI127: =IF(BI126=0,0,Inputs!#REF!) -> 0 | BJ127: =IF(BJ126=0,0,Inputs!#REF!) -> 0 | BK127: =IF(BK126=0,0,Inputs!#REF!) -> 0 | BL127: =IF(BL126=0,0,Inputs!#REF!) -> 0
C128: Inflation index | D128: x | J128: =IF(J$6=0,0,Timing!J39) -> 0 | K128: =IF(K$6=0,0,Timing!K39) -> 0 | L128: =IF(L$6=0,0,Timing!L39) -> 0 | M128: =IF(M$6=0,0,Timing!M39) -> 1.0225 | N128: =IF(N$6=0,0,Timing!N39) -> 1.04550625 | O128: =IF(O$6=0,0,Timing!O39) -> 1.069030141 | P128: =IF(P$6=0,0,Timing!P39) -> 1.095755894 | Q128: =IF(Q$6=0,0,Timing!Q39) -> 1.123149791 | R128: =IF(R$6=0,0,Timing!R39) -> 1.151228536 | S128: =IF(S$6=0,0,Timing!S39) -> 1.18000925 | T128: =IF(T$6=0,0,Timing!T39) -> 1.209509481 | U128: =IF(U$6=0,0,Timing!U39) -> 1.239747218 | V128: =IF(V$6=0,0,Timing!V39) -> 1.270740898 | W128: =IF(W$6=0,0,Timing!W39) -> 1.302509421 | X128: =IF(X$6=0,0,Timing!X39) -> 1.335072156 | Y128: =IF(Y$6=0,0,Timing!Y39) -> 1.36844896 | Z128: =IF(Z$6=0,0,Timing!Z39) -> 1.402660184 | AA128: =IF(AA$6=0,0,Timing!AA39) -> 1.437726689 | AB128: =IF(AB$6=0,0,Timing!AB39) -> 1.473669856 | AC128: =IF(AC$6=0,0,Timing!AC39) -> 1.510511603 | AD128: =IF(AD$6=0,0,Timing!AD39) -> 1.548274393 | AE128: =IF(AE$6=0,0,Timing!AE39) -> 1.586981252 | AF128: =IF(AF$6=0,0,Timing!AF39) -> 1.626655784 | AG128: =IF(AG$6=0,0,Timing!AG39) -> 1.667322178 | AH128: =IF(AH$6=0,0,Timing!AH39) -> 1.709005233 | AI128: =IF(AI$6=0,0,Timing!AI39) -> 1.751730364 | AJ128: =IF(AJ$6=0,0,Timing!AJ39) -> 1.795523623 | AK128: =IF(AK$6=0,0,Timing!AK39) -> 1.840411713 | AL128: =IF(AL$6=0,0,Timing!AL39) -> 0 | AM128: =IF(AM$6=0,0,Timing!AM39) -> 0 | AN128: =IF(AN$6=0,0,Timing!AN39) -> 0 | AQ128: =IF(AQ$6=0,0,Timing!AS39) -> 0 | AR128: =IF(AR$6=0,0,Timing!AT39) -> 0 | AS128: =IF(AS$6=0,0,Timing!AU39) -> 0 | AT128: =IF(AT$6=0,0,Timing!AV39) -> 0 | AU128: =IF(AU$6=0,0,Timing!AW39) -> 0 | AV128: =IF(AV$6=0,0,Timing!AX39) -> 0 | AW128: =IF(AW$6=0,0,Timing!AY39) -> 0 | AX128: =IF(AX$6=0,0,Timing!AZ39) -> 0 | AY128: =IF(AY$6=0,0,Timing!BA39) -> 0 | AZ128: =IF(AZ$6=0,0,Timing!BB39) -> 0 | BA128: =IF(BA$6=0,0,Timing!BC39) -> 0 | BB128: =IF(BB$6=0,0,Timing!BD39) -> 0 | BC128: =IF(BC$6=0,0,Timing!BE39) -> 0 | BD128: =IF(BD$6=0,0,Timing!BF39) -> 0 | BE128: =IF(BE$6=0,0,Timing!BG39) -> 0 | BF128: =IF(BF$6=0,0,Timing!BH39) -> 0 | BG128: =IF(BG$6=0,0,Timing!BI39) -> 0 | BH128: =IF(BH$6=0,0,Timing!BJ39) -> 0 | BI128: =IF(BI$6=0,0,Timing!BK39) -> 0 | BJ128: =IF(BJ$6=0,0,Timing!BL39) -> 0 | BK128: =IF(BK$6=0,0,Timing!BM39) -> 0 | BL128: =IF(BL$6=0,0,Timing!BN39) -> 0
C129: Expentidure for inverters after inflation | D129: =Names!$F$38 -> AUD | I129: =SUM(J129:BL129) -> 0 | J129: =J128*J127 -> 0 | K129: =K128*K127 -> 0 | L129: 0 | M129: 0 | N129: 0 | O129: 0 | P129: 0 | Q129: 0 | R129: 0 | S129: 0 | T129: 0 | U129: 0 | V129: 0 | W129: 0 | X129: 0 | Y129: 0 | Z129: 0 | AA129: 0 | AB129: 0 | AC129: 0 | AD129: 0 | AE129: 0 | AF129: 0 | AG129: 0 | AH129: 0 | AI129: 0 | AJ129: 0 | AK129: 0 | AL129: 0 | AM129: 0 | AN129: 0 | AQ129: =AQ128*AQ127 -> 0 | AR129: 0 | AS129: 0 | AT129: 0 | AU129: 0 | AV129: 0 | AW129: 0 | AX129: 0 | AY129: 0 | AZ129: 0 | BA129: 0 | BB129: 0 | BC129: 0 | BD129: 0 | BE129: 0 | BF129: 0 | BG129: 0 | BH129: 0 | BI129: 0 | BJ129: 0 | BK129: 0 | BL129: 0
C130: Total | D130: =Names!$F$38 -> AUD | I130: =SUM(J130:BL130) -> 0 | J130: =J129 -> 0 | K130: =K129 -> 0 | L130: 0 | M130: 0 | N130: 0 | O130: 0 | P130: 0 | Q130: 0 | R130: 0 | S130: 0 | T130: 0 | U130: 0 | V130: 0 | W130: 0 | X130: 0 | Y130: 0 | Z130: 0 | AA130: 0 | AB130: 0 | AC130: 0 | AD130: 0 | AE130: 0 | AF130: 0 | AG130: 0 | AH130: 0 | AI130: 0 | AJ130: 0 | AK130: 0 | AL130: 0 | AM130: 0 | AN130: 0 | AQ130: =AQ129 -> 0 | AR130: 0 | AS130: 0 | AT130: 0 | AU130: 0 | AV130: 0 | AW130: 0 | AX130: 0 | AY130: 0 | AZ130: 0 | BA130: 0 | BB130: 0 | BC130: 0 | BD130: 0 | BE130: 0 | BF130: 0 | BG130: 0 | BH130: 0 | BI130: 0 | BJ130: 0 | BK130: 0 | BL130: 0
B133: Decommissioning
C134: Provisions for decomission | J134: =IF(OR(J135=1,J136=1),YEAR(J4),"") ->  | K134: =IF(OR(K135=1,K136=1),YEAR(K4),"") ->  | L134: =IF(OR(L135=1,L136=1),YEAR(L4),"") ->  | M134: =IF(OR(M135=1,M136=1),YEAR(M4),"") ->  | N134: =IF(OR(N135=1,N136=1),YEAR(N4),"") ->  | O134: =IF(OR(O135=1,O136=1),YEAR(O4),"") ->  | P134: =IF(OR(P135=1,P136=1),YEAR(P4),"") ->  | Q134: =IF(OR(Q135=1,Q136=1),YEAR(Q4),"") ->  | R134: =IF(OR(R135=1,R136=1),YEAR(R4),"") ->  | S134: =IF(OR(S135=1,S136=1),YEAR(S4),"") ->  | T134: =IF(OR(T135=1,T136=1),YEAR(T4),"") ->  | U134: =IF(OR(U135=1,U136=1),YEAR(U4),"") ->  | V134: =IF(OR(V135=1,V136=1),YEAR(V4),"") ->  | W134: =IF(OR(W135=1,W136=1),YEAR(W4),"") ->  | X134: =IF(OR(X135=1,X136=1),YEAR(X4),"") ->  | Y134: =IF(OR(Y135=1,Y136=1),YEAR(Y4),"") ->  | Z134: =IF(OR(Z135=1,Z136=1),YEAR(Z4),"") ->  | AA134: =IF(OR(AA135=1,AA136=1),YEAR(AA4),"") ->  | AB134: =IF(OR(AB135=1,AB136=1),YEAR(AB4),"") ->  | AC134: =IF(OR(AC135=1,AC136=1),YEAR(AC4),"") ->  | AD134: =IF(OR(AD135=1,AD136=1),YEAR(AD4),"") ->  | AE134: =IF(OR(AE135=1,AE136=1),YEAR(AE4),"") ->  | AF134: =IF(OR(AF135=1,AF136=1),YEAR(AF4),"") ->  | AG134: =IF(OR(AG135=1,AG136=1),YEAR(AG4),"") ->  | AH134: =IF(OR(AH135=1,AH136=1),YEAR(AH4),"") ->  | AI134: =IF(OR(AI135=1,AI136=1),YEAR(AI4),"") ->  | AJ134: =IF(OR(AJ135=1,AJ136=1),YEAR(AJ4),"") ->  | AK134: =IF(OR(AK135=1,AK136=1),YEAR(AK4),"") -> 2044 | AL134: =IF(OR(AL135=1,AL136=1),YEAR(AL4),"") -> 2044 | AM134: =IF(OR(AM135=1,AM136=1),YEAR(AM4),"") -> 2045 | AN134: =IF(OR(AN135=1,AN136=1),YEAR(AN4),"") -> 2045 | AQ134: =IF(AQ135=0,"",YEAR(AQ$4)) ->  | AR134: =IF(AR135=0,"",YEAR(AR$4)) ->  | AS134: =IF(AS135=0,"",YEAR(AS$4)) ->  | AT134: =IF(AT135=0,"",YEAR(AT$4)) ->  | AU134: =IF(AU135=0,"",YEAR(AU$4)) ->  | AV134: =IF(AV135=0,"",YEAR(AV$4)) ->  | AW134: =IF(AW135=0,"",YEAR(AW$4)) ->  | AX134: =IF(AX135=0,"",YEAR(AX$4)) ->  | AY134: =IF(AY135=0,"",YEAR(AY$4)) ->  | AZ134: =IF(AZ135=0,"",YEAR(AZ$4)) ->  | BA134: =IF(BA135=0,"",YEAR(BA$4)) ->  | BB134: =IF(BB135=0,"",YEAR(BB$4)) ->  | BC134: =IF(BC135=0,"",YEAR(BC$4)) ->  | BD134: =IF(BD135=0,"",YEAR(BD$4)) ->  | BE134: =IF(BE135=0,"",YEAR(BE$4)) ->  | BF134: =IF(BF135=0,"",YEAR(BF$4)) ->  | BG134: =IF(BG135=0,"",YEAR(BG$4)) ->  | BH134: =IF(BH135=0,"",YEAR(BH$4)) ->  | BI134: =IF(BI135=0,"",YEAR(BI$4)) ->  | BJ134: =IF(BJ135=0,"",YEAR(BJ$4)) ->  | BK134: =IF(BK135=0,"",YEAR(BK$4)) ->  | BL134: =IF(BL135=0,"",YEAR(BL$4)) ->  | BM134: =IF(BM135=0,"",YEAR(BM$4)) -> 
C135: Decommission period flag | D135: =Names!$F$38 -> AUD | E135: =Inputs!$E$61 -> 2044-07-31 | I135: =COUNTIF(J135:AN135,1) -> 3 | J135: =IF(J7=0,0,1) -> 0 | K135: =IF(K7=0,0,1) -> 0 | L135: =IF(L7=0,0,1) -> 0 | M135: =IF(M7=0,0,1) -> 0 | N135: =IF(N7=0,0,1) -> 0 | O135: =IF(O7=0,0,1) -> 0 | P135: =IF(P7=0,0,1) -> 0 | Q135: =IF(Q7=0,0,1) -> 0 | R135: =IF(R7=0,0,1) -> 0 | S135: =IF(S7=0,0,1) -> 0 | T135: =IF(T7=0,0,1) -> 0 | U135: =IF(U7=0,0,1) -> 0 | V135: =IF(V7=0,0,1) -> 0 | W135: =IF(W7=0,0,1) -> 0 | X135: =IF(X7=0,0,1) -> 0 | Y135: =IF(Y7=0,0,1) -> 0 | Z135: =IF(Z7=0,0,1) -> 0 | AA135: =IF(AA7=0,0,1) -> 0 | AB135: =IF(AB7=0,0,1) -> 0 | AC135: =IF(AC7=0,0,1) -> 0 | AD135: =IF(AD7=0,0,1) -> 0 | AE135: =IF(AE7=0,0,1) -> 0 | AF135: =IF(AF7=0,0,1) -> 0 | AG135: =IF(AG7=0,0,1) -> 0 | AH135: =IF(AH7=0,0,1) -> 0 | AI135: =IF(AI7=0,0,1) -> 0 | AJ135: =IF(AJ7=0,0,1) -> 0 | AK135: =IF(AK7=0,0,1) -> 0 | AL135: =IF(AL7=0,0,1) -> 1 | AM135: =IF(AM7=0,0,1) -> 1 | AN135: =IF(AN7=0,0,1) -> 1 | AQ135: =IF(AND(AQ4>=$E$135,AQ3<=$E$135),1,0) -> 0 | AR135: =IF(AND(AR4>=$E$135,AR3<=$E$135),1,0) -> 0 | AS135: =IF(AND(AS4>=$E$135,AS3<=$E$135),1,0) -> 0 | AT135: =IF(AND(AT4>=$E$135,AT3<=$E$135),1,0) -> 0 | AU135: =IF(AND(AU4>=$E$135,AU3<=$E$135),1,0) -> 0 | AV135: =IF(AND(AV4>=$E$135,AV3<=$E$135),1,0) -> 0 | AW135: =IF(AND(AW4>=$E$135,AW3<=$E$135),1,0) -> 0 | AX135: =IF(AND(AX4>=$E$135,AX3<=$E$135),1,0) -> 0 | AY135: =IF(AND(AY4>=$E$135,AY3<=$E$135),1,0) -> 0 | AZ135: =IF(AND(AZ4>=$E$135,AZ3<=$E$135),1,0) -> 0 | BA135: =IF(AND(BA4>=$E$135,BA3<=$E$135),1,0) -> 0 | BB135: =IF(AND(BB4>=$E$135,BB3<=$E$135),1,0) -> 0 | BC135: =IF(AND(BC4>=$E$135,BC3<=$E$135),1,0) -> 0 | BD135: =IF(AND(BD4>=$E$135,BD3<=$E$135),1,0) -> 0 | BE135: =IF(AND(BE4>=$E$135,BE3<=$E$135),1,0) -> 0 | BF135: =IF(AND(BF4>=$E$135,BF3<=$E$135),1,0) -> 0 | BG135: =IF(AND(BG4>=$E$135,BG3<=$E$135),1,0) -> 0 | BH135: =IF(AND(BH4>=$E$135,BH3<=$E$135),1,0) -> 0 | BI135: =IF(AND(BI4>=$E$135,BI3<=$E$135),1,0) -> 0 | BJ135: =IF(AND(BJ4>=$E$135,BJ3<=$E$135),1,0) -> 0 | BK135: =IF(AND(BK4>=$E$135,BK3<=$E$135),1,0) -> 0 | BL135: =IF(AND(BL4>=$E$135,BL3<=$E$135),1,0) -> 0
C136: Decomission fund alllowance flag | J136: =IF(AND(J3>=Inputs!$H$62,Operations!J4<=Inputs!$J$62),1,0) -> 0 | K136: =IF(AND(K3>=Inputs!$H$62,Operations!K4<=Inputs!$J$62),1,0) -> 0 | L136: =IF(AND(L3>=Inputs!$H$62,Operations!L4<=Inputs!$J$62),1,0) -> 0 | M136: =IF(AND(M3>=Inputs!$H$62,Operations!M4<=Inputs!$J$62),1,0) -> 0 | N136: =IF(AND(N3>=Inputs!$H$62,Operations!N4<=Inputs!$J$62),1,0) -> 0 | O136: =IF(AND(O3>=Inputs!$H$62,Operations!O4<=Inputs!$J$62),1,0) -> 0 | P136: =IF(AND(P3>=Inputs!$H$62,Operations!P4<=Inputs!$J$62),1,0) -> 0 | Q136: =IF(AND(Q3>=Inputs!$H$62,Operations!Q4<=Inputs!$J$62),1,0) -> 0 | R136: =IF(AND(R3>=Inputs!$H$62,Operations!R4<=Inputs!$J$62),1,0) -> 0 | S136: =IF(AND(S3>=Inputs!$H$62,Operations!S4<=Inputs!$J$62),1,0) -> 0 | T136: =IF(AND(T3>=Inputs!$H$62,Operations!T4<=Inputs!$J$62),1,0) -> 0 | U136: =IF(AND(U3>=Inputs!$H$62,Operations!U4<=Inputs!$J$62),1,0) -> 0 | V136: =IF(AND(V3>=Inputs!$H$62,Operations!V4<=Inputs!$J$62),1,0) -> 0 | W136: =IF(AND(W3>=Inputs!$H$62,Operations!W4<=Inputs!$J$62),1,0) -> 0 | X136: =IF(AND(X3>=Inputs!$H$62,Operations!X4<=Inputs!$J$62),1,0) -> 0 | Y136: =IF(AND(Y3>=Inputs!$H$62,Operations!Y4<=Inputs!$J$62),1,0) -> 0 | Z136: =IF(AND(Z3>=Inputs!$H$62,Operations!Z4<=Inputs!$J$62),1,0) -> 0 | AA136: =IF(AND(AA3>=Inputs!$H$62,Operations!AA4<=Inputs!$J$62),1,0) -> 0 | AB136: =IF(AND(AB3>=Inputs!$H$62,Operations!AB4<=Inputs!$J$62),1,0) -> 0 | AC136: =IF(AND(AC3>=Inputs!$H$62,Operations!AC4<=Inputs!$J$62),1,0) -> 0 | AD136: =IF(AND(AD3>=Inputs!$H$62,Operations!AD4<=Inputs!$J$62),1,0) -> 0 | AE136: =IF(AND(AE3>=Inputs!$H$62,Operations!AE4<=Inputs!$J$62),1,0) -> 0 | AF136: =IF(AND(AF3>=Inputs!$H$62,Operations!AF4<=Inputs!$J$62),1,0) -> 0 | AG136: =IF(AND(AG3>=Inputs!$H$62,Operations!AG4<=Inputs!$J$62),1,0) -> 0 | AH136: =IF(AND(AH3>=Inputs!$H$62,Operations!AH4<=Inputs!$J$62),1,0) -> 0 | AI136: =IF(AND(AI3>=Inputs!$H$62,Operations!AI4<=Inputs!$J$62),1,0) -> 0 | AJ136: =IF(AND(AJ3>=Inputs!$H$62,Operations!AJ4<=Inputs!$J$62),1,0) -> 0 | AK136: =IF(AND(AK3>=Inputs!$H$62,Operations!AK4<=Inputs!$J$62),1,0) -> 1 | AL136: =IF(AND(AL3>=Inputs!$H$62,Operations!AL4<=Inputs!$J$62),1,0) -> 0 | AM136: =IF(AND(AM3>=Inputs!$H$62,Operations!AM4<=Inputs!$J$62),1,0) -> 0 | AN136: =IF(AND(AN3>=Inputs!$H$62,Operations!AN4<=Inputs!$J$62),1,0) -> 0
C137: Balance b/f | D137: =Names!$F$38 -> AUD | J137: =I140 -> 0 | K137: =J140 -> 0 | L137: 0 | M137: 0 | N137: 0 | O137: 0 | P137: 0 | Q137: 0 | R137: 0 | S137: 0 | T137: 0 | U137: 0 | V137: 0 | W137: 0 | X137: 0 | Y137: 0 | Z137: 0 | AA137: 0 | AB137: 0 | AC137: 0 | AD137: 0 | AE137: 0 | AF137: 0 | AG137: 0 | AH137: 0 | AI137: 0 | AJ137: 0 | AK137: 0 | AL137: 10 | AM137: 6.666666667 | AN137: 3.333333333 | AQ137: =AP140 -> 0
C138: decomission fund allowance | D138: =Names!$F$38 -> AUD | E138: 10 | I138: =SUM(J138:AN138) -> 10 | J138: =$E$138*J136 -> 0 | K138: =$E$138*K136 -> 0 | L138: 0 | M138: 0 | N138: 0 | O138: 0 | P138: 0 | Q138: 0 | R138: 0 | S138: 0 | T138: 0 | U138: 0 | V138: 0 | W138: 0 | X138: 0 | Y138: 0 | Z138: 0 | AA138: 0 | AB138: 0 | AC138: 0 | AD138: 0 | AE138: 0 | AF138: 0 | AG138: 0 | AH138: 0 | AI138: 0 | AJ138: 0 | AK138: 10 | AL138: 0 | AM138: 0 | AN138: 0 | AQ138: =AQ135*$E$138 -> 0 | AR138: 0 | AS138: 0 | AT138: 0 | AU138: 0 | AV138: 0 | AW138: 0 | AX138: 0 | AY138: 0 | AZ138: 0 | BA138: 0 | BB138: 0 | BC138: 0 | BD138: 0 | BE138: 0 | BF138: 0 | BG138: 0 | BH138: 0 | BI138: 0 | BJ138: 0 | BK138: 0 | BL138: 0 | BM138: 0
C139: Initial decommission provision | D139: =Names!$F$38 -> AUD | E139: =E138/I135 -> 3.333333333 | I139: =SUM(J139:BM139) -> -10 | J139: =-J135*$E$139 -> 0 | K139: =-K135*$E$139 -> 0 | L139: 0 | M139: 0 | N139: 0 | O139: 0 | P139: 0 | Q139: 0 | R139: 0 | S139: 0 | T139: 0 | U139: 0 | V139: 0 | W139: 0 | X139: 0 | Y139: 0 | Z139: 0 | AA139: 0 | AB139: 0 | AC139: 0 | AD139: 0 | AE139: 0 | AF139: 0 | AG139: 0 | AH139: 0 | AI139: 0 | AJ139: 0 | AK139: 0 | AL139: -3.333333333 | AM139: -3.333333333 | AN139: -3.333333333 | AQ139: =$E$139*AQ135 -> 0 | AR139: 0 | AS139: 0 | AT139: 0 | AU139: 0 | AV139: 0 | AW139: 0 | AX139: 0 | AY139: 0 | AZ139: 0 | BA139: 0 | BB139: 0 | BC139: 0 | BD139: 0 | BE139: 0 | BF139: 0 | BG139: 0 | BH139: 0 | BI139: 0 | BJ139: 0 | BK139: 0 | BL139: 0 | BM139: 0
C140: Balance c/f | D140: =Names!$F$38 -> AUD | J140: =SUM(J137:J139) -> 0 | K140: =SUM(K137:K139) -> 0 | L140: 0 | M140: 0 | N140: 0 | O140: 0 | P140: 0 | Q140: 0 | R140: 0 | S140: 0 | T140: 0 | U140: 0 | V140: 0 | W140: 0 | X140: 0 | Y140: 0 | Z140: 0 | AA140: 0 | AB140: 0 | AC140: 0 | AD140: 0 | AE140: 0 | AF140: 0 | AG140: 0 | AH140: 0 | AI140: 0 | AJ140: 0 | AK140: 10 | AL140: 6.666666667 | AM140: 3.333333333 | AN140: 0 | AQ140: =#REF! ->  | AR140: =#REF! ->  | AS140: =#REF! ->  | AT140: =#REF! ->  | AU140: =#REF! ->  | AV140: =#REF! ->  | AW140: =#REF! ->  | AX140: =#REF! ->  | AY140: =#REF! ->  | AZ140: =#REF! ->  | BA140: =#REF! ->  | BB140: =#REF! ->  | BC140: =#REF! ->  | BD140: =#REF! ->  | BE140: =#REF! ->  | BF140: =#REF! ->  | BG140: =#REF! ->  | BH140: =#REF! ->  | BI140: =#REF! ->  | BJ140: =#REF! ->  | BK140: =#REF! ->  | BL140: =#REF! -> 
C142: Accounting treatment for decomission
C143: Cash flows | D143: AUD M | I143: =SUM(J143:BM143) -> 10 | J143: =-J139 -> 0 | K143: =-K139 -> 0 | L143: 0 | M143: 0 | N143: 0 | O143: 0 | P143: 0 | Q143: 0 | R143: 0 | S143: 0 | T143: 0 | U143: 0 | V143: 0 | W143: 0 | X143: 0 | Y143: 0 | Z143: 0 | AA143: 0 | AB143: 0 | AC143: 0 | AD143: 0 | AE143: 0 | AF143: 0 | AG143: 0 | AH143: 0 | AI143: 0 | AJ143: 0 | AK143: 0 | AL143: 3.333333333 | AM143: 3.333333333 | AN143: 3.333333333 | AQ143: 0 | AR143: 0 | AS143: 0 | AT143: 0 | AU143: 0 | AV143: 0 | AW143: 0 | AX143: 0 | AY143: 0 | AZ143: 0 | BA143: 0 | BB143: =-BB139 -> 0 | BC143: 0 | BD143: 0 | BE143: 0 | BF143: 0 | BG143: 0 | BH143: 0 | BI143: 0 | BJ143: 0 | BK143: 0 | BL143: 0 | BM143: 0
C144: Pre-tax discount rate | D144: AUD M | J144: =Timing!J35 -> 0.01745205479 | K144: =Timing!K35 -> 0.01706849315 | L144: =Timing!L35 -> 0.01764383562 | M144: =Timing!M35 -> 0.07019178082 | N144: =Timing!N35 -> 0.07 | O144: =Timing!O35 -> 0.07 | P144: =Timing!P35 -> 0.07 | Q144: =Timing!Q35 -> 0.07019178082 | R144: =Timing!R35 -> 0.07 | S144: =Timing!S35 -> 0.07 | T144: =Timing!T35 -> 0.07 | U144: =Timing!U35 -> 0.07019178082 | V144: =Timing!V35 -> 0.07 | W144: =Timing!W35 -> 0.07 | X144: =Timing!X35 -> 0.07 | Y144: =Timing!Y35 -> 0.07019178082 | Z144: =Timing!Z35 -> 0.07 | AA144: =Timing!AA35 -> 0.07 | AB144: =Timing!AB35 -> 0.07 | AC144: =Timing!AC35 -> 0.07019178082 | AD144: =Timing!AD35 -> 0.07 | AE144: =Timing!AE35 -> 0.07 | AF144: =Timing!AF35 -> 0.07 | AG144: =Timing!AG35 -> 0.07019178082 | AH144: =Timing!AH35 -> 0.07 | AI144: =Timing!AI35 -> 0.07 | AJ144: =Timing!AJ35 -> 0.07 | AK144: =Timing!AK35 -> 0.07019178082 | AL144: =Timing!AL35 -> 0.01764383562 | AM144: =Timing!AM35 -> 0.01764383562 | AN144: =Timing!AN35 -> 0.01706849315 | AQ144: =[3]Timing!#REF! ->  | AR144: =[3]Timing!#REF! ->  | AS144: =[3]Timing!#REF! ->  | AT144: =[3]Timing!#REF! ->  | AU144: =[3]Timing!#REF! ->  | AV144: =[3]Timing!#REF! ->  | AW144: =[3]Timing!#REF! ->  | AX144: =[3]Timing!#REF! ->  | AY144: =[3]Timing!#REF! ->  | AZ144: =[3]Timing!#REF! ->  | BA144: =[3]Timing!#REF! ->  | BB144: =[3]Timing!#REF! ->  | BC144: =[3]Timing!#REF! ->  | BD144: =[3]Timing!#REF! ->  | BE144: =[3]Timing!#REF! ->  | BF144: =[3]Timing!#REF! ->  | BG144: =[3]Timing!#REF! ->  | BH144: =[3]Timing!#REF! ->  | BI144: =[3]Timing!#REF! ->  | BJ144: =[3]Timing!#REF! ->  | BK144: =[3]Timing!#REF! ->  | BL144: =[3]Timing!#REF! ->  | BM144: =[3]Timing!#REF! ->  | BO144: =BN149*#REF! ->  | BP144: =BO149*#REF! ->  | BQ144: =BP149*#REF! -> 
C145: Restoration provision | D145: AUD M | J145: =(K145+K143)/(1+K144) -> 1.717306612 | K145: =(L145+L143)/(1+L144) -> 1.746618448 | L145: 1.777435497 | M145: 1.90219686 | N145: 2.03535064 | O145: 2.177825185 | P145: 2.330272948 | Q145: 2.493838956 | R145: 2.668407683 | S145: 2.85519622 | T145: 3.055059956 | U145: 3.269500055 | V145: 3.498365059 | W145: 3.743250613 | X145: 4.005278155 | Y145: 4.286415762 | Z145: 4.586464865 | AA145: 4.907517406 | AB145: 5.251043624 | AC145: 5.619623727 | AD145: 6.012997388 | AE145: 6.433907205 | AF145: 6.88428071 | AG145: 7.367500633 | AH145: 7.883225677 | AI145: 8.435051474 | AJ145: 9.025505077 | AK145: 9.659021352 | AL145: 6.496110203 | AM145: 3.27739317 | AN145: =(AO145+AO143)/(1+AO144) -> 0 | BM145: 0 | BO145: =BO15 -> 0 | BP145: =BP15 -> 0 | BQ145: =BQ15 -> 0
C146: Initial restoration provistion | D146: AUD M | E146: =$D$6-1 -> 2019-07-31 | I146: =SUM(J146:AO146) -> 1.777435497 | J146: =IF(J4=$E146,J145,0) -> 0 | K146: =IF(K4=$E146,K145,0) -> 0 | L146: =IF(L4=$E146,L145,0) -> 1.777435497 | M146: =IF(M4=$E146,M145,0) -> 0 | N146: =IF(N4=$E146,N145,0) -> 0 | O146: =IF(O4=$E146,O145,0) -> 0 | P146: =IF(P4=$E146,P145,0) -> 0 | Q146: =IF(Q4=$E146,Q145,0) -> 0 | R146: =IF(R4=$E146,R145,0) -> 0 | S146: =IF(S4=$E146,S145,0) -> 0 | T146: =IF(T4=$E146,T145,0) -> 0 | U146: =IF(U4=$E146,U145,0) -> 0 | V146: =IF(V4=$E146,V145,0) -> 0 | W146: =IF(W4=$E146,W145,0) -> 0 | X146: =IF(X4=$E146,X145,0) -> 0 | Y146: =IF(Y4=$E146,Y145,0) -> 0 | Z146: =IF(Z4=$E146,Z145,0) -> 0 | AA146: =IF(AA4=$E146,AA145,0) -> 0 | AB146: =IF(AB4=$E146,AB145,0) -> 0 | AC146: =IF(AC4=$E146,AC145,0) -> 0 | AD146: =IF(AD4=$E146,AD145,0) -> 0 | AE146: =IF(AE4=$E146,AE145,0) -> 0 | AF146: =IF(AF4=$E146,AF145,0) -> 0 | AG146: =IF(AG4=$E146,AG145,0) -> 0 | AH146: =IF(AH4=$E146,AH145,0) -> 0 | AI146: =IF(AI4=$E146,AI145,0) -> 0 | AJ146: =IF(AJ4=$E146,AJ145,0) -> 0 | AK146: =IF(AK4=$E146,AK145,0) -> 0 | AL146: =IF(AL4=$E146,AL145,0) -> 0 | AM146: =IF(AM4=$E146,AM145,0) -> 0 | AN146: =IF(AN4=$E146,AN145,0) -> 0 | AQ146: =IF(#REF!=$E146,AQ145,0) ->  | AR146: =IF(#REF!=$E146,AR145,0) ->  | AS146: =IF(#REF!=$E146,AS145,0) ->  | AT146: =IF(#REF!=$E146,AT145,0) ->  | AU146: =IF(#REF!=$E146,AU145,0) ->  | AV146: =IF(#REF!=$E146,AV145,0) ->  | AW146: =IF(#REF!=$E146,AW145,0) ->  | AX146: =IF(#REF!=$E146,AX145,0) ->  | AY146: =IF(#REF!=$E146,AY145,0) ->  | AZ146: =IF(#REF!=$E146,AZ145,0) ->  | BA146: =IF(#REF!=$E146,BA145,0) ->  | BB146: =IF(#REF!=$E146,BB145,0) ->  | BC146: =IF(#REF!=$E146,BC145,0) ->  | BD146: =IF(#REF!=$E146,BD145,0) ->  | BE146: =IF(#REF!=$E146,BE145,0) ->  | BF146: =IF(#REF!=$E146,BF145,0) ->  | BG146: =IF(#REF!=$E146,BG145,0) ->  | BH146: =IF(#REF!=$E146,BH145,0) ->  | BI146: =IF(#REF!=$E146,BI145,0) ->  | BJ146: =IF(#REF!=$E146,BJ145,0) ->  | BK146: =IF(#REF!=$E146,BK145,0) ->  | BL146: =IF(#REF!=$E146,BL145,0) ->  | BM146: =IF(#REF!=$E146,BM145,0) -> 
C147: Rolled forward restoration provision | D147: AUD M | J147: =J145*SUM(J6,J7) -> 0 | K147: =K145*SUM(K6,K7) -> 0 | L147: =L145*SUM(L6,L7) -> 0 | M147: =M145*SUM(M6,M7) -> 1.90219686 | N147: =N145*SUM(N6,N7) -> 2.03535064 | O147: =O145*SUM(O6,O7) -> 2.177825185 | P147: =P145*SUM(P6,P7) -> 2.330272948 | Q147: =Q145*SUM(Q6,Q7) -> 2.493838956 | R147: =R145*SUM(R6,R7) -> 2.668407683 | S147: =S145*SUM(S6,S7) -> 2.85519622 | T147: =T145*SUM(T6,T7) -> 3.055059956 | U147: =U145*SUM(U6,U7) -> 3.269500055 | V147: =V145*SUM(V6,V7) -> 3.498365059 | W147: =W145*SUM(W6,W7) -> 3.743250613 | X147: =X145*SUM(X6,X7) -> 4.005278155 | Y147: =Y145*SUM(Y6,Y7) -> 4.286415762 | Z147: =Z145*SUM(Z6,Z7) -> 4.586464865 | AA147: =AA145*SUM(AA6,AA7) -> 4.907517406 | AB147: =AB145*SUM(AB6,AB7) -> 5.251043624 | AC147: =AC145*SUM(AC6,AC7) -> 5.619623727 | AD147: =AD145*SUM(AD6,AD7) -> 6.012997388 | AE147: =AE145*SUM(AE6,AE7) -> 6.433907205 | AF147: =AF145*SUM(AF6,AF7) -> 6.88428071 | AG147: =AG145*SUM(AG6,AG7) -> 7.367500633 | AH147: =AH145*SUM(AH6,AH7) -> 7.883225677 | AI147: =AI145*SUM(AI6,AI7) -> 8.435051474 | AJ147: =AJ145*SUM(AJ6,AJ7) -> 9.025505077 | AK147: =AK145*SUM(AK6,AK7) -> 9.659021352 | AL147: =AL145*SUM(AL6,AL7) -> 6.496110203 | AM147: =AM145*SUM(AM6,AM7) -> 3.27739317 | AN147: =AN145*SUM(AN6,AN7) -> 0 | AQ147: =AQ145*SUM(#REF!,#REF!) ->  | AR147: =AR145*SUM(#REF!,#REF!) ->  | AS147: =AS145*SUM(#REF!,#REF!) ->  | AT147: =AT145*SUM(#REF!,#REF!) ->  | AU147: =AU145*SUM(#REF!,#REF!) ->  | AV147: =AV145*SUM(#REF!,#REF!) ->  | AW147: =AW145*SUM(#REF!,#REF!) ->  | AX147: =AX145*SUM(#REF!,#REF!) ->  | AY147: =AY145*SUM(#REF!,#REF!) ->  | AZ147: =AZ145*SUM(#REF!,#REF!) ->  | BA147: =BA145*SUM(#REF!,#REF!) ->  | BB147: =BB145*SUM(#REF!,#REF!) ->  | BC147: =BC145*SUM(#REF!,#REF!) ->  | BD147: =BD145*SUM(#REF!,#REF!) ->  | BE147: =BE145*SUM(#REF!,#REF!) ->  | BF147: =BF145*SUM(#REF!,#REF!) ->  | BG147: =BG145*SUM(#REF!,#REF!) ->  | BH147: =BH145*SUM(#REF!,#REF!) ->  | BI147: =BI145*SUM(#REF!,#REF!) ->  | BJ147: =BJ145*SUM(#REF!,#REF!) ->  | BK147: =BK145*SUM(#REF!,#REF!) ->  | BL147: =BL145*SUM(#REF!,#REF!) ->  | BM147: =BM145*SUM(#REF!,#REF!) -> 
C148: Reported restoration provision | D148: AUD M | J148: =J146+J147 -> 0 | K148: =K146+K147 -> 0 | L148: 1.777435497 | M148: 1.90219686 | N148: 2.03535064 | O148: 2.177825185 | P148: 2.330272948 | Q148: 2.493838956 | R148: 2.668407683 | S148: 2.85519622 | T148: 3.055059956 | U148: 3.269500055 | V148: 3.498365059 | W148: 3.743250613 | X148: 4.005278155 | Y148: 4.286415762 | Z148: 4.586464865 | AA148: 4.907517406 | AB148: 5.251043624 | AC148: 5.619623727 | AD148: 6.012997388 | AE148: 6.433907205 | AF148: 6.88428071 | AG148: 7.367500633 | AH148: 7.883225677 | AI148: 8.435051474 | AJ148: 9.025505077 | AK148: 9.659021352 | AL148: 6.496110203 | AM148: 3.27739317 | AN148: 0 | BO148: =-((BO2-$E$166)/BO2*BO145+BO144) ->  | BP148: =-((BP2-$E$166)/BP2*BP145+BP144) ->  | BQ148: =-((BQ2-$E$166)/BQ2*BQ145+BQ144) -> 
C149: Rollforward of decommissioning provision | D149: AUD M | I149: =SUM(J149:AN149) -> 8.222564503 | J149: =I148*Timing!J35 -> 0 | K149: =J148*Timing!K35 -> 0 | L149: =K148*Timing!L35 -> 0 | M149: =L148*Timing!M35 -> 0.1247613628 | N149: =M148*Timing!N35 -> 0.1331537802 | O149: =N148*Timing!O35 -> 0.1424745448 | P149: =O148*Timing!P35 -> 0.1524477629 | Q149: =P148*Timing!Q35 -> 0.163566008 | R149: =Q148*Timing!R35 -> 0.1745687269 | S149: =R148*Timing!S35 -> 0.1867885378 | T149: =S148*Timing!T35 -> 0.1998637354 | U149: =T148*Timing!U35 -> 0.2144400988 | V149: =U148*Timing!V35 -> 0.2288650038 | W149: =V148*Timing!W35 -> 0.2448855541 | X149: =W148*Timing!X35 -> 0.2620275429 | Y149: =X148*Timing!Y35 -> 0.2811376064 | Z149: =Y148*Timing!Z35 -> 0.3000491033 | AA149: =Z148*Timing!AA35 -> 0.3210525406 | AB149: =AA148*Timing!AB35 -> 0.3435262184 | AC149: =AB148*Timing!AC35 -> 0.3685801032 | AD149: =AC148*Timing!AD35 -> 0.3933736609 | AE149: =AD148*Timing!AE35 -> 0.4209098172 | AF149: =AE148*Timing!AF35 -> 0.4503735044 | AG149: =AF148*Timing!AG35 -> 0.4832199227 | AH149: =AG148*Timing!AH35 -> 0.5157250443 | AI149: =AH148*Timing!AI35 -> 0.5518257974 | AJ149: =AI148*Timing!AJ35 -> 0.5904536032 | AK149: =AJ148*Timing!AK35 -> 0.6335162742 | AL149: =AK148*Timing!AL35 -> 0.1704221849 | AM149: =AL148*Timing!AM35 -> 0.1146163006 | AN149: =AM148*Timing!AN35 -> 0.05594016288 | AQ149: =AP148*AQ144 ->  | BO149: =SUM(BO144:BO148) ->  | BP149: =SUM(BP144:BP148) ->  | BQ149: =SUM(BQ144:BQ148) -> 
C150: Check | D150: Check | I150: =ROUND(I146+I149-I143,Rounding_Tolerance) -> 0

Sheet Cons
A1: Construction
C3: Period Start | J3: =IF(I4>=$E$6,"",I4+1) -> 2018-11-02 | K3: =IF(J4>=$E$6,"",J4+1) -> 2019-02-01 | L3: 2019-05-01 | M3: 2019-08-01 | N3: 2020-08-01 | O3: 2021-08-01 | P3: 2022-08-01 | Q3: 2023-08-01 | R3: 2024-08-01 | S3: 2025-08-01 | T3: 2026-08-01 | U3: 2027-08-01 | V3: 2028-08-01 | W3: 2029-08-01 | X3: 2030-08-01 | Y3: 2031-08-01 | Z3: 2032-08-01 | AA3: 2033-08-01 | AB3: 2034-08-01 | AC3: 2035-08-01 | AD3: 2036-08-01 | AE3: 2037-08-01 | AF3: 2038-08-01 | AG3: 2039-08-01 | AH3: 2040-08-01 | AI3: 2041-08-01 | AJ3: 2042-08-01 | AK3: 2043-08-01
C4: Period End | I4: =Inputs!$H$9 -> 2018-11-01 | J4: =IF(J3="","",IF(J3>=$D$6,EOMONTH(J3,Months_Yr-1),EOMONTH(J3,Months_Qtr-1))) -> 2019-01-31 | K4: 2019-04-30 | L4: 2019-07-31 | M4: 2020-07-31 | N4: 2021-07-31 | O4: 2022-07-31 | P4: 2023-07-31 | Q4: 2024-07-31 | R4: 2025-07-31 | S4: 2026-07-31 | T4: 2027-07-31 | U4: 2028-07-31 | V4: 2029-07-31 | W4: 2030-07-31 | X4: 2031-07-31 | Y4: 2032-07-31 | Z4: 2033-07-31 | AA4: 2034-07-31 | AB4: 2035-07-31 | AC4: 2036-07-31 | AD4: 2037-07-31 | AE4: 2038-07-31 | AF4: 2039-07-31 | AG4: 2040-07-31 | AH4: 2041-07-31 | AI4: 2042-07-31 | AJ4: 2043-07-31 | AK4: 2044-07-31
C5: =[1]Inputs!$I$6 -> Construction | D5: =Inputs!$I$7 -> 2018-11-01 | E5: =Inputs!$I$9 -> 2019-07-31 | J5: =IF(AND(J$3>=$D5,J$4<=$E5),1,0) -> 1 | K5: 1 | L5: 1 | M5: 0 | N5: 0 | O5: 0 | P5: 0 | Q5: 0 | R5: 0 | S5: 0 | T5: 0 | U5: 0 | V5: 0 | W5: 0 | X5: 0 | Y5: 0 | Z5: 0 | AA5: 0 | AB5: 0 | AC5: 0 | AD5: 0 | AE5: 0 | AF5: 0 | AG5: 0 | AH5: 0 | AI5: 0 | AJ5: 0 | AK5: 0
C6: =[1]Inputs!$J$6 -> Operations | D6: =Inputs!$J$7 -> 2019-08-01 | E6: =Inputs!$J$9 -> 2044-07-31 | J6: =IF(AND(J$3>=$D6,J$4<=$E6),1,0) -> 0 | K6: 0 | L6: 0 | M6: 1 | N6: 1 | O6: 1 | P6: 1 | Q6: 1 | R6: 1 | S6: 1 | T6: 1 | U6: 1 | V6: 1 | W6: 1 | X6: 1 | Y6: 1 | Z6: 1 | AA6: 1 | AB6: 1 | AC6: 1 | AD6: 1 | AE6: 1 | AF6: 1 | AG6: 1 | AH6: 1 | AI6: 1 | AJ6: 1 | AK6: 1
C8: Counters
C10: Construction Quarter | D10: Num# | J10: =SUM($J5:J5)*J5 -> 1 | K10: =SUM($J5:K5)*K5 -> 2 | L10: =SUM($J5:L5)*L5 -> 3 | M10: =SUM($J5:M5)*M5 -> 0 | N10: =SUM($J5:N5)*N5 -> 0 | O10: =SUM($J5:O5)*O5 -> 0 | P10: =SUM($J5:P5)*P5 -> 0 | Q10: =SUM($J5:Q5)*Q5 -> 0 | R10: =SUM($J5:R5)*R5 -> 0 | S10: =SUM($J5:S5)*S5 -> 0 | T10: =SUM($J5:T5)*T5 -> 0 | U10: =SUM($J5:U5)*U5 -> 0 | V10: =SUM($J5:V5)*V5 -> 0 | W10: =SUM($J5:W5)*W5 -> 0 | X10: =SUM($J5:X5)*X5 -> 0 | Y10: =SUM($J5:Y5)*Y5 -> 0 | Z10: =SUM($J5:Z5)*Z5 -> 0 | AA10: =SUM($J5:AA5)*AA5 -> 0 | AB10: =SUM($J5:AB5)*AB5 -> 0 | AC10: =SUM($J5:AC5)*AC5 -> 0 | AD10: =SUM($J5:AD5)*AD5 -> 0 | AE10: =SUM($J5:AE5)*AE5 -> 0 | AF10: =SUM($J5:AF5)*AF5 -> 0 | AG10: =SUM($J5:AG5)*AG5 -> 0 | AH10: =SUM($J5:AH5)*AH5 -> 0 | AI10: =SUM($J5:AI5)*AI5 -> 0 | AJ10: =SUM($J5:AJ5)*AJ5 -> 0 | AK10: =SUM($J5:AK5)*AK5 -> 0
C11: Construction Year | D11: Num# | J11: =ROUNDUP(J10/Qtrs_Yr,0) -> 1 | K11: =ROUNDUP(K10/Qtrs_Yr,0) -> 1 | L11: 1 | M11: 0 | N11: 0 | O11: =ROUNDUP(O10/Qtrs_Yr,0) -> 0 | P11: 0 | Q11: 0 | R11: 0 | S11: 0 | T11: 0 | U11: 0 | V11: 0 | W11: 0 | X11: 0 | Y11: 0 | Z11: 0 | AA11: 0 | AB11: 0 | AC11: 0 | AD11: 0 | AE11: 0 | AF11: 0 | AG11: 0 | AH11: 0 | AI11: 0 | AJ11: 0 | AK11: 0
C12: Operations Quarter | D12: Num# | J12: =SUM($J6:J6)*J6 -> 0 | K12: =SUM($J6:K6)*K6 -> 0 | L12: =SUM($J6:L6)*L6 -> 0 | M12: =SUM($J6:M6)*M6 -> 1 | N12: =SUM($J6:N6)*N6 -> 2 | O12: =SUM($J6:O6)*O6 -> 3 | P12: =SUM($J6:P6)*P6 -> 4 | Q12: =SUM($J6:Q6)*Q6 -> 5 | R12: =SUM($J6:R6)*R6 -> 6 | S12: =SUM($J6:S6)*S6 -> 7 | T12: =SUM($J6:T6)*T6 -> 8 | U12: =SUM($J6:U6)*U6 -> 9 | V12: =SUM($J6:V6)*V6 -> 10 | W12: =SUM($J6:W6)*W6 -> 11 | X12: =SUM($J6:X6)*X6 -> 12 | Y12: =SUM($J6:Y6)*Y6 -> 13 | Z12: =SUM($J6:Z6)*Z6 -> 14 | AA12: =SUM($J6:AA6)*AA6 -> 15 | AB12: =SUM($J6:AB6)*AB6 -> 16 | AC12: =SUM($J6:AC6)*AC6 -> 17 | AD12: =SUM($J6:AD6)*AD6 -> 18 | AE12: =SUM($J6:AE6)*AE6 -> 19 | AF12: =SUM($J6:AF6)*AF6 -> 20 | AG12: =SUM($J6:AG6)*AG6 -> 21 | AH12: =SUM($J6:AH6)*AH6 -> 22 | AI12: =SUM($J6:AI6)*AI6 -> 23 | AJ12: =SUM($J6:AJ6)*AJ6 -> 24 | AK12: =SUM($J6:AK6)*AK6 -> 25
C13: Operations Year | D13: Num# | J13: =ROUNDUP(J12/Qtrs_Yr,0) -> 0 | K13: =ROUNDUP(K12/Qtrs_Yr,0) -> 0 | L13: 0 | M13: 1 | N13: 1 | O13: =ROUNDUP(O12/Qtrs_Yr,0) -> 1 | P13: =ROUNDUP(P12/Qtrs_Yr,0) -> 1 | Q13: 2 | R13: 2 | S13: 2 | T13: 2 | U13: 3 | V13: 3 | W13: 3 | X13: 3 | Y13: 4 | Z13: 4 | AA13: 4 | AB13: 4 | AC13: 5 | AD13: 5 | AE13: 5 | AF13: 5 | AG13: 6 | AH13: 6 | AI13: 6 | AJ13: 6 | AK13: 7
C14: Calendar Year | D14: Num# | J14: =YEAR(J4) -> 2019 | K14: 2019 | L14: 2019 | M14: 2020 | N14: 2021 | O14: 2022 | P14: 2023 | Q14: 2024 | R14: 2025 | S14: 2026 | T14: 2027 | U14: 2028 | V14: 2029 | W14: 2030 | X14: 2031 | Y14: 2032 | Z14: 2033 | AA14: 2034 | AB14: 2035 | AC14: 2036 | AD14: 2037 | AE14: 2038 | AF14: 2039 | AG14: 2040 | AH14: 2041 | AI14: 2042 | AJ14: 2043 | AK14: 2044
C15: Days in period | D15: Num# | J15: =J4-J3+1 -> 91 | K15: 89 | L15: 92 | M15: 366 | N15: 365 | O15: 365 | P15: 365 | Q15: 366 | R15: 365 | S15: 365 | T15: 365 | U15: 366 | V15: 365 | W15: 365 | X15: 365 | Y15: 366 | Z15: 365 | AA15: 365 | AB15: 365 | AC15: 366 | AD15: 365 | AE15: 365 | AF15: 365 | AG15: 366 | AH15: 365 | AI15: 365 | AJ15: 365 | AK15: 366
C17: Capex forecast profile
C18: Capex S-curve
C19: =Inputs!C24 -> Module/ panel | D19: % | I19: =SUM(J19:BM19) -> 1 | J19: =IF(J$10=0,0,LOOKUP(J$10,Inputs!$K$23:$M$23,Inputs!$K24:$M24)) -> 0.6 | K19: =IF(K$10=0,0,LOOKUP(K$10,Inputs!$K$23:$M$23,Inputs!$K24:$M24)) -> 0.4 | L19: =IF(L$10=0,0,LOOKUP(L$10,Inputs!$K$23:$M$23,Inputs!$K24:$M24)) -> 0 | M19: =IF(M$10=0,0,LOOKUP(M$10,Inputs!$K$23:$M$23,Inputs!$K24:$M24)) -> 0 | N19: =IF(N$10=0,0,LOOKUP(N$10,Inputs!$K$23:$M$23,Inputs!$K24:$M24)) -> 0 | O19: =IF(O$10=0,0,LOOKUP(O$10,Inputs!$K$23:$M$23,Inputs!$K24:$M24)) -> 0 | P19: =IF(P$10=0,0,LOOKUP(P$10,Inputs!$K$23:$M$23,Inputs!$K24:$M24)) -> 0 | Q19: =IF(Q$10=0,0,LOOKUP(Q$10,Inputs!$K$23:$M$23,Inputs!$K24:$M24)) -> 0 | R19: =IF(R$10=0,0,LOOKUP(R$10,Inputs!$K$23:$M$23,Inputs!$K24:$M24)) -> 0 | S19: =IF(S$10=0,0,LOOKUP(S$10,Inputs!$K$23:$M$23,Inputs!$K24:$M24)) -> 0 | T19: =IF(T$10=0,0,LOOKUP(T$10,Inputs!$K$23:$M$23,Inputs!$K24:$M24)) -> 0 | U19: =IF(U$10=0,0,LOOKUP(U$10,Inputs!$K$23:$M$23,Inputs!$K24:$M24)) -> 0 | V19: =IF(V$10=0,0,LOOKUP(V$10,Inputs!$K$23:$M$23,Inputs!$K24:$M24)) -> 0 | W19: =IF(W$10=0,0,LOOKUP(W$10,Inputs!$K$23:$M$23,Inputs!$K24:$M24)) -> 0 | X19: =IF(X$10=0,0,LOOKUP(X$10,Inputs!$K$23:$M$23,Inputs!$K24:$M24)) -> 0 | Y19: =IF(Y$10=0,0,LOOKUP(Y$10,Inputs!$K$23:$M$23,Inputs!$K24:$M24)) -> 0 | Z19: =IF(Z$10=0,0,LOOKUP(Z$10,Inputs!$K$23:$M$23,Inputs!$K24:$M24)) -> 0 | AA19: =IF(AA$10=0,0,LOOKUP(AA$10,Inputs!$K$23:$M$23,Inputs!$K24:$M24)) -> 0 | AB19: =IF(AB$10=0,0,LOOKUP(AB$10,Inputs!$K$23:$M$23,Inputs!$K24:$M24)) -> 0 | AC19: =IF(AC$10=0,0,LOOKUP(AC$10,Inputs!$K$23:$M$23,Inputs!$K24:$M24)) -> 0 | AD19: =IF(AD$10=0,0,LOOKUP(AD$10,Inputs!$K$23:$M$23,Inputs!$K24:$M24)) -> 0 | AE19: =IF(AE$10=0,0,LOOKUP(AE$10,Inputs!$K$23:$M$23,Inputs!$K24:$M24)) -> 0 | AF19: =IF(AF$10=0,0,LOOKUP(AF$10,Inputs!$K$23:$M$23,Inputs!$K24:$M24)) -> 0 | AG19: =IF(AG$10=0,0,LOOKUP(AG$10,Inputs!$K$23:$M$23,Inputs!$K24:$M24)) -> 0 | AH19: =IF(AH$10=0,0,LOOKUP(AH$10,Inputs!$K$23:$M$23,Inputs!$K24:$M24)) -> 0 | AI19: =IF(AI$10=0,0,LOOKUP(AI$10,Inputs!$K$23:$M$23,Inputs!$K24:$M24)) -> 0 | AJ19: =IF(AJ$10=0,0,LOOKUP(AJ$10,Inputs!$K$23:$M$23,Inputs!$K24:$M24)) -> 0 | AK19: =IF(AK$10=0,0,LOOKUP(AK$10,Inputs!$K$23:$M$23,Inputs!$K24:$M24)) -> 0 | AL19: =IF(AL$10=0,0,LOOKUP(AL$10,Inputs!$K$23:$M$23,Inputs!$K24:$M24)) -> 0 | AM19: =IF(AM$10=0,0,LOOKUP(AM$10,Inputs!$K$23:$M$23,Inputs!$K24:$M24)) -> 0 | AN19: =IF(AN$10=0,0,LOOKUP(AN$10,Inputs!$K$23:$M$23,Inputs!$K24:$M24)) -> 0 | AO19: =IF(AO$10=0,0,LOOKUP(AO$10,Inputs!$K$23:$M$23,Inputs!$K24:$M24)) -> 0 | AP19: =IF(AP$10=0,0,LOOKUP(AP$10,Inputs!$K$23:$M$23,Inputs!$K24:$M24)) -> 0 | AQ19: =IF(AQ$10=0,0,LOOKUP(AQ$10,Inputs!$K$23:$M$23,Inputs!$K24:$M24)) -> 0 | AR19: =IF(AR$10=0,0,LOOKUP(AR$10,Inputs!$K$23:$M$23,Inputs!$K24:$M24)) -> 0 | AS19: =IF(AS$10=0,0,LOOKUP(AS$10,Inputs!$K$23:$M$23,Inputs!$K24:$M24)) -> 0 | AT19: =IF(AT$10=0,0,LOOKUP(AT$10,Inputs!$K$23:$M$23,Inputs!$K24:$M24)) -> 0 | AU19: =IF(AU$10=0,0,LOOKUP(AU$10,Inputs!$K$23:$M$23,Inputs!$K24:$M24)) -> 0 | AV19: =IF(AV$10=0,0,LOOKUP(AV$10,Inputs!$K$23:$M$23,Inputs!$K24:$M24)) -> 0 | AW19: =IF(AW$10=0,0,LOOKUP(AW$10,Inputs!$K$23:$M$23,Inputs!$K24:$M24)) -> 0 | AX19: =IF(AX$10=0,0,LOOKUP(AX$10,Inputs!$K$23:$M$23,Inputs!$K24:$M24)) -> 0 | AY19: =IF(AY$10=0,0,LOOKUP(AY$10,Inputs!$K$23:$M$23,Inputs!$K24:$M24)) -> 0 | AZ19: =IF(AZ$10=0,0,LOOKUP(AZ$10,Inputs!$K$23:$M$23,Inputs!$K24:$M24)) -> 0 | BA19: =IF(BA$10=0,0,LOOKUP(BA$10,Inputs!$K$23:$M$23,Inputs!$K24:$M24)) -> 0 | BB19: =IF(BB$10=0,0,LOOKUP(BB$10,Inputs!$K$23:$M$23,Inputs!$K24:$M24)) -> 0 | BC19: =IF(BC$10=0,0,LOOKUP(BC$10,Inputs!$K$23:$M$23,Inputs!$K24:$M24)) -> 0 | BD19: =IF(BD$10=0,0,LOOKUP(BD$10,Inputs!$K$23:$M$23,Inputs!$K24:$M24)) -> 0 | BE19: =IF(BE$10=0,0,LOOKUP(BE$10,Inputs!$K$23:$M$23,Inputs!$K24:$M24)) -> 0 | BF19: =IF(BF$10=0,0,LOOKUP(BF$10,Inputs!$K$23:$M$23,Inputs!$K24:$M24)) -> 0 | BG19: =IF(BG$10=0,0,LOOKUP(BG$10,Inputs!$K$23:$M$23,Inputs!$K24:$M24)) -> 0 | BH19: =IF(BH$10=0,0,LOOKUP(BH$10,Inputs!$K$23:$M$23,Inputs!$K24:$M24)) -> 0 | BI19: =IF(BI$10=0,0,LOOKUP(BI$10,Inputs!$K$23:$M$23,Inputs!$K24:$M24)) -> 0 | BJ19: =IF(BJ$10=0,0,LOOKUP(BJ$10,Inputs!$K$23:$M$23,Inputs!$K24:$M24)) -> 0 | BK19: =IF(BK$10=0,0,LOOKUP(BK$10,Inputs!$K$23:$M$23,Inputs!$K24:$M24)) -> 0 | BL19: =IF(BL$10=0,0,LOOKUP(BL$10,Inputs!$K$23:$M$23,Inputs!$K24:$M24)) -> 0 | BM19: =IF(BM$10=0,0,LOOKUP(BM$10,Inputs!$K$23:$M$23,Inputs!$K24:$M24)) -> 0
C20: =Inputs!C25 -> Inverter | D20: % | I20: =SUM(J20:BM20) -> 1 | J20: =IF(J$10=0,0,LOOKUP(J$10,Inputs!$K$23:$M$23,Inputs!$K25:$M25)) -> 0.6 | K20: =IF(K$10=0,0,LOOKUP(K$10,Inputs!$K$23:$M$23,Inputs!$K25:$M25)) -> 0.4 | L20: =IF(L$10=0,0,LOOKUP(L$10,Inputs!$K$23:$M$23,Inputs!$K25:$M25)) -> 0 | M20: =IF(M$10=0,0,LOOKUP(M$10,Inputs!$K$23:$M$23,Inputs!$K25:$M25)) -> 0 | N20: =IF(N$10=0,0,LOOKUP(N$10,Inputs!$K$23:$M$23,Inputs!$K25:$M25)) -> 0 | O20: =IF(O$10=0,0,LOOKUP(O$10,Inputs!$K$23:$M$23,Inputs!$K25:$M25)) -> 0 | P20: =IF(P$10=0,0,LOOKUP(P$10,Inputs!$K$23:$M$23,Inputs!$K25:$M25)) -> 0 | Q20: =IF(Q$10=0,0,LOOKUP(Q$10,Inputs!$K$23:$M$23,Inputs!$K25:$M25)) -> 0 | R20: =IF(R$10=0,0,LOOKUP(R$10,Inputs!$K$23:$M$23,Inputs!$K25:$M25)) -> 0 | S20: =IF(S$10=0,0,LOOKUP(S$10,Inputs!$K$23:$M$23,Inputs!$K25:$M25)) -> 0 | T20: =IF(T$10=0,0,LOOKUP(T$10,Inputs!$K$23:$M$23,Inputs!$K25:$M25)) -> 0 | U20: =IF(U$10=0,0,LOOKUP(U$10,Inputs!$K$23:$M$23,Inputs!$K25:$M25)) -> 0 | V20: =IF(V$10=0,0,LOOKUP(V$10,Inputs!$K$23:$M$23,Inputs!$K25:$M25)) -> 0 | W20: =IF(W$10=0,0,LOOKUP(W$10,Inputs!$K$23:$M$23,Inputs!$K25:$M25)) -> 0 | X20: =IF(X$10=0,0,LOOKUP(X$10,Inputs!$K$23:$M$23,Inputs!$K25:$M25)) -> 0 | Y20: =IF(Y$10=0,0,LOOKUP(Y$10,Inputs!$K$23:$M$23,Inputs!$K25:$M25)) -> 0 | Z20: =IF(Z$10=0,0,LOOKUP(Z$10,Inputs!$K$23:$M$23,Inputs!$K25:$M25)) -> 0 | AA20: =IF(AA$10=0,0,LOOKUP(AA$10,Inputs!$K$23:$M$23,Inputs!$K25:$M25)) -> 0 | AB20: =IF(AB$10=0,0,LOOKUP(AB$10,Inputs!$K$23:$M$23,Inputs!$K25:$M25)) -> 0 | AC20: =IF(AC$10=0,0,LOOKUP(AC$10,Inputs!$K$23:$M$23,Inputs!$K25:$M25)) -> 0 | AD20: =IF(AD$10=0,0,LOOKUP(AD$10,Inputs!$K$23:$M$23,Inputs!$K25:$M25)) -> 0 | AE20: =IF(AE$10=0,0,LOOKUP(AE$10,Inputs!$K$23:$M$23,Inputs!$K25:$M25)) -> 0 | AF20: =IF(AF$10=0,0,LOOKUP(AF$10,Inputs!$K$23:$M$23,Inputs!$K25:$M25)) -> 0 | AG20: =IF(AG$10=0,0,LOOKUP(AG$10,Inputs!$K$23:$M$23,Inputs!$K25:$M25)) -> 0 | AH20: =IF(AH$10=0,0,LOOKUP(AH$10,Inputs!$K$23:$M$23,Inputs!$K25:$M25)) -> 0 | AI20: =IF(AI$10=0,0,LOOKUP(AI$10,Inputs!$K$23:$M$23,Inputs!$K25:$M25)) -> 0 | AJ20: =IF(AJ$10=0,0,LOOKUP(AJ$10,Inputs!$K$23:$M$23,Inputs!$K25:$M25)) -> 0 | AK20: =IF(AK$10=0,0,LOOKUP(AK$10,Inputs!$K$23:$M$23,Inputs!$K25:$M25)) -> 0 | AL20: =IF(AL$10=0,0,LOOKUP(AL$10,Inputs!$K$23:$M$23,Inputs!$K25:$M25)) -> 0 | AM20: =IF(AM$10=0,0,LOOKUP(AM$10,Inputs!$K$23:$M$23,Inputs!$K25:$M25)) -> 0 | AN20: =IF(AN$10=0,0,LOOKUP(AN$10,Inputs!$K$23:$M$23,Inputs!$K25:$M25)) -> 0 | AO20: =IF(AO$10=0,0,LOOKUP(AO$10,Inputs!$K$23:$M$23,Inputs!$K25:$M25)) -> 0 | AP20: =IF(AP$10=0,0,LOOKUP(AP$10,Inputs!$K$23:$M$23,Inputs!$K25:$M25)) -> 0 | AQ20: =IF(AQ$10=0,0,LOOKUP(AQ$10,Inputs!$K$23:$M$23,Inputs!$K25:$M25)) -> 0 | AR20: =IF(AR$10=0,0,LOOKUP(AR$10,Inputs!$K$23:$M$23,Inputs!$K25:$M25)) -> 0 | AS20: =IF(AS$10=0,0,LOOKUP(AS$10,Inputs!$K$23:$M$23,Inputs!$K25:$M25)) -> 0 | AT20: =IF(AT$10=0,0,LOOKUP(AT$10,Inputs!$K$23:$M$23,Inputs!$K25:$M25)) -> 0 | AU20: =IF(AU$10=0,0,LOOKUP(AU$10,Inputs!$K$23:$M$23,Inputs!$K25:$M25)) -> 0 | AV20: =IF(AV$10=0,0,LOOKUP(AV$10,Inputs!$K$23:$M$23,Inputs!$K25:$M25)) -> 0 | AW20: =IF(AW$10=0,0,LOOKUP(AW$10,Inputs!$K$23:$M$23,Inputs!$K25:$M25)) -> 0 | AX20: =IF(AX$10=0,0,LOOKUP(AX$10,Inputs!$K$23:$M$23,Inputs!$K25:$M25)) -> 0 | AY20: =IF(AY$10=0,0,LOOKUP(AY$10,Inputs!$K$23:$M$23,Inputs!$K25:$M25)) -> 0 | AZ20: =IF(AZ$10=0,0,LOOKUP(AZ$10,Inputs!$K$23:$M$23,Inputs!$K25:$M25)) -> 0 | BA20: =IF(BA$10=0,0,LOOKUP(BA$10,Inputs!$K$23:$M$23,Inputs!$K25:$M25)) -> 0 | BB20: =IF(BB$10=0,0,LOOKUP(BB$10,Inputs!$K$23:$M$23,Inputs!$K25:$M25)) -> 0 | BC20: =IF(BC$10=0,0,LOOKUP(BC$10,Inputs!$K$23:$M$23,Inputs!$K25:$M25)) -> 0 | BD20: =IF(BD$10=0,0,LOOKUP(BD$10,Inputs!$K$23:$M$23,Inputs!$K25:$M25)) -> 0 | BE20: =IF(BE$10=0,0,LOOKUP(BE$10,Inputs!$K$23:$M$23,Inputs!$K25:$M25)) -> 0 | BF20: =IF(BF$10=0,0,LOOKUP(BF$10,Inputs!$K$23:$M$23,Inputs!$K25:$M25)) -> 0 | BG20: =IF(BG$10=0,0,LOOKUP(BG$10,Inputs!$K$23:$M$23,Inputs!$K25:$M25)) -> 0 | BH20: =IF(BH$10=0,0,LOOKUP(BH$10,Inputs!$K$23:$M$23,Inputs!$K25:$M25)) -> 0 | BI20: =IF(BI$10=0,0,LOOKUP(BI$10,Inputs!$K$23:$M$23,Inputs!$K25:$M25)) -> 0 | BJ20: =IF(BJ$10=0,0,LOOKUP(BJ$10,Inputs!$K$23:$M$23,Inputs!$K25:$M25)) -> 0 | BK20: =IF(BK$10=0,0,LOOKUP(BK$10,Inputs!$K$23:$M$23,Inputs!$K25:$M25)) -> 0 | BL20: =IF(BL$10=0,0,LOOKUP(BL$10,Inputs!$K$23:$M$23,Inputs!$K25:$M25)) -> 0 | BM20: =IF(BM$10=0,0,LOOKUP(BM$10,Inputs!$K$23:$M$23,Inputs!$K25:$M25)) -> 0
C21: =Inputs!C26 -> Cabling/ wiring | D21: % | I21: 1 | J21: =IF(J$10=0,0,LOOKUP(J$10,Inputs!$K$23:$M$23,Inputs!$K26:$M26)) -> 0.4 | K21: =IF(K$10=0,0,LOOKUP(K$10,Inputs!$K$23:$M$23,Inputs!$K26:$M26)) -> 0.3 | L21: =IF(L$10=0,0,LOOKUP(L$10,Inputs!$K$23:$M$23,Inputs!$K26:$M26)) -> 0.3 | M21: =IF(M$10=0,0,LOOKUP(M$10,Inputs!$K$23:$M$23,Inputs!$K26:$M26)) -> 0 | N21: =IF(N$10=0,0,LOOKUP(N$10,Inputs!$K$23:$M$23,Inputs!$K26:$M26)) -> 0 | O21: =IF(O$10=0,0,LOOKUP(O$10,Inputs!$K$23:$M$23,Inputs!$K26:$M26)) -> 0 | P21: =IF(P$10=0,0,LOOKUP(P$10,Inputs!$K$23:$M$23,Inputs!$K26:$M26)) -> 0 | Q21: =IF(Q$10=0,0,LOOKUP(Q$10,Inputs!$K$23:$M$23,Inputs!$K26:$M26)) -> 0 | R21: =IF(R$10=0,0,LOOKUP(R$10,Inputs!$K$23:$M$23,Inputs!$K26:$M26)) -> 0 | S21: =IF(S$10=0,0,LOOKUP(S$10,Inputs!$K$23:$M$23,Inputs!$K26:$M26)) -> 0 | T21: =IF(T$10=0,0,LOOKUP(T$10,Inputs!$K$23:$M$23,Inputs!$K26:$M26)) -> 0 | U21: =IF(U$10=0,0,LOOKUP(U$10,Inputs!$K$23:$M$23,Inputs!$K26:$M26)) -> 0 | V21: =IF(V$10=0,0,LOOKUP(V$10,Inputs!$K$23:$M$23,Inputs!$K26:$M26)) -> 0 | W21: =IF(W$10=0,0,LOOKUP(W$10,Inputs!$K$23:$M$23,Inputs!$K26:$M26)) -> 0 | X21: =IF(X$10=0,0,LOOKUP(X$10,Inputs!$K$23:$M$23,Inputs!$K26:$M26)) -> 0 | Y21: =IF(Y$10=0,0,LOOKUP(Y$10,Inputs!$K$23:$M$23,Inputs!$K26:$M26)) -> 0 | Z21: =IF(Z$10=0,0,LOOKUP(Z$10,Inputs!$K$23:$M$23,Inputs!$K26:$M26)) -> 0 | AA21: =IF(AA$10=0,0,LOOKUP(AA$10,Inputs!$K$23:$M$23,Inputs!$K26:$M26)) -> 0 | AB21: =IF(AB$10=0,0,LOOKUP(AB$10,Inputs!$K$23:$M$23,Inputs!$K26:$M26)) -> 0 | AC21: =IF(AC$10=0,0,LOOKUP(AC$10,Inputs!$K$23:$M$23,Inputs!$K26:$M26)) -> 0 | AD21: =IF(AD$10=0,0,LOOKUP(AD$10,Inputs!$K$23:$M$23,Inputs!$K26:$M26)) -> 0 | AE21: =IF(AE$10=0,0,LOOKUP(AE$10,Inputs!$K$23:$M$23,Inputs!$K26:$M26)) -> 0 | AF21: =IF(AF$10=0,0,LOOKUP(AF$10,Inputs!$K$23:$M$23,Inputs!$K26:$M26)) -> 0 | AG21: =IF(AG$10=0,0,LOOKUP(AG$10,Inputs!$K$23:$M$23,Inputs!$K26:$M26)) -> 0 | AH21: =IF(AH$10=0,0,LOOKUP(AH$10,Inputs!$K$23:$M$23,Inputs!$K26:$M26)) -> 0 | AI21: =IF(AI$10=0,0,LOOKUP(AI$10,Inputs!$K$23:$M$23,Inputs!$K26:$M26)) -> 0 | AJ21: =IF(AJ$10=0,0,LOOKUP(AJ$10,Inputs!$K$23:$M$23,Inputs!$K26:$M26)) -> 0 | AK21: =IF(AK$10=0,0,LOOKUP(AK$10,Inputs!$K$23:$M$23,Inputs!$K26:$M26)) -> 0 | AL21: =IF(AL$10=0,0,LOOKUP(AL$10,Inputs!$K$23:$M$23,Inputs!$K26:$M26)) -> 0 | AM21: =IF(AM$10=0,0,LOOKUP(AM$10,Inputs!$K$23:$M$23,Inputs!$K26:$M26)) -> 0 | AN21: =IF(AN$10=0,0,LOOKUP(AN$10,Inputs!$K$23:$M$23,Inputs!$K26:$M26)) -> 0 | AO21: =IF(AO$10=0,0,LOOKUP(AO$10,Inputs!$K$23:$M$23,Inputs!$K26:$M26)) -> 0 | AP21: =IF(AP$10=0,0,LOOKUP(AP$10,Inputs!$K$23:$M$23,Inputs!$K26:$M26)) -> 0 | AQ21: =IF(AQ$10=0,0,LOOKUP(AQ$10,Inputs!$K$23:$M$23,Inputs!$K26:$M26)) -> 0 | AR21: =IF(AR$10=0,0,LOOKUP(AR$10,Inputs!$K$23:$M$23,Inputs!$K26:$M26)) -> 0 | AS21: =IF(AS$10=0,0,LOOKUP(AS$10,Inputs!$K$23:$M$23,Inputs!$K26:$M26)) -> 0 | AT21: =IF(AT$10=0,0,LOOKUP(AT$10,Inputs!$K$23:$M$23,Inputs!$K26:$M26)) -> 0 | AU21: =IF(AU$10=0,0,LOOKUP(AU$10,Inputs!$K$23:$M$23,Inputs!$K26:$M26)) -> 0 | AV21: =IF(AV$10=0,0,LOOKUP(AV$10,Inputs!$K$23:$M$23,Inputs!$K26:$M26)) -> 0 | AW21: =IF(AW$10=0,0,LOOKUP(AW$10,Inputs!$K$23:$M$23,Inputs!$K26:$M26)) -> 0 | AX21: =IF(AX$10=0,0,LOOKUP(AX$10,Inputs!$K$23:$M$23,Inputs!$K26:$M26)) -> 0 | AY21: =IF(AY$10=0,0,LOOKUP(AY$10,Inputs!$K$23:$M$23,Inputs!$K26:$M26)) -> 0 | AZ21: =IF(AZ$10=0,0,LOOKUP(AZ$10,Inputs!$K$23:$M$23,Inputs!$K26:$M26)) -> 0 | BA21: =IF(BA$10=0,0,LOOKUP(BA$10,Inputs!$K$23:$M$23,Inputs!$K26:$M26)) -> 0 | BB21: =IF(BB$10=0,0,LOOKUP(BB$10,Inputs!$K$23:$M$23,Inputs!$K26:$M26)) -> 0 | BC21: =IF(BC$10=0,0,LOOKUP(BC$10,Inputs!$K$23:$M$23,Inputs!$K26:$M26)) -> 0 | BD21: =IF(BD$10=0,0,LOOKUP(BD$10,Inputs!$K$23:$M$23,Inputs!$K26:$M26)) -> 0 | BE21: =IF(BE$10=0,0,LOOKUP(BE$10,Inputs!$K$23:$M$23,Inputs!$K26:$M26)) -> 0 | BF21: =IF(BF$10=0,0,LOOKUP(BF$10,Inputs!$K$23:$M$23,Inputs!$K26:$M26)) -> 0 | BG21: =IF(BG$10=0,0,LOOKUP(BG$10,Inputs!$K$23:$M$23,Inputs!$K26:$M26)) -> 0 | BH21: =IF(BH$10=0,0,LOOKUP(BH$10,Inputs!$K$23:$M$23,Inputs!$K26:$M26)) -> 0 | BI21: =IF(BI$10=0,0,LOOKUP(BI$10,Inputs!$K$23:$M$23,Inputs!$K26:$M26)) -> 0 | BJ21: =IF(BJ$10=0,0,LOOKUP(BJ$10,Inputs!$K$23:$M$23,Inputs!$K26:$M26)) -> 0 | BK21: =IF(BK$10=0,0,LOOKUP(BK$10,Inputs!$K$23:$M$23,Inputs!$K26:$M26)) -> 0 | BL21: =IF(BL$10=0,0,LOOKUP(BL$10,Inputs!$K$23:$M$23,Inputs!$K26:$M26)) -> 0 | BM21: =IF(BM$10=0,0,LOOKUP(BM$10,Inputs!$K$23:$M$23,Inputs!$K26:$M26)) -> 0
C22: =Inputs!C27 -> Grid connection | D22: % | I22: 1 | J22: =IF(J$10=0,0,LOOKUP(J$10,Inputs!$K$23:$M$23,Inputs!$K27:$M27)) -> 0.4 | K22: =IF(K$10=0,0,LOOKUP(K$10,Inputs!$K$23:$M$23,Inputs!$K27:$M27)) -> 0.3 | L22: =IF(L$10=0,0,LOOKUP(L$10,Inputs!$K$23:$M$23,Inputs!$K27:$M27)) -> 0.3 | M22: =IF(M$10=0,0,LOOKUP(M$10,Inputs!$K$23:$M$23,Inputs!$K27:$M27)) -> 0 | N22: =IF(N$10=0,0,LOOKUP(N$10,Inputs!$K$23:$M$23,Inputs!$K27:$M27)) -> 0 | O22: =IF(O$10=0,0,LOOKUP(O$10,Inputs!$K$23:$M$23,Inputs!$K27:$M27)) -> 0 | P22: =IF(P$10=0,0,LOOKUP(P$10,Inputs!$K$23:$M$23,Inputs!$K27:$M27)) -> 0 | Q22: =IF(Q$10=0,0,LOOKUP(Q$10,Inputs!$K$23:$M$23,Inputs!$K27:$M27)) -> 0 | R22: =IF(R$10=0,0,LOOKUP(R$10,Inputs!$K$23:$M$23,Inputs!$K27:$M27)) -> 0 | S22: =IF(S$10=0,0,LOOKUP(S$10,Inputs!$K$23:$M$23,Inputs!$K27:$M27)) -> 0 | T22: =IF(T$10=0,0,LOOKUP(T$10,Inputs!$K$23:$M$23,Inputs!$K27:$M27)) -> 0 | U22: =IF(U$10=0,0,LOOKUP(U$10,Inputs!$K$23:$M$23,Inputs!$K27:$M27)) -> 0 | V22: =IF(V$10=0,0,LOOKUP(V$10,Inputs!$K$23:$M$23,Inputs!$K27:$M27)) -> 0 | W22: =IF(W$10=0,0,LOOKUP(W$10,Inputs!$K$23:$M$23,Inputs!$K27:$M27)) -> 0 | X22: =IF(X$10=0,0,LOOKUP(X$10,Inputs!$K$23:$M$23,Inputs!$K27:$M27)) -> 0 | Y22: =IF(Y$10=0,0,LOOKUP(Y$10,Inputs!$K$23:$M$23,Inputs!$K27:$M27)) -> 0 | Z22: =IF(Z$10=0,0,LOOKUP(Z$10,Inputs!$K$23:$M$23,Inputs!$K27:$M27)) -> 0 | AA22: =IF(AA$10=0,0,LOOKUP(AA$10,Inputs!$K$23:$M$23,Inputs!$K27:$M27)) -> 0 | AB22: =IF(AB$10=0,0,LOOKUP(AB$10,Inputs!$K$23:$M$23,Inputs!$K27:$M27)) -> 0 | AC22: =IF(AC$10=0,0,LOOKUP(AC$10,Inputs!$K$23:$M$23,Inputs!$K27:$M27)) -> 0 | AD22: =IF(AD$10=0,0,LOOKUP(AD$10,Inputs!$K$23:$M$23,Inputs!$K27:$M27)) -> 0 | AE22: =IF(AE$10=0,0,LOOKUP(AE$10,Inputs!$K$23:$M$23,Inputs!$K27:$M27)) -> 0 | AF22: =IF(AF$10=0,0,LOOKUP(AF$10,Inputs!$K$23:$M$23,Inputs!$K27:$M27)) -> 0 | AG22: =IF(AG$10=0,0,LOOKUP(AG$10,Inputs!$K$23:$M$23,Inputs!$K27:$M27)) -> 0 | AH22: =IF(AH$10=0,0,LOOKUP(AH$10,Inputs!$K$23:$M$23,Inputs!$K27:$M27)) -> 0 | AI22: =IF(AI$10=0,0,LOOKUP(AI$10,Inputs!$K$23:$M$23,Inputs!$K27:$M27)) -> 0 | AJ22: =IF(AJ$10=0,0,LOOKUP(AJ$10,Inputs!$K$23:$M$23,Inputs!$K27:$M27)) -> 0 | AK22: =IF(AK$10=0,0,LOOKUP(AK$10,Inputs!$K$23:$M$23,Inputs!$K27:$M27)) -> 0 | AL22: =IF(AL$10=0,0,LOOKUP(AL$10,Inputs!$K$23:$M$23,Inputs!$K27:$M27)) -> 0 | AM22: =IF(AM$10=0,0,LOOKUP(AM$10,Inputs!$K$23:$M$23,Inputs!$K27:$M27)) -> 0 | AN22: =IF(AN$10=0,0,LOOKUP(AN$10,Inputs!$K$23:$M$23,Inputs!$K27:$M27)) -> 0 | AO22: =IF(AO$10=0,0,LOOKUP(AO$10,Inputs!$K$23:$M$23,Inputs!$K27:$M27)) -> 0 | AP22: =IF(AP$10=0,0,LOOKUP(AP$10,Inputs!$K$23:$M$23,Inputs!$K27:$M27)) -> 0 | AQ22: =IF(AQ$10=0,0,LOOKUP(AQ$10,Inputs!$K$23:$M$23,Inputs!$K27:$M27)) -> 0 | AR22: =IF(AR$10=0,0,LOOKUP(AR$10,Inputs!$K$23:$M$23,Inputs!$K27:$M27)) -> 0 | AS22: =IF(AS$10=0,0,LOOKUP(AS$10,Inputs!$K$23:$M$23,Inputs!$K27:$M27)) -> 0 | AT22: =IF(AT$10=0,0,LOOKUP(AT$10,Inputs!$K$23:$M$23,Inputs!$K27:$M27)) -> 0 | AU22: =IF(AU$10=0,0,LOOKUP(AU$10,Inputs!$K$23:$M$23,Inputs!$K27:$M27)) -> 0 | AV22: =IF(AV$10=0,0,LOOKUP(AV$10,Inputs!$K$23:$M$23,Inputs!$K27:$M27)) -> 0 | AW22: =IF(AW$10=0,0,LOOKUP(AW$10,Inputs!$K$23:$M$23,Inputs!$K27:$M27)) -> 0 | AX22: =IF(AX$10=0,0,LOOKUP(AX$10,Inputs!$K$23:$M$23,Inputs!$K27:$M27)) -> 0 | AY22: =IF(AY$10=0,0,LOOKUP(AY$10,Inputs!$K$23:$M$23,Inputs!$K27:$M27)) -> 0 | AZ22: =IF(AZ$10=0,0,LOOKUP(AZ$10,Inputs!$K$23:$M$23,Inputs!$K27:$M27)) -> 0 | BA22: =IF(BA$10=0,0,LOOKUP(BA$10,Inputs!$K$23:$M$23,Inputs!$K27:$M27)) -> 0 | BB22: =IF(BB$10=0,0,LOOKUP(BB$10,Inputs!$K$23:$M$23,Inputs!$K27:$M27)) -> 0 | BC22: =IF(BC$10=0,0,LOOKUP(BC$10,Inputs!$K$23:$M$23,Inputs!$K27:$M27)) -> 0 | BD22: =IF(BD$10=0,0,LOOKUP(BD$10,Inputs!$K$23:$M$23,Inputs!$K27:$M27)) -> 0 | BE22: =IF(BE$10=0,0,LOOKUP(BE$10,Inputs!$K$23:$M$23,Inputs!$K27:$M27)) -> 0 | BF22: =IF(BF$10=0,0,LOOKUP(BF$10,Inputs!$K$23:$M$23,Inputs!$K27:$M27)) -> 0 | BG22: =IF(BG$10=0,0,LOOKUP(BG$10,Inputs!$K$23:$M$23,Inputs!$K27:$M27)) -> 0 | BH22: =IF(BH$10=0,0,LOOKUP(BH$10,Inputs!$K$23:$M$23,Inputs!$K27:$M27)) -> 0 | BI22: =IF(BI$10=0,0,LOOKUP(BI$10,Inputs!$K$23:$M$23,Inputs!$K27:$M27)) -> 0 | BJ22: =IF(BJ$10=0,0,LOOKUP(BJ$10,Inputs!$K$23:$M$23,Inputs!$K27:$M27)) -> 0 | BK22: =IF(BK$10=0,0,LOOKUP(BK$10,Inputs!$K$23:$M$23,Inputs!$K27:$M27)) -> 0 | BL22: =IF(BL$10=0,0,LOOKUP(BL$10,Inputs!$K$23:$M$23,Inputs!$K27:$M27)) -> 0 | BM22: =IF(BM$10=0,0,LOOKUP(BM$10,Inputs!$K$23:$M$23,Inputs!$K27:$M27)) -> 0
C23: =Inputs!C28 -> Monitoring & control | D23: % | I23: 1 | J23: =IF(J$10=0,0,LOOKUP(J$10,Inputs!$K$23:$M$23,Inputs!$K28:$M28)) -> 0.4 | K23: =IF(K$10=0,0,LOOKUP(K$10,Inputs!$K$23:$M$23,Inputs!$K28:$M28)) -> 0.3 | L23: =IF(L$10=0,0,LOOKUP(L$10,Inputs!$K$23:$M$23,Inputs!$K28:$M28)) -> 0.3 | M23: =IF(M$10=0,0,LOOKUP(M$10,Inputs!$K$23:$M$23,Inputs!$K28:$M28)) -> 0 | N23: =IF(N$10=0,0,LOOKUP(N$10,Inputs!$K$23:$M$23,Inputs!$K28:$M28)) -> 0 | O23: =IF(O$10=0,0,LOOKUP(O$10,Inputs!$K$23:$M$23,Inputs!$K28:$M28)) -> 0 | P23: =IF(P$10=0,0,LOOKUP(P$10,Inputs!$K$23:$M$23,Inputs!$K28:$M28)) -> 0 | Q23: =IF(Q$10=0,0,LOOKUP(Q$10,Inputs!$K$23:$M$23,Inputs!$K28:$M28)) -> 0 | R23: =IF(R$10=0,0,LOOKUP(R$10,Inputs!$K$23:$M$23,Inputs!$K28:$M28)) -> 0 | S23: =IF(S$10=0,0,LOOKUP(S$10,Inputs!$K$23:$M$23,Inputs!$K28:$M28)) -> 0 | T23: =IF(T$10=0,0,LOOKUP(T$10,Inputs!$K$23:$M$23,Inputs!$K28:$M28)) -> 0 | U23: =IF(U$10=0,0,LOOKUP(U$10,Inputs!$K$23:$M$23,Inputs!$K28:$M28)) -> 0 | V23: =IF(V$10=0,0,LOOKUP(V$10,Inputs!$K$23:$M$23,Inputs!$K28:$M28)) -> 0 | W23: =IF(W$10=0,0,LOOKUP(W$10,Inputs!$K$23:$M$23,Inputs!$K28:$M28)) -> 0 | X23: =IF(X$10=0,0,LOOKUP(X$10,Inputs!$K$23:$M$23,Inputs!$K28:$M28)) -> 0 | Y23: =IF(Y$10=0,0,LOOKUP(Y$10,Inputs!$K$23:$M$23,Inputs!$K28:$M28)) -> 0 | Z23: =IF(Z$10=0,0,LOOKUP(Z$10,Inputs!$K$23:$M$23,Inputs!$K28:$M28)) -> 0 | AA23: =IF(AA$10=0,0,LOOKUP(AA$10,Inputs!$K$23:$M$23,Inputs!$K28:$M28)) -> 0 | AB23: =IF(AB$10=0,0,LOOKUP(AB$10,Inputs!$K$23:$M$23,Inputs!$K28:$M28)) -> 0 | AC23: =IF(AC$10=0,0,LOOKUP(AC$10,Inputs!$K$23:$M$23,Inputs!$K28:$M28)) -> 0 | AD23: =IF(AD$10=0,0,LOOKUP(AD$10,Inputs!$K$23:$M$23,Inputs!$K28:$M28)) -> 0 | AE23: =IF(AE$10=0,0,LOOKUP(AE$10,Inputs!$K$23:$M$23,Inputs!$K28:$M28)) -> 0 | AF23: =IF(AF$10=0,0,LOOKUP(AF$10,Inputs!$K$23:$M$23,Inputs!$K28:$M28)) -> 0 | AG23: =IF(AG$10=0,0,LOOKUP(AG$10,Inputs!$K$23:$M$23,Inputs!$K28:$M28)) -> 0 | AH23: =IF(AH$10=0,0,LOOKUP(AH$10,Inputs!$K$23:$M$23,Inputs!$K28:$M28)) -> 0 | AI23: =IF(AI$10=0,0,LOOKUP(AI$10,Inputs!$K$23:$M$23,Inputs!$K28:$M28)) -> 0 | AJ23: =IF(AJ$10=0,0,LOOKUP(AJ$10,Inputs!$K$23:$M$23,Inputs!$K28:$M28)) -> 0 | AK23: =IF(AK$10=0,0,LOOKUP(AK$10,Inputs!$K$23:$M$23,Inputs!$K28:$M28)) -> 0 | AL23: =IF(AL$10=0,0,LOOKUP(AL$10,Inputs!$K$23:$M$23,Inputs!$K28:$M28)) -> 0 | AM23: =IF(AM$10=0,0,LOOKUP(AM$10,Inputs!$K$23:$M$23,Inputs!$K28:$M28)) -> 0 | AN23: =IF(AN$10=0,0,LOOKUP(AN$10,Inputs!$K$23:$M$23,Inputs!$K28:$M28)) -> 0 | AO23: =IF(AO$10=0,0,LOOKUP(AO$10,Inputs!$K$23:$M$23,Inputs!$K28:$M28)) -> 0 | AP23: =IF(AP$10=0,0,LOOKUP(AP$10,Inputs!$K$23:$M$23,Inputs!$K28:$M28)) -> 0 | AQ23: =IF(AQ$10=0,0,LOOKUP(AQ$10,Inputs!$K$23:$M$23,Inputs!$K28:$M28)) -> 0 | AR23: =IF(AR$10=0,0,LOOKUP(AR$10,Inputs!$K$23:$M$23,Inputs!$K28:$M28)) -> 0 | AS23: =IF(AS$10=0,0,LOOKUP(AS$10,Inputs!$K$23:$M$23,Inputs!$K28:$M28)) -> 0 | AT23: =IF(AT$10=0,0,LOOKUP(AT$10,Inputs!$K$23:$M$23,Inputs!$K28:$M28)) -> 0 | AU23: =IF(AU$10=0,0,LOOKUP(AU$10,Inputs!$K$23:$M$23,Inputs!$K28:$M28)) -> 0 | AV23: =IF(AV$10=0,0,LOOKUP(AV$10,Inputs!$K$23:$M$23,Inputs!$K28:$M28)) -> 0 | AW23: =IF(AW$10=0,0,LOOKUP(AW$10,Inputs!$K$23:$M$23,Inputs!$K28:$M28)) -> 0 | AX23: =IF(AX$10=0,0,LOOKUP(AX$10,Inputs!$K$23:$M$23,Inputs!$K28:$M28)) -> 0 | AY23: =IF(AY$10=0,0,LOOKUP(AY$10,Inputs!$K$23:$M$23,Inputs!$K28:$M28)) -> 0 | AZ23: =IF(AZ$10=0,0,LOOKUP(AZ$10,Inputs!$K$23:$M$23,Inputs!$K28:$M28)) -> 0 | BA23: =IF(BA$10=0,0,LOOKUP(BA$10,Inputs!$K$23:$M$23,Inputs!$K28:$M28)) -> 0 | BB23: =IF(BB$10=0,0,LOOKUP(BB$10,Inputs!$K$23:$M$23,Inputs!$K28:$M28)) -> 0 | BC23: =IF(BC$10=0,0,LOOKUP(BC$10,Inputs!$K$23:$M$23,Inputs!$K28:$M28)) -> 0 | BD23: =IF(BD$10=0,0,LOOKUP(BD$10,Inputs!$K$23:$M$23,Inputs!$K28:$M28)) -> 0 | BE23: =IF(BE$10=0,0,LOOKUP(BE$10,Inputs!$K$23:$M$23,Inputs!$K28:$M28)) -> 0 | BF23: =IF(BF$10=0,0,LOOKUP(BF$10,Inputs!$K$23:$M$23,Inputs!$K28:$M28)) -> 0 | BG23: =IF(BG$10=0,0,LOOKUP(BG$10,Inputs!$K$23:$M$23,Inputs!$K28:$M28)) -> 0 | BH23: =IF(BH$10=0,0,LOOKUP(BH$10,Inputs!$K$23:$M$23,Inputs!$K28:$M28)) -> 0 | BI23: =IF(BI$10=0,0,LOOKUP(BI$10,Inputs!$K$23:$M$23,Inputs!$K28:$M28)) -> 0 | BJ23: =IF(BJ$10=0,0,LOOKUP(BJ$10,Inputs!$K$23:$M$23,Inputs!$K28:$M28)) -> 0 | BK23: =IF(BK$10=0,0,LOOKUP(BK$10,Inputs!$K$23:$M$23,Inputs!$K28:$M28)) -> 0 | BL23: =IF(BL$10=0,0,LOOKUP(BL$10,Inputs!$K$23:$M$23,Inputs!$K28:$M28)) -> 0 | BM23: =IF(BM$10=0,0,LOOKUP(BM$10,Inputs!$K$23:$M$23,Inputs!$K28:$M28)) -> 0
C24: =Inputs!C29 -> Racking and mounting | D24: % | I24: 1 | J24: =IF(J$10=0,0,LOOKUP(J$10,Inputs!$K$23:$M$23,Inputs!$K29:$M29)) -> 0.6 | K24: =IF(K$10=0,0,LOOKUP(K$10,Inputs!$K$23:$M$23,Inputs!$K29:$M29)) -> 0.4 | L24: =IF(L$10=0,0,LOOKUP(L$10,Inputs!$K$23:$M$23,Inputs!$K29:$M29)) -> 0 | M24: =IF(M$10=0,0,LOOKUP(M$10,Inputs!$K$23:$M$23,Inputs!$K29:$M29)) -> 0 | N24: =IF(N$10=0,0,LOOKUP(N$10,Inputs!$K$23:$M$23,Inputs!$K29:$M29)) -> 0 | O24: =IF(O$10=0,0,LOOKUP(O$10,Inputs!$K$23:$M$23,Inputs!$K29:$M29)) -> 0 | P24: =IF(P$10=0,0,LOOKUP(P$10,Inputs!$K$23:$M$23,Inputs!$K29:$M29)) -> 0 | Q24: =IF(Q$10=0,0,LOOKUP(Q$10,Inputs!$K$23:$M$23,Inputs!$K29:$M29)) -> 0 | R24: =IF(R$10=0,0,LOOKUP(R$10,Inputs!$K$23:$M$23,Inputs!$K29:$M29)) -> 0 | S24: =IF(S$10=0,0,LOOKUP(S$10,Inputs!$K$23:$M$23,Inputs!$K29:$M29)) -> 0 | T24: =IF(T$10=0,0,LOOKUP(T$10,Inputs!$K$23:$M$23,Inputs!$K29:$M29)) -> 0 | U24: =IF(U$10=0,0,LOOKUP(U$10,Inputs!$K$23:$M$23,Inputs!$K29:$M29)) -> 0 | V24: =IF(V$10=0,0,LOOKUP(V$10,Inputs!$K$23:$M$23,Inputs!$K29:$M29)) -> 0 | W24: =IF(W$10=0,0,LOOKUP(W$10,Inputs!$K$23:$M$23,Inputs!$K29:$M29)) -> 0 | X24: =IF(X$10=0,0,LOOKUP(X$10,Inputs!$K$23:$M$23,Inputs!$K29:$M29)) -> 0 | Y24: =IF(Y$10=0,0,LOOKUP(Y$10,Inputs!$K$23:$M$23,Inputs!$K29:$M29)) -> 0 | Z24: =IF(Z$10=0,0,LOOKUP(Z$10,Inputs!$K$23:$M$23,Inputs!$K29:$M29)) -> 0 | AA24: =IF(AA$10=0,0,LOOKUP(AA$10,Inputs!$K$23:$M$23,Inputs!$K29:$M29)) -> 0 | AB24: =IF(AB$10=0,0,LOOKUP(AB$10,Inputs!$K$23:$M$23,Inputs!$K29:$M29)) -> 0 | AC24: =IF(AC$10=0,0,LOOKUP(AC$10,Inputs!$K$23:$M$23,Inputs!$K29:$M29)) -> 0 | AD24: =IF(AD$10=0,0,LOOKUP(AD$10,Inputs!$K$23:$M$23,Inputs!$K29:$M29)) -> 0 | AE24: =IF(AE$10=0,0,LOOKUP(AE$10,Inputs!$K$23:$M$23,Inputs!$K29:$M29)) -> 0 | AF24: =IF(AF$10=0,0,LOOKUP(AF$10,Inputs!$K$23:$M$23,Inputs!$K29:$M29)) -> 0 | AG24: =IF(AG$10=0,0,LOOKUP(AG$10,Inputs!$K$23:$M$23,Inputs!$K29:$M29)) -> 0 | AH24: =IF(AH$10=0,0,LOOKUP(AH$10,Inputs!$K$23:$M$23,Inputs!$K29:$M29)) -> 0 | AI24: =IF(AI$10=0,0,LOOKUP(AI$10,Inputs!$K$23:$M$23,Inputs!$K29:$M29)) -> 0 | AJ24: =IF(AJ$10=0,0,LOOKUP(AJ$10,Inputs!$K$23:$M$23,Inputs!$K29:$M29)) -> 0 | AK24: =IF(AK$10=0,0,LOOKUP(AK$10,Inputs!$K$23:$M$23,Inputs!$K29:$M29)) -> 0 | AL24: =IF(AL$10=0,0,LOOKUP(AL$10,Inputs!$K$23:$M$23,Inputs!$K29:$M29)) -> 0 | AM24: =IF(AM$10=0,0,LOOKUP(AM$10,Inputs!$K$23:$M$23,Inputs!$K29:$M29)) -> 0 | AN24: =IF(AN$10=0,0,LOOKUP(AN$10,Inputs!$K$23:$M$23,Inputs!$K29:$M29)) -> 0 | AO24: =IF(AO$10=0,0,LOOKUP(AO$10,Inputs!$K$23:$M$23,Inputs!$K29:$M29)) -> 0 | AP24: =IF(AP$10=0,0,LOOKUP(AP$10,Inputs!$K$23:$M$23,Inputs!$K29:$M29)) -> 0 | AQ24: =IF(AQ$10=0,0,LOOKUP(AQ$10,Inputs!$K$23:$M$23,Inputs!$K29:$M29)) -> 0 | AR24: =IF(AR$10=0,0,LOOKUP(AR$10,Inputs!$K$23:$M$23,Inputs!$K29:$M29)) -> 0 | AS24: =IF(AS$10=0,0,LOOKUP(AS$10,Inputs!$K$23:$M$23,Inputs!$K29:$M29)) -> 0 | AT24: =IF(AT$10=0,0,LOOKUP(AT$10,Inputs!$K$23:$M$23,Inputs!$K29:$M29)) -> 0 | AU24: =IF(AU$10=0,0,LOOKUP(AU$10,Inputs!$K$23:$M$23,Inputs!$K29:$M29)) -> 0 | AV24: =IF(AV$10=0,0,LOOKUP(AV$10,Inputs!$K$23:$M$23,Inputs!$K29:$M29)) -> 0 | AW24: =IF(AW$10=0,0,LOOKUP(AW$10,Inputs!$K$23:$M$23,Inputs!$K29:$M29)) -> 0 | AX24: =IF(AX$10=0,0,LOOKUP(AX$10,Inputs!$K$23:$M$23,Inputs!$K29:$M29)) -> 0 | AY24: =IF(AY$10=0,0,LOOKUP(AY$10,Inputs!$K$23:$M$23,Inputs!$K29:$M29)) -> 0 | AZ24: =IF(AZ$10=0,0,LOOKUP(AZ$10,Inputs!$K$23:$M$23,Inputs!$K29:$M29)) -> 0 | BA24: =IF(BA$10=0,0,LOOKUP(BA$10,Inputs!$K$23:$M$23,Inputs!$K29:$M29)) -> 0 | BB24: =IF(BB$10=0,0,LOOKUP(BB$10,Inputs!$K$23:$M$23,Inputs!$K29:$M29)) -> 0 | BC24: =IF(BC$10=0,0,LOOKUP(BC$10,Inputs!$K$23:$M$23,Inputs!$K29:$M29)) -> 0 | BD24: =IF(BD$10=0,0,LOOKUP(BD$10,Inputs!$K$23:$M$23,Inputs!$K29:$M29)) -> 0 | BE24: =IF(BE$10=0,0,LOOKUP(BE$10,Inputs!$K$23:$M$23,Inputs!$K29:$M29)) -> 0 | BF24: =IF(BF$10=0,0,LOOKUP(BF$10,Inputs!$K$23:$M$23,Inputs!$K29:$M29)) -> 0 | BG24: =IF(BG$10=0,0,LOOKUP(BG$10,Inputs!$K$23:$M$23,Inputs!$K29:$M29)) -> 0 | BH24: =IF(BH$10=0,0,LOOKUP(BH$10,Inputs!$K$23:$M$23,Inputs!$K29:$M29)) -> 0 | BI24: =IF(BI$10=0,0,LOOKUP(BI$10,Inputs!$K$23:$M$23,Inputs!$K29:$M29)) -> 0 | BJ24: =IF(BJ$10=0,0,LOOKUP(BJ$10,Inputs!$K$23:$M$23,Inputs!$K29:$M29)) -> 0 | BK24: =IF(BK$10=0,0,LOOKUP(BK$10,Inputs!$K$23:$M$23,Inputs!$K29:$M29)) -> 0 | BL24: =IF(BL$10=0,0,LOOKUP(BL$10,Inputs!$K$23:$M$23,Inputs!$K29:$M29)) -> 0 | BM24: =IF(BM$10=0,0,LOOKUP(BM$10,Inputs!$K$23:$M$23,Inputs!$K29:$M29)) -> 0
C25: =Inputs!C30 -> Safety, security & logistics | D25: % | I25: 1 | J25: =IF(J$10=0,0,LOOKUP(J$10,Inputs!$K$23:$M$23,Inputs!$K30:$M30)) -> 0.4 | K25: =IF(K$10=0,0,LOOKUP(K$10,Inputs!$K$23:$M$23,Inputs!$K30:$M30)) -> 0.3 | L25: =IF(L$10=0,0,LOOKUP(L$10,Inputs!$K$23:$M$23,Inputs!$K30:$M30)) -> 0.3 | M25: =IF(M$10=0,0,LOOKUP(M$10,Inputs!$K$23:$M$23,Inputs!$K30:$M30)) -> 0 | N25: =IF(N$10=0,0,LOOKUP(N$10,Inputs!$K$23:$M$23,Inputs!$K30:$M30)) -> 0 | O25: =IF(O$10=0,0,LOOKUP(O$10,Inputs!$K$23:$M$23,Inputs!$K30:$M30)) -> 0 | P25: =IF(P$10=0,0,LOOKUP(P$10,Inputs!$K$23:$M$23,Inputs!$K30:$M30)) -> 0 | Q25: =IF(Q$10=0,0,LOOKUP(Q$10,Inputs!$K$23:$M$23,Inputs!$K30:$M30)) -> 0 | R25: =IF(R$10=0,0,LOOKUP(R$10,Inputs!$K$23:$M$23,Inputs!$K30:$M30)) -> 0 | S25: =IF(S$10=0,0,LOOKUP(S$10,Inputs!$K$23:$M$23,Inputs!$K30:$M30)) -> 0 | T25: =IF(T$10=0,0,LOOKUP(T$10,Inputs!$K$23:$M$23,Inputs!$K30:$M30)) -> 0 | U25: =IF(U$10=0,0,LOOKUP(U$10,Inputs!$K$23:$M$23,Inputs!$K30:$M30)) -> 0 | V25: =IF(V$10=0,0,LOOKUP(V$10,Inputs!$K$23:$M$23,Inputs!$K30:$M30)) -> 0 | W25: =IF(W$10=0,0,LOOKUP(W$10,Inputs!$K$23:$M$23,Inputs!$K30:$M30)) -> 0 | X25: =IF(X$10=0,0,LOOKUP(X$10,Inputs!$K$23:$M$23,Inputs!$K30:$M30)) -> 0 | Y25: =IF(Y$10=0,0,LOOKUP(Y$10,Inputs!$K$23:$M$23,Inputs!$K30:$M30)) -> 0 | Z25: =IF(Z$10=0,0,LOOKUP(Z$10,Inputs!$K$23:$M$23,Inputs!$K30:$M30)) -> 0 | AA25: =IF(AA$10=0,0,LOOKUP(AA$10,Inputs!$K$23:$M$23,Inputs!$K30:$M30)) -> 0 | AB25: =IF(AB$10=0,0,LOOKUP(AB$10,Inputs!$K$23:$M$23,Inputs!$K30:$M30)) -> 0 | AC25: =IF(AC$10=0,0,LOOKUP(AC$10,Inputs!$K$23:$M$23,Inputs!$K30:$M30)) -> 0 | AD25: =IF(AD$10=0,0,LOOKUP(AD$10,Inputs!$K$23:$M$23,Inputs!$K30:$M30)) -> 0 | AE25: =IF(AE$10=0,0,LOOKUP(AE$10,Inputs!$K$23:$M$23,Inputs!$K30:$M30)) -> 0 | AF25: =IF(AF$10=0,0,LOOKUP(AF$10,Inputs!$K$23:$M$23,Inputs!$K30:$M30)) -> 0 | AG25: =IF(AG$10=0,0,LOOKUP(AG$10,Inputs!$K$23:$M$23,Inputs!$K30:$M30)) -> 0 | AH25: =IF(AH$10=0,0,LOOKUP(AH$10,Inputs!$K$23:$M$23,Inputs!$K30:$M30)) -> 0 | AI25: =IF(AI$10=0,0,LOOKUP(AI$10,Inputs!$K$23:$M$23,Inputs!$K30:$M30)) -> 0 | AJ25: =IF(AJ$10=0,0,LOOKUP(AJ$10,Inputs!$K$23:$M$23,Inputs!$K30:$M30)) -> 0 | AK25: =IF(AK$10=0,0,LOOKUP(AK$10,Inputs!$K$23:$M$23,Inputs!$K30:$M30)) -> 0 | AL25: =IF(AL$10=0,0,LOOKUP(AL$10,Inputs!$K$23:$M$23,Inputs!$K30:$M30)) -> 0 | AM25: =IF(AM$10=0,0,LOOKUP(AM$10,Inputs!$K$23:$M$23,Inputs!$K30:$M30)) -> 0 | AN25: =IF(AN$10=0,0,LOOKUP(AN$10,Inputs!$K$23:$M$23,Inputs!$K30:$M30)) -> 0 | AO25: =IF(AO$10=0,0,LOOKUP(AO$10,Inputs!$K$23:$M$23,Inputs!$K30:$M30)) -> 0 | AP25: =IF(AP$10=0,0,LOOKUP(AP$10,Inputs!$K$23:$M$23,Inputs!$K30:$M30)) -> 0 | AQ25: =IF(AQ$10=0,0,LOOKUP(AQ$10,Inputs!$K$23:$M$23,Inputs!$K30:$M30)) -> 0 | AR25: =IF(AR$10=0,0,LOOKUP(AR$10,Inputs!$K$23:$M$23,Inputs!$K30:$M30)) -> 0 | AS25: =IF(AS$10=0,0,LOOKUP(AS$10,Inputs!$K$23:$M$23,Inputs!$K30:$M30)) -> 0 | AT25: =IF(AT$10=0,0,LOOKUP(AT$10,Inputs!$K$23:$M$23,Inputs!$K30:$M30)) -> 0 | AU25: =IF(AU$10=0,0,LOOKUP(AU$10,Inputs!$K$23:$M$23,Inputs!$K30:$M30)) -> 0 | AV25: =IF(AV$10=0,0,LOOKUP(AV$10,Inputs!$K$23:$M$23,Inputs!$K30:$M30)) -> 0 | AW25: =IF(AW$10=0,0,LOOKUP(AW$10,Inputs!$K$23:$M$23,Inputs!$K30:$M30)) -> 0 | AX25: =IF(AX$10=0,0,LOOKUP(AX$10,Inputs!$K$23:$M$23,Inputs!$K30:$M30)) -> 0 | AY25: =IF(AY$10=0,0,LOOKUP(AY$10,Inputs!$K$23:$M$23,Inputs!$K30:$M30)) -> 0 | AZ25: =IF(AZ$10=0,0,LOOKUP(AZ$10,Inputs!$K$23:$M$23,Inputs!$K30:$M30)) -> 0 | BA25: =IF(BA$10=0,0,LOOKUP(BA$10,Inputs!$K$23:$M$23,Inputs!$K30:$M30)) -> 0 | BB25: =IF(BB$10=0,0,LOOKUP(BB$10,Inputs!$K$23:$M$23,Inputs!$K30:$M30)) -> 0 | BC25: =IF(BC$10=0,0,LOOKUP(BC$10,Inputs!$K$23:$M$23,Inputs!$K30:$M30)) -> 0 | BD25: =IF(BD$10=0,0,LOOKUP(BD$10,Inputs!$K$23:$M$23,Inputs!$K30:$M30)) -> 0 | BE25: =IF(BE$10=0,0,LOOKUP(BE$10,Inputs!$K$23:$M$23,Inputs!$K30:$M30)) -> 0 | BF25: =IF(BF$10=0,0,LOOKUP(BF$10,Inputs!$K$23:$M$23,Inputs!$K30:$M30)) -> 0 | BG25: =IF(BG$10=0,0,LOOKUP(BG$10,Inputs!$K$23:$M$23,Inputs!$K30:$M30)) -> 0 | BH25: =IF(BH$10=0,0,LOOKUP(BH$10,Inputs!$K$23:$M$23,Inputs!$K30:$M30)) -> 0 | BI25: =IF(BI$10=0,0,LOOKUP(BI$10,Inputs!$K$23:$M$23,Inputs!$K30:$M30)) -> 0 | BJ25: =IF(BJ$10=0,0,LOOKUP(BJ$10,Inputs!$K$23:$M$23,Inputs!$K30:$M30)) -> 0 | BK25: =IF(BK$10=0,0,LOOKUP(BK$10,Inputs!$K$23:$M$23,Inputs!$K30:$M30)) -> 0 | BL25: =IF(BL$10=0,0,LOOKUP(BL$10,Inputs!$K$23:$M$23,Inputs!$K30:$M30)) -> 0 | BM25: =IF(BM$10=0,0,LOOKUP(BM$10,Inputs!$K$23:$M$23,Inputs!$K30:$M30)) -> 0
C26: =Inputs!C31 -> Eletrical Installation | D26: % | I26: 1 | J26: =IF(J$10=0,0,LOOKUP(J$10,Inputs!$K$23:$M$23,Inputs!$K31:$M31)) -> 0 | K26: =IF(K$10=0,0,LOOKUP(K$10,Inputs!$K$23:$M$23,Inputs!$K31:$M31)) -> 0.6 | L26: =IF(L$10=0,0,LOOKUP(L$10,Inputs!$K$23:$M$23,Inputs!$K31:$M31)) -> 0.4 | M26: =IF(M$10=0,0,LOOKUP(M$10,Inputs!$K$23:$M$23,Inputs!$K31:$M31)) -> 0 | N26: =IF(N$10=0,0,LOOKUP(N$10,Inputs!$K$23:$M$23,Inputs!$K31:$M31)) -> 0 | O26: =IF(O$10=0,0,LOOKUP(O$10,Inputs!$K$23:$M$23,Inputs!$K31:$M31)) -> 0 | P26: =IF(P$10=0,0,LOOKUP(P$10,Inputs!$K$23:$M$23,Inputs!$K31:$M31)) -> 0 | Q26: =IF(Q$10=0,0,LOOKUP(Q$10,Inputs!$K$23:$M$23,Inputs!$K31:$M31)) -> 0 | R26: =IF(R$10=0,0,LOOKUP(R$10,Inputs!$K$23:$M$23,Inputs!$K31:$M31)) -> 0 | S26: =IF(S$10=0,0,LOOKUP(S$10,Inputs!$K$23:$M$23,Inputs!$K31:$M31)) -> 0 | T26: =IF(T$10=0,0,LOOKUP(T$10,Inputs!$K$23:$M$23,Inputs!$K31:$M31)) -> 0 | U26: =IF(U$10=0,0,LOOKUP(U$10,Inputs!$K$23:$M$23,Inputs!$K31:$M31)) -> 0 | V26: =IF(V$10=0,0,LOOKUP(V$10,Inputs!$K$23:$M$23,Inputs!$K31:$M31)) -> 0 | W26: =IF(W$10=0,0,LOOKUP(W$10,Inputs!$K$23:$M$23,Inputs!$K31:$M31)) -> 0 | X26: =IF(X$10=0,0,LOOKUP(X$10,Inputs!$K$23:$M$23,Inputs!$K31:$M31)) -> 0 | Y26: =IF(Y$10=0,0,LOOKUP(Y$10,Inputs!$K$23:$M$23,Inputs!$K31:$M31)) -> 0 | Z26: =IF(Z$10=0,0,LOOKUP(Z$10,Inputs!$K$23:$M$23,Inputs!$K31:$M31)) -> 0 | AA26: =IF(AA$10=0,0,LOOKUP(AA$10,Inputs!$K$23:$M$23,Inputs!$K31:$M31)) -> 0 | AB26: =IF(AB$10=0,0,LOOKUP(AB$10,Inputs!$K$23:$M$23,Inputs!$K31:$M31)) -> 0 | AC26: =IF(AC$10=0,0,LOOKUP(AC$10,Inputs!$K$23:$M$23,Inputs!$K31:$M31)) -> 0 | AD26: =IF(AD$10=0,0,LOOKUP(AD$10,Inputs!$K$23:$M$23,Inputs!$K31:$M31)) -> 0 | AE26: =IF(AE$10=0,0,LOOKUP(AE$10,Inputs!$K$23:$M$23,Inputs!$K31:$M31)) -> 0 | AF26: =IF(AF$10=0,0,LOOKUP(AF$10,Inputs!$K$23:$M$23,Inputs!$K31:$M31)) -> 0 | AG26: =IF(AG$10=0,0,LOOKUP(AG$10,Inputs!$K$23:$M$23,Inputs!$K31:$M31)) -> 0 | AH26: =IF(AH$10=0,0,LOOKUP(AH$10,Inputs!$K$23:$M$23,Inputs!$K31:$M31)) -> 0 | AI26: =IF(AI$10=0,0,LOOKUP(AI$10,Inputs!$K$23:$M$23,Inputs!$K31:$M31)) -> 0 | AJ26: =IF(AJ$10=0,0,LOOKUP(AJ$10,Inputs!$K$23:$M$23,Inputs!$K31:$M31)) -> 0 | AK26: =IF(AK$10=0,0,LOOKUP(AK$10,Inputs!$K$23:$M$23,Inputs!$K31:$M31)) -> 0 | AL26: =IF(AL$10=0,0,LOOKUP(AL$10,Inputs!$K$23:$M$23,Inputs!$K31:$M31)) -> 0 | AM26: =IF(AM$10=0,0,LOOKUP(AM$10,Inputs!$K$23:$M$23,Inputs!$K31:$M31)) -> 0 | AN26: =IF(AN$10=0,0,LOOKUP(AN$10,Inputs!$K$23:$M$23,Inputs!$K31:$M31)) -> 0 | AO26: =IF(AO$10=0,0,LOOKUP(AO$10,Inputs!$K$23:$M$23,Inputs!$K31:$M31)) -> 0 | AP26: =IF(AP$10=0,0,LOOKUP(AP$10,Inputs!$K$23:$M$23,Inputs!$K31:$M31)) -> 0 | AQ26: =IF(AQ$10=0,0,LOOKUP(AQ$10,Inputs!$K$23:$M$23,Inputs!$K31:$M31)) -> 0 | AR26: =IF(AR$10=0,0,LOOKUP(AR$10,Inputs!$K$23:$M$23,Inputs!$K31:$M31)) -> 0 | AS26: =IF(AS$10=0,0,LOOKUP(AS$10,Inputs!$K$23:$M$23,Inputs!$K31:$M31)) -> 0 | AT26: =IF(AT$10=0,0,LOOKUP(AT$10,Inputs!$K$23:$M$23,Inputs!$K31:$M31)) -> 0 | AU26: =IF(AU$10=0,0,LOOKUP(AU$10,Inputs!$K$23:$M$23,Inputs!$K31:$M31)) -> 0 | AV26: =IF(AV$10=0,0,LOOKUP(AV$10,Inputs!$K$23:$M$23,Inputs!$K31:$M31)) -> 0 | AW26: =IF(AW$10=0,0,LOOKUP(AW$10,Inputs!$K$23:$M$23,Inputs!$K31:$M31)) -> 0 | AX26: =IF(AX$10=0,0,LOOKUP(AX$10,Inputs!$K$23:$M$23,Inputs!$K31:$M31)) -> 0 | AY26: =IF(AY$10=0,0,LOOKUP(AY$10,Inputs!$K$23:$M$23,Inputs!$K31:$M31)) -> 0 | AZ26: =IF(AZ$10=0,0,LOOKUP(AZ$10,Inputs!$K$23:$M$23,Inputs!$K31:$M31)) -> 0 | BA26: =IF(BA$10=0,0,LOOKUP(BA$10,Inputs!$K$23:$M$23,Inputs!$K31:$M31)) -> 0 | BB26: =IF(BB$10=0,0,LOOKUP(BB$10,Inputs!$K$23:$M$23,Inputs!$K31:$M31)) -> 0 | BC26: =IF(BC$10=0,0,LOOKUP(BC$10,Inputs!$K$23:$M$23,Inputs!$K31:$M31)) -> 0 | BD26: =IF(BD$10=0,0,LOOKUP(BD$10,Inputs!$K$23:$M$23,Inputs!$K31:$M31)) -> 0 | BE26: =IF(BE$10=0,0,LOOKUP(BE$10,Inputs!$K$23:$M$23,Inputs!$K31:$M31)) -> 0 | BF26: =IF(BF$10=0,0,LOOKUP(BF$10,Inputs!$K$23:$M$23,Inputs!$K31:$M31)) -> 0 | BG26: =IF(BG$10=0,0,LOOKUP(BG$10,Inputs!$K$23:$M$23,Inputs!$K31:$M31)) -> 0 | BH26: =IF(BH$10=0,0,LOOKUP(BH$10,Inputs!$K$23:$M$23,Inputs!$K31:$M31)) -> 0 | BI26: =IF(BI$10=0,0,LOOKUP(BI$10,Inputs!$K$23:$M$23,Inputs!$K31:$M31)) -> 0 | BJ26: =IF(BJ$10=0,0,LOOKUP(BJ$10,Inputs!$K$23:$M$23,Inputs!$K31:$M31)) -> 0 | BK26: =IF(BK$10=0,0,LOOKUP(BK$10,Inputs!$K$23:$M$23,Inputs!$K31:$M31)) -> 0 | BL26: =IF(BL$10=0,0,LOOKUP(BL$10,Inputs!$K$23:$M$23,Inputs!$K31:$M31)) -> 0 | BM26: =IF(BM$10=0,0,LOOKUP(BM$10,Inputs!$K$23:$M$23,Inputs!$K31:$M31)) -> 0 | BN26: =IF(BN$12=0,0,LOOKUP(BN$12,[1]Inputs!$J$23:$M$23,[1]Inputs!$J31:$M31)) -> 0
C27: =Inputs!C32 -> Inspection | D27: % | I27: 1 | J27: =IF(J$10=0,0,LOOKUP(J$10,Inputs!$K$23:$M$23,Inputs!$K32:$M32)) -> 0 | K27: =IF(K$10=0,0,LOOKUP(K$10,Inputs!$K$23:$M$23,Inputs!$K32:$M32)) -> 0.6 | L27: =IF(L$10=0,0,LOOKUP(L$10,Inputs!$K$23:$M$23,Inputs!$K32:$M32)) -> 0.4 | M27: =IF(M$10=0,0,LOOKUP(M$10,Inputs!$K$23:$M$23,Inputs!$K32:$M32)) -> 0 | N27: =IF(N$10=0,0,LOOKUP(N$10,Inputs!$K$23:$M$23,Inputs!$K32:$M32)) -> 0 | O27: =IF(O$10=0,0,LOOKUP(O$10,Inputs!$K$23:$M$23,Inputs!$K32:$M32)) -> 0 | P27: =IF(P$10=0,0,LOOKUP(P$10,Inputs!$K$23:$M$23,Inputs!$K32:$M32)) -> 0 | Q27: =IF(Q$10=0,0,LOOKUP(Q$10,Inputs!$K$23:$M$23,Inputs!$K32:$M32)) -> 0 | R27: =IF(R$10=0,0,LOOKUP(R$10,Inputs!$K$23:$M$23,Inputs!$K32:$M32)) -> 0 | S27: =IF(S$10=0,0,LOOKUP(S$10,Inputs!$K$23:$M$23,Inputs!$K32:$M32)) -> 0 | T27: =IF(T$10=0,0,LOOKUP(T$10,Inputs!$K$23:$M$23,Inputs!$K32:$M32)) -> 0 | U27: =IF(U$10=0,0,LOOKUP(U$10,Inputs!$K$23:$M$23,Inputs!$K32:$M32)) -> 0 | V27: =IF(V$10=0,0,LOOKUP(V$10,Inputs!$K$23:$M$23,Inputs!$K32:$M32)) -> 0 | W27: =IF(W$10=0,0,LOOKUP(W$10,Inputs!$K$23:$M$23,Inputs!$K32:$M32)) -> 0 | X27: =IF(X$10=0,0,LOOKUP(X$10,Inputs!$K$23:$M$23,Inputs!$K32:$M32)) -> 0 | Y27: =IF(Y$10=0,0,LOOKUP(Y$10,Inputs!$K$23:$M$23,Inputs!$K32:$M32)) -> 0 | Z27: =IF(Z$10=0,0,LOOKUP(Z$10,Inputs!$K$23:$M$23,Inputs!$K32:$M32)) -> 0 | AA27: =IF(AA$10=0,0,LOOKUP(AA$10,Inputs!$K$23:$M$23,Inputs!$K32:$M32)) -> 0 | AB27: =IF(AB$10=0,0,LOOKUP(AB$10,Inputs!$K$23:$M$23,Inputs!$K32:$M32)) -> 0 | AC27: =IF(AC$10=0,0,LOOKUP(AC$10,Inputs!$K$23:$M$23,Inputs!$K32:$M32)) -> 0 | AD27: =IF(AD$10=0,0,LOOKUP(AD$10,Inputs!$K$23:$M$23,Inputs!$K32:$M32)) -> 0 | AE27: =IF(AE$10=0,0,LOOKUP(AE$10,Inputs!$K$23:$M$23,Inputs!$K32:$M32)) -> 0 | AF27: =IF(AF$10=0,0,LOOKUP(AF$10,Inputs!$K$23:$M$23,Inputs!$K32:$M32)) -> 0 | AG27: =IF(AG$10=0,0,LOOKUP(AG$10,Inputs!$K$23:$M$23,Inputs!$K32:$M32)) -> 0 | AH27: =IF(AH$10=0,0,LOOKUP(AH$10,Inputs!$K$23:$M$23,Inputs!$K32:$M32)) -> 0 | AI27: =IF(AI$10=0,0,LOOKUP(AI$10,Inputs!$K$23:$M$23,Inputs!$K32:$M32)) -> 0 | AJ27: =IF(AJ$10=0,0,LOOKUP(AJ$10,Inputs!$K$23:$M$23,Inputs!$K32:$M32)) -> 0 | AK27: =IF(AK$10=0,0,LOOKUP(AK$10,Inputs!$K$23:$M$23,Inputs!$K32:$M32)) -> 0 | AL27: =IF(AL$10=0,0,LOOKUP(AL$10,Inputs!$K$23:$M$23,Inputs!$K32:$M32)) -> 0 | AM27: =IF(AM$10=0,0,LOOKUP(AM$10,Inputs!$K$23:$M$23,Inputs!$K32:$M32)) -> 0 | AN27: =IF(AN$10=0,0,LOOKUP(AN$10,Inputs!$K$23:$M$23,Inputs!$K32:$M32)) -> 0 | AO27: =IF(AO$10=0,0,LOOKUP(AO$10,Inputs!$K$23:$M$23,Inputs!$K32:$M32)) -> 0 | AP27: =IF(AP$10=0,0,LOOKUP(AP$10,Inputs!$K$23:$M$23,Inputs!$K32:$M32)) -> 0 | AQ27: =IF(AQ$10=0,0,LOOKUP(AQ$10,Inputs!$K$23:$M$23,Inputs!$K32:$M32)) -> 0 | AR27: =IF(AR$10=0,0,LOOKUP(AR$10,Inputs!$K$23:$M$23,Inputs!$K32:$M32)) -> 0 | AS27: =IF(AS$10=0,0,LOOKUP(AS$10,Inputs!$K$23:$M$23,Inputs!$K32:$M32)) -> 0 | AT27: =IF(AT$10=0,0,LOOKUP(AT$10,Inputs!$K$23:$M$23,Inputs!$K32:$M32)) -> 0 | AU27: =IF(AU$10=0,0,LOOKUP(AU$10,Inputs!$K$23:$M$23,Inputs!$K32:$M32)) -> 0 | AV27: =IF(AV$10=0,0,LOOKUP(AV$10,Inputs!$K$23:$M$23,Inputs!$K32:$M32)) -> 0 | AW27: =IF(AW$10=0,0,LOOKUP(AW$10,Inputs!$K$23:$M$23,Inputs!$K32:$M32)) -> 0 | AX27: =IF(AX$10=0,0,LOOKUP(AX$10,Inputs!$K$23:$M$23,Inputs!$K32:$M32)) -> 0 | AY27: =IF(AY$10=0,0,LOOKUP(AY$10,Inputs!$K$23:$M$23,Inputs!$K32:$M32)) -> 0 | AZ27: =IF(AZ$10=0,0,LOOKUP(AZ$10,Inputs!$K$23:$M$23,Inputs!$K32:$M32)) -> 0 | BA27: =IF(BA$10=0,0,LOOKUP(BA$10,Inputs!$K$23:$M$23,Inputs!$K32:$M32)) -> 0 | BB27: =IF(BB$10=0,0,LOOKUP(BB$10,Inputs!$K$23:$M$23,Inputs!$K32:$M32)) -> 0 | BC27: =IF(BC$10=0,0,LOOKUP(BC$10,Inputs!$K$23:$M$23,Inputs!$K32:$M32)) -> 0 | BD27: =IF(BD$10=0,0,LOOKUP(BD$10,Inputs!$K$23:$M$23,Inputs!$K32:$M32)) -> 0 | BE27: =IF(BE$10=0,0,LOOKUP(BE$10,Inputs!$K$23:$M$23,Inputs!$K32:$M32)) -> 0 | BF27: =IF(BF$10=0,0,LOOKUP(BF$10,Inputs!$K$23:$M$23,Inputs!$K32:$M32)) -> 0 | BG27: =IF(BG$10=0,0,LOOKUP(BG$10,Inputs!$K$23:$M$23,Inputs!$K32:$M32)) -> 0 | BH27: =IF(BH$10=0,0,LOOKUP(BH$10,Inputs!$K$23:$M$23,Inputs!$K32:$M32)) -> 0 | BI27: =IF(BI$10=0,0,LOOKUP(BI$10,Inputs!$K$23:$M$23,Inputs!$K32:$M32)) -> 0 | BJ27: =IF(BJ$10=0,0,LOOKUP(BJ$10,Inputs!$K$23:$M$23,Inputs!$K32:$M32)) -> 0 | BK27: =IF(BK$10=0,0,LOOKUP(BK$10,Inputs!$K$23:$M$23,Inputs!$K32:$M32)) -> 0 | BL27: =IF(BL$10=0,0,LOOKUP(BL$10,Inputs!$K$23:$M$23,Inputs!$K32:$M32)) -> 0 | BM27: =IF(BM$10=0,0,LOOKUP(BM$10,Inputs!$K$23:$M$23,Inputs!$K32:$M32)) -> 0 | BN27: =IF(BN$12=0,0,LOOKUP(BN$12,[1]Inputs!$J$23:$M$23,[1]Inputs!$J32:$M32)) -> 0
C28: =Inputs!C33 -> Mechanical Installation | D28: % | I28: 1 | J28: =IF(J$10=0,0,LOOKUP(J$10,Inputs!$K$23:$M$23,Inputs!$K33:$M33)) -> 0 | K28: =IF(K$10=0,0,LOOKUP(K$10,Inputs!$K$23:$M$23,Inputs!$K33:$M33)) -> 0.6 | L28: =IF(L$10=0,0,LOOKUP(L$10,Inputs!$K$23:$M$23,Inputs!$K33:$M33)) -> 0.4 | M28: =IF(M$10=0,0,LOOKUP(M$10,Inputs!$K$23:$M$23,Inputs!$K33:$M33)) -> 0 | N28: =IF(N$10=0,0,LOOKUP(N$10,Inputs!$K$23:$M$23,Inputs!$K33:$M33)) -> 0 | O28: =IF(O$10=0,0,LOOKUP(O$10,Inputs!$K$23:$M$23,Inputs!$K33:$M33)) -> 0 | P28: =IF(P$10=0,0,LOOKUP(P$10,Inputs!$K$23:$M$23,Inputs!$K33:$M33)) -> 0 | Q28: =IF(Q$10=0,0,LOOKUP(Q$10,Inputs!$K$23:$M$23,Inputs!$K33:$M33)) -> 0 | R28: =IF(R$10=0,0,LOOKUP(R$10,Inputs!$K$23:$M$23,Inputs!$K33:$M33)) -> 0 | S28: =IF(S$10=0,0,LOOKUP(S$10,Inputs!$K$23:$M$23,Inputs!$K33:$M33)) -> 0 | T28: =IF(T$10=0,0,LOOKUP(T$10,Inputs!$K$23:$M$23,Inputs!$K33:$M33)) -> 0 | U28: =IF(U$10=0,0,LOOKUP(U$10,Inputs!$K$23:$M$23,Inputs!$K33:$M33)) -> 0 | V28: =IF(V$10=0,0,LOOKUP(V$10,Inputs!$K$23:$M$23,Inputs!$K33:$M33)) -> 0 | W28: =IF(W$10=0,0,LOOKUP(W$10,Inputs!$K$23:$M$23,Inputs!$K33:$M33)) -> 0 | X28: =IF(X$10=0,0,LOOKUP(X$10,Inputs!$K$23:$M$23,Inputs!$K33:$M33)) -> 0 | Y28: =IF(Y$10=0,0,LOOKUP(Y$10,Inputs!$K$23:$M$23,Inputs!$K33:$M33)) -> 0 | Z28: =IF(Z$10=0,0,LOOKUP(Z$10,Inputs!$K$23:$M$23,Inputs!$K33:$M33)) -> 0 | AA28: =IF(AA$10=0,0,LOOKUP(AA$10,Inputs!$K$23:$M$23,Inputs!$K33:$M33)) -> 0 | AB28: =IF(AB$10=0,0,LOOKUP(AB$10,Inputs!$K$23:$M$23,Inputs!$K33:$M33)) -> 0 | AC28: =IF(AC$10=0,0,LOOKUP(AC$10,Inputs!$K$23:$M$23,Inputs!$K33:$M33)) -> 0 | AD28: =IF(AD$10=0,0,LOOKUP(AD$10,Inputs!$K$23:$M$23,Inputs!$K33:$M33)) -> 0 | AE28: =IF(AE$10=0,0,LOOKUP(AE$10,Inputs!$K$23:$M$23,Inputs!$K33:$M33)) -> 0 | AF28: =IF(AF$10=0,0,LOOKUP(AF$10,Inputs!$K$23:$M$23,Inputs!$K33:$M33)) -> 0 | AG28: =IF(AG$10=0,0,LOOKUP(AG$10,Inputs!$K$23:$M$23,Inputs!$K33:$M33)) -> 0 | AH28: =IF(AH$10=0,0,LOOKUP(AH$10,Inputs!$K$23:$M$23,Inputs!$K33:$M33)) -> 0 | AI28: =IF(AI$10=0,0,LOOKUP(AI$10,Inputs!$K$23:$M$23,Inputs!$K33:$M33)) -> 0 | AJ28: =IF(AJ$10=0,0,LOOKUP(AJ$10,Inputs!$K$23:$M$23,Inputs!$K33:$M33)) -> 0 | AK28: =IF(AK$10=0,0,LOOKUP(AK$10,Inputs!$K$23:$M$23,Inputs!$K33:$M33)) -> 0 | AL28: =IF(AL$10=0,0,LOOKUP(AL$10,Inputs!$K$23:$M$23,Inputs!$K33:$M33)) -> 0 | AM28: =IF(AM$10=0,0,LOOKUP(AM$10,Inputs!$K$23:$M$23,Inputs!$K33:$M33)) -> 0 | AN28: =IF(AN$10=0,0,LOOKUP(AN$10,Inputs!$K$23:$M$23,Inputs!$K33:$M33)) -> 0 | AO28: =IF(AO$10=0,0,LOOKUP(AO$10,Inputs!$K$23:$M$23,Inputs!$K33:$M33)) -> 0 | AP28: =IF(AP$10=0,0,LOOKUP(AP$10,Inputs!$K$23:$M$23,Inputs!$K33:$M33)) -> 0 | AQ28: =IF(AQ$10=0,0,LOOKUP(AQ$10,Inputs!$K$23:$M$23,Inputs!$K33:$M33)) -> 0 | AR28: =IF(AR$10=0,0,LOOKUP(AR$10,Inputs!$K$23:$M$23,Inputs!$K33:$M33)) -> 0 | AS28: =IF(AS$10=0,0,LOOKUP(AS$10,Inputs!$K$23:$M$23,Inputs!$K33:$M33)) -> 0 | AT28: =IF(AT$10=0,0,LOOKUP(AT$10,Inputs!$K$23:$M$23,Inputs!$K33:$M33)) -> 0 | AU28: =IF(AU$10=0,0,LOOKUP(AU$10,Inputs!$K$23:$M$23,Inputs!$K33:$M33)) -> 0 | AV28: =IF(AV$10=0,0,LOOKUP(AV$10,Inputs!$K$23:$M$23,Inputs!$K33:$M33)) -> 0 | AW28: =IF(AW$10=0,0,LOOKUP(AW$10,Inputs!$K$23:$M$23,Inputs!$K33:$M33)) -> 0 | AX28: =IF(AX$10=0,0,LOOKUP(AX$10,Inputs!$K$23:$M$23,Inputs!$K33:$M33)) -> 0 | AY28: =IF(AY$10=0,0,LOOKUP(AY$10,Inputs!$K$23:$M$23,Inputs!$K33:$M33)) -> 0 | AZ28: =IF(AZ$10=0,0,LOOKUP(AZ$10,Inputs!$K$23:$M$23,Inputs!$K33:$M33)) -> 0 | BA28: =IF(BA$10=0,0,LOOKUP(BA$10,Inputs!$K$23:$M$23,Inputs!$K33:$M33)) -> 0 | BB28: =IF(BB$10=0,0,LOOKUP(BB$10,Inputs!$K$23:$M$23,Inputs!$K33:$M33)) -> 0 | BC28: =IF(BC$10=0,0,LOOKUP(BC$10,Inputs!$K$23:$M$23,Inputs!$K33:$M33)) -> 0 | BD28: =IF(BD$10=0,0,LOOKUP(BD$10,Inputs!$K$23:$M$23,Inputs!$K33:$M33)) -> 0 | BE28: =IF(BE$10=0,0,LOOKUP(BE$10,Inputs!$K$23:$M$23,Inputs!$K33:$M33)) -> 0 | BF28: =IF(BF$10=0,0,LOOKUP(BF$10,Inputs!$K$23:$M$23,Inputs!$K33:$M33)) -> 0 | BG28: =IF(BG$10=0,0,LOOKUP(BG$10,Inputs!$K$23:$M$23,Inputs!$K33:$M33)) -> 0 | BH28: =IF(BH$10=0,0,LOOKUP(BH$10,Inputs!$K$23:$M$23,Inputs!$K33:$M33)) -> 0 | BI28: =IF(BI$10=0,0,LOOKUP(BI$10,Inputs!$K$23:$M$23,Inputs!$K33:$M33)) -> 0 | BJ28: =IF(BJ$10=0,0,LOOKUP(BJ$10,Inputs!$K$23:$M$23,Inputs!$K33:$M33)) -> 0 | BK28: =IF(BK$10=0,0,LOOKUP(BK$10,Inputs!$K$23:$M$23,Inputs!$K33:$M33)) -> 0 | BL28: =IF(BL$10=0,0,LOOKUP(BL$10,Inputs!$K$23:$M$23,Inputs!$K33:$M33)) -> 0 | BM28: =IF(BM$10=0,0,LOOKUP(BM$10,Inputs!$K$23:$M$23,Inputs!$K33:$M33)) -> 0 | BN28: =IF(BN$12=0,0,LOOKUP(BN$12,[1]Inputs!$J$23:$M$23,[1]Inputs!$J33:$M33)) -> 0
C30: Costs
C31: =C19 -> Module/ panel | D31: AUD M | E31: =Inputs!I24 -> 343.8763793 | I31: =SUM(J31:BM31) -> 343.8763793 | J31: =$E31*J19 -> 206.3258276 | K31: =$E31*K19 -> 137.5505517 | L31: =$E31*L19 -> 0 | M31: =$E31*M19 -> 0 | N31: =$E31*N19 -> 0 | O31: =$E31*O19 -> 0 | P31: =$E31*P19 -> 0 | Q31: =$E31*Q19 -> 0 | R31: =$E31*R19 -> 0 | S31: =$E31*S19 -> 0 | T31: =$E31*T19 -> 0 | U31: =$E31*U19 -> 0 | V31: =$E31*V19 -> 0 | W31: =$E31*W19 -> 0 | X31: =$E31*X19 -> 0 | Y31: =$E31*Y19 -> 0 | Z31: =$E31*Z19 -> 0 | AA31: =$E31*AA19 -> 0 | AB31: =$E31*AB19 -> 0 | AC31: =$E31*AC19 -> 0 | AD31: =$E31*AD19 -> 0 | AE31: =$E31*AE19 -> 0 | AF31: =$E31*AF19 -> 0 | AG31: =$E31*AG19 -> 0 | AH31: =$E31*AH19 -> 0 | AI31: =$E31*AI19 -> 0 | AJ31: =$E31*AJ19 -> 0 | AK31: =$E31*AK19 -> 0 | AL31: =$E31*AL19 -> 0 | AM31: =$E31*AM19 -> 0 | AN31: =$E31*AN19 -> 0 | AO31: =$E31*AO19 -> 0 | AP31: =$E31*AP19 -> 0 | AQ31: =$E31*AQ19 -> 0 | AR31: =$E31*AR19 -> 0 | AS31: =$E31*AS19 -> 0 | AT31: =$E31*AT19 -> 0 | AU31: =$E31*AU19 -> 0 | AV31: =$E31*AV19 -> 0 | AW31: =$E31*AW19 -> 0 | AX31: =$E31*AX19 -> 0 | AY31: =$E31*AY19 -> 0 | AZ31: =$E31*AZ19 -> 0 | BA31: =$E31*BA19 -> 0 | BB31: =$E31*BB19 -> 0 | BC31: =$E31*BC19 -> 0 | BD31: =$E31*BD19 -> 0 | BE31: =$E31*BE19 -> 0 | BF31: =$E31*BF19 -> 0 | BG31: =$E31*BG19 -> 0 | BH31: =$E31*BH19 -> 0 | BI31: =$E31*BI19 -> 0 | BJ31: =$E31*BJ19 -> 0 | BK31: =$E31*BK19 -> 0 | BL31: =$E31*BL19 -> 0 | BM31: =$E31*BM19 -> 0
C32: =C20 -> Inverter | D32: AUD M | E32: =Inputs!I25 -> 76.3405562 | I32: 76.3405562 | J32: =$E32*J20 -> 45.80433372 | K32: =$E32*K20 -> 30.53622248 | L32: =$E32*L20 -> 0 | M32: =$E32*M20 -> 0 | N32: =$E32*N20 -> 0 | O32: =$E32*O20 -> 0 | P32: =$E32*P20 -> 0 | Q32: =$E32*Q20 -> 0 | R32: =$E32*R20 -> 0 | S32: =$E32*S20 -> 0 | T32: =$E32*T20 -> 0 | U32: =$E32*U20 -> 0 | V32: =$E32*V20 -> 0 | W32: =$E32*W20 -> 0 | X32: =$E32*X20 -> 0 | Y32: =$E32*Y20 -> 0 | Z32: =$E32*Z20 -> 0 | AA32: =$E32*AA20 -> 0 | AB32: =$E32*AB20 -> 0 | AC32: =$E32*AC20 -> 0 | AD32: =$E32*AD20 -> 0 | AE32: =$E32*AE20 -> 0 | AF32: =$E32*AF20 -> 0 | AG32: =$E32*AG20 -> 0 | AH32: =$E32*AH20 -> 0 | AI32: =$E32*AI20 -> 0 | AJ32: =$E32*AJ20 -> 0 | AK32: =$E32*AK20 -> 0 | AL32: =$E32*AL20 -> 0 | AM32: =$E32*AM20 -> 0 | AN32: =$E32*AN20 -> 0 | AO32: =$E32*AO20 -> 0 | AP32: =$E32*AP20 -> 0 | AQ32: =$E32*AQ20 -> 0 | AR32: =$E32*AR20 -> 0 | AS32: =$E32*AS20 -> 0 | AT32: =$E32*AT20 -> 0 | AU32: =$E32*AU20 -> 0 | AV32: =$E32*AV20 -> 0 | AW32: =$E32*AW20 -> 0 | AX32: =$E32*AX20 -> 0 | AY32: =$E32*AY20 -> 0 | AZ32: =$E32*AZ20 -> 0 | BA32: =$E32*BA20 -> 0 | BB32: =$E32*BB20 -> 0 | BC32: =$E32*BC20 -> 0 | BD32: =$E32*BD20 -> 0 | BE32: =$E32*BE20 -> 0 | BF32: =$E32*BF20 -> 0 | BG32: =$E32*BG20 -> 0 | BH32: =$E32*BH20 -> 0 | BI32: =$E32*BI20 -> 0 | BJ32: =$E32*BJ20 -> 0 | BK32: =$E32*BK20 -> 0 | BL32: =$E32*BL20 -> 0 | BM32: =$E32*BM20 -> 0
C33: =C21 -> Cabling/ wiring | D33: AUD M | E33: =Inputs!I26 -> 30.26112137 | I33: 30.26112137 | J33: =$E33*J21 -> 12.10444855 | K33: =$E33*K21 -> 9.078336412 | L33: =$E33*L21 -> 9.078336412 | M33: =$E33*M21 -> 0 | N33: =$E33*N21 -> 0 | O33: =$E33*O21 -> 0 | P33: =$E33*P21 -> 0 | Q33: =$E33*Q21 -> 0 | R33: =$E33*R21 -> 0 | S33: =$E33*S21 -> 0 | T33: =$E33*T21 -> 0 | U33: =$E33*U21 -> 0 | V33: =$E33*V21 -> 0 | W33: =$E33*W21 -> 0 | X33: =$E33*X21 -> 0 | Y33: =$E33*Y21 -> 0 | Z33: =$E33*Z21 -> 0 | AA33: =$E33*AA21 -> 0 | AB33: =$E33*AB21 -> 0 | AC33: =$E33*AC21 -> 0 | AD33: =$E33*AD21 -> 0 | AE33: =$E33*AE21 -> 0 | AF33: =$E33*AF21 -> 0 | AG33: =$E33*AG21 -> 0 | AH33: =$E33*AH21 -> 0 | AI33: =$E33*AI21 -> 0 | AJ33: =$E33*AJ21 -> 0 | AK33: =$E33*AK21 -> 0 | AL33: =$E33*AL21 -> 0 | AM33: =$E33*AM21 -> 0 | AN33: =$E33*AN21 -> 0 | AO33: =$E33*AO21 -> 0 | AP33: =$E33*AP21 -> 0 | AQ33: =$E33*AQ21 -> 0 | AR33: =$E33*AR21 -> 0 | AS33: =$E33*AS21 -> 0 | AT33: =$E33*AT21 -> 0 | AU33: =$E33*AU21 -> 0 | AV33: =$E33*AV21 -> 0 | AW33: =$E33*AW21 -> 0 | AX33: =$E33*AX21 -> 0 | AY33: =$E33*AY21 -> 0 | AZ33: =$E33*AZ21 -> 0 | BA33: =$E33*BA21 -> 0 | BB33: =$E33*BB21 -> 0 | BC33: =$E33*BC21 -> 0 | BD33: =$E33*BD21 -> 0 | BE33: =$E33*BE21 -> 0 | BF33: =$E33*BF21 -> 0 | BG33: =$E33*BG21 -> 0 | BH33: =$E33*BH21 -> 0 | BI33: =$E33*BI21 -> 0 | BJ33: =$E33*BJ21 -> 0 | BK33: =$E33*BK21 -> 0 | BL33: =$E33*BL21 -> 0 | BM33: =$E33*BM21 -> 0
C34: =C22 -> Grid connection | D34: AUD M | E34: =Inputs!I27 -> 41.95291827 | I34: 41.95291827 | J34: =$E34*J22 -> 16.78116731 | K34: =$E34*K22 -> 12.58587548 | L34: =$E34*L22 -> 12.58587548 | M34: =$E34*M22 -> 0 | N34: =$E34*N22 -> 0 | O34: =$E34*O22 -> 0 | P34: =$E34*P22 -> 0 | Q34: =$E34*Q22 -> 0 | R34: =$E34*R22 -> 0 | S34: =$E34*S22 -> 0 | T34: =$E34*T22 -> 0 | U34: =$E34*U22 -> 0 | V34: =$E34*V22 -> 0 | W34: =$E34*W22 -> 0 | X34: =$E34*X22 -> 0 | Y34: =$E34*Y22 -> 0 | Z34: =$E34*Z22 -> 0 | AA34: =$E34*AA22 -> 0 | AB34: =$E34*AB22 -> 0 | AC34: =$E34*AC22 -> 0 | AD34: =$E34*AD22 -> 0 | AE34: =$E34*AE22 -> 0 | AF34: =$E34*AF22 -> 0 | AG34: =$E34*AG22 -> 0 | AH34: =$E34*AH22 -> 0 | AI34: =$E34*AI22 -> 0 | AJ34: =$E34*AJ22 -> 0 | AK34: =$E34*AK22 -> 0 | AL34: =$E34*AL22 -> 0 | AM34: =$E34*AM22 -> 0 | AN34: =$E34*AN22 -> 0 | AO34: =$E34*AO22 -> 0 | AP34: =$E34*AP22 -> 0 | AQ34: =$E34*AQ22 -> 0 | AR34: =$E34*AR22 -> 0 | AS34: =$E34*AS22 -> 0 | AT34: =$E34*AT22 -> 0 | AU34: =$E34*AU22 -> 0 | AV34: =$E34*AV22 -> 0 | AW34: =$E34*AW22 -> 0 | AX34: =$E34*AX22 -> 0 | AY34: =$E34*AY22 -> 0 | AZ34: =$E34*AZ22 -> 0 | BA34: =$E34*BA22 -> 0 | BB34: =$E34*BB22 -> 0 | BC34: =$E34*BC22 -> 0 | BD34: =$E34*BD22 -> 0 | BE34: =$E34*BE22 -> 0 | BF34: =$E34*BF22 -> 0 | BG34: =$E34*BG22 -> 0 | BH34: =$E34*BH22 -> 0 | BI34: =$E34*BI22 -> 0 | BJ34: =$E34*BJ22 -> 0 | BK34: =$E34*BK22 -> 0 | BL34: =$E34*BL22 -> 0 | BM34: =$E34*BM22 -> 0
C35: =C23 -> Monitoring & control | D35: AUD M | E35: =Inputs!I28 -> 22.69584103 | I35: 22.69584103 | J35: =$E35*J23 -> 9.078336412 | K35: =$E35*K23 -> 6.808752309 | L35: =$E35*L23 -> 6.808752309 | M35: =$E35*M23 -> 0 | N35: =$E35*N23 -> 0 | O35: =$E35*O23 -> 0 | P35: =$E35*P23 -> 0 | Q35: =$E35*Q23 -> 0 | R35: =$E35*R23 -> 0 | S35: =$E35*S23 -> 0 | T35: =$E35*T23 -> 0 | U35: =$E35*U23 -> 0 | V35: =$E35*V23 -> 0 | W35: =$E35*W23 -> 0 | X35: =$E35*X23 -> 0 | Y35: =$E35*Y23 -> 0 | Z35: =$E35*Z23 -> 0 | AA35: =$E35*AA23 -> 0 | AB35: =$E35*AB23 -> 0 | AC35: =$E35*AC23 -> 0 | AD35: =$E35*AD23 -> 0 | AE35: =$E35*AE23 -> 0 | AF35: =$E35*AF23 -> 0 | AG35: =$E35*AG23 -> 0 | AH35: =$E35*AH23 -> 0 | AI35: =$E35*AI23 -> 0 | AJ35: =$E35*AJ23 -> 0 | AK35: =$E35*AK23 -> 0 | AL35: =$E35*AL23 -> 0 | AM35: =$E35*AM23 -> 0 | AN35: =$E35*AN23 -> 0 | AO35: =$E35*AO23 -> 0 | AP35: =$E35*AP23 -> 0 | AQ35: =$E35*AQ23 -> 0 | AR35: =$E35*AR23 -> 0 | AS35: =$E35*AS23 -> 0 | AT35: =$E35*AT23 -> 0 | AU35: =$E35*AU23 -> 0 | AV35: =$E35*AV23 -> 0 | AW35: =$E35*AW23 -> 0 | AX35: =$E35*AX23 -> 0 | AY35: =$E35*AY23 -> 0 | AZ35: =$E35*AZ23 -> 0 | BA35: =$E35*BA23 -> 0 | BB35: =$E35*BB23 -> 0 | BC35: =$E35*BC23 -> 0 | BD35: =$E35*BD23 -> 0 | BE35: =$E35*BE23 -> 0 | BF35: =$E35*BF23 -> 0 | BG35: =$E35*BG23 -> 0 | BH35: =$E35*BH23 -> 0 | BI35: =$E35*BI23 -> 0 | BJ35: =$E35*BJ23 -> 0 | BK35: =$E35*BK23 -> 0 | BL35: =$E35*BL23 -> 0 | BM35: =$E35*BM23 -> 0
C36: =C24 -> Racking and mounting | D36: AUD M | E36: =Inputs!I29 -> 76.3405562 | I36: 76.3405562 | J36: =$E36*J24 -> 45.80433372 | K36: =$E36*K24 -> 30.53622248 | L36: =$E36*L24 -> 0 | M36: =$E36*M24 -> 0 | N36: =$E36*N24 -> 0 | O36: =$E36*O24 -> 0 | P36: =$E36*P24 -> 0 | Q36: =$E36*Q24 -> 0 | R36: =$E36*R24 -> 0 | S36: =$E36*S24 -> 0 | T36: =$E36*T24 -> 0 | U36: =$E36*U24 -> 0 | V36: =$E36*V24 -> 0 | W36: =$E36*W24 -> 0 | X36: =$E36*X24 -> 0 | Y36: =$E36*Y24 -> 0 | Z36: =$E36*Z24 -> 0 | AA36: =$E36*AA24 -> 0 | AB36: =$E36*AB24 -> 0 | AC36: =$E36*AC24 -> 0 | AD36: =$E36*AD24 -> 0 | AE36: =$E36*AE24 -> 0 | AF36: =$E36*AF24 -> 0 | AG36: =$E36*AG24 -> 0 | AH36: =$E36*AH24 -> 0 | AI36: =$E36*AI24 -> 0 | AJ36: =$E36*AJ24 -> 0 | AK36: =$E36*AK24 -> 0 | AL36: =$E36*AL24 -> 0 | AM36: =$E36*AM24 -> 0 | AN36: =$E36*AN24 -> 0 | AO36: =$E36*AO24 -> 0 | AP36: =$E36*AP24 -> 0 | AQ36: =$E36*AQ24 -> 0 | AR36: =$E36*AR24 -> 0 | AS36: =$E36*AS24 -> 0 | AT36: =$E36*AT24 -> 0 | AU36: =$E36*AU24 -> 0 | AV36: =$E36*AV24 -> 0 | AW36: =$E36*AW24 -> 0 | AX36: =$E36*AX24 -> 0 | AY36: =$E36*AY24 -> 0 | AZ36: =$E36*AZ24 -> 0 | BA36: =$E36*BA24 -> 0 | BB36: =$E36*BB24 -> 0 | BC36: =$E36*BC24 -> 0 | BD36: =$E36*BD24 -> 0 | BE36: =$E36*BE24 -> 0 | BF36: =$E36*BF24 -> 0 | BG36: =$E36*BG24 -> 0 | BH36: =$E36*BH24 -> 0 | BI36: =$E36*BI24 -> 0 | BJ36: =$E36*BJ24 -> 0 | BK36: =$E36*BK24 -> 0 | BL36: =$E36*BL24 -> 0 | BM36: =$E36*BM24 -> 0
C37: =C25 -> Safety, security & logistics | D37: AUD M | E37: =Inputs!I30 -> 30.26112137 | I37: 30.26112137 | J37: =$E37*J25 -> 12.10444855 | K37: =$E37*K25 -> 9.078336412 | L37: =$E37*L25 -> 9.078336412 | M37: =$E37*M25 -> 0 | N37: =$E37*N25 -> 0 | O37: =$E37*O25 -> 0 | P37: =$E37*P25 -> 0 | Q37: =$E37*Q25 -> 0 | R37: =$E37*R25 -> 0 | S37: =$E37*S25 -> 0 | T37: =$E37*T25 -> 0 | U37: =$E37*U25 -> 0 | V37: =$E37*V25 -> 0 | W37: =$E37*W25 -> 0 | X37: =$E37*X25 -> 0 | Y37: =$E37*Y25 -> 0 | Z37: =$E37*Z25 -> 0 | AA37: =$E37*AA25 -> 0 | AB37: =$E37*AB25 -> 0 | AC37: =$E37*AC25 -> 0 | AD37: =$E37*AD25 -> 0 | AE37: =$E37*AE25 -> 0 | AF37: =$E37*AF25 -> 0 | AG37: =$E37*AG25 -> 0 | AH37: =$E37*AH25 -> 0 | AI37: =$E37*AI25 -> 0 | AJ37: =$E37*AJ25 -> 0 | AK37: =$E37*AK25 -> 0 | AL37: =$E37*AL25 -> 0 | AM37: =$E37*AM25 -> 0 | AN37: =$E37*AN25 -> 0 | AO37: =$E37*AO25 -> 0 | AP37: =$E37*AP25 -> 0 | AQ37: =$E37*AQ25 -> 0 | AR37: =$E37*AR25 -> 0 | AS37: =$E37*AS25 -> 0 | AT37: =$E37*AT25 -> 0 | AU37: =$E37*AU25 -> 0 | AV37: =$E37*AV25 -> 0 | AW37: =$E37*AW25 -> 0 | AX37: =$E37*AX25 -> 0 | AY37: =$E37*AY25 -> 0 | AZ37: =$E37*AZ25 -> 0 | BA37: =$E37*BA25 -> 0 | BB37: =$E37*BB25 -> 0 | BC37: =$E37*BC25 -> 0 | BD37: =$E37*BD25 -> 0 | BE37: =$E37*BE25 -> 0 | BF37: =$E37*BF25 -> 0 | BG37: =$E37*BG25 -> 0 | BH37: =$E37*BH25 -> 0 | BI37: =$E37*BI25 -> 0 | BJ37: =$E37*BJ25 -> 0 | BK37: =$E37*BK25 -> 0 | BL37: =$E37*BL25 -> 0 | BM37: =$E37*BM25 -> 0
C38: =C26 -> Eletrical Installation | D38: AUD M | E38: =Inputs!I31 -> 53.64471516 | I38: 53.64471516 | J38: =$E38*J26 -> 0 | K38: =$E38*K26 -> 32.1868291 | L38: =$E38*L26 -> 21.45788607 | M38: =$E38*M26 -> 0 | N38: =$E38*N26 -> 0 | O38: =$E38*O26 -> 0 | P38: =$E38*P26 -> 0 | Q38: =$E38*Q26 -> 0 | R38: =$E38*R26 -> 0 | S38: =$E38*S26 -> 0 | T38: =$E38*T26 -> 0 | U38: =$E38*U26 -> 0 | V38: =$E38*V26 -> 0 | W38: =$E38*W26 -> 0 | X38: =$E38*X26 -> 0 | Y38: =$E38*Y26 -> 0 | Z38: =$E38*Z26 -> 0 | AA38: =$E38*AA26 -> 0 | AB38: =$E38*AB26 -> 0 | AC38: =$E38*AC26 -> 0 | AD38: =$E38*AD26 -> 0 | AE38: =$E38*AE26 -> 0 | AF38: =$E38*AF26 -> 0 | AG38: =$E38*AG26 -> 0 | AH38: =$E38*AH26 -> 0 | AI38: =$E38*AI26 -> 0 | AJ38: =$E38*AJ26 -> 0 | AK38: =$E38*AK26 -> 0 | AL38: =$E38*AL26 -> 0 | AM38: =$E38*AM26 -> 0 | AN38: =$E38*AN26 -> 0 | AO38: =$E38*AO26 -> 0 | AP38: =$E38*AP26 -> 0 | AQ38: =$E38*AQ26 -> 0 | AR38: =$E38*AR26 -> 0 | AS38: =$E38*AS26 -> 0 | AT38: =$E38*AT26 -> 0 | AU38: =$E38*AU26 -> 0 | AV38: =$E38*AV26 -> 0 | AW38: =$E38*AW26 -> 0 | AX38: =$E38*AX26 -> 0 | AY38: =$E38*AY26 -> 0 | AZ38: =$E38*AZ26 -> 0 | BA38: =$E38*BA26 -> 0 | BB38: =$E38*BB26 -> 0 | BC38: =$E38*BC26 -> 0 | BD38: =$E38*BD26 -> 0 | BE38: =$E38*BE26 -> 0 | BF38: =$E38*BF26 -> 0 | BG38: =$E38*BG26 -> 0 | BH38: =$E38*BH26 -> 0 | BI38: =$E38*BI26 -> 0 | BJ38: =$E38*BJ26 -> 0 | BK38: =$E38*BK26 -> 0 | BL38: =$E38*BL26 -> 0 | BM38: =$E38*BM26 -> 0
C39: =C27 -> Inspection | D39: AUD M | E39: =Inputs!I32 -> 4.126516551 | I39: 4.126516551 | J39: =$E39*J27 -> 0 | K39: =$E39*K27 -> 2.475909931 | L39: =$E39*L27 -> 1.65060662 | M39: =$E39*M27 -> 0 | N39: =$E39*N27 -> 0 | O39: =$E39*O27 -> 0 | P39: =$E39*P27 -> 0 | Q39: =$E39*Q27 -> 0 | R39: =$E39*R27 -> 0 | S39: =$E39*S27 -> 0 | T39: =$E39*T27 -> 0 | U39: =$E39*U27 -> 0 | V39: =$E39*V27 -> 0 | W39: =$E39*W27 -> 0 | X39: =$E39*X27 -> 0 | Y39: =$E39*Y27 -> 0 | Z39: =$E39*Z27 -> 0 | AA39: =$E39*AA27 -> 0 | AB39: =$E39*AB27 -> 0 | AC39: =$E39*AC27 -> 0 | AD39: =$E39*AD27 -> 0 | AE39: =$E39*AE27 -> 0 | AF39: =$E39*AF27 -> 0 | AG39: =$E39*AG27 -> 0 | AH39: =$E39*AH27 -> 0 | AI39: =$E39*AI27 -> 0 | AJ39: =$E39*AJ27 -> 0 | AK39: =$E39*AK27 -> 0 | AL39: =$E39*AL27 -> 0 | AM39: =$E39*AM27 -> 0 | AN39: =$E39*AN27 -> 0 | AO39: =$E39*AO27 -> 0 | AP39: =$E39*AP27 -> 0 | AQ39: =$E39*AQ27 -> 0 | AR39: =$E39*AR27 -> 0 | AS39: =$E39*AS27 -> 0 | AT39: =$E39*AT27 -> 0 | AU39: =$E39*AU27 -> 0 | AV39: =$E39*AV27 -> 0 | AW39: =$E39*AW27 -> 0 | AX39: =$E39*AX27 -> 0 | AY39: =$E39*AY27 -> 0 | AZ39: =$E39*AZ27 -> 0 | BA39: =$E39*BA27 -> 0 | BB39: =$E39*BB27 -> 0 | BC39: =$E39*BC27 -> 0 | BD39: =$E39*BD27 -> 0 | BE39: =$E39*BE27 -> 0 | BF39: =$E39*BF27 -> 0 | BG39: =$E39*BG27 -> 0 | BH39: =$E39*BH27 -> 0 | BI39: =$E39*BI27 -> 0 | BJ39: =$E39*BJ27 -> 0 | BK39: =$E39*BK27 -> 0 | BL39: =$E39*BL27 -> 0 | BM39: =$E39*BM27 -> 0
C40: =C28 -> Mechanical Installation | D40: AUD M | E40: =Inputs!I33 -> 111.4159469 | I40: 111.4159469 | J40: =$E40*J28 -> 0 | K40: =$E40*K28 -> 66.84956813 | L40: =$E40*L28 -> 44.56637875 | M40: =$E40*M28 -> 0 | N40: =$E40*N28 -> 0 | O40: =$E40*O28 -> 0 | P40: =$E40*P28 -> 0 | Q40: =$E40*Q28 -> 0 | R40: =$E40*R28 -> 0 | S40: =$E40*S28 -> 0 | T40: =$E40*T28 -> 0 | U40: =$E40*U28 -> 0 | V40: =$E40*V28 -> 0 | W40: =$E40*W28 -> 0 | X40: =$E40*X28 -> 0 | Y40: =$E40*Y28 -> 0 | Z40: =$E40*Z28 -> 0 | AA40: =$E40*AA28 -> 0 | AB40: =$E40*AB28 -> 0 | AC40: =$E40*AC28 -> 0 | AD40: =$E40*AD28 -> 0 | AE40: =$E40*AE28 -> 0 | AF40: =$E40*AF28 -> 0 | AG40: =$E40*AG28 -> 0 | AH40: =$E40*AH28 -> 0 | AI40: =$E40*AI28 -> 0 | AJ40: =$E40*AJ28 -> 0 | AK40: =$E40*AK28 -> 0 | AL40: =$E40*AL28 -> 0 | AM40: =$E40*AM28 -> 0 | AN40: =$E40*AN28 -> 0 | AO40: =$E40*AO28 -> 0 | AP40: =$E40*AP28 -> 0 | AQ40: =$E40*AQ28 -> 0 | AR40: =$E40*AR28 -> 0 | AS40: =$E40*AS28 -> 0 | AT40: =$E40*AT28 -> 0 | AU40: =$E40*AU28 -> 0 | AV40: =$E40*AV28 -> 0 | AW40: =$E40*AW28 -> 0 | AX40: =$E40*AX28 -> 0 | AY40: =$E40*AY28 -> 0 | AZ40: =$E40*AZ28 -> 0 | BA40: =$E40*BA28 -> 0 | BB40: =$E40*BB28 -> 0 | BC40: =$E40*BC28 -> 0 | BD40: =$E40*BD28 -> 0 | BE40: =$E40*BE28 -> 0 | BF40: =$E40*BF28 -> 0 | BG40: =$E40*BG28 -> 0 | BH40: =$E40*BH28 -> 0 | BI40: =$E40*BI28 -> 0 | BJ40: =$E40*BJ28 -> 0 | BK40: =$E40*BK28 -> 0 | BL40: =$E40*BL28 -> 0 | BM40: =$E40*BM28 -> 0
C41: Total | D41: AUD M | I41: =SUM(J41:BM41) -> 790.9156723 | J41: =SUM(J31:J40) -> 348.0028958 | K41: =SUM(K31:K40) -> 337.6866044 | L41: 105.2261721 | M41: 0 | N41: 0 | O41: 0 | P41: 0 | Q41: 0 | R41: 0 | S41: 0 | T41: 0 | U41: 0 | V41: 0 | W41: 0 | X41: 0 | Y41: 0 | Z41: 0 | AA41: 0 | AB41: 0 | AC41: 0 | AD41: 0 | AE41: 0 | AF41: 0 | AG41: 0 | AH41: 0 | AI41: 0 | AJ41: 0 | AK41: 0 | AL41: 0 | AM41: 0 | AN41: 0 | AO41: 0 | AP41: 0 | AQ41: 0 | AR41: 0 | AS41: 0 | AT41: 0 | AU41: 0 | AV41: 0 | AW41: 0 | AX41: 0 | AY41: 0 | AZ41: 0 | BA41: 0 | BB41: 0 | BC41: 0 | BD41: 0 | BE41: 0 | BF41: 0 | BG41: 0 | BH41: 0 | BI41: 0 | BJ41: 0 | BK41: 0 | BL41: 0 | BM41: 0
C43: Contingency
C44: =C31 -> Module/ panel | D44: AUD M | E44: =Inputs!$E$46 -> 0 | I44: =SUM(J44:BM44) -> 0 | J44: =J31*$E$44 -> 0 | K44: =K31*$E$44 -> 0 | L44: 0 | M44: 0 | N44: 0 | O44: 0 | P44: 0 | Q44: 0 | R44: 0 | S44: 0 | T44: 0 | U44: 0 | V44: 0 | W44: 0 | X44: 0 | Y44: 0 | Z44: 0 | AA44: 0 | AB44: 0 | AC44: 0 | AD44: 0 | AE44: 0 | AF44: 0 | AG44: 0 | AH44: 0 | AI44: 0 | AJ44: 0 | AK44: 0 | AL44: 0 | AM44: 0 | AN44: 0 | AO44: 0 | AP44: 0 | AQ44: 0 | AR44: 0 | AS44: 0 | AT44: 0 | AU44: 0 | AV44: 0 | AW44: 0 | AX44: 0 | AY44: 0 | AZ44: 0 | BA44: 0 | BB44: 0 | BC44: 0 | BD44: 0 | BE44: 0 | BF44: 0 | BG44: 0 | BH44: 0 | BI44: 0 | BJ44: 0 | BK44: 0 | BL44: 0 | BM44: 0
C45: Inverter | D45: AUD M | I45: 0 | J45: =J32*$E$44 -> 0 | K45: 0 | L45: 0 | M45: 0 | N45: 0 | O45: 0 | P45: 0 | Q45: 0 | R45: 0 | S45: 0 | T45: 0 | U45: 0 | V45: 0 | W45: 0 | X45: 0 | Y45: 0 | Z45: 0 | AA45: 0 | AB45: 0 | AC45: 0 | AD45: 0 | AE45: 0 | AF45: 0 | AG45: 0 | AH45: 0 | AI45: 0 | AJ45: 0 | AK45: 0 | AL45: 0 | AM45: 0 | AN45: 0 | AO45: 0 | AP45: 0 | AQ45: 0 | AR45: 0 | AS45: 0 | AT45: 0 | AU45: 0 | AV45: 0 | AW45: 0 | AX45: 0 | AY45: 0 | AZ45: 0 | BA45: 0 | BB45: 0 | BC45: 0 | BD45: 0 | BE45: 0 | BF45: 0 | BG45: 0 | BH45: 0 | BI45: 0 | BJ45: 0 | BK45: 0 | BL45: 0 | BM45: 0
C46: Cabling/ wiring | D46: AUD M | I46: 0 | J46: 0 | K46: 0 | L46: =L33*$E$44 -> 0 | M46: 0 | N46: 0 | O46: 0 | P46: 0 | Q46: 0 | R46: 0 | S46: 0 | T46: 0 | U46: 0 | V46: 0 | W46: 0 | X46: 0 | Y46: 0 | Z46: 0 | AA46: 0 | AB46: 0 | AC46: 0 | AD46: 0 | AE46: 0 | AF46: 0 | AG46: 0 | AH46: 0 | AI46: 0 | AJ46: 0 | AK46: 0 | AL46: 0 | AM46: 0 | AN46: 0 | AO46: 0 | AP46: 0 | AQ46: 0 | AR46: 0 | AS46: 0 | AT46: 0 | AU46: 0 | AV46: 0 | AW46: 0 | AX46: 0 | AY46: 0 | AZ46: 0 | BA46: 0 | BB46: 0 | BC46: 0 | BD46: 0 | BE46: 0 | BF46: 0 | BG46: 0 | BH46: 0 | BI46: 0 | BJ46: 0 | BK46: 0 | BL46: 0 | BM46: 0
C47: Grid connection | D47: AUD M | I47: 0 | J47: 0 | K47: 0 | L47: 0 | M47: 0 | N47: 0 | O47: 0 | P47: 0 | Q47: 0 | R47: 0 | S47: 0 | T47: 0 | U47: 0 | V47: 0 | W47: 0 | X47: 0 | Y47: 0 | Z47: 0 | AA47: 0 | AB47: 0 | AC47: 0 | AD47: 0 | AE47: 0 | AF47: 0 | AG47: 0 | AH47: 0 | AI47: 0 | AJ47: 0 | AK47: 0 | AL47: 0 | AM47: 0 | AN47: 0 | AO47: 0 | AP47: 0 | AQ47: 0 | AR47: 0 | AS47: 0 | AT47: 0 | AU47: 0 | AV47: 0 | AW47: 0 | AX47: 0 | AY47: 0 | AZ47: 0 | BA47: 0 | BB47: 0 | BC47: 0 | BD47: 0 | BE47: 0 | BF47: 0 | BG47: 0 | BH47: 0 | BI47: 0 | BJ47: 0 | BK47: 0 | BL47: 0 | BM47: 0
C48: Monitoring & control | D48: AUD M | I48: 0 | J48: 0 | K48: 0 | L48: 0 | M48: 0 | N48: 0 | O48: 0 | P48: 0 | Q48: 0 | R48: 0 | S48: 0 | T48: 0 | U48: 0 | V48: 0 | W48: 0 | X48: 0 | Y48: 0 | Z48: 0 | AA48: 0 | AB48: 0 | AC48: 0 | AD48: 0 | AE48: 0 | AF48: 0 | AG48: 0 | AH48: 0 | AI48: 0 | AJ48: 0 | AK48: 0 | AL48: 0 | AM48: 0 | AN48: 0 | AO48: 0 | AP48: 0 | AQ48: 0 | AR48: 0 | AS48: 0 | AT48: 0 | AU48: 0 | AV48: 0 | AW48: 0 | AX48: 0 | AY48: 0 | AZ48: 0 | BA48: 0 | BB48: 0 | BC48: 0 | BD48: 0 | BE48: 0 | BF48: 0 | BG48: 0 | BH48: 0 | BI48: 0 | BJ48: 0 | BK48: 0 | BL48: 0 | BM48: 0
C49: Racking and mounting | D49: AUD M | I49: 0 | J49: 0 | K49: 0 | L49: 0 | M49: 0 | N49: 0 | O49: 0 | P49: 0 | Q49: 0 | R49: 0 | S49: 0 | T49: 0 | U49: 0 | V49: 0 | W49: 0 | X49: 0 | Y49: 0 | Z49: 0 | AA49: 0 | AB49: 0 | AC49: 0 | AD49: 0 | AE49: 0 | AF49: 0 | AG49: 0 | AH49: 0 | AI49: 0 | AJ49: 0 | AK49: 0 | AL49: 0 | AM49: 0 | AN49: 0 | AO49: 0 | AP49: =AP36*$E$44 -> 0 | AQ49: 0 | AR49: 0 | AS49: 0 | AT49: 0 | AU49: 0 | AV49: 0 | AW49: 0 | AX49: 0 | AY49: 0 | AZ49: 0 | BA49: 0 | BB49: 0 | BC49: 0 | BD49: 0 | BE49: 0 | BF49: 0 | BG49: 0 | BH49: 0 | BI49: 0 | BJ49: 0 | BK49: 0 | BL49: 0 | BM49: 0
C50: Safety, security & logistics | D50: AUD M | I50: 0 | J50: =J37*$E$44 -> 0 | K50: 0 | L50: 0 | M50: 0 | N50: 0 | O50: 0 | P50: 0 | Q50: 0 | R50: 0 | S50: 0 | T50: 0 | U50: 0 | V50: 0 | W50: 0 | X50: 0 | Y50: 0 | Z50: 0 | AA50: 0 | AB50: 0 | AC50: 0 | AD50: 0 | AE50: 0 | AF50: 0 | AG50: 0 | AH50: 0 | AI50: 0 | AJ50: 0 | AK50: 0 | AL50: 0 | AM50: 0 | AN50: 0 | AO50: 0 | AP50: 0 | AQ50: 0 | AR50: 0 | AS50: 0 | AT50: 0 | AU50: 0 | AV50: 0 | AW50: 0 | AX50: 0 | AY50: 0 | AZ50: 0 | BA50: 0 | BB50: 0 | BC50: 0 | BD50: 0 | BE50: 0 | BF50: 0 | BG50: 0 | BH50: 0 | BI50: 0 | BJ50: 0 | BK50: 0 | BL50: 0 | BM50: 0
C51: =C38 -> Eletrical Installation | D51: AUD M | I51: 0 | J51: 0 | K51: 0 | L51: 0 | M51: 0 | N51: 0 | O51: 0 | P51: 0 | Q51: 0 | R51: 0 | S51: 0 | T51: 0 | U51: 0 | V51: 0 | W51: 0 | X51: 0 | Y51: 0 | Z51: 0 | AA51: 0 | AB51: 0 | AC51: 0 | AD51: 0 | AE51: 0 | AF51: 0 | AG51: 0 | AH51: 0 | AI51: 0 | AJ51: 0 | AK51: 0 | AL51: 0 | AM51: 0 | AN51: 0 | AO51: 0 | AP51: 0 | AQ51: 0 | AR51: 0 | AS51: 0 | AT51: 0 | AU51: 0 | AV51: 0 | AW51: 0 | AX51: 0 | AY51: 0 | AZ51: 0 | BA51: 0 | BB51: 0 | BC51: 0 | BD51: 0 | BE51: 0 | BF51: 0 | BG51: 0 | BH51: 0 | BI51: 0 | BJ51: 0 | BK51: 0 | BL51: 0 | BM51: 0 | BN51: =BN38*$E$44 -> 0
C52: Inspection | D52: AUD M | I52: 0 | J52: 0 | K52: 0 | L52: 0 | M52: 0 | N52: 0 | O52: 0 | P52: 0 | Q52: 0 | R52: 0 | S52: 0 | T52: 0 | U52: 0 | V52: 0 | W52: 0 | X52: 0 | Y52: 0 | Z52: 0 | AA52: 0 | AB52: 0 | AC52: 0 | AD52: 0 | AE52: 0 | AF52: 0 | AG52: 0 | AH52: 0 | AI52: 0 | AJ52: 0 | AK52: 0 | AL52: 0 | AM52: 0 | AN52: 0 | AO52: 0 | AP52: 0 | AQ52: 0 | AR52: 0 | AS52: 0 | AT52: 0 | AU52: 0 | AV52: 0 | AW52: 0 | AX52: 0 | AY52: 0 | AZ52: 0 | BA52: 0 | BB52: 0 | BC52: 0 | BD52: 0 | BE52: 0 | BF52: 0 | BG52: 0 | BH52: 0 | BI52: 0 | BJ52: 0 | BK52: 0 | BL52: 0 | BM52: 0 | BN52: 0
C53: Mechanical Installation | D53: AUD M | I53: 0 | J53: 0 | K53: 0 | L53: 0 | M53: 0 | N53: 0 | O53: 0 | P53: 0 | Q53: 0 | R53: 0 | S53: 0 | T53: 0 | U53: 0 | V53: 0 | W53: 0 | X53: 0 | Y53: 0 | Z53: 0 | AA53: 0 | AB53: 0 | AC53: 0 | AD53: 0 | AE53: 0 | AF53: 0 | AG53: 0 | AH53: 0 | AI53: 0 | AJ53: 0 | AK53: 0 | AL53: 0 | AM53: 0 | AN53: 0 | AO53: 0 | AP53: 0 | AQ53: 0 | AR53: 0 | AS53: 0 | AT53: 0 | AU53: 0 | AV53: 0 | AW53: 0 | AX53: 0 | AY53: 0 | AZ53: 0 | BA53: 0 | BB53: 0 | BC53: 0 | BD53: 0 | BE53: 0 | BF53: 0 | BG53: 0 | BH53: 0 | BI53: 0 | BJ53: 0 | BK53: 0 | BL53: 0 | BM53: 0 | BN53: 0
C54: Total | D54: AUD M | I54: 0 | J54: =SUM(J44:J53) -> 0 | K54: =SUM(K44:K53) -> 0 | L54: 0 | M54: 0 | N54: 0 | O54: 0 | P54: 0 | Q54: 0 | R54: 0 | S54: 0 | T54: 0 | U54: 0 | V54: 0 | W54: 0 | X54: 0 | Y54: 0 | Z54: 0 | AA54: 0 | AB54: 0 | AC54: 0 | AD54: 0 | AE54: 0 | AF54: 0 | AG54: 0 | AH54: 0 | AI54: 0 | AJ54: 0 | AK54: 0 | AL54: 0 | AM54: 0 | AN54: 0 | AO54: 0 | AP54: 0 | AQ54: 0 | AR54: 0 | AS54: 0 | AT54: 0 | AU54: 0 | AV54: 0 | AW54: 0 | AX54: 0 | AY54: 0 | AZ54: 0 | BA54: 0 | BB54: 0 | BC54: 0 | BD54: 0 | BE54: 0 | BF54: 0 | BG54: 0 | BH54: 0 | BI54: 0 | BJ54: 0 | BK54: 0 | BL54: 0 | BM54: 0 | BN54: 0
C56: Costs incl contingency
B57: =[1]Inputs!B24 -> 1 | C57: =C44 -> Module/ panel | D57: AUD M | I57: =SUM(J57:BM57) -> 343.8763793 | J57: =J31+J44 -> 206.3258276 | K57: =K31+K44 -> 137.5505517 | L57: 0 | M57: 0 | N57: 0 | O57: 0 | P57: 0 | Q57: 0 | R57: 0 | S57: 0 | T57: 0 | U57: 0 | V57: 0 | W57: 0 | X57: 0 | Y57: 0 | Z57: 0 | AA57: 0 | AB57: 0 | AC57: 0 | AD57: 0 | AE57: 0 | AF57: 0 | AG57: 0 | AH57: 0 | AI57: 0 | AJ57: 0 | AK57: 0 | AL57: 0 | AM57: 0 | AN57: 0 | AO57: 0 | AP57: 0 | AQ57: 0 | AR57: 0 | AS57: 0 | AT57: 0 | AU57: 0 | AV57: 0 | AW57: 0 | AX57: 0 | AY57: 0 | AZ57: 0 | BA57: 0 | BB57: 0 | BC57: 0 | BD57: 0 | BE57: 0 | BF57: 0 | BG57: 0 | BH57: 0 | BI57: 0 | BJ57: 0 | BK57: 0 | BL57: 0 | BM57: 0
B58: =[1]Inputs!B25 -> 1 | C58: Inverter | D58: AUD M | I58: 76.3405562 | J58: =J32+J45 -> 45.80433372 | K58: 30.53622248 | L58: 0 | M58: 0 | N58: 0 | O58: 0 | P58: 0 | Q58: 0 | R58: 0 | S58: 0 | T58: 0 | U58: 0 | V58: 0 | W58: 0 | X58: 0 | Y58: 0 | Z58: 0 | AA58: 0 | AB58: 0 | AC58: 0 | AD58: 0 | AE58: 0 | AF58: 0 | AG58: 0 | AH58: 0 | AI58: 0 | AJ58: 0 | AK58: 0 | AL58: 0 | AM58: 0 | AN58: 0 | AO58: 0 | AP58: 0 | AQ58: 0 | AR58: 0 | AS58: 0 | AT58: 0 | AU58: 0 | AV58: 0 | AW58: 0 | AX58: 0 | AY58: 0 | AZ58: 0 | BA58: 0 | BB58: 0 | BC58: 0 | BD58: 0 | BE58: 0 | BF58: 0 | BG58: 0 | BH58: 0 | BI58: 0 | BJ58: 0 | BK58: 0 | BL58: 0 | BM58: 0
B59: =[1]Inputs!B26 -> 1 | C59: Cabling/ wiring | D59: AUD M | I59: 30.26112137 | J59: 12.10444855 | K59: 9.078336412 | L59: 9.078336412 | M59: 0 | N59: 0 | O59: 0 | P59: 0 | Q59: 0 | R59: 0 | S59: 0 | T59: 0 | U59: 0 | V59: 0 | W59: 0 | X59: 0 | Y59: 0 | Z59: 0 | AA59: 0 | AB59: 0 | AC59: 0 | AD59: 0 | AE59: 0 | AF59: 0 | AG59: 0 | AH59: 0 | AI59: 0 | AJ59: 0 | AK59: 0 | AL59: 0 | AM59: 0 | AN59: 0 | AO59: 0 | AP59: 0 | AQ59: 0 | AR59: 0 | AS59: 0 | AT59: 0 | AU59: 0 | AV59: 0 | AW59: 0 | AX59: 0 | AY59: 0 | AZ59: 0 | BA59: 0 | BB59: 0 | BC59: 0 | BD59: 0 | BE59: 0 | BF59: 0 | BG59: 0 | BH59: 0 | BI59: 0 | BJ59: 0 | BK59: 0 | BL59: 0 | BM59: 0
B60: =[1]Inputs!B27 -> 1 | C60: Grid connection | D60: AUD M | I60: 41.95291827 | J60: 16.78116731 | K60: 12.58587548 | L60: 12.58587548 | M60: 0 | N60: 0 | O60: 0 | P60: 0 | Q60: 0 | R60: 0 | S60: 0 | T60: 0 | U60: 0 | V60: 0 | W60: 0 | X60: 0 | Y60: 0 | Z60: 0 | AA60: 0 | AB60: 0 | AC60: 0 | AD60: 0 | AE60: 0 | AF60: 0 | AG60: 0 | AH60: 0 | AI60: 0 | AJ60: 0 | AK60: 0 | AL60: 0 | AM60: 0 | AN60: 0 | AO60: 0 | AP60: 0 | AQ60: 0 | AR60: 0 | AS60: 0 | AT60: 0 | AU60: 0 | AV60: 0 | AW60: 0 | AX60: 0 | AY60: 0 | AZ60: 0 | BA60: 0 | BB60: 0 | BC60: 0 | BD60: 0 | BE60: 0 | BF60: 0 | BG60: 0 | BH60: 0 | BI60: 0 | BJ60: 0 | BK60: 0 | BL60: 0 | BM60: 0
B61: =[1]Inputs!B28 -> 1 | C61: Monitoring & control | D61: AUD M | I61: 22.69584103 | J61: 9.078336412 | K61: 6.808752309 | L61: 6.808752309 | M61: 0 | N61: 0 | O61: 0 | P61: 0 | Q61: 0 | R61: 0 | S61: 0 | T61: 0 | U61: 0 | V61: 0 | W61: 0 | X61: 0 | Y61: 0 | Z61: 0 | AA61: 0 | AB61: 0 | AC61: 0 | AD61: 0 | AE61: 0 | AF61: 0 | AG61: 0 | AH61: 0 | AI61: 0 | AJ61: 0 | AK61: 0 | AL61: 0 | AM61: 0 | AN61: 0 | AO61: 0 | AP61: 0 | AQ61: 0 | AR61: 0 | AS61: 0 | AT61: 0 | AU61: 0 | AV61: 0 | AW61: 0 | AX61: 0 | AY61: 0 | AZ61: 0 | BA61: 0 | BB61: 0 | BC61: 0 | BD61: 0 | BE61: 0 | BF61: 0 | BG61: 0 | BH61: 0 | BI61: 0 | BJ61: 0 | BK61: 0 | BL61: 0 | BM61: 0
B62: =[1]Inputs!B29 -> 1 | C62: Racking and mounting | D62: AUD M | I62: 76.3405562 | J62: 45.80433372 | K62: 30.53622248 | L62: 0 | M62: 0 | N62: 0 | O62: 0 | P62: 0 | Q62: 0 | R62: 0 | S62: 0 | T62: 0 | U62: 0 | V62: 0 | W62: 0 | X62: 0 | Y62: 0 | Z62: 0 | AA62: 0 | AB62: 0 | AC62: 0 | AD62: 0 | AE62: 0 | AF62: 0 | AG62: 0 | AH62: 0 | AI62: 0 | AJ62: 0 | AK62: 0 | AL62: 0 | AM62: 0 | AN62: 0 | AO62: =AO36+AO49 -> 0 | AP62: 0 | AQ62: 0 | AR62: 0 | AS62: 0 | AT62: 0 | AU62: 0 | AV62: 0 | AW62: 0 | AX62: 0 | AY62: 0 | AZ62: 0 | BA62: 0 | BB62: 0 | BC62: 0 | BD62: 0 | BE62: 0 | BF62: 0 | BG62: 0 | BH62: 0 | BI62: 0 | BJ62: 0 | BK62: 0 | BL62: 0 | BM62: 0
B63: =[1]Inputs!B30 -> 1 | C63: Safety, security & logistics | D63: AUD M | I63: 30.26112137 | J63: =J37+J50 -> 12.10444855 | K63: 9.078336412 | L63: 9.078336412 | M63: 0 | N63: 0 | O63: 0 | P63: 0 | Q63: 0 | R63: 0 | S63: 0 | T63: 0 | U63: 0 | V63: 0 | W63: 0 | X63: 0 | Y63: 0 | Z63: 0 | AA63: 0 | AB63: 0 | AC63: 0 | AD63: 0 | AE63: 0 | AF63: 0 | AG63: 0 | AH63: 0 | AI63: 0 | AJ63: 0 | AK63: 0 | AL63: 0 | AM63: 0 | AN63: 0 | AO63: 0 | AP63: 0 | AQ63: 0 | AR63: 0 | AS63: 0 | AT63: 0 | AU63: 0 | AV63: 0 | AW63: 0 | AX63: 0 | AY63: 0 | AZ63: 0 | BA63: 0 | BB63: 0 | BC63: 0 | BD63: 0 | BE63: 0 | BF63: 0 | BG63: 0 | BH63: 0 | BI63: 0 | BJ63: 0 | BK63: 0 | BL63: 0 | BM63: 0
B64: =[1]Inputs!B31 -> 1 | C64: =C51 -> Eletrical Installation | D64: AUD M | I64: 53.64471516 | J64: 0 | K64: 32.1868291 | L64: 21.45788607 | M64: 0 | N64: 0 | O64: 0 | P64: 0 | Q64: 0 | R64: 0 | S64: 0 | T64: 0 | U64: 0 | V64: 0 | W64: 0 | X64: 0 | Y64: 0 | Z64: 0 | AA64: 0 | AB64: 0 | AC64: 0 | AD64: 0 | AE64: 0 | AF64: 0 | AG64: 0 | AH64: 0 | AI64: 0 | AJ64: 0 | AK64: 0 | AL64: 0 | AM64: 0 | AN64: 0 | AO64: 0 | AP64: 0 | AQ64: 0 | AR64: 0 | AS64: 0 | AT64: 0 | AU64: 0 | AV64: 0 | AW64: 0 | AX64: 0 | AY64: 0 | AZ64: 0 | BA64: 0 | BB64: 0 | BC64: 0 | BD64: 0 | BE64: 0 | BF64: 0 | BG64: 0 | BH64: 0 | BI64: 0 | BJ64: 0 | BK64: 0 | BL64: 0 | BM64: 0 | BN64: =BN38+BN51 -> 0
B65: =[1]Inputs!B32 -> 1 | C65: Inspection | D65: AUD M | I65: 4.126516551 | J65: 0 | K65: 2.475909931 | L65: 1.65060662 | M65: 0 | N65: 0 | O65: 0 | P65: 0 | Q65: 0 | R65: 0 | S65: 0 | T65: 0 | U65: 0 | V65: 0 | W65: 0 | X65: 0 | Y65: 0 | Z65: 0 | AA65: 0 | AB65: 0 | AC65: 0 | AD65: 0 | AE65: 0 | AF65: 0 | AG65: 0 | AH65: 0 | AI65: 0 | AJ65: 0 | AK65: 0 | AL65: 0 | AM65: 0 | AN65: 0 | AO65: 0 | AP65: 0 | AQ65: 0 | AR65: 0 | AS65: 0 | AT65: 0 | AU65: 0 | AV65: 0 | AW65: 0 | AX65: 0 | AY65: 0 | AZ65: 0 | BA65: 0 | BB65: 0 | BC65: 0 | BD65: 0 | BE65: 0 | BF65: 0 | BG65: 0 | BH65: 0 | BI65: 0 | BJ65: 0 | BK65: 0 | BL65: 0 | BM65: 0 | BN65: 0
B66: =[1]Inputs!B33 -> 1 | C66: Mechanical Installation | D66: AUD M | I66: 111.4159469 | J66: 0 | K66: 66.84956813 | L66: 44.56637875 | M66: 0 | N66: 0 | O66: 0 | P66: 0 | Q66: 0 | R66: 0 | S66: 0 | T66: 0 | U66: 0 | V66: 0 | W66: 0 | X66: 0 | Y66: 0 | Z66: 0 | AA66: 0 | AB66: 0 | AC66: 0 | AD66: 0 | AE66: 0 | AF66: 0 | AG66: 0 | AH66: 0 | AI66: 0 | AJ66: 0 | AK66: 0 | AL66: 0 | AM66: 0 | AN66: 0 | AO66: 0 | AP66: 0 | AQ66: 0 | AR66: 0 | AS66: 0 | AT66: 0 | AU66: 0 | AV66: 0 | AW66: 0 | AX66: 0 | AY66: 0 | AZ66: 0 | BA66: 0 | BB66: 0 | BC66: 0 | BD66: 0 | BE66: 0 | BF66: 0 | BG66: 0 | BH66: 0 | BI66: 0 | BJ66: 0 | BK66: 0 | BL66: 0 | BM66: 0 | BN66: 0
C67: Total | D67: AUD M | I67: 790.9156723 | J67: =SUM(J57:J66) -> 348.0028958 | K67: =SUM(K57:K66) -> 337.6866044 | L67: 105.2261721 | M67: 0 | N67: 0 | O67: 0 | P67: 0 | Q67: 0 | R67: 0 | S67: 0 | T67: 0 | U67: 0 | V67: 0 | W67: 0 | X67: 0 | Y67: 0 | Z67: 0 | AA67: 0 | AB67: 0 | AC67: 0 | AD67: 0 | AE67: 0 | AF67: 0 | AG67: 0 | AH67: 0 | AI67: 0 | AJ67: 0 | AK67: 0 | AL67: 0 | AM67: 0 | AN67: 0 | AO67: 0 | AP67: 0 | AQ67: 0 | AR67: 0 | AS67: 0 | AT67: 0 | AU67: 0 | AV67: 0 | AW67: 0 | AX67: 0 | AY67: 0 | AZ67: 0 | BA67: 0 | BB67: 0 | BC67: 0 | BD67: 0 | BE67: 0 | BF67: 0 | BG67: 0 | BH67: 0 | BI67: 0 | BJ67: 0 | BK67: 0 | BL67: 0 | BM67: 0 | BN67: 0
C69: Funding
C70: Sources and uses
C71: Uses
C72: Construction costs | D72: AUD M | I72: =SUM(J72:BU72) -> 790.9156723 | J72: =J67 -> 348.0028958 | K72: 337.6866044 | L72: 105.2261721 | M72: 0 | N72: 0 | O72: 0 | P72: 0 | Q72: 0 | R72: 0 | S72: 0 | T72: 0 | U72: 0 | V72: 0 | W72: 0 | X72: 0 | Y72: 0 | Z72: 0 | AA72: 0 | AB72: 0 | AC72: 0 | AD72: 0 | AE72: 0 | AF72: 0 | AG72: 0 | AH72: 0 | AI72: 0 | AJ72: 0 | AK72: 0 | AL72: 0 | AM72: 0 | AN72: 0 | AO72: 0 | AP72: 0 | AQ72: 0 | AR72: 0 | AS72: 0 | AT72: 0 | AU72: 0 | AV72: 0 | AW72: 0 | AX72: 0 | AY72: 0 | AZ72: 0 | BA72: 0 | BB72: 0 | BC72: 0 | BD72: 0 | BE72: 0 | BF72: 0 | BG72: 0 | BH72: 0 | BI72: 0 | BJ72: 0 | BK72: 0 | BL72: 0 | BM72: 0 | BO72: =BO63 -> 0 | BP72: 0 | BQ72: 0 | BR72: 0 | BS72: 0 | BT72: 0 | BU72: 0
B73: 2 | C73: Interest during construction | D73: AUD M | I73: =SUM(J73:BU73) -> 7.157095897 | J73: =J110 -> 0 | K73: =K110 -> 2.164812777 | L73: 4.99228312 | M73: 0 | N73: 0 | O73: 0 | P73: 0 | Q73: 0 | R73: 0 | S73: 0 | T73: 0 | U73: 0 | V73: 0 | W73: 0 | X73: 0 | Y73: 0 | Z73: 0 | AA73: 0 | AB73: 0 | AC73: 0 | AD73: 0 | AE73: 0 | AF73: 0 | AG73: 0 | AH73: 0 | AI73: 0 | AJ73: 0 | AK73: 0 | AL73: 0 | AM73: 0 | AN73: 0 | AO73: 0 | AP73: 0 | AQ73: 0 | AR73: 0 | AS73: 0 | AT73: 0 | AU73: 0 | AV73: 0 | AW73: 0 | AX73: 0 | AY73: 0 | AZ73: 0 | BA73: 0 | BB73: 0 | BC73: 0 | BD73: 0 | BE73: 0 | BF73: 0 | BG73: 0 | BH73: 0 | BI73: 0 | BJ73: 0 | BK73: 0 | BL73: 0 | BM73: 0 | BO73: =BO110 -> 0 | BP73: 0 | BQ73: 0 | BR73: 0 | BS73: 0 | BT73: 0 | BU73: 0
B74: 3 | C74: Financing fees | D74: AUD M | I74: =SUM(J74:BU74) -> 5.658954468 | J74: =J122 -> 5.658954468 | K74: =K122 -> 0 | L74: 0 | M74: 0 | N74: 0 | O74: 0 | P74: 0 | Q74: 0 | R74: 0 | S74: 0 | T74: 0 | U74: 0 | V74: 0 | W74: 0 | X74: 0 | Y74: 0 | Z74: 0 | AA74: 0 | AB74: 0 | AC74: 0 | AD74: 0 | AE74: 0 | AF74: 0 | AG74: 0 | AH74: 0 | AI74: 0 | AJ74: 0 | AK74: 0 | AL74: 0 | AM74: 0 | AN74: 0 | AO74: 0 | AP74: 0 | AQ74: 0 | AR74: 0 | AS74: 0 | AT74: 0 | AU74: 0 | AV74: 0 | AW74: 0 | AX74: 0 | AY74: 0 | AZ74: 0 | BA74: 0 | BB74: 0 | BC74: 0 | BD74: 0 | BE74: 0 | BF74: 0 | BG74: 0 | BH74: 0 | BI74: 0 | BJ74: 0 | BK74: 0 | BL74: 0 | BM74: 0 | BO74: =BO122 -> 0 | BP74: 0 | BQ74: 0 | BR74: 0 | BS74: 0 | BT74: 0 | BU74: 0
C75: Total | D75: AUD M | I75: =SUM(J75:BU75) -> 803.7317227 | J75: =SUM(J72:J74) -> 353.6618503 | K75: =SUM(K72:K74) -> 339.8514172 | L75: 110.2184552 | M75: 0 | N75: 0 | O75: 0 | P75: 0 | Q75: 0 | R75: 0 | S75: 0 | T75: 0 | U75: 0 | V75: 0 | W75: 0 | X75: 0 | Y75: 0 | Z75: 0 | AA75: 0 | AB75: 0 | AC75: 0 | AD75: 0 | AE75: 0 | AF75: 0 | AG75: 0 | AH75: 0 | AI75: 0 | AJ75: 0 | AK75: 0 | AL75: 0 | AM75: 0 | AN75: 0 | AO75: 0 | AP75: 0 | AQ75: 0 | AR75: 0 | AS75: 0 | AT75: 0 | AU75: 0 | AV75: 0 | AW75: 0 | AX75: 0 | AY75: 0 | AZ75: 0 | BA75: 0 | BB75: 0 | BC75: 0 | BD75: 0 | BE75: 0 | BF75: 0 | BG75: 0 | BH75: 0 | BI75: 0 | BJ75: 0 | BK75: 0 | BL75: 0 | BM75: 0 | BO75: =SUM(BO72:BO74) -> 0 | BP75: 0 | BQ75: 0 | BR75: 0 | BS75: 0 | BT75: 0 | BU75: 0
C77: Sources
C78: Initial equity | D78: AUD M | I78: =SUM(J78:BU78) -> -100 | J78: =-MIN(J75,J93) -> -100 | K78: =-MIN(K75,K93) -> 0 | L78: 0 | M78: 0 | N78: 0 | O78: 0 | P78: 0 | Q78: 0 | R78: 0 | S78: 0 | T78: 0 | U78: 0 | V78: 0 | W78: 0 | X78: 0 | Y78: 0 | Z78: 0 | AA78: 0 | AB78: 0 | AC78: 0 | AD78: 0 | AE78: 0 | AF78: 0 | AG78: 0 | AH78: 0 | AI78: 0 | AJ78: 0 | AK78: 0 | AL78: 0 | AM78: 0 | AN78: 0 | AO78: 0 | AP78: 0 | AQ78: 0 | AR78: 0 | AS78: 0 | AT78: 0 | AU78: 0 | AV78: 0 | AW78: 0 | AX78: 0 | AY78: 0 | AZ78: 0 | BA78: 0 | BB78: 0 | BC78: 0 | BD78: 0 | BE78: 0 | BF78: 0 | BG78: 0 | BH78: 0 | BI78: 0 | BJ78: 0 | BK78: 0 | BL78: 0 | BM78: 0 | BO78: =-MIN(BO75,BO93) -> 0 | BP78: 0 | BQ78: 0 | BR78: 0 | BS78: 0 | BT78: 0 | BU78: 0
C79: Funding required after equity | D79: AUD M | I79: =SUM(J79:BU79) -> 703.7317227 | J79: =J75+J78 -> 253.6618503 | K79: =K75+K78 -> 339.8514172 | L79: 110.2184552 | M79: =M75+M78 -> 0 | N79: 0 | O79: 0 | P79: 0 | Q79: 0 | R79: 0 | S79: 0 | T79: 0 | U79: 0 | V79: 0 | W79: 0 | X79: 0 | Y79: 0 | Z79: 0 | AA79: 0 | AB79: 0 | AC79: 0 | AD79: 0 | AE79: 0 | AF79: 0 | AG79: 0 | AH79: 0 | AI79: 0 | AJ79: 0 | AK79: 0 | AL79: 0 | AM79: 0 | AN79: 0 | AO79: 0 | AP79: 0 | AQ79: 0 | AR79: 0 | AS79: 0 | AT79: 0 | AU79: 0 | AV79: 0 | AW79: 0 | AX79: 0 | AY79: 0 | AZ79: 0 | BA79: 0 | BB79: 0 | BC79: 0 | BD79: 0 | BE79: 0 | BF79: 0 | BG79: 0 | BH79: 0 | BI79: 0 | BJ79: 0 | BK79: 0 | BL79: 0 | BM79: 0 | BO79: =BO75+BO78 -> 0 | BP79: 0 | BQ79: 0 | BR79: 0 | BS79: 0 | BT79: 0 | BU79: 0
C81: Senior debt | D81: AUD M | I81: =SUM(J81:BU81) -> -565.8954468 | J81: =-MIN(J79,J102) -> -253.6618503 | K81: =-MIN(K79,K102) -> -312.2335966 | L81: =-MIN(L79,L102) -> 0 | M81: 0 | N81: 0 | O81: 0 | P81: 0 | Q81: 0 | R81: 0 | S81: 0 | T81: 0 | U81: 0 | V81: 0 | W81: 0 | X81: 0 | Y81: 0 | Z81: 0 | AA81: 0 | AB81: 0 | AC81: 0 | AD81: 0 | AE81: 0 | AF81: 0 | AG81: 0 | AH81: 0 | AI81: 0 | AJ81: 0 | AK81: 0 | AL81: 0 | AM81: 0 | AN81: 0 | AO81: 0 | AP81: 0 | AQ81: 0 | AR81: 0 | AS81: 0 | AT81: 0 | AU81: 0 | AV81: 0 | AW81: 0 | AX81: 0 | AY81: 0 | AZ81: 0 | BA81: 0 | BB81: 0 | BC81: 0 | BD81: 0 | BE81: 0 | BF81: 0 | BG81: 0 | BH81: 0 | BI81: 0 | BJ81: 0 | BK81: 0 | BL81: 0 | BM81: 0 | BO81: =-MIN(BO79,BO102) -> 0 | BP81: 0 | BQ81: 0 | BR81: 0 | BS81: 0 | BT81: 0 | BU81: 0
C82: Funding required after debt | D82: AUD M | I82: =SUM(J82:BU82) -> 137.8362758 | J82: =J79+J81 -> 0 | K82: =K79+K81 -> 27.61782065 | L82: 110.2184552 | M82: 0 | N82: 0 | O82: 0 | P82: 0 | Q82: 0 | R82: 0 | S82: 0 | T82: 0 | U82: 0 | V82: 0 | W82: 0 | X82: 0 | Y82: 0 | Z82: 0 | AA82: 0 | AB82: 0 | AC82: 0 | AD82: 0 | AE82: 0 | AF82: 0 | AG82: 0 | AH82: 0 | AI82: 0 | AJ82: 0 | AK82: 0 | AL82: 0 | AM82: 0 | AN82: 0 | AO82: 0 | AP82: 0 | AQ82: 0 | AR82: 0 | AS82: 0 | AT82: 0 | AU82: 0 | AV82: 0 | AW82: 0 | AX82: 0 | AY82: 0 | AZ82: 0 | BA82: 0 | BB82: 0 | BC82: 0 | BD82: 0 | BE82: 0 | BF82: 0 | BG82: 0 | BH82: 0 | BI82: 0 | BJ82: 0 | BK82: 0 | BL82: 0 | BM82: 0 | BO82: =BO79+BO81 -> 0 | BP82: 0 | BQ82: 0 | BR82: 0 | BS82: 0 | BT82: 0 | BU82: 0
C84: Additional equity | D84: AUD M | I84: =SUM(J84:BU84) -> -137.8362758 | J84: =-J82 -> 0 | K84: =-K82 -> -27.61782065 | L84: =-L82 -> -110.2184552 | M84: 0 | N84: 0 | O84: 0 | P84: 0 | Q84: 0 | R84: 0 | S84: 0 | T84: 0 | U84: 0 | V84: 0 | W84: 0 | X84: 0 | Y84: 0 | Z84: 0 | AA84: 0 | AB84: 0 | AC84: 0 | AD84: 0 | AE84: 0 | AF84: 0 | AG84: 0 | AH84: 0 | AI84: 0 | AJ84: 0 | AK84: 0 | AL84: 0 | AM84: 0 | AN84: 0 | AO84: 0 | AP84: 0 | AQ84: 0 | AR84: 0 | AS84: 0 | AT84: 0 | AU84: 0 | AV84: 0 | AW84: 0 | AX84: 0 | AY84: 0 | AZ84: 0 | BA84: 0 | BB84: 0 | BC84: 0 | BD84: 0 | BE84: 0 | BF84: 0 | BG84: 0 | BH84: 0 | BI84: 0 | BJ84: 0 | BK84: 0 | BL84: 0 | BM84: 0 | BO84: =-BO82 -> 0 | BP84: 0 | BQ84: 0 | BR84: 0 | BS84: 0 | BT84: 0 | BU84: 0
C85: Shortfall | D85: AUD M | I85: =SUM(J85:BU85) -> 0 | J85: =J82+J84 -> 0 | K85: =K82+K84 -> 0 | L85: 0 | M85: 0 | N85: 0 | O85: 0 | P85: 0 | Q85: 0 | R85: 0 | S85: 0 | T85: 0 | U85: 0 | V85: 0 | W85: 0 | X85: 0 | Y85: 0 | Z85: 0 | AA85: 0 | AB85: 0 | AC85: 0 | AD85: 0 | AE85: 0 | AF85: 0 | AG85: 0 | AH85: 0 | AI85: 0 | AJ85: 0 | AK85: 0 | AL85: 0 | AM85: 0 | AN85: 0 | AO85: 0 | AP85: 0 | AQ85: 0 | AR85: 0 | AS85: 0 | AT85: 0 | AU85: 0 | AV85: 0 | AW85: 0 | AX85: 0 | AY85: 0 | AZ85: 0 | BA85: 0 | BB85: 0 | BC85: 0 | BD85: 0 | BE85: 0 | BF85: 0 | BG85: 0 | BH85: 0 | BI85: 0 | BJ85: 0 | BK85: 0 | BL85: 0 | BM85: 0 | BO85: =BO82+BO84 -> 0 | BP85: 0 | BQ85: 0 | BR85: 0 | BS85: 0 | BT85: 0 | BU85: 0
C87: Initial equity
C88: Account
C89: Balance b/f | D89: AUD M | J89: =I91 -> 0 | K89: =J91 -> 100 | L89: 100 | M89: 100 | N89: 100 | O89: 100 | P89: 100 | Q89: 100 | R89: 100 | S89: 100 | T89: 100 | U89: 100 | V89: 100 | W89: 100 | X89: 100 | Y89: 100 | Z89: 100 | AA89: 100 | AB89: 100 | AC89: 100 | AD89: 100 | AE89: 100 | AF89: 100 | AG89: 100 | AH89: 100 | AI89: 100 | AJ89: 100 | AK89: 100 | AL89: 100 | AM89: 100 | AN89: 100 | AO89: 100 | AP89: 100 | AQ89: 100 | AR89: 100 | AS89: 100 | AT89: 100 | AU89: 100 | AV89: 100 | AW89: 100 | AX89: 100 | AY89: 100 | AZ89: 100 | BA89: 100 | BB89: 100 | BC89: 100 | BD89: 100 | BE89: 100 | BF89: 100 | BG89: 100 | BH89: 100 | BI89: 100 | BJ89: 100 | BK89: 100 | BL89: 100 | BM89: 100 | BO89: =BN91 -> 0 | BP89: 0 | BQ89: 0 | BR89: 0 | BS89: 0 | BT89: 0 | BU89: 0
C90: Drawdowns | D90: AUD M | I90: =SUM(J90:BU90) -> 100 | J90: =-J78 -> 100 | K90: =-K78 -> 0 | L90: 0 | M90: 0 | N90: 0 | O90: 0 | P90: 0 | Q90: 0 | R90: 0 | S90: 0 | T90: 0 | U90: 0 | V90: 0 | W90: 0 | X90: 0 | Y90: 0 | Z90: 0 | AA90: 0 | AB90: 0 | AC90: 0 | AD90: 0 | AE90: 0 | AF90: 0 | AG90: 0 | AH90: 0 | AI90: 0 | AJ90: 0 | AK90: 0 | AL90: 0 | AM90: 0 | AN90: 0 | AO90: 0 | AP90: 0 | AQ90: 0 | AR90: 0 | AS90: 0 | AT90: 0 | AU90: 0 | AV90: 0 | AW90: 0 | AX90: 0 | AY90: 0 | AZ90: 0 | BA90: 0 | BB90: 0 | BC90: 0 | BD90: 0 | BE90: 0 | BF90: 0 | BG90: 0 | BH90: 0 | BI90: 0 | BJ90: 0 | BK90: 0 | BL90: 0 | BM90: 0 | BO90: =-BO78 -> 0 | BP90: 0 | BQ90: 0 | BR90: 0 | BS90: 0 | BT90: 0 | BU90: 0
C91: Balance c/f | D91: AUD M | J91: =SUM(J89,J90) -> 100 | K91: =SUM(K89,K90) -> 100 | L91: 100 | M91: 100 | N91: 100 | O91: 100 | P91: 100 | Q91: 100 | R91: 100 | S91: 100 | T91: 100 | U91: 100 | V91: 100 | W91: 100 | X91: 100 | Y91: 100 | Z91: 100 | AA91: 100 | AB91: 100 | AC91: 100 | AD91: 100 | AE91: 100 | AF91: 100 | AG91: 100 | AH91: 100 | AI91: 100 | AJ91: 100 | AK91: 100 | AL91: 100 | AM91: 100 | AN91: 100 | AO91: 100 | AP91: 100 | AQ91: 100 | AR91: 100 | AS91: 100 | AT91: 100 | AU91: 100 | AV91: 100 | AW91: 100 | AX91: 100 | AY91: 100 | AZ91: 100 | BA91: 100 | BB91: 100 | BC91: 100 | BD91: 100 | BE91: 100 | BF91: 100 | BG91: 100 | BH91: 100 | BI91: 100 | BJ91: 100 | BK91: 100 | BL91: 100 | BM91: 100 | BO91: =SUM(BO89:BO90) -> 0 | BP91: 0 | BQ91: 0 | BR91: 0 | BS91: 0 | BT91: 0 | BU91: 0
C93: Undrawn amount @ start of period | D93: AUD M | E93: =Inputs!$E$262 -> 100 | J93: =($E93-J89)*J5 -> 100 | K93: =($E93-K89)*K5 -> 0 | L93: =($E93-L89)*L5 -> 0 | M93: =($E93-M89)*M5 -> 0 | N93: =($E93-N89)*N5 -> 0 | O93: =($E93-O89)*O5 -> 0 | P93: =($E93-P89)*P5 -> 0 | Q93: =($E93-Q89)*Q5 -> 0 | R93: =($E93-R89)*R5 -> 0 | S93: =($E93-S89)*S5 -> 0 | T93: =($E93-T89)*T5 -> 0 | U93: =($E93-U89)*U5 -> 0 | V93: =($E93-V89)*V5 -> 0 | W93: =($E93-W89)*W5 -> 0 | X93: =($E93-X89)*X5 -> 0 | Y93: =($E93-Y89)*Y5 -> 0 | Z93: =($E93-Z89)*Z5 -> 0 | AA93: =($E93-AA89)*AA5 -> 0 | AB93: =($E93-AB89)*AB5 -> 0 | AC93: =($E93-AC89)*AC5 -> 0 | AD93: =($E93-AD89)*AD5 -> 0 | AE93: =($E93-AE89)*AE5 -> 0 | AF93: =($E93-AF89)*AF5 -> 0 | AG93: =($E93-AG89)*AG5 -> 0 | AH93: =($E93-AH89)*AH5 -> 0 | AI93: =($E93-AI89)*AI5 -> 0 | AJ93: =($E93-AJ89)*AJ5 -> 0 | AK93: =($E93-AK89)*AK5 -> 0 | AL93: =($E93-AL89)*AL5 -> 0 | AM93: =($E93-AM89)*AM5 -> 0 | AN93: =($E93-AN89)*AN5 -> 0 | AO93: =($E93-AO89)*AO5 -> 0 | AP93: =($E93-AP89)*AP5 -> 0 | AQ93: =($E93-AQ89)*AQ5 -> 0 | AR93: =($E93-AR89)*AR5 -> 0 | AS93: =($E93-AS89)*AS5 -> 0 | AT93: =($E93-AT89)*AT5 -> 0 | AU93: =($E93-AU89)*AU5 -> 0 | AV93: =($E93-AV89)*AV5 -> 0 | AW93: =($E93-AW89)*AW5 -> 0 | AX93: =($E93-AX89)*AX5 -> 0 | AY93: =($E93-AY89)*AY5 -> 0 | AZ93: =($E93-AZ89)*AZ5 -> 0 | BA93: =($E93-BA89)*BA5 -> 0 | BB93: =($E93-BB89)*BB5 -> 0 | BC93: =($E93-BC89)*BC5 -> 0 | BD93: =($E93-BD89)*BD5 -> 0 | BE93: =($E93-BE89)*BE5 -> 0 | BF93: =($E93-BF89)*BF5 -> 0 | BG93: =($E93-BG89)*BG5 -> 0 | BH93: =($E93-BH89)*BH5 -> 0 | BI93: =($E93-BI89)*BI5 -> 0 | BJ93: =($E93-BJ89)*BJ5 -> 0 | BK93: =($E93-BK89)*BK5 -> 0 | BL93: =($E93-BL89)*BL5 -> 0 | BM93: =($E93-BM89)*BM5 -> 0 | BO93: =($E$90-BO89)*BO11 -> 0 | BP93: =($E$90-BP89)*BP11 -> 0 | BQ93: =($E$90-BQ89)*BQ11 -> 0 | BR93: =($E$90-BR89)*BR11 -> 0 | BS93: =($E$90-BS89)*BS11 -> 0 | BT93: =($E$90-BT89)*BT11 -> 0 | BU93: =($E$90-BU89)*BU11 -> 0
C95: Senior debt
C96: Account
C97: Balance b/f | D97: AUD M | J97: =I100 -> 0 | K97: =J100 -> 253.6618503 | L97: =K100 -> 565.8954468 | M97: =L100 -> 0 | N97: =M100 -> 0 | O97: 0 | P97: 0 | Q97: 0 | R97: 0 | S97: 0 | T97: 0 | U97: 0 | V97: 0 | W97: 0 | X97: 0 | Y97: 0 | Z97: 0 | AA97: 0 | AB97: 0 | AC97: 0 | AD97: 0 | AE97: 0 | AF97: 0 | AG97: 0 | AH97: 0 | AI97: 0 | AJ97: 0 | AK97: 0 | AL97: 0 | AM97: 0 | AN97: 0 | AO97: 0 | AP97: 0 | AQ97: 0 | AR97: 0 | AS97: 0 | AT97: 0 | AU97: 0 | AV97: 0 | AW97: 0 | AX97: 0 | AY97: 0 | AZ97: 0 | BA97: 0 | BB97: 0 | BC97: 0 | BD97: 0 | BE97: 0 | BF97: 0 | BG97: 0 | BH97: 0 | BI97: 0 | BJ97: 0 | BK97: 0 | BL97: 0 | BM97: 0 | BO97: =BN100 -> 0 | BP97: 0 | BQ97: 0 | BR97: 0 | BS97: 0 | BT97: 0 | BU97: 0
C98: Drawdown | D98: AUD M | I98: =SUM(J98:BU98) -> 565.8954468 | J98: =-J81 -> 253.6618503 | K98: =-K81 -> 312.2335966 | L98: =-L81 -> 0 | M98: =-M81 -> 0 | N98: 0 | O98: 0 | P98: 0 | Q98: 0 | R98: 0 | S98: 0 | T98: 0 | U98: 0 | V98: 0 | W98: 0 | X98: 0 | Y98: 0 | Z98: 0 | AA98: 0 | AB98: 0 | AC98: 0 | AD98: 0 | AE98: 0 | AF98: 0 | AG98: 0 | AH98: 0 | AI98: 0 | AJ98: 0 | AK98: 0 | AL98: 0 | AM98: 0 | AN98: 0 | AO98: 0 | AP98: 0 | AQ98: 0 | AR98: 0 | AS98: 0 | AT98: 0 | AU98: 0 | AV98: 0 | AW98: 0 | AX98: 0 | AY98: 0 | AZ98: 0 | BA98: 0 | BB98: 0 | BC98: 0 | BD98: 0 | BE98: 0 | BF98: 0 | BG98: 0 | BH98: 0 | BI98: 0 | BJ98: 0 | BK98: 0 | BL98: 0 | BM98: 0 | BO98: =-BO81 -> 0 | BP98: 0 | BQ98: 0 | BR98: 0 | BS98: 0 | BT98: 0 | BU98: 0
C99: Refi @ completion | D99: AUD M | E99: =Inputs!$I$9 -> 2019-07-31 | I99: =SUM(J99:BU99) -> -565.8954468 | J99: =-IF(J4=$E99,SUM(J97:J98),0) -> 0 | K99: =-IF(K4=$E99,SUM(K97:K98),0) -> 0 | L99: =-IF(L4=$E99,SUM(L97:L98),0) -> -565.8954468 | M99: =-IF(M4=$E99,SUM(M97:M98),0) -> 0 | N99: =-IF(N4=$E99,SUM(N97:N98),0) -> 0 | O99: =-IF(O4=$E99,SUM(O97:O98),0) -> 0 | P99: =-IF(P4=$E99,SUM(P97:P98),0) -> 0 | Q99: =-IF(Q4=$E99,SUM(Q97:Q98),0) -> 0 | R99: =-IF(R4=$E99,SUM(R97:R98),0) -> 0 | S99: =-IF(S4=$E99,SUM(S97:S98),0) -> 0 | T99: =-IF(T4=$E99,SUM(T97:T98),0) -> 0 | U99: =-IF(U4=$E99,SUM(U97:U98),0) -> 0 | V99: =-IF(V4=$E99,SUM(V97:V98),0) -> 0 | W99: =-IF(W4=$E99,SUM(W97:W98),0) -> 0 | X99: =-IF(X4=$E99,SUM(X97:X98),0) -> 0 | Y99: =-IF(Y4=$E99,SUM(Y97:Y98),0) -> 0 | Z99: =-IF(Z4=$E99,SUM(Z97:Z98),0) -> 0 | AA99: =-IF(AA4=$E99,SUM(AA97:AA98),0) -> 0 | AB99: =-IF(AB4=$E99,SUM(AB97:AB98),0) -> 0 | AC99: =-IF(AC4=$E99,SUM(AC97:AC98),0) -> 0 | AD99: =-IF(AD4=$E99,SUM(AD97:AD98),0) -> 0 | AE99: =-IF(AE4=$E99,SUM(AE97:AE98),0) -> 0 | AF99: =-IF(AF4=$E99,SUM(AF97:AF98),0) -> 0 | AG99: =-IF(AG4=$E99,SUM(AG97:AG98),0) -> 0 | AH99: =-IF(AH4=$E99,SUM(AH97:AH98),0) -> 0 | AI99: =-IF(AI4=$E99,SUM(AI97:AI98),0) -> 0 | AJ99: =-IF(AJ4=$E99,SUM(AJ97:AJ98),0) -> 0 | AK99: =-IF(AK4=$E99,SUM(AK97:AK98),0) -> 0 | AL99: =-IF(AL4=$E99,SUM(AL97:AL98),0) -> 0 | AM99: =-IF(AM4=$E99,SUM(AM97:AM98),0) -> 0 | AN99: =-IF(AN4=$E99,SUM(AN97:AN98),0) -> 0 | AO99: =-IF(AO4=$E99,SUM(AO97:AO98),0) -> 0 | AP99: =-IF(AP4=$E99,SUM(AP97:AP98),0) -> 0 | AQ99: =-IF(AQ4=$E99,SUM(AQ97:AQ98),0) -> 0 | AR99: =-IF(AR4=$E99,SUM(AR97:AR98),0) -> 0 | AS99: =-IF(AS4=$E99,SUM(AS97:AS98),0) -> 0 | AT99: =-IF(AT4=$E99,SUM(AT97:AT98),0) -> 0 | AU99: =-IF(AU4=$E99,SUM(AU97:AU98),0) -> 0 | AV99: =-IF(AV4=$E99,SUM(AV97:AV98),0) -> 0 | AW99: =-IF(AW4=$E99,SUM(AW97:AW98),0) -> 0 | AX99: =-IF(AX4=$E99,SUM(AX97:AX98),0) -> 0 | AY99: =-IF(AY4=$E99,SUM(AY97:AY98),0) -> 0 | AZ99: =-IF(AZ4=$E99,SUM(AZ97:AZ98),0) -> 0 | BA99: =-IF(BA4=$E99,SUM(BA97:BA98),0) -> 0 | BB99: =-IF(BB4=$E99,SUM(BB97:BB98),0) -> 0 | BC99: =-IF(BC4=$E99,SUM(BC97:BC98),0) -> 0 | BD99: =-IF(BD4=$E99,SUM(BD97:BD98),0) -> 0 | BE99: =-IF(BE4=$E99,SUM(BE97:BE98),0) -> 0 | BF99: =-IF(BF4=$E99,SUM(BF97:BF98),0) -> 0 | BG99: =-IF(BG4=$E99,SUM(BG97:BG98),0) -> 0 | BH99: =-IF(BH4=$E99,SUM(BH97:BH98),0) -> 0 | BI99: =-IF(BI4=$E99,SUM(BI97:BI98),0) -> 0 | BJ99: =-IF(BJ4=$E99,SUM(BJ97:BJ98),0) -> 0 | BK99: =-IF(BK4=$E99,SUM(BK97:BK98),0) -> 0 | BL99: =-IF(BL4=$E99,SUM(BL97:BL98),0) -> 0 | BM99: =-IF(BM4=$E99,SUM(BM97:BM98),0) -> 0 | BO99: =IF(BO9=$E$96,-SUM(BO97:BO98),0) -> 0 | BP99: =IF(BP9=$E$96,-SUM(BP97:BP98),0) -> 0 | BQ99: =IF(BQ9=$E$96,-SUM(BQ97:BQ98),0) -> 0 | BR99: =IF(BR9=$E$96,-SUM(BR97:BR98),0) -> 0 | BS99: =IF(BS9=$E$96,-SUM(BS97:BS98),0) -> 0 | BT99: =IF(BT9=$E$96,-SUM(BT97:BT98),0) -> 0 | BU99: =IF(BU9=$E$96,-SUM(BU97:BU98),0) -> 0
C100: Balance c/f | D100: AUD M | J100: =SUM(J97:J99) -> 253.6618503 | K100: =SUM(K97:K99) -> 565.8954468 | L100: =SUM(L97:L99) -> 0 | M100: 0 | N100: 0 | O100: 0 | P100: 0 | Q100: 0 | R100: 0 | S100: 0 | T100: 0 | U100: 0 | V100: 0 | W100: 0 | X100: 0 | Y100: 0 | Z100: 0 | AA100: 0 | AB100: 0 | AC100: 0 | AD100: 0 | AE100: 0 | AF100: 0 | AG100: 0 | AH100: 0 | AI100: 0 | AJ100: 0 | AK100: 0 | AL100: 0 | AM100: 0 | AN100: 0 | AO100: 0 | AP100: 0 | AQ100: 0 | AR100: 0 | AS100: 0 | AT100: 0 | AU100: 0 | AV100: 0 | AW100: 0 | AX100: 0 | AY100: 0 | AZ100: 0 | BA100: 0 | BB100: 0 | BC100: 0 | BD100: 0 | BE100: 0 | BF100: 0 | BG100: 0 | BH100: 0 | BI100: 0 | BJ100: 0 | BK100: 0 | BL100: 0 | BM100: 0 | BO100: =SUM(BO97:BO99) -> 0 | BP100: 0 | BQ100: 0 | BR100: 0 | BS100: 0 | BT100: 0 | BU100: 0
C102: Undrawn amount @ start of period | D102: AUD M | E102: =Inputs!$E$281 -> 565.8954468 | J102: =($E102-J97)*J5 -> 565.8954468 | K102: =($E102-K97)*K5 -> 312.2335966 | L102: =($E102-L97)*L5 -> 0 | M102: =($E102-M97)*M5 -> 0 | N102: =($E102-N97)*N5 -> 0 | O102: =($E102-O97)*O5 -> 0 | P102: =($E102-P97)*P5 -> 0 | Q102: =($E102-Q97)*Q5 -> 0 | R102: =($E102-R97)*R5 -> 0 | S102: =($E102-S97)*S5 -> 0 | T102: =($E102-T97)*T5 -> 0 | U102: =($E102-U97)*U5 -> 0 | V102: =($E102-V97)*V5 -> 0 | W102: =($E102-W97)*W5 -> 0 | X102: =($E102-X97)*X5 -> 0 | Y102: =($E102-Y97)*Y5 -> 0 | Z102: =($E102-Z97)*Z5 -> 0 | AA102: =($E102-AA97)*AA5 -> 0 | AB102: =($E102-AB97)*AB5 -> 0 | AC102: =($E102-AC97)*AC5 -> 0 | AD102: =($E102-AD97)*AD5 -> 0 | AE102: =($E102-AE97)*AE5 -> 0 | AF102: =($E102-AF97)*AF5 -> 0 | AG102: =($E102-AG97)*AG5 -> 0 | AH102: =($E102-AH97)*AH5 -> 0 | AI102: =($E102-AI97)*AI5 -> 0 | AJ102: =($E102-AJ97)*AJ5 -> 0 | AK102: =($E102-AK97)*AK5 -> 0 | AL102: =($E102-AL97)*AL5 -> 0 | AM102: =($E102-AM97)*AM5 -> 0 | AN102: =($E102-AN97)*AN5 -> 0 | AO102: =($E102-AO97)*AO5 -> 0 | AP102: =($E102-AP97)*AP5 -> 0 | AQ102: =($E102-AQ97)*AQ5 -> 0 | AR102: =($E102-AR97)*AR5 -> 0 | AS102: =($E102-AS97)*AS5 -> 0 | AT102: =($E102-AT97)*AT5 -> 0 | AU102: =($E102-AU97)*AU5 -> 0 | AV102: =($E102-AV97)*AV5 -> 0 | AW102: =($E102-AW97)*AW5 -> 0 | AX102: =($E102-AX97)*AX5 -> 0 | AY102: =($E102-AY97)*AY5 -> 0 | AZ102: =($E102-AZ97)*AZ5 -> 0 | BA102: =($E102-BA97)*BA5 -> 0 | BB102: =($E102-BB97)*BB5 -> 0 | BC102: =($E102-BC97)*BC5 -> 0 | BD102: =($E102-BD97)*BD5 -> 0 | BE102: =($E102-BE97)*BE5 -> 0 | BF102: =($E102-BF97)*BF5 -> 0 | BG102: =($E102-BG97)*BG5 -> 0 | BH102: =($E102-BH97)*BH5 -> 0 | BI102: =($E102-BI97)*BI5 -> 0 | BJ102: =($E102-BJ97)*BJ5 -> 0 | BK102: =($E102-BK97)*BK5 -> 0 | BL102: =($E102-BL97)*BL5 -> 0 | BM102: =($E102-BM97)*BM5 -> 0 | BO102: =($E$99-BO97)*BO11 -> 0 | BP102: =($E$99-BP97)*BP11 -> 0 | BQ102: =($E$99-BQ97)*BQ11 -> 0 | BR102: =($E$99-BR97)*BR11 -> 0 | BS102: =($E$99-BS97)*BS11 -> 0 | BT102: =($E$99-BT97)*BT11 -> 0 | BU102: =($E$99-BU97)*BU11 -> 0
C104: Interest during construction
C105: Base rate | D105: % p.a. | J105: =[1]Timing!J26 -> 0.025 | K105: =[1]Timing!K26 -> 0.025 | L105: =[1]Timing!L26 -> 0.025 | M105: =[1]Timing!M26 -> 0.025 | N105: =[1]Timing!N26 -> 0.025 | O105: =[1]Timing!O26 -> 0.025 | P105: =[1]Timing!P26 -> 0.025 | Q105: =[1]Timing!Q26 -> 0.025 | R105: =[1]Timing!R26 -> 0.025 | S105: =[1]Timing!S26 -> 0.025 | T105: =[1]Timing!T26 -> 0.025 | U105: =[1]Timing!U26 -> 0.025 | V105: =[1]Timing!V26 -> 0.025 | W105: =[1]Timing!W26 -> 0.025 | X105: =[1]Timing!X26 -> 0.025 | Y105: =[1]Timing!Y26 -> 0.025 | Z105: =[1]Timing!Z26 -> 0.025 | AA105: =[1]Timing!AA26 -> 0.025 | AB105: =[1]Timing!AB26 -> 0.025 | AC105: =[1]Timing!AC26 -> 0.025 | AD105: =[1]Timing!AD26 -> 0.025 | AE105: =[1]Timing!AE26 -> 0.025 | AF105: =[1]Timing!AF26 -> 0.025 | AG105: =[1]Timing!AG26 -> 0.025 | AH105: =[1]Timing!AH26 -> 0.025 | AI105: =[1]Timing!AI26 -> 0.025 | AJ105: =[1]Timing!AJ26 -> 0.025 | AK105: =[1]Timing!AK26 -> 0.025 | AL105: =[1]Timing!AL26 -> 0.025 | AM105: =[1]Timing!AM26 -> 0.025 | AN105: =[1]Timing!AN26 -> 0.025 | AO105: =[1]Timing!AO26 -> 0.025 | AP105: =[1]Timing!AP26 -> 0.025 | AQ105: =[1]Timing!AQ26 -> 0.025 | AR105: =[1]Timing!AR26 -> 0.025 | AS105: =[1]Timing!AS26 -> 0.025 | AT105: =[1]Timing!AT26 -> 0.025 | AU105: =[1]Timing!AU26 -> 0.025 | AV105: =[1]Timing!AV26 -> 0.025 | AW105: =[1]Timing!AW26 -> 0.025 | AX105: =[1]Timing!AX26 -> 0.025 | AY105: =[1]Timing!AY26 -> 0.025 | AZ105: =[1]Timing!AZ26 -> 0.025 | BA105: =[1]Timing!BA26 -> 0.025 | BB105: =[1]Timing!BB26 -> 0.025 | BC105: =[1]Timing!BC26 -> 0.025 | BD105: =[1]Timing!BD26 -> 0.025 | BE105: =[1]Timing!BE26 -> 0.025 | BF105: =[1]Timing!BF26 -> 0.025 | BG105: =[1]Timing!BG26 -> 0.025 | BH105: =[1]Timing!BH26 -> 0.025 | BI105: =[1]Timing!BI26 -> 0.025 | BJ105: =[1]Timing!BJ26 -> 0.025 | BK105: =[1]Timing!BK26 -> 0.025 | BL105: =[1]Timing!BL26 -> 0.025 | BM105: =[1]Timing!BM26 -> 0.025 | BO105: 0 | BP105: 0 | BQ105: 0 | BR105: 0 | BS105: 0 | BT105: 0 | BU105: 0
C106: Margin | D106: % p.a. | E106: =Inputs!$E$300 -> 0.01 | J106: =$E$106 -> 0.01 | K106: =$E$106 -> 0.01 | L106: 0.01 | M106: 0.01 | N106: 0.01 | O106: 0.01 | P106: 0.01 | Q106: 0.01 | R106: 0.01 | S106: 0.01 | T106: 0.01 | U106: 0.01 | V106: 0.01 | W106: 0.01 | X106: 0.01 | Y106: 0.01 | Z106: 0.01 | AA106: 0.01 | AB106: 0.01 | AC106: 0.01 | AD106: 0.01 | AE106: 0.01 | AF106: 0.01 | AG106: 0.01 | AH106: 0.01 | AI106: 0.01 | AJ106: 0.01 | AK106: 0.01 | AL106: 0.01 | AM106: 0.01 | AN106: 0.01 | AO106: 0.01 | AP106: 0.01 | AQ106: 0.01 | AR106: 0.01 | AS106: 0.01 | AT106: 0.01 | AU106: 0.01 | AV106: 0.01 | AW106: 0.01 | AX106: 0.01 | AY106: 0.01 | AZ106: 0.01 | BA106: 0.01 | BB106: 0.01 | BC106: 0.01 | BD106: 0.01 | BE106: 0.01 | BF106: 0.01 | BG106: 0.01 | BH106: 0.01 | BI106: 0.01 | BJ106: 0.01 | BK106: 0.01 | BL106: 0.01 | BM106: 0.01 | BO106: =$E106*BO11 -> 0 | BP106: =$E106*BP11 -> 0 | BQ106: =$E106*BQ11 -> 0 | BR106: =$E106*BR11 -> 0 | BS106: =$E106*BS11 -> 0 | BT106: =$E106*BT11 -> 0 | BU106: =$E106*BU11 -> 0
C107: All-in rate | D107: % p.a. | J107: =SUM(J105,J106) -> 0.035 | K107: =SUM(K105,K106) -> 0.035 | L107: 0.035 | M107: 0.035 | N107: 0.035 | O107: 0.035 | P107: 0.035 | Q107: 0.035 | R107: 0.035 | S107: 0.035 | T107: 0.035 | U107: 0.035 | V107: 0.035 | W107: 0.035 | X107: 0.035 | Y107: 0.035 | Z107: 0.035 | AA107: 0.035 | AB107: 0.035 | AC107: 0.035 | AD107: 0.035 | AE107: 0.035 | AF107: 0.035 | AG107: 0.035 | AH107: 0.035 | AI107: 0.035 | AJ107: 0.035 | AK107: 0.035 | AL107: 0.035 | AM107: 0.035 | AN107: 0.035 | AO107: 0.035 | AP107: 0.035 | AQ107: 0.035 | AR107: 0.035 | AS107: 0.035 | AT107: 0.035 | AU107: 0.035 | AV107: 0.035 | AW107: 0.035 | AX107: 0.035 | AY107: 0.035 | AZ107: 0.035 | BA107: 0.035 | BB107: 0.035 | BC107: 0.035 | BD107: 0.035 | BE107: 0.035 | BF107: 0.035 | BG107: 0.035 | BH107: 0.035 | BI107: 0.035 | BJ107: 0.035 | BK107: 0.035 | BL107: 0.035 | BM107: 0.035 | BO107: =SUM(BO105:BO106) -> 0 | BP107: 0 | BQ107: 0 | BR107: 0 | BS107: 0 | BT107: 0 | BU107: 0
C108: All-in rate | D108: % p.p. | J108: =J107*J15/Days_Year -> 0.008726027397 | K108: =K107*K15/Days_Year -> 0.008534246575 | L108: =L107*L15/Days_Year -> 0.008821917808 | M108: =M107*M15/Days_Year -> 0.03509589041 | N108: =N107*N15/Days_Year -> 0.035 | O108: =O107*O15/Days_Year -> 0.035 | P108: =P107*P15/Days_Year -> 0.035 | Q108: =Q107*Q15/Days_Year -> 0.03509589041 | R108: =R107*R15/Days_Year -> 0.035 | S108: =S107*S15/Days_Year -> 0.035 | T108: =T107*T15/Days_Year -> 0.035 | U108: =U107*U15/Days_Year -> 0.03509589041 | V108: =V107*V15/Days_Year -> 0.035 | W108: =W107*W15/Days_Year -> 0.035 | X108: =X107*X15/Days_Year -> 0.035 | Y108: =Y107*Y15/Days_Year -> 0.03509589041 | Z108: =Z107*Z15/Days_Year -> 0.035 | AA108: =AA107*AA15/Days_Year -> 0.035 | AB108: =AB107*AB15/Days_Year -> 0.035 | AC108: =AC107*AC15/Days_Year -> 0.03509589041 | AD108: =AD107*AD15/Days_Year -> 0.035 | AE108: =AE107*AE15/Days_Year -> 0.035 | AF108: =AF107*AF15/Days_Year -> 0.035 | AG108: =AG107*AG15/Days_Year -> 0.03509589041 | AH108: =AH107*AH15/Days_Year -> 0.035 | AI108: =AI107*AI15/Days_Year -> 0.035 | AJ108: =AJ107*AJ15/Days_Year -> 0.035 | AK108: =AK107*AK15/Days_Year -> 0.03509589041 | AL108: =AL107*AL15/Days_Year -> 0 | AM108: =AM107*AM15/Days_Year -> 0 | AN108: =AN107*AN15/Days_Year -> 0 | AO108: =AO107*AO15/Days_Year -> 0 | AP108: =AP107*AP15/Days_Year -> 0 | AQ108: =AQ107*AQ15/Days_Year -> 0 | AR108: =AR107*AR15/Days_Year -> 0 | AS108: =AS107*AS15/Days_Year -> 0 | AT108: =AT107*AT15/Days_Year -> 0 | AU108: =AU107*AU15/Days_Year -> 0 | AV108: =AV107*AV15/Days_Year -> 0 | AW108: =AW107*AW15/Days_Year -> 0 | AX108: =AX107*AX15/Days_Year -> 0 | AY108: =AY107*AY15/Days_Year -> 0 | AZ108: =AZ107*AZ15/Days_Year -> 0 | BA108: =BA107*BA15/Days_Year -> 0 | BB108: =BB107*BB15/Days_Year -> 0 | BC108: =BC107*BC15/Days_Year -> 0 | BD108: =BD107*BD15/Days_Year -> 0 | BE108: =BE107*BE15/Days_Year -> 0 | BF108: =BF107*BF15/Days_Year -> 0 | BG108: =BG107*BG15/Days_Year -> 0 | BH108: =BH107*BH15/Days_Year -> 0 | BI108: =BI107*BI15/Days_Year -> 0 | BJ108: =BJ107*BJ15/Days_Year -> 0 | BK108: =BK107*BK15/Days_Year -> 0 | BL108: =BL107*BL15/Days_Year -> 0 | BM108: =BM107*BM15/Days_Year -> 0 | BO108: 0 | BP108: 0 | BQ108: 0 | BR108: 0 | BS108: 0 | BT108: 0 | BU108: 0
C110: Interest during construction | D110: AUD M | I110: =SUM(J110:BU110) -> 7.157095897 | J110: =J97*J108 -> 0 | K110: =K97*K108 -> 2.164812777 | L110: =L97*L108 -> 4.99228312 | M110: =M97*M108 -> 0 | N110: =N97*N108 -> 0 | O110: 0 | P110: 0 | Q110: 0 | R110: 0 | S110: 0 | T110: 0 | U110: 0 | V110: 0 | W110: 0 | X110: 0 | Y110: 0 | Z110: =Z97*Z108 -> 0 | AA110: 0 | AB110: 0 | AC110: 0 | AD110: 0 | AE110: 0 | AF110: 0 | AG110: 0 | AH110: 0 | AI110: 0 | AJ110: 0 | AK110: 0 | AL110: 0 | AM110: 0 | AN110: 0 | AO110: 0 | AP110: 0 | AQ110: 0 | AR110: 0 | AS110: 0 | AT110: 0 | AU110: 0 | AV110: 0 | AW110: 0 | AX110: 0 | AY110: 0 | AZ110: 0 | BA110: 0 | BB110: 0 | BC110: 0 | BD110: 0 | BE110: 0 | BF110: 0 | BG110: 0 | BH110: 0 | BI110: 0 | BJ110: 0 | BK110: 0 | BL110: 0 | BM110: 0 | BO110: =BO108*BO97 -> 0 | BP110: 0 | BQ110: 0 | BR110: 0 | BS110: 0 | BT110: 0 | BU110: 0
C112: Construction debt service (P + I) | I112: =SUM(J112:BN112) -> 573.0525427 | J112: =J98+J110 -> 253.6618503 | K112: =K98+K110 -> 314.3984093 | L112: 4.99228312 | M112: 0 | N112: 0 | O112: 0 | P112: 0 | Q112: 0 | R112: 0 | S112: 0 | T112: 0 | U112: 0 | V112: 0 | W112: 0 | X112: 0 | Y112: 0 | Z112: 0 | AA112: 0 | AB112: 0 | AC112: 0 | AD112: 0 | AE112: 0 | AF112: 0 | AG112: 0 | AH112: 0 | AI112: 0 | AJ112: 0 | AK112: 0 | AL112: 0 | AM112: 0 | AN112: 0 | AO112: 0 | AP112: 0 | AQ112: 0 | AR112: 0 | AS112: 0 | AT112: 0 | AU112: 0 | AV112: 0 | AW112: 0 | AX112: 0 | AY112: 0 | AZ112: 0 | BA112: 0 | BB112: 0 | BC112: 0 | BD112: 0 | BE112: 0 | BF112: 0 | BG112: 0 | BH112: 0 | BI112: 0 | BJ112: 0 | BK112: 0 | BL112: 0 | BM112: 0 | BN112: 0
C114: Financing fees
C115: Upfront fee
C116: Upfront fee | D116: AUD M | E116: =Inputs!$E$301 -> 0.01 | I116: =SUM(J116:BU116) -> 5.658954468 | J116: =IF(J10=1,1,0)*$E116*$E102 -> 5.658954468 | K116: =IF(K10=1,1,0)*$E116*$E102 -> 0 | L116: =IF(L10=1,1,0)*$E116*$E102 -> 0 | M116: =IF(M10=1,1,0)*$E116*$E102 -> 0 | N116: =IF(N10=1,1,0)*$E116*$E102 -> 0 | O116: =IF(O10=1,1,0)*$E116*$E102 -> 0 | P116: =IF(P10=1,1,0)*$E116*$E102 -> 0 | Q116: =IF(Q10=1,1,0)*$E116*$E102 -> 0 | R116: =IF(R10=1,1,0)*$E116*$E102 -> 0 | S116: =IF(S10=1,1,0)*$E116*$E102 -> 0 | T116: =IF(T10=1,1,0)*$E116*$E102 -> 0 | U116: =IF(U10=1,1,0)*$E116*$E102 -> 0 | V116: =IF(V10=1,1,0)*$E116*$E102 -> 0 | W116: =IF(W10=1,1,0)*$E116*$E102 -> 0 | X116: =IF(X10=1,1,0)*$E116*$E102 -> 0 | Y116: =IF(Y10=1,1,0)*$E116*$E102 -> 0 | Z116: =IF(Z10=1,1,0)*$E116*$E102 -> 0 | AA116: =IF(AA10=1,1,0)*$E116*$E102 -> 0 | AB116: =IF(AB10=1,1,0)*$E116*$E102 -> 0 | AC116: =IF(AC10=1,1,0)*$E116*$E102 -> 0 | AD116: =IF(AD10=1,1,0)*$E116*$E102 -> 0 | AE116: =IF(AE10=1,1,0)*$E116*$E102 -> 0 | AF116: =IF(AF10=1,1,0)*$E116*$E102 -> 0 | AG116: =IF(AG10=1,1,0)*$E116*$E102 -> 0 | AH116: =IF(AH10=1,1,0)*$E116*$E102 -> 0 | AI116: =IF(AI10=1,1,0)*$E116*$E102 -> 0 | AJ116: =IF(AJ10=1,1,0)*$E116*$E102 -> 0 | AK116: =IF(AK10=1,1,0)*$E116*$E102 -> 0 | AL116: =IF(AL10=1,1,0)*$E116*$E102 -> 0 | AM116: =IF(AM10=1,1,0)*$E116*$E102 -> 0 | AN116: =IF(AN10=1,1,0)*$E116*$E102 -> 0 | AO116: =IF(AO10=1,1,0)*$E116*$E102 -> 0 | AP116: =IF(AP10=1,1,0)*$E116*$E102 -> 0 | AQ116: =IF(AQ10=1,1,0)*$E116*$E102 -> 0 | AR116: =IF(AR10=1,1,0)*$E116*$E102 -> 0 | AS116: =IF(AS10=1,1,0)*$E116*$E102 -> 0 | AT116: =IF(AT10=1,1,0)*$E116*$E102 -> 0 | AU116: =IF(AU10=1,1,0)*$E116*$E102 -> 0 | AV116: =IF(AV10=1,1,0)*$E116*$E102 -> 0 | AW116: =IF(AW10=1,1,0)*$E116*$E102 -> 0 | AX116: =IF(AX10=1,1,0)*$E116*$E102 -> 0 | AY116: =IF(AY10=1,1,0)*$E116*$E102 -> 0 | AZ116: =IF(AZ10=1,1,0)*$E116*$E102 -> 0 | BA116: =IF(BA10=1,1,0)*$E116*$E102 -> 0 | BB116: =IF(BB10=1,1,0)*$E116*$E102 -> 0 | BC116: =IF(BC10=1,1,0)*$E116*$E102 -> 0 | BD116: =IF(BD10=1,1,0)*$E116*$E102 -> 0 | BE116: =IF(BE10=1,1,0)*$E116*$E102 -> 0 | BF116: =IF(BF10=1,1,0)*$E116*$E102 -> 0 | BG116: =IF(BG10=1,1,0)*$E116*$E102 -> 0 | BH116: =IF(BH10=1,1,0)*$E116*$E102 -> 0 | BI116: =IF(BI10=1,1,0)*$E116*$E102 -> 0 | BJ116: =IF(BJ10=1,1,0)*$E116*$E102 -> 0 | BK116: =IF(BK10=1,1,0)*$E116*$E102 -> 0 | BL116: =IF(BL10=1,1,0)*$E116*$E102 -> 0 | BM116: =IF(BM10=1,1,0)*$E116*$E102 -> 0 | BO116: =IF(BO22=1,$E$113*$E$99,0) -> 0 | BP116: =IF(BP22=1,$E$113*$E$99,0) -> 0 | BQ116: =IF(BQ22=1,$E$113*$E$99,0) -> 0 | BR116: =IF(BR22=1,$E$113*$E$99,0) -> 0 | BS116: =IF(BS22=1,$E$113*$E$99,0) -> 0 | BT116: =IF(BT22=1,$E$113*$E$99,0) -> 0 | BU116: =IF(BU22=1,$E$113*$E$99,0) -> 0
C118: Commitment fee
C119: Rate | D119: % p.p. | E119: =Inputs!$E$302 -> 0.012 | J119: =$E119*J15/Days_Year*J6 -> 0 | K119: =$E119*K15/Days_Year*K6 -> 0 | L119: =$E119*L15/Days_Year*L6 -> 0 | M119: =$E119*M15/Days_Year*M6 -> 0.01203287671 | N119: =$E119*N15/Days_Year*N6 -> 0.012 | O119: =$E119*O15/Days_Year*O6 -> 0.012 | P119: =$E119*P15/Days_Year*P6 -> 0.012 | Q119: =$E119*Q15/Days_Year*Q6 -> 0.01203287671 | R119: =$E119*R15/Days_Year*R6 -> 0.012 | S119: =$E119*S15/Days_Year*S6 -> 0.012 | T119: =$E119*T15/Days_Year*T6 -> 0.012 | U119: =$E119*U15/Days_Year*U6 -> 0.01203287671 | V119: =$E119*V15/Days_Year*V6 -> 0.012 | W119: =$E119*W15/Days_Year*W6 -> 0.012 | X119: =$E119*X15/Days_Year*X6 -> 0.012 | Y119: =$E119*Y15/Days_Year*Y6 -> 0.01203287671 | Z119: =$E119*Z15/Days_Year*Z6 -> 0.012 | AA119: =$E119*AA15/Days_Year*AA6 -> 0.012 | AB119: =$E119*AB15/Days_Year*AB6 -> 0.012 | AC119: =$E119*AC15/Days_Year*AC6 -> 0.01203287671 | AD119: =$E119*AD15/Days_Year*AD6 -> 0.012 | AE119: =$E119*AE15/Days_Year*AE6 -> 0.012 | AF119: =$E119*AF15/Days_Year*AF6 -> 0.012 | AG119: =$E119*AG15/Days_Year*AG6 -> 0.01203287671 | AH119: =$E119*AH15/Days_Year*AH6 -> 0.012 | AI119: =$E119*AI15/Days_Year*AI6 -> 0.012 | AJ119: =$E119*AJ15/Days_Year*AJ6 -> 0.012 | AK119: =$E119*AK15/Days_Year*AK6 -> 0.01203287671 | AL119: =$E119*AL15/Days_Year*AL6 -> 0 | AM119: =$E119*AM15/Days_Year*AM6 -> 0 | AN119: =$E119*AN15/Days_Year*AN6 -> 0 | AO119: =$E119*AO15/Days_Year*AO6 -> 0 | AP119: =$E119*AP15/Days_Year*AP6 -> 0 | AQ119: =$E119*AQ15/Days_Year*AQ6 -> 0 | AR119: =$E119*AR15/Days_Year*AR6 -> 0 | AS119: =$E119*AS15/Days_Year*AS6 -> 0 | AT119: =$E119*AT15/Days_Year*AT6 -> 0 | AU119: =$E119*AU15/Days_Year*AU6 -> 0 | AV119: =$E119*AV15/Days_Year*AV6 -> 0 | AW119: =$E119*AW15/Days_Year*AW6 -> 0 | AX119: =$E119*AX15/Days_Year*AX6 -> 0 | AY119: =$E119*AY15/Days_Year*AY6 -> 0 | AZ119: =$E119*AZ15/Days_Year*AZ6 -> 0 | BA119: =$E119*BA15/Days_Year*BA6 -> 0 | BB119: =$E119*BB15/Days_Year*BB6 -> 0 | BC119: =$E119*BC15/Days_Year*BC6 -> 0 | BD119: =$E119*BD15/Days_Year*BD6 -> 0 | BE119: =$E119*BE15/Days_Year*BE6 -> 0 | BF119: =$E119*BF15/Days_Year*BF6 -> 0 | BG119: =$E119*BG15/Days_Year*BG6 -> 0 | BH119: =$E119*BH15/Days_Year*BH6 -> 0 | BI119: =$E119*BI15/Days_Year*BI6 -> 0 | BJ119: =$E119*BJ15/Days_Year*BJ6 -> 0 | BK119: =$E119*BK15/Days_Year*BK6 -> 0 | BL119: =$E119*BL15/Days_Year*BL6 -> 0 | BM119: =$E119*BM15/Days_Year*BM6 -> 0 | BO119: 0 | BP119: 0 | BQ119: 0 | BR119: 0 | BS119: 0 | BT119: 0 | BU119: 0
C120: Commitment fee | D120: AUD M | I120: =SUM(J120:BU120) -> 0 | J120: =J119*J102 -> 0 | K120: =K119*K102 -> 0 | L120: 0 | M120: 0 | N120: 0 | O120: 0 | P120: 0 | Q120: 0 | R120: 0 | S120: 0 | T120: 0 | U120: 0 | V120: 0 | W120: 0 | X120: 0 | Y120: 0 | Z120: 0 | AA120: 0 | AB120: 0 | AC120: 0 | AD120: 0 | AE120: 0 | AF120: 0 | AG120: 0 | AH120: 0 | AI120: 0 | AJ120: 0 | AK120: 0 | AL120: 0 | AM120: 0 | AN120: 0 | AO120: 0 | AP120: 0 | AQ120: 0 | AR120: 0 | AS120: 0 | AT120: 0 | AU120: 0 | AV120: 0 | AW120: 0 | AX120: 0 | AY120: 0 | AZ120: 0 | BA120: 0 | BB120: 0 | BC120: 0 | BD120: 0 | BE120: 0 | BF120: 0 | BG120: 0 | BH120: 0 | BI120: 0 | BJ120: 0 | BK120: 0 | BL120: 0 | BM120: 0 | BO120: =BO119*BO102 -> 0 | BP120: 0 | BQ120: 0 | BR120: 0 | BS120: 0 | BT120: 0 | BU120: 0
C122: Total financing fees | D122: AUD M | I122: =SUM(J122:BU122) -> 5.658954468 | J122: =J120+J116 -> 5.658954468 | K122: =K120+K116 -> 0 | L122: =L120+L116 -> 0 | M122: 0 | N122: 0 | O122: 0 | P122: 0 | Q122: 0 | R122: 0 | S122: 0 | T122: 0 | U122: 0 | V122: 0 | W122: 0 | X122: 0 | Y122: 0 | Z122: 0 | AA122: 0 | AB122: 0 | AC122: 0 | AD122: 0 | AE122: 0 | AF122: 0 | AG122: 0 | AH122: 0 | AI122: 0 | AJ122: 0 | AK122: 0 | AL122: 0 | AM122: 0 | AN122: 0 | AO122: 0 | AP122: 0 | AQ122: 0 | AR122: 0 | AS122: 0 | AT122: 0 | AU122: 0 | AV122: 0 | AW122: 0 | AX122: 0 | AY122: 0 | AZ122: 0 | BA122: 0 | BB122: 0 | BC122: 0 | BD122: 0 | BE122: 0 | BF122: 0 | BG122: 0 | BH122: 0 | BI122: 0 | BJ122: 0 | BK122: 0 | BL122: 0 | BM122: 0 | BO122: =BO116+BO120 -> 0 | BP122: 0 | BQ122: 0 | BR122: 0 | BS122: 0 | BT122: 0 | BU122: 0
C124: Additional equity
C125: Account
C126: Balance b/f | D126: AUD M | J126: =I128 -> 0 | K126: =J128 -> 0 | L126: 27.61782065 | M126: 137.8362758 | N126: 137.8362758 | O126: 137.8362758 | P126: 137.8362758 | Q126: 137.8362758 | R126: 137.8362758 | S126: 137.8362758 | T126: 137.8362758 | U126: 137.8362758 | V126: 137.8362758 | W126: 137.8362758 | X126: 137.8362758 | Y126: 137.8362758 | Z126: 137.8362758 | AA126: 137.8362758 | AB126: 137.8362758 | AC126: 137.8362758 | AD126: 137.8362758 | AE126: 137.8362758 | AF126: 137.8362758 | AG126: 137.8362758 | AH126: 137.8362758 | AI126: 137.8362758 | AJ126: 137.8362758 | AK126: 137.8362758 | AL126: 137.8362758 | AM126: 137.8362758 | AN126: 137.8362758 | AO126: 137.8362758 | AP126: 137.8362758 | AQ126: 137.8362758 | AR126: 137.8362758 | AS126: 137.8362758 | AT126: 137.8362758 | AU126: 137.8362758 | AV126: 137.8362758 | AW126: 137.8362758 | AX126: 137.8362758 | AY126: 137.8362758 | AZ126: 137.8362758 | BA126: 137.8362758 | BB126: 137.8362758 | BC126: 137.8362758 | BD126: 137.8362758 | BE126: 137.8362758 | BF126: 137.8362758 | BG126: 137.8362758 | BH126: 137.8362758 | BI126: 137.8362758 | BJ126: 137.8362758 | BK126: 137.8362758 | BL126: 137.8362758 | BM126: 137.8362758 | BO126: =BN128 -> 0 | BP126: 0 | BQ126: 0 | BR126: 0 | BS126: 0 | BT126: 0 | BU126: 0
C127: Drawdowns | D127: AUD M | I127: =SUM(J127:BU127) -> 137.8362758 | J127: =-J84 -> 0 | K127: =-K84 -> 27.61782065 | L127: 110.2184552 | M127: 0 | N127: 0 | O127: 0 | P127: 0 | Q127: 0 | R127: 0 | S127: 0 | T127: 0 | U127: 0 | V127: 0 | W127: 0 | X127: 0 | Y127: 0 | Z127: 0 | AA127: 0 | AB127: 0 | AC127: 0 | AD127: 0 | AE127: 0 | AF127: 0 | AG127: 0 | AH127: 0 | AI127: 0 | AJ127: 0 | AK127: 0 | AL127: 0 | AM127: 0 | AN127: 0 | AO127: 0 | AP127: 0 | AQ127: 0 | AR127: 0 | AS127: 0 | AT127: 0 | AU127: 0 | AV127: 0 | AW127: 0 | AX127: 0 | AY127: 0 | AZ127: 0 | BA127: 0 | BB127: 0 | BC127: 0 | BD127: 0 | BE127: 0 | BF127: 0 | BG127: 0 | BH127: 0 | BI127: 0 | BJ127: 0 | BK127: 0 | BL127: 0 | BM127: 0 | BO127: =-BO115 -> 0 | BP127: 0 | BQ127: 0 | BR127: 0 | BS127: 0 | BT127: 0 | BU127: 0
C128: Balance c/f | D128: AUD M | J128: =SUM(J126,J127) -> 0 | K128: =SUM(K126,K127) -> 27.61782065 | L128: 137.8362758 | M128: 137.8362758 | N128: 137.8362758 | O128: 137.8362758 | P128: 137.8362758 | Q128: 137.8362758 | R128: 137.8362758 | S128: 137.8362758 | T128: 137.8362758 | U128: 137.8362758 | V128: 137.8362758 | W128: 137.8362758 | X128: 137.8362758 | Y128: 137.8362758 | Z128: 137.8362758 | AA128: 137.8362758 | AB128: 137.8362758 | AC128: 137.8362758 | AD128: 137.8362758 | AE128: 137.8362758 | AF128: 137.8362758 | AG128: 137.8362758 | AH128: 137.8362758 | AI128: 137.8362758 | AJ128: 137.8362758 | AK128: 137.8362758 | AL128: 137.8362758 | AM128: 137.8362758 | AN128: 137.8362758 | AO128: 137.8362758 | AP128: 137.8362758 | AQ128: 137.8362758 | AR128: 137.8362758 | AS128: 137.8362758 | AT128: 137.8362758 | AU128: 137.8362758 | AV128: 137.8362758 | AW128: 137.8362758 | AX128: 137.8362758 | AY128: 137.8362758 | AZ128: 137.8362758 | BA128: 137.8362758 | BB128: 137.8362758 | BC128: 137.8362758 | BD128: 137.8362758 | BE128: 137.8362758 | BF128: 137.8362758 | BG128: 137.8362758 | BH128: 137.8362758 | BI128: 137.8362758 | BJ128: 137.8362758 | BK128: 137.8362758 | BL128: 137.8362758 | BM128: 137.8362758 | BO128: =SUM(BO126:BO127) -> 0 | BP128: 0 | BQ128: 0 | BR128: 0 | BS128: 0 | BT128: 0 | BU128: 0
C130: Asset summary
B131: 1 | C131: Construction costs | D131: AUD M | I131: =SUM(J131:BU131) -> 790.9156723 | J131: =SUMIF($B$57:$B$74,$B131,J$57:J$74) -> 348.0028958 | K131: =SUMIF($B$57:$B$74,$B131,K$57:K$74) -> 337.6866044 | L131: 105.2261721 | M131: 0 | N131: 0 | O131: 0 | P131: 0 | Q131: 0 | R131: 0 | S131: 0 | T131: =SUMIF($B$57:$B$74,$B131,T$57:T$74) -> 0 | U131: 0 | V131: 0 | W131: 0 | X131: 0 | Y131: 0 | Z131: 0 | AA131: 0 | AB131: 0 | AC131: 0 | AD131: =SUMIF($B$57:$B$74,$B131,AD$57:AD$74) -> 0 | AE131: 0 | AF131: 0 | AG131: 0 | AH131: 0 | AI131: 0 | AJ131: 0 | AK131: 0 | AL131: 0 | AM131: 0 | AN131: =SUMIF($B$57:$B$74,$B131,AN$57:AN$74) -> 0 | AO131: 0 | AP131: 0 | AQ131: 0 | AR131: 0 | AS131: 0 | AT131: 0 | AU131: 0 | AV131: 0 | AW131: 0 | AX131: =SUMIF($B$57:$B$74,$B131,AX$57:AX$74) -> 0 | AY131: 0 | AZ131: 0 | BA131: 0 | BB131: 0 | BC131: 0 | BD131: 0 | BE131: 0 | BF131: 0 | BG131: 0 | BH131: =SUMIF($B$57:$B$74,$B131,BH$57:BH$74) -> 0 | BI131: 0 | BJ131: 0 | BK131: 0 | BL131: 0 | BM131: 0 | BO131: =SUMIF( $B$50:$B$71, $B131, BO$50:BO$71 ) -> 0 | BP131: 0 | BQ131: 0 | BR131: 0 | BS131: 0 | BT131: 0 | BU131: 0
B132: 2 | C132: Interest during construction | D132: AUD M | I132: =SUM(J132:BU132) -> 7.157095897 | J132: 0 | K132: 2.164812777 | L132: 4.99228312 | M132: 0 | N132: 0 | O132: 0 | P132: 0 | Q132: 0 | R132: 0 | S132: 0 | T132: 0 | U132: 0 | V132: 0 | W132: 0 | X132: 0 | Y132: 0 | Z132: 0 | AA132: 0 | AB132: 0 | AC132: 0 | AD132: 0 | AE132: 0 | AF132: 0 | AG132: 0 | AH132: 0 | AI132: 0 | AJ132: 0 | AK132: 0 | AL132: 0 | AM132: 0 | AN132: 0 | AO132: 0 | AP132: 0 | AQ132: 0 | AR132: 0 | AS132: 0 | AT132: 0 | AU132: 0 | AV132: 0 | AW132: 0 | AX132: 0 | AY132: 0 | AZ132: 0 | BA132: 0 | BB132: 0 | BC132: 0 | BD132: 0 | BE132: 0 | BF132: 0 | BG132: 0 | BH132: 0 | BI132: 0 | BJ132: 0 | BK132: 0 | BL132: 0 | BM132: 0 | BO132: 0 | BP132: 0 | BQ132: 0 | BR132: 0 | BS132: 0 | BT132: 0 | BU132: 0
B133: 3 | C133: Financing fees | D133: AUD M | I133: =SUM(J133:BU133) -> 5.658954468 | J133: 5.658954468 | K133: 0 | L133: 0 | M133: 0 | N133: 0 | O133: 0 | P133: 0 | Q133: 0 | R133: 0 | S133: 0 | T133: 0 | U133: 0 | V133: 0 | W133: 0 | X133: 0 | Y133: 0 | Z133: 0 | AA133: 0 | AB133: 0 | AC133: 0 | AD133: 0 | AE133: 0 | AF133: 0 | AG133: 0 | AH133: 0 | AI133: 0 | AJ133: 0 | AK133: 0 | AL133: 0 | AM133: 0 | AN133: 0 | AO133: 0 | AP133: 0 | AQ133: 0 | AR133: 0 | AS133: 0 | AT133: 0 | AU133: 0 | AV133: 0 | AW133: 0 | AX133: 0 | AY133: 0 | AZ133: 0 | BA133: 0 | BB133: 0 | BC133: 0 | BD133: 0 | BE133: 0 | BF133: 0 | BG133: 0 | BH133: 0 | BI133: 0 | BJ133: 0 | BK133: 0 | BL133: 0 | BM133: 0 | BO133: 0 | BP133: 0 | BQ133: 0 | BR133: 0 | BS133: 0 | BT133: 0 | BU133: 0
C134: Total | D134: AUD M | I134: =SUM(J134:BU134) -> 803.7317227 | J134: =SUM(J131:J133) -> 353.6618503 | K134: =SUM(K131:K133) -> 339.8514172 | L134: 110.2184552 | M134: 0 | N134: 0 | O134: 0 | P134: 0 | Q134: 0 | R134: 0 | S134: 0 | T134: 0 | U134: 0 | V134: 0 | W134: 0 | X134: 0 | Y134: 0 | Z134: 0 | AA134: 0 | AB134: 0 | AC134: 0 | AD134: 0 | AE134: 0 | AF134: 0 | AG134: 0 | AH134: 0 | AI134: 0 | AJ134: 0 | AK134: 0 | AL134: 0 | AM134: 0 | AN134: 0 | AO134: 0 | AP134: 0 | AQ134: 0 | AR134: 0 | AS134: 0 | AT134: 0 | AU134: 0 | AV134: 0 | AW134: 0 | AX134: 0 | AY134: 0 | AZ134: 0 | BA134: 0 | BB134: 0 | BC134: 0 | BD134: 0 | BE134: 0 | BF134: 0 | BG134: 0 | BH134: 0 | BI134: 0 | BJ134: 0 | BK134: 0 | BL134: 0 | BM134: 0 | BO134: =SUM(BO131:BO133) -> 0 | BP134: 0 | BQ134: 0 | BR134: 0 | BS134: 0 | BT134: 0 | BU134: 0

Sheet T&A
A1: Tax and Accounting
C3: Period Start | J3: =IF(I4>=$E$7,"",I4+1) -> 2018-11-02 | K3: =IF(J4>=$E$7,"",J4+1) -> 2019-02-01 | L3: 2019-05-01 | M3: 2019-08-01 | N3: 2020-08-01 | O3: 2021-08-01 | P3: 2022-08-01 | Q3: 2023-08-01 | R3: 2024-08-01 | S3: 2025-08-01 | T3: 2026-08-01 | U3: 2027-08-01 | V3: 2028-08-01 | W3: 2029-08-01 | X3: 2030-08-01 | Y3: 2031-08-01 | Z3: 2032-08-01 | AA3: 2033-08-01 | AB3: 2034-08-01 | AC3: 2035-08-01 | AD3: 2036-08-01 | AE3: 2037-08-01 | AF3: 2038-08-01 | AG3: 2039-08-01 | AH3: 2040-08-01 | AI3: 2041-08-01 | AJ3: 2042-08-01 | AK3: 2043-08-01 | AL3: 2044-08-01 | AM3: 2044-11-01 | AN3: 2045-02-01 | AQ3: 1900-01-01 | AR3: 1900-04-01
C4: Period End | I4: =Inputs!$H$9 -> 2018-11-01 | J4: =IF(J3="","",IF(AND(J3>=$D$6,J3<=$D$7),EOMONTH(J3,Months_Yr-1),EOMONTH(J3,Months_Qtr-1))) -> 2019-01-31 | K4: 2019-04-30 | L4: 2019-07-31 | M4: 2020-07-31 | N4: 2021-07-31 | O4: 2022-07-31 | P4: 2023-07-31 | Q4: 2024-07-31 | R4: 2025-07-31 | S4: 2026-07-31 | T4: 2027-07-31 | U4: 2028-07-31 | V4: 2029-07-31 | W4: 2030-07-31 | X4: 2031-07-31 | Y4: 2032-07-31 | Z4: 2033-07-31 | AA4: 2034-07-31 | AB4: 2035-07-31 | AC4: 2036-07-31 | AD4: 2037-07-31 | AE4: 2038-07-31 | AF4: 2039-07-31 | AG4: 2040-07-31 | AH4: 2041-07-31 | AI4: 2042-07-31 | AJ4: 2043-07-31 | AK4: 2044-07-31 | AL4: 2044-10-31 | AM4: 2045-01-31 | AN4: 2045-04-30 | AQ4: =IF(AQ3="","",IF(AND(AQ3>=$D$6,AQ3<=$D$7),EOMONTH(AQ3,Months_Yr-1),EOMONTH(AQ3,Months_Qtr-1))) -> 1900-03-31 | AR4: =IF(AR3="","",IF(AND(AR3>=$D$6,AR3<=$D$7),EOMONTH(AR3,Months_Yr-1),EOMONTH(AR3,Months_Qtr-1))) -> 1900-06-30
C5: =[1]Inputs!$I$6 -> Construction | D5: =Inputs!$I$7 -> 2018-11-01 | E5: =Inputs!$I$9 -> 2019-07-31 | J5: =IF(AND(J$3>=$D5,J$4<=$E5),1,0) -> 1 | K5: 1 | L5: 1 | M5: 0 | N5: 0 | O5: 0 | P5: 0 | Q5: 0 | R5: 0 | S5: 0 | T5: 0 | U5: 0 | V5: 0 | W5: 0 | X5: 0 | Y5: 0 | Z5: 0 | AA5: 0 | AB5: 0 | AC5: 0 | AD5: 0 | AE5: 0 | AF5: 0 | AG5: 0 | AH5: 0 | AI5: 0 | AJ5: 0 | AK5: 0 | AL5: 0 | AM5: =IF(AND(AM$3>=$D5,AM$4<=$E5),1,0) -> 0 | AN5: 0 | AQ5: 0 | AR5: 0
C6: =[1]Inputs!$J$6 -> Operations | D6: =Inputs!$J$7 -> 2019-08-01 | E6: =Inputs!$J$9 -> 2044-07-31 | J6: =IF(AND(J$3>=$D6,J$4<=$E6),1,0) -> 0 | K6: 0 | L6: 0 | M6: 1 | N6: 1 | O6: 1 | P6: 1 | Q6: 1 | R6: 1 | S6: 1 | T6: 1 | U6: 1 | V6: 1 | W6: 1 | X6: 1 | Y6: 1 | Z6: 1 | AA6: 1 | AB6: 1 | AC6: 1 | AD6: 1 | AE6: 1 | AF6: 1 | AG6: 1 | AH6: 1 | AI6: 1 | AJ6: 1 | AK6: 1 | AL6: 0 | AM6: 0 | AN6: 0 | AQ6: 0 | AR6: 0
C7: Decomissioning | D7: =Inputs!$K$7 -> 2044-07-31 | E7: =Inputs!$K$9 -> 2045-03-31 | J7: =IF(AND(J$3>=$D7,J$4<=$E7),1,0) -> 0 | K7: 0 | L7: 0 | M7: 0 | N7: 0 | O7: 0 | P7: 0 | Q7: 0 | R7: 0 | S7: 0 | T7: 0 | U7: 0 | V7: 0 | W7: 0 | X7: 0 | Y7: 0 | Z7: 0 | AA7: 0 | AB7: 0 | AC7: 0 | AD7: 0 | AE7: 0 | AF7: 0 | AG7: 0 | AH7: 0 | AI7: 0 | AJ7: 0 | AK7: 0 | AL7: =IF(AND(AL$3>=$D7),1,0) -> 1 | AM7: =IF(AND(AM$3>=$D7),1,0) -> 1 | AN7: 1 | AQ7: 0 | AR7: 0
C9: Counters
C11: Construction Quarter | D11: Num# | J11: =SUM($J5:J5)*J5 -> 1 | K11: =SUM($J5:K5)*K5 -> 2 | L11: =SUM($J5:L5)*L5 -> 3 | M11: =SUM($J5:M5)*M5 -> 0 | N11: =SUM($J5:N5)*N5 -> 0 | O11: =SUM($J5:O5)*O5 -> 0 | P11: =SUM($J5:P5)*P5 -> 0 | Q11: =SUM($J5:Q5)*Q5 -> 0 | R11: =SUM($J5:R5)*R5 -> 0 | S11: =SUM($J5:S5)*S5 -> 0 | T11: =SUM($J5:T5)*T5 -> 0 | U11: =SUM($J5:U5)*U5 -> 0 | V11: =SUM($J5:V5)*V5 -> 0 | W11: =SUM($J5:W5)*W5 -> 0 | X11: =SUM($J5:X5)*X5 -> 0 | Y11: =SUM($J5:Y5)*Y5 -> 0 | Z11: =SUM($J5:Z5)*Z5 -> 0 | AA11: =SUM($J5:AA5)*AA5 -> 0 | AB11: =SUM($J5:AB5)*AB5 -> 0 | AC11: =SUM($J5:AC5)*AC5 -> 0 | AD11: =SUM($J5:AD5)*AD5 -> 0 | AE11: =SUM($J5:AE5)*AE5 -> 0 | AF11: =SUM($J5:AF5)*AF5 -> 0 | AG11: =SUM($J5:AG5)*AG5 -> 0 | AH11: =SUM($J5:AH5)*AH5 -> 0 | AI11: =SUM($J5:AI5)*AI5 -> 0 | AJ11: =SUM($J5:AJ5)*AJ5 -> 0 | AK11: =SUM($J5:AK5)*AK5 -> 0 | AL11: =SUM($J5:AL5)*AL5 -> 0 | AM11: =SUM($J5:AM5)*AM5 -> 0 | AN11: =SUM($J5:AN5)*AN5 -> 0
C12: Construction Year | D12: Num# | J12: =ROUNDUP(J11/Qtrs_Yr,0) -> 1 | K12: 1 | L12: 1 | M12: 0 | N12: 0 | O12: 0 | P12: 0 | Q12: 0 | R12: 0 | S12: 0 | T12: 0 | U12: 0 | V12: 0 | W12: 0 | X12: 0 | Y12: 0 | Z12: 0 | AA12: 0 | AB12: 0 | AC12: 0 | AD12: 0 | AE12: 0 | AF12: 0 | AG12: 0 | AH12: 0 | AI12: 0 | AJ12: 0 | AK12: 0 | AL12: 0 | AM12: 0 | AN12: 0
C13: Last construction period | D13: Num# | J13: =IF(K14=1,1,0) -> 0 | K13: =IF(L14=1,1,0) -> 0 | L13: 1 | M13: 0 | N13: 0 | O13: 0 | P13: 0 | Q13: 0 | R13: 0 | S13: 0 | T13: 0 | U13: 0 | V13: 0 | W13: 0 | X13: 0 | Y13: 0 | Z13: 0 | AA13: 0 | AB13: 0 | AC13: 0 | AD13: 0 | AE13: 0 | AF13: 0 | AG13: 0 | AH13: 0 | AI13: 0 | AJ13: 0 | AK13: 0 | AL13: 0 | AM13: 0 | AN13: 0
C14: Operations Quarter | D14: Num# | J14: =SUM($J6:J6)*J6 -> 0 | K14: =SUM($J6:K6)*K6 -> 0 | L14: =SUM($J6:L6)*L6 -> 0 | M14: =SUM($J6:M6)*M6 -> 1 | N14: =SUM($J6:N6)*N6 -> 2 | O14: =SUM($J6:O6)*O6 -> 3 | P14: =SUM($J6:P6)*P6 -> 4 | Q14: =SUM($J6:Q6)*Q6 -> 5 | R14: =SUM($J6:R6)*R6 -> 6 | S14: =SUM($J6:S6)*S6 -> 7 | T14: =SUM($J6:T6)*T6 -> 8 | U14: =SUM($J6:U6)*U6 -> 9 | V14: =SUM($J6:V6)*V6 -> 10 | W14: =SUM($J6:W6)*W6 -> 11 | X14: =SUM($J6:X6)*X6 -> 12 | Y14: =SUM($J6:Y6)*Y6 -> 13 | Z14: =SUM($J6:Z6)*Z6 -> 14 | AA14: =SUM($J6:AA6)*AA6 -> 15 | AB14: =SUM($J6:AB6)*AB6 -> 16 | AC14: =SUM($J6:AC6)*AC6 -> 17 | AD14: =SUM($J6:AD6)*AD6 -> 18 | AE14: =SUM($J6:AE6)*AE6 -> 19 | AF14: =SUM($J6:AF6)*AF6 -> 20 | AG14: =SUM($J6:AG6)*AG6 -> 21 | AH14: =SUM($J6:AH6)*AH6 -> 22 | AI14: =SUM($J6:AI6)*AI6 -> 23 | AJ14: =SUM($J6:AJ6)*AJ6 -> 24 | AK14: =SUM($J6:AK6)*AK6 -> 25 | AL14: =SUM($J6:AL6)*AL6 -> 0 | AM14: =SUM($J6:AM6)*AM6 -> 0 | AN14: =SUM($J6:AN6)*AN6 -> 0
C15: Operations Year | D15: Num# | J15: =ROUNDUP(J14/Qtrs_Yr,0) -> 0 | K15: 0 | L15: 0 | M15: 1 | N15: 1 | O15: 1 | P15: 1 | Q15: 2 | R15: 2 | S15: 2 | T15: 2 | U15: 3 | V15: 3 | W15: 3 | X15: 3 | Y15: 4 | Z15: 4 | AA15: 4 | AB15: 4 | AC15: 5 | AD15: 5 | AE15: 5 | AF15: 5 | AG15: 6 | AH15: 6 | AI15: 6 | AJ15: 6 | AK15: 7 | AL15: 0 | AM15: 0 | AN15: 0
C16: Calendar Year | D16: Num# | J16: =YEAR(J4) -> 2019 | K16: 2019 | L16: 2019 | M16: 2020 | N16: 2021 | O16: 2022 | P16: 2023 | Q16: 2024 | R16: 2025 | S16: 2026 | T16: 2027 | U16: 2028 | V16: 2029 | W16: 2030 | X16: 2031 | Y16: 2032 | Z16: 2033 | AA16: 2034 | AB16: 2035 | AC16: 2036 | AD16: 2037 | AE16: 2038 | AF16: 2039 | AG16: 2040 | AH16: 2041 | AI16: 2042 | AJ16: 2043 | AK16: 2044 | AL16: 2044 | AM16: 2045 | AN16: 2045
C17: Days in period | D17: Num# | J17: =J4-J3+1 -> 91 | K17: 89 | L17: 92 | M17: 366 | N17: 365 | O17: 365 | P17: 365 | Q17: 366 | R17: 365 | S17: 365 | T17: 365 | U17: 366 | V17: 365 | W17: 365 | X17: 365 | Y17: 366 | Z17: 365 | AA17: 365 | AB17: 365 | AC17: 366 | AD17: 365 | AE17: 365 | AF17: 365 | AG17: 366 | AH17: 365 | AI17: 365 | AJ17: 365 | AK17: 366 | AL17: 92 | AM17: 92 | AN17: 89
C18: Period number | D18: Num# | J18: =COUNT($J4:J4) -> 1 | K18: =COUNT($J4:K4) -> 2 | L18: =COUNT($J4:L4) -> 3 | M18: =COUNT($J4:M4) -> 4 | N18: =COUNT($J4:N4) -> 5 | O18: =COUNT($J4:O4) -> 6 | P18: =COUNT($J4:P4) -> 7 | Q18: =COUNT($J4:Q4) -> 8 | R18: =COUNT($J4:R4) -> 9 | S18: =COUNT($J4:S4) -> 10 | T18: =COUNT($J4:T4) -> 11 | U18: =COUNT($J4:U4) -> 12 | V18: =COUNT($J4:V4) -> 13 | W18: =COUNT($J4:W4) -> 14 | X18: =COUNT($J4:X4) -> 15 | Y18: =COUNT($J4:Y4) -> 16 | Z18: =COUNT($J4:Z4) -> 17 | AA18: =COUNT($J4:AA4) -> 18 | AB18: =COUNT($J4:AB4) -> 19 | AC18: =COUNT($J4:AC4) -> 20 | AD18: =COUNT($J4:AD4) -> 21 | AE18: =COUNT($J4:AE4) -> 22 | AF18: =COUNT($J4:AF4) -> 23 | AG18: =COUNT($J4:AG4) -> 24 | AH18: =COUNT($J4:AH4) -> 25 | AI18: =COUNT($J4:AI4) -> 26 | AJ18: =COUNT($J4:AJ4) -> 27 | AK18: =COUNT($J4:AK4) -> 28 | AL18: =COUNT($J4:AL4) -> 29 | AM18: =COUNT($J4:AM4) -> 30 | AN18: =COUNT($J4:AN4) -> 31
C20: Variable Declining Balance Method
C21: Panels and other summary | J21: =Cons!J67-Cons!J58 -> 302.1985621 | K21: =Cons!K67-Cons!K58 -> 307.150382 | L21: =Cons!L67-Cons!L58 -> 105.2261721 | M21: =Cons!M67-Cons!M58 -> 0 | N21: =Cons!N67-Cons!N58 -> 0 | O21: =Cons!O67-Cons!O58 -> 0 | P21: =Cons!P67-Cons!P58 -> 0 | Q21: =Cons!Q67-Cons!Q58 -> 0 | R21: =Cons!R67-Cons!R58 -> 0 | S21: =Cons!S67-Cons!S58 -> 0 | T21: =Cons!T67-Cons!T58 -> 0 | U21: =Cons!U67-Cons!U58 -> 0 | V21: =Cons!V67-Cons!V58 -> 0 | W21: =Cons!W67-Cons!W58 -> 0 | X21: =Cons!X67-Cons!X58 -> 0 | Y21: =Cons!Y67-Cons!Y58 -> 0 | Z21: =Cons!Z67-Cons!Z58 -> 0 | AA21: =Cons!AA67-Cons!AA58 -> 0 | AB21: =Cons!AB67-Cons!AB58 -> 0 | AC21: =Cons!AC67-Cons!AC58 -> 0 | AD21: =Cons!AD67-Cons!AD58 -> 0 | AE21: =Cons!AE67-Cons!AE58 -> 0 | AF21: =Cons!AF67-Cons!AF58 -> 0 | AG21: =Cons!AG67-Cons!AG58 -> 0 | AH21: =Cons!AH67-Cons!AH58 -> 0 | AI21: =Cons!AI67-Cons!AI58 -> 0 | AJ21: =Cons!AJ67-Cons!AJ58 -> 0 | AK21: =Cons!AK67-Cons!AK58 -> 0 | AL21: =Cons!AL67-Cons!AL58 -> 0
C22: Construction capex: Less inverters | D22: AUD M | I22: =SUM(J22:BM22) -> 0
C23: Decommissioning provision | D23: AUD M | I23: =SUM(J23:BM23) -> 1.777435497 | J23: =Operations!J146 -> 0 | K23: =Operations!K146 -> 0 | L23: =Operations!L146 -> 1.777435497 | M23: =Operations!M146 -> 0 | N23: =Operations!N146 -> 0 | O23: =Operations!O146 -> 0 | P23: =Operations!P146 -> 0 | Q23: =Operations!Q146 -> 0 | R23: =Operations!R146 -> 0 | S23: =Operations!S146 -> 0 | T23: =Operations!T146 -> 0 | U23: =Operations!U146 -> 0 | V23: =Operations!V146 -> 0 | W23: =Operations!W146 -> 0 | X23: =Operations!X146 -> 0 | Y23: =Operations!Y146 -> 0 | Z23: =Operations!Z146 -> 0 | AA23: =Operations!AA146 -> 0 | AB23: =Operations!AB146 -> 0 | AC23: =Operations!AC146 -> 0 | AD23: =Operations!AD146 -> 0 | AE23: =Operations!AE146 -> 0 | AF23: =Operations!AF146 -> 0 | AG23: =Operations!AG146 -> 0 | AH23: =Operations!AH146 -> 0 | AI23: =Operations!AI146 -> 0 | AJ23: =Operations!AJ146 -> 0 | AK23: =Operations!AK146 -> 0 | AL23: =Operations!AL146 -> 0
C24: Total capitalised expenses | D24: AUD M | I24: =SUM(J24:BM24) -> 716.3525516 | J24: =SUM(J21:J23) -> 302.1985621 | K24: =SUM(K21:K23) -> 307.150382 | L24: =SUM(L21:L23) -> 107.0036076 | M24: =SUM(M21:M23) -> 0 | N24: =SUM(N21:N23) -> 0 | O24: =SUM(O21:O23) -> 0 | P24: =SUM(P21:P23) -> 0 | Q24: =SUM(Q21:Q23) -> 0 | R24: =SUM(R21:R23) -> 0 | S24: =SUM(S21:S23) -> 0 | T24: =SUM(T21:T23) -> 0 | U24: =SUM(U21:U23) -> 0 | V24: =SUM(V21:V23) -> 0 | W24: =SUM(W21:W23) -> 0 | X24: =SUM(X21:X23) -> 0 | Y24: =SUM(Y21:Y23) -> 0 | Z24: =SUM(Z21:Z23) -> 0 | AA24: =SUM(AA21:AA23) -> 0 | AB24: =SUM(AB21:AB23) -> 0 | AC24: =SUM(AC21:AC23) -> 0 | AD24: =SUM(AD21:AD23) -> 0 | AE24: =SUM(AE21:AE23) -> 0 | AF24: =SUM(AF21:AF23) -> 0 | AG24: =SUM(AG21:AG23) -> 0 | AH24: =SUM(AH21:AH23) -> 0 | AI24: =SUM(AI21:AI23) -> 0 | AJ24: =SUM(AJ21:AJ23) -> 0 | AK24: =SUM(AK21:AK23) -> 0 | AL24: =SUM(AL21:AL23) -> 0
C26: Panel and other
